Workbook

Sheet COMPARISON (hidden)
B1: ="Local area: " & LocalAuthority -> Local area: Adur
B2: Control panel
B5: ECONOMIC VALUE OF SPORT: RESULTS
B6: Select your comparative area type:
B7: Local authority
B8: Select your comparative area:
B9: Adur
B64: Participation | C64: How it is calculated? | D64: Gross Value Added | E64: Jobs
B65: Sports services | C65: Local area jobs in sports activities (SIC 93.1) multiplied by national expenditure per job. Includes all front-line staff (e.g. leisure centre receptionists) but not high level managers/civil servants. | D65: 5.554970371 | E65: 234
B66: Sportswear and equipment | C66: Local area jobs in retail sale of sporting equipment in specialised stores (SIC 47.64) and manufacture of sports goods(SIC 32.3) multiplied by national expenditure per job multiplied by the national share of sportswear & equipment for participation | D66: 0.4545059379 | E66: 9
B67: Sport education | C67: Local area school age population multiplied by England expenditure per school age person plus user specified FE students in sports related course multiplied by England expenditure per student. Includes teachers and support staff. | D67: 4.563540138 | E67: 56
B68: Total participation | D68: 10.57301645 | E68: 299
B70: Non-Participation | D70: Gross Value Added | E70: Jobs
B71: Spectator sports | C71: Local area jobs in sports activities (SIC 93.1) multiplied by national expenditure per job. Includes revenue from tickets and all employment associated with hosting events. | D71: 1.025396099 | E71: 25*
B72: Sportswear and equipment | C72: Local area jobs in retail sale of sporting equipment in specialised stores (SIC 47.64) and manufacture of sports goods(SIC 32.3) multiplied by national expenditure per job multiplied by the national share of sportswear & equipment for non-participation | D72: 0.6746572516 | E72: 13
B73: Sports broadcasting and gambling | C73: Local area jobs in gambling and betting (SIC 92) and television programming and broadcasting activities (SIC 60.2) multiplied by national expenditure per job plus user input of online betting jobs. Includes betting shop staff and on-site bookmakers. | D73: 0.3463724244 | E73: 9
B74: Total non-participation | D74: 2.046425775 | E74: 47
B76: Wider impacts | F76: Wider value
B77: Health | C77: Participants in any sport by age group multiplied by national per participant value | F77: 13.96901007
B78: Volunteering | C78: Number of volunteers multiplied by average annual replacement cost | F78: 6.758723762
B79: Wider spending | C79: Number of sports visits (based on regional sports visits as percentage of all visits data and LA total tourist visits) multiplied by LA average spend per visit. Includes all non-entry fee spending during trip. | F79: 0.05909671244
B86: Participation | C86: How it is calculated? | D86: Gross Value Added | E86: Jobs | G86: Gross Value Added (Diff from snapshot) | H86: Jobs (Diff from snapshot)
B87: Sport/class subscription fees | C87: Local area jobs in sports activities (SIC 93.1) multiplied by national expenditure per job | D87: 4.101584396 | E87: 234 | G87: 0 | H87: 0
B88: Participation sport | C88: Local area participation in participation sports multiplied by national expenditure per participant | D88: 1.453385975 | G88: 0 | H88: 0
B89: Sports equipment | C89: Local area jobs in retail sale of sporting equipment in specialised stores (SIC 47.64) and manufacture of sports goods (SIC 32.3) multiplied by national expenditure per job multiplied by the national share of sports equipment for participation | D89: 0.4260993168 | E89: 8 | G89: 0 | H89: 0
B90: Sportswear | C90: Local area jobs in retail sale of sporting equipment in specialised stores (SIC 47.64) and manufacture of sports goods (SIC 32.3) multiplied by national expenditure per job multiplied by the national share of sportswear for participation | D90: 0.02840662112 | E90: 1 | G90: 0 | H90: 0
B91: Sport education | C91: Local area school age population multiplied by England expenditure per school age person plus user input FE students in sports related course multiplied by England expenditure per student | D91: 4.563540138 | E91: 56 | G91: 0 | H91: 0
B92: Total participation | D92: 10.57301645 | E92: 299 | G92: 0 | H92: 0
B94: Non-Participation | D94: Gross Value Added | E94: Jobs | G94: Gross Value Added (Diff from snapshot) | H94: Jobs (Diff from snapshot)
B95: Spectator sports | C95: Local area jobs in sports activities (SIC 93.1) multiplied by national expenditure per job | D95: 1.025396099 | E95: 25* | G95: 0 | H95: 0
B96: Sports equipment | C96: Local area jobs in retail sale of sporting equipment in specialised stores (SIC 47.64) and manufacture of sports goods (SIC 32.3) multiplied by national expenditure per job multiplied by the national share of sports equipment for non-participation | D96: 0.532624146 | E96: 10 | G96: 0 | H96: 0
B97: Sportswear | C97: Local area jobs in retail sale of sporting equipment in specialised stores (SIC 47.64) and manufacture of sports goods (SIC 32.3) multiplied by national expenditure per job multiplied by the national share of sportswear for non-participation | D97: 0.1420331056 | E97: 3 | G97: 0 | H97: 0
B98: Sports gambling | C98: Local area jobs in gambling and betting (SIC 92) multiplied by national expenditure per job plus user input of online betting jobs | D98: 0.1787715154 | E98: 9 | G98: 0 | H98: 0
B99: TV/satellite subscriptions | C99: Local area jobs in television programming and broadcasting activities (SIC 60.2) multiplied by national expenditure per job | D99: 0.167600909 | G99: 0 | H99: N/A
B100: Total non-participation | D100: 2.046425775 | E100: 47 | G100: 0 | H100: 0
B102: Wider impacts | I102: Wider value
B103: Health | C103: Participants by age (assuming distribution of participants across sports is as in England) multiplied by national per participant value | I103: 13.96901007
B104: Health cost savings | C104: Participants by age (assuming distribution of participants across sports is as in England) multiplied by national per participant health cost savings | I104: 2.17133545
B105: Other health benefits (QALY's etc) | C105: Participants by age (assuming distribution of participants across sports is as in England) multiplied by national per participant value of other health benefits | I105: 11.79767462
B106: Volunteering | C106: Number of volunteers multiplied by average annual replacement cost | I106: 6.758723762
B107: Wider spending | C107: Number of sports visits (based on regional sports visits as percentage of all visits data and LA total visits) multiplied by LA average spend per visit | I107: 0.05909671244
B108: Spectator wider spending | C108: Number of sports visits (based on regional visits for the purpose of watching sport as percentage of all visits data and LA total visits) multiplied by LA average spend per visit | I108: 0.03801788856
B109: Participation wider spending | C109: Number of sports visits (based on regional sports visits for the purpose of participating in sport as percentage of all visits data and LA total visits) multiplied by LA average spend per visit | I109: 0.02107882388

Sheet HOME
C2: Economic Value of Sport - Local Model
B4: This model estimates the economic value of sport in your local area.
B5: Select your local area type: | D5: Select your local area:
B6: Local authority | D6: Adur
B8: There are then three levels that can be used.
B9: The first two levels can be used to estimate the overall economic value of sport in your local area (for the year 2013).
B10: Select the level you require:
C11: Level 1 makes an initial, snapshot for 2013, estimate of the overall contribution that sport makes to the economy of your local area. The model uses a consistent methodology suitable for any local area and supported by the available local area data and assumptions that are included in the model.
C12: Level 2 gives you the option to refine the snapshot for 2013 - to input local area data and assumptions that better capture your local knowledge.
C14: Level 3 gives you the option to estimate the additional impact of a sport investment. You need to consider and input what will be the effects of the investment (for example on participation or wider spending). The model will then estimate the economic impacts.
B16: The model measures economic value as follows:
B17: Gross Value Added (GVA): This is a measure of output. It shows the value added contributed by a sector, which is principally wages plus profits.
B18: Jobs: This is a measure of employment. It shows the number of jobs contributed by a sector. Within the model every job, whether full- or part-time, is treated equally in the calculations.
B21: Model version control
B22: Version: | C22: Model Update PV2
B23: Estimates for year: | C23: 2013

Sheet FullCheck (hidden)
B2: GVA | D2: England | E2: Local Authority | F2: Local Authority | G2: Local Authority | H2: Local Authority | I2: Local Authority | J2: Local Authority | K2: Local Authority | L2: Local Authority | M2: Local Authority | N2: Local Authority | O2: Local Authority | P2: Local Authority | Q2: Local Authority | R2: Local Authority | S2: Local Authority | T2: Local Authority | U2: Local Authority | V2: Local Authority | W2: Local Authority | X2: Local Authority | Y2: Local Authority | Z2: Local Authority | AA2: Local Authority | AB2: Local Authority | AC2: Local Authority | AD2: Local Authority | AE2: Local Authority | AF2: Local Authority | AG2: Local Authority | AH2: Local Authority | AI2: Local Authority | AJ2: Local Authority | AK2: Local Authority | AL2: Local Authority | AM2: Local Authority | AN2: Local Authority | AO2: Local Authority | AP2: Local Authority | AQ2: Local Authority | AR2: Local Authority | AS2: Local Authority | AT2: Local Authority | AU2: Local Authority | AV2: Local Authority | AW2: Local Authority | AX2: Local Authority | AY2: Local Authority | AZ2: Local Authority | BA2: Local Authority | BB2: Local Authority | BC2: Local Authority | BD2: Local Authority | BE2: Local Authority | BF2: Local Authority | BG2: Local Authority | BH2: Local Authority | BI2: Local Authority | BJ2: Local Authority | BK2: Local Authority | BL2: Local Authority | BM2: Local Authority | BN2: Local Authority | BO2: Local Authority | BP2: Local Authority | BQ2: Local Authority | BR2: Local Authority | BS2: Local Authority | BT2: Local Authority | BU2: Local Authority | BV2: Local Authority | BW2: Local Authority | BX2: Local Authority | BY2: Local Authority | BZ2: Local Authority | CA2: Local Authority | CB2: Local Authority | CC2: Local Authority | CD2: Local Authority | CE2: Local Authority | CF2: Local Authority | CG2: Local Authority | CH2: Local Authority | CI2: Local Authority | CJ2: Local Authority | CK2: Local Authority | CL2: Local Authority | CM2: Local Authority | CN2: Local Authority | CO2: Local Authority | CP2: Local Authority | CQ2: Local Authority | CR2: Local Authority | CS2: Local Authority | CT2: Local Authority | CU2: Local Authority | CV2: Local Authority | CW2: Local Authority | CX2: Local Authority | CY2: Local Authority | CZ2: Local Authority | DA2: Local Authority | DB2: Local Authority | DC2: Local Authority | DD2: Local Authority | DE2: Local Authority | DF2: Local Authority | DG2: Local Authority | DH2: Local Authority | DI2: Local Authority | DJ2: Local Authority | DK2: Local Authority | DL2: Local Authority | DM2: Local Authority | DN2: Local Authority | DO2: Local Authority | DP2: Local Authority | DQ2: Local Authority | DR2: Local Authority | DS2: Local Authority | DT2: Local Authority | DU2: Local Authority | DV2: Local Authority | DW2: Local Authority | DX2: Local Authority | DY2: Local Authority | DZ2: Local Authority | EA2: Local Authority | EB2: Local Authority | EC2: Local Authority | ED2: Local Authority | EE2: Local Authority | EF2: Local Authority | EG2: Local Authority | EH2: Local Authority | EI2: Local Authority | EJ2: Local Authority | EK2: Local Authority | EL2: Local Authority | EM2: Local Authority | EN2: Local Authority | EO2: Local Authority | EP2: Local Authority | EQ2: Local Authority | ER2: Local Authority | ES2: Local Authority | ET2: Local Authority | EU2: Local Authority | EV2: Local Authority | EW2: Local Authority | EX2: Local Authority | EY2: Local Authority | EZ2: Local Authority | FA2: Local Authority | FB2: Local Authority | FC2: Local Authority | FD2: Local Authority | FE2: Local Authority | FF2: Local Authority | FG2: Local Authority | FH2: Local Authority | FI2: Local Authority | FJ2: Local Authority | FK2: Local Authority | FL2: Local Authority | FM2: Local Authority | FN2: Local Authority | FO2: Local Authority | FP2: Local Authority | FQ2: Local Authority | FR2: Local Authority | FS2: Local Authority | FT2: Local Authority | FU2: Local Authority | FV2: Local Authority | FW2: Local Authority | FX2: Local Authority | FY2: Local Authority | FZ2: Local Authority | GA2: Local Authority | GB2: Local Authority | GC2: Local Authority | GD2: Local Authority | GE2: Local Authority | GF2: Local Authority | GG2: Local Authority | GH2: Local Authority | GI2: Local Authority | GJ2: Local Authority | GK2: Local Authority | GL2: Local Authority | GM2: Local Authority | GN2: Local Authority | GO2: Local Authority | GP2: Local Authority | GQ2: Local Authority | GR2: Local Authority | GS2: Local Authority | GT2: Local Authority | GU2: Local Authority | GV2: Local Authority | GW2: Local Authority | GX2: Local Authority | GY2: Local Authority | GZ2: Local Authority | HA2: Local Authority | HB2: Local Authority | HC2: Local Authority | HD2: Local Authority | HE2: Local Authority | HF2: Local Authority | HG2: Local Authority | HH2: Local Authority | HI2: Local Authority | HJ2: Local Authority | HK2: Local Authority | HL2: Local Authority | HM2: Local Authority | HN2: Local Authority | HO2: Local Authority | HP2: Local Authority | HQ2: Local Authority | HR2: Local Authority | HS2: Local Authority | HT2: Local Authority | HU2: Local Authority | HV2: Local Authority | HW2: Local Authority | HX2: Local Authority | HY2: Local Authority | HZ2: Local Authority | IA2: Local Authority | IB2: Local Authority | IC2: Local Authority | ID2: Local Authority | IE2: Local Authority | IF2: Local Authority | IG2: Local Authority | IH2: Local Authority | II2: Local Authority | IJ2: Local Authority | IK2: Local Authority | IL2: Local Authority | IM2: Local Authority | IN2: Local Authority | IO2: Local Authority | IP2: Local Authority | IQ2: Local Authority | IR2: Local Authority | IS2: Local Authority | IT2: Local Authority | IU2: Local Authority | IV2: Local Authority | IW2: Local Authority | IX2: Local Authority | IY2: Local Authority | IZ2: Local Authority | JA2: Local Authority | JB2: Local Authority | JC2: Local Authority | JD2: Local Authority | JE2: Local Authority | JF2: Local Authority | JG2: Local Authority | JH2: Local Authority | JI2: Local Authority | JJ2: Local Authority | JK2: Local Authority | JL2: Local Authority | JM2: Local Authority | JN2: Local Authority | JO2: Local Authority | JP2: Local Authority | JQ2: Local Authority | JR2: Local Authority | JS2: Local Authority | JT2: Local Authority | JU2: Local Authority | JV2: Local Authority | JW2: Local Authority | JX2: Local Authority | JY2: Local Authority | JZ2: Local Authority | KA2: Local Authority | KB2: Local Authority | KC2: Local Authority | KD2: Local Authority | KE2: Local Authority | KF2: Local Authority | KG2: Local Authority | KH2: Local Authority | KI2: Local Authority | KJ2: Local Authority | KK2: Local Authority | KL2: Local Authority | KM2: Local Authority | KN2: Local Authority | KO2: Local Authority | KP2: Local Authority | KQ2: Local Authority | KR2: Local Authority | KS2: Local Authority | KT2: Local Authority | KU2: Local Authority | KV2: Local Authority | KW2: Local Authority | KX2: Local Authority | KY2: Local Authority | KZ2: Local Authority | LA2: Local Authority | LB2: Local Authority | LC2: Local Authority | LD2: Local Authority | LE2: Local Authority | LF2: Local Authority | LG2: Local Authority | LH2: Local Authority | LI2: Local Authority | LJ2: Local Authority | LK2: Local Authority | LL2: Local Authority | LM2: Local Authority | LN2: Local Authority | LO2: Local Authority | LP2: Local Authority | LQ2: Local Authority | LR2: Local Authority | LS2: Local Authority | LT2: Local Authority | LU2: Local Authority | LV2: Local Authority | LW2: Local Authority | LX2: Local Authority | LY2: Local Authority | LZ2: Local Authority | MA2: Local Authority | MB2: Local Authority | MC2: Local Authority | MD2: Local Authority | ME2: Local Authority | MF2: Local Authority | MG2: Local Authority | MH2: Local Authority | MI2: Local Authority | MJ2: Local Authority | MK2: Local Authority | ML2: Local Authority | MM2: Local Authority | MN2: Local Authority | MO2: Local Authority | MP2: Local Authority | MQ2: Local Authority | MR2: Local Authority | MS2: Local Authority | MT2: LEP | MU2: LEP | MV2: LEP | MW2: LEP | MX2: LEP | MY2: LEP | MZ2: LEP | NA2: LEP | NB2: LEP | NC2: LEP | ND2: LEP | NE2: LEP | NF2: LEP | NG2: LEP | NH2: LEP | NI2: LEP | NJ2: LEP | NK2: LEP | NL2: LEP | NM2: LEP | NN2: LEP | NO2: LEP | NP2: LEP | NQ2: LEP | NR2: LEP | NS2: LEP | NT2: LEP | NU2: LEP | NV2: LEP | NW2: LEP | NX2: LEP | NY2: LEP | NZ2: LEP | OA2: LEP | OB2: LEP | OC2: LEP | OD2: LEP | OE2: LEP | OF2: LEP | OG2: CSP | OH2: CSP | OI2: CSP | OJ2: CSP | OK2: CSP | OL2: CSP | OM2: CSP | ON2: CSP | OO2: CSP | OP2: CSP | OQ2: CSP | OR2: CSP | OS2: CSP | OT2: CSP | OU2: CSP | OV2: CSP | OW2: CSP | OX2: CSP | OY2: CSP | OZ2: CSP | PA2: CSP | PB2: CSP | PC2: CSP | PD2: CSP | PE2: CSP | PF2: CSP | PG2: CSP | PH2: CSP | PI2: CSP | PJ2: CSP | PK2: CSP | PL2: CSP | PM2: CSP | PN2: CSP | PO2: CSP | PP2: CSP | PQ2: CSP | PR2: CSP | PS2: CSP | PT2: CSP | PU2: CSP | PV2: CSP | PW2: CSP | PX2: CSP | PY2: CSP | PZ2: CSP
D3: England | E3: Adur | F3: Allerdale | G3: Amber Valley | H3: Arun | I3: Ashfield | J3: Ashford | K3: Aylesbury Vale | L3: Babergh | M3: Barking and Dagenham | N3: Barnet | O3: Barnsley | P3: Barrow-in-Furness | Q3: Basildon | R3: Basingstoke and Deane | S3: Bassetlaw | T3: Bath and North East Somerset | U3: Bedford | V3: Bexley | W3: Birmingham | X3: Blaby | Y3: Blackburn with Darwen | Z3: Blackpool | AA3: Bolsover | AB3: Bolton | AC3: Boston | AD3: Bournemouth | AE3: Bracknell Forest | AF3: Bradford | AG3: Braintree | AH3: Breckland | AI3: Brent | AJ3: Brentwood | AK3: Brighton and Hove | AL3: Bristol | AM3: Broadland | AN3: Bromley | AO3: Bromsgrove | AP3: Broxbourne | AQ3: Broxtowe | AR3: Buckinghamshire CC | AS3: Burnley | AT3: Bury | AU3: Calderdale | AV3: Cambridge | AW3: Cambridgeshire CC | AX3: Camden | AY3: Cannock Chase | AZ3: Canterbury | BA3: Carlisle | BB3: Castle Point | BC3: Central Bedfordshire | BD3: Charnwood | BE3: Chelmsford | BF3: Cheltenham | BG3: Cherwell | BH3: Cheshire East | BI3: Cheshire West and Chester | BJ3: Chesterfield | BK3: Chichester | BL3: Chiltern | BM3: Chorley | BN3: Christchurch | BO3: City of London | BP3: Colchester | BQ3: Copeland | BR3: Corby | BS3: Cornwall | BT3: Cotswold | BU3: County Durham | BV3: Coventry | BW3: Craven | BX3: Crawley | BY3: Croydon | BZ3: Cumbria CC | CA3: Dacorum | CB3: Darlington | CC3: Dartford | CD3: Daventry | CE3: Derby | CF3: Derbyshire CC | CG3: Derbyshire Dales | CH3: Devon CC | CI3: Doncaster | CJ3: Dorset CC | CK3: Dover | CL3: Dudley | CM3: Ealing | CN3: East Cambridgeshire | CO3: East Devon | CP3: East Dorset | CQ3: East Hampshire | CR3: East Hertfordshire | CS3: East Lindsey | CT3: East Northamptonshire | CU3: East Riding of Yorkshire | CV3: East Staffordshire | CW3: East Sussex CC | CX3: Eastbourne | CY3: Eastleigh | CZ3: Eden | DA3: Elmbridge | DB3: Enfield | DC3: Epping Forest | DD3: Epsom and Ewell | DE3: Erewash | DF3: Essex CC | DG3: Exeter | DH3: Fareham | DI3: Fenland | DJ3: Forest Heath | DK3: Forest of Dean | DL3: Fylde | DM3: Gateshead | DN3: Gedling | DO3: Gloucester | DP3: Gloucestershire CC | DQ3: Gosport | DR3: Gravesham | DS3: Great Yarmouth | DT3: Greenwich | DU3: Guildford | DV3: Hackney | DW3: Halton | DX3: Hambleton | DY3: Hammersmith and Fulham | DZ3: Hampshire CC | EA3: Harborough | EB3: Haringey | EC3: Harlow | ED3: Harrogate | EE3: Harrow | EF3: Hart | EG3: Hartlepool | EH3: Hastings | EI3: Havant | EJ3: Havering | EK3: Herefordshire | EL3: Hertfordshire CC | EM3: Hertsmere | EN3: High Peak | EO3: Hillingdon | EP3: Hinckley and Bosworth | EQ3: Horsham | ER3: Hounslow | ES3: Huntingdonshire | ET3: Hyndburn | EU3: Ipswich | EV3: Isle of Wight | EW3: Isles of Scilly | EX3: Islington | EY3: Kensington and Chelsea | EZ3: Kent CC | FA3: Kettering | FB3: King`s Lynn and West Norfolk | FC3: Kingston upon Hull | FD3: Kingston upon Thames | FE3: Kirklees | FF3: Knowsley | FG3: Lambeth | FH3: Lancashire CC | FI3: Lancaster | FJ3: Leeds | FK3: Leicester | FL3: Leicestershire CC | FM3: Lewes | FN3: Lewisham | FO3: Lichfield | FP3: Lincoln | FQ3: Lincolnshire CC | FR3: Liverpool | FS3: Luton | FT3: Maidstone | FU3: Maldon | FV3: Malvern Hills | FW3: Manchester | FX3: Mansfield | FY3: Medway | FZ3: Melton | GA3: Mendip | GB3: Merton | GC3: Mid Devon | GD3: Mid Suffolk | GE3: Mid Sussex | GF3: Middlesbrough | GG3: Milton Keynes | GH3: Mole Valley | GI3: New Forest | GJ3: Newark and Sherwood | GK3: Newcastle upon Tyne | GL3: Newcastle-under-Lyme | GM3: Newham | GN3: Norfolk CC | GO3: North Devon | GP3: North Dorset | GQ3: North East Derbyshire | GR3: North East Lincolnshire | GS3: North Hertfordshire | GT3: North Kesteven | GU3: North Lincolnshire | GV3: North Norfolk | GW3: North Somerset | GX3: North Tyneside | GY3: North Warwickshire | GZ3: North West Leicestershire | HA3: North Yorkshire CC | HB3: Northampton | HC3: Northamptonshire CC | HD3: Northumberland | HE3: Norwich | HF3: Nottingham | HG3: Nottinghamshire CC | HH3: Nuneaton and Bedworth | HI3: Oadby and Wigston | HJ3: Oldham | HK3: Oxford | HL3: Oxfordshire CC | HM3: Pendle | HN3: Peterborough | HO3: Plymouth | HP3: Poole | HQ3: Portsmouth | HR3: Preston | HS3: Purbeck | HT3: Reading | HU3: Redbridge | HV3: Redcar and Cleveland | HW3: Redditch | HX3: Reigate and Banstead | HY3: Ribble Valley | HZ3: Richmond upon Thames | IA3: Richmondshire | IB3: Rochdale | IC3: Rochford | ID3: Rossendale | IE3: Rother | IF3: Rotherham | IG3: Rugby | IH3: Runnymede | II3: Rushcliffe | IJ3: Rushmoor | IK3: Rutland | IL3: Ryedale | IM3: Salford | IN3: Sandwell | IO3: Scarborough | IP3: Sedgemoor | IQ3: Sefton | IR3: Selby | IS3: Sevenoaks | IT3: Sheffield | IU3: Shepway | IV3: Shropshire | IW3: Slough | IX3: Solihull | IY3: Somerset CC | IZ3: South Bucks | JA3: South Cambridgeshire | JB3: South Derbyshire | JC3: South Gloucestershire | JD3: South Hams | JE3: South Holland | JF3: South Kesteven | JG3: South Lakeland | JH3: South Norfolk | JI3: South Northamptonshire | JJ3: South Oxfordshire | JK3: South Ribble | JL3: South Somerset | JM3: South Staffordshire | JN3: South Tyneside | JO3: Southampton | JP3: Southend-on-Sea | JQ3: Southwark | JR3: Spelthorne | JS3: St Albans | JT3: St Edmundsbury | JU3: St Helens | JV3: Stafford | JW3: Staffordshire CC | JX3: Staffordshire Moorlands | JY3: Stevenage | JZ3: Stockport | KA3: Stockton-on-Tees | KB3: Stoke-on-Trent | KC3: Stratford-on-Avon | KD3: Stroud | KE3: Suffolk CC | KF3: Suffolk Coastal | KG3: Sunderland | KH3: Surrey CC | KI3: Surrey Heath | KJ3: Sutton | KK3: Swale | KL3: Swindon | KM3: Tameside | KN3: Tamworth | KO3: Tandridge | KP3: Taunton Deane | KQ3: Teignbridge | KR3: Telford and Wrekin | KS3: Tendring | KT3: Test Valley | KU3: Tewkesbury | KV3: Thanet | KW3: Three Rivers | KX3: Thurrock | KY3: Tonbridge and Malling | KZ3: Torbay | LA3: Torridge | LB3: Tower Hamlets | LC3: Trafford | LD3: Tunbridge Wells | LE3: Uttlesford | LF3: Vale of White Horse | LG3: Wakefield | LH3: Walsall | LI3: Waltham Forest | LJ3: Wandsworth | LK3: Warrington | LL3: Warwick | LM3: Warwickshire CC | LN3: Watford | LO3: Waveney | LP3: Waverley | LQ3: Wealden | LR3: Wellingborough | LS3: Welwyn Hatfield | LT3: West Berkshire | LU3: West Devon | LV3: West Dorset | LW3: West Lancashire | LX3: West Lindsey | LY3: West Oxfordshire | LZ3: West Somerset | MA3: West Sussex CC | MB3: Westminster | MC3: Weymouth and Portland | MD3: Wigan | ME3: Wiltshire | MF3: Winchester | MG3: Windsor and Maidenhead | MH3: Wirral | MI3: Woking | MJ3: Wokingham | MK3: Wolverhampton | ML3: Worcester | MM3: Worcestershire CC | MN3: Worthing | MO3: Wychavon | MP3: Wycombe | MQ3: Wyre | MR3: Wyre Forest | MS3: York | MT3: Black Country | MU3: Buckinghamshire Thames Valley | MV3: Cheshire and Warrington | MW3: Coast to Capital | MX3: Cornwall and Isles of Scilly | MY3: Coventry and Warwickshire | MZ3: Cumbria | NA3: Derby, Derbyshire, Nottingham and Nottinghamshire | NB3: Dorset | NC3: Enterprise M3 | ND3: Gloucestershire | NE3: Greater Birmingham and Solihull | NF3: Greater Cambridge and Greater Peterborough | NG3: Greater Lincolnshire | NH3: Greater Manchester | NI3: Heart of the South West | NJ3: Hertfordshire | NK3: Humber | NL3: Lancashire | NM3: Leeds City Region | NN3: Leicester and Leicestershire | NO3: Liverpool City Region | NP3: London Enterprise Panel | NQ3: New Anglia | NR3: North Eastern | NS3: Northamptonshire | NT3: Oxfordshire | NU3: Sheffield City Region | NV3: Solent | NW3: South East | NX3: South East Midlands | NY3: Stoke-on-Trent and Staffordshire | NZ3: Swindon and Wiltshire | OA3: Tees Valley | OB3: Thames Valley Berkshire | OC3: The Marches | OD3: West of England | OE3: Worcestershire | OF3: York North Yorkshire and East Riding | OG3: Active Cumbria | OH3: Active Devon | OI3: Active Dorset | OJ3: Active Essex | OK3: Active Gloucestershire | OL3: Active Norfolk | OM3: Active Surrey | ON3: Active Sussex | OO3: Birmingham Sport & Physical Activity Partnership | OP3: Black Country Be Active Partnership | OQ3: Cornwall Sports Partnership | OR3: County Durham Sport | OS3: Coventry Solihull & Warwickshire Sport | OT3: Derbyshire Sports Partnership | OU3: Energize Shropshire Telford & Wrekin | OV3: Get Berkshire Active | OW3: Greater Sport | OX3: Herts Sports Partnership | OY3: Humber Sports Partnership | OZ3: Kent Sport | PA3: Lancashire Sport Partnership | PB3: Leap (Bucks & MK Sport and Activity Partnership) | PC3: Leicestershire & Rutland Sport | PD3: Lincolnshire Sports Partnership | PE3: Living Sport | PF3: London | PG3: Merseyside Sport | PH3: North Yorkshire Sport | PI3: Northamptonshire Sport | PJ3: Northumberland Sport | PK3: Oxfordshire Sports Partnership | PL3: Somerset Activity & Sports Partnership | PM3: South Yorkshire Sport | PN3: South & West Yorkshire Sport | PO3: Sport Across Staffordshire & Stoke On Trent | PP3: Sport Cheshire | PQ3: Sport Hampshire & Isle of Wight | PR3: Sport Nottinghamshire | PS3: Sports Partnership Herefordshire & Worcestershire | PT3: Suffolk Sport | PU3: Teams Beds & Luton | PV3: Tees Valley Sport | PW3: Tyne & Wear Sport | PX3: Wesport | PY3: West Yorkshire Sport | PZ3: Wiltshire & Swindon Sport
B4: 1 | C4: Sport/class subscription fees | D4: 4646.4 | E4: 4.172710137 | F4: 4.696282132 | G4: 7.980506461 | H4: 10.23345262 | I4: 6.457387931 | J4: 9.932002076 | K4: 17.81731363 | L4: 8.472346819 | M4: 10.82048788 | N4: 25.06799246 | O4: 20.03852815 | P4: 3.427016691 | Q4: 15.5009042 | R4: 18.53127544 | S4: 7.805982462 | T4: 15.05666129 | U4: 11.51858388 | V4: 9.456027536 | W4: 67.22347092 | X4: 13.54940858 | Y4: 20.16545469 | Z4: 14.40616276 | AA4: 1.031278171 | AB4: 21.10153796 | AC4: 3.680869779 | AD4: 22.25974267 | AE4: 14.07298058 | AF4: 34.25430109 | AG4: 10.53490316 | AH4: 7.218947196 | AI4: 20.91114814 | AJ4: 8.456481001 | AK4: 39.7280083 | AL4: 37.91930505 | AM4: 6.393924659 | AN4: 36.50724725 | AO4: 11.6296446 | AP4: 5.219854126 | AQ4: 6.711241019 | AR4: 58.76698992 | AS4: 9.995465348 | AT4: 11.59791297 | AU4: 14.9773322 | AV4: 6.822301746 | AW4: 36.1106018 | AX4: 27.86037643 | AY4: 3.173163603 | AZ4: 11.3599257 | BA4: 8.980052995 | BB4: 5.283317398 | BC4: 18.73753107 | BD4: 20.87941651 | BE4: 14.83453984 | BF4: 12.16908242 | BG4: 19.27696889 | BH4: 39.01404649 | BI4: 49.0571093 | BJ4: 8.631004999 | BK4: 20.76835578 | BL4: 8.853126451 | BM4: 8.329554457 | BN4: 4.410697408 | BO4: 14.23163876 | BP4: 18.72166526 | BQ4: 3.839527959 | BR4: 3.918857049 | BS4: 39.7280083 | BT4: 15.70715983 | BU4: 38.33181632 | BV4: 18.35675144 | BW4: 3.998186139 | BX4: 10.88395116 | BY4: 18.72166526 | BZ4: 32.36626875 | CA4: 22.49772994 | CB4: 8.170896277 | CC4: 6.663643565 | CD4: 8.662736635 | CE4: 31.90616002 | CF4: 76.28285301 | CG4: 4.807342858 | CH4: 62.16227497 | CI4: 35.80915126 | CJ4: 35.39663999 | CK4: 8.472346819 | CL4: 13.72393258 | CM4: 15.83408638 | CN4: 7.139618106 | CO4: 9.059382085 | CP4: 9.50362499 | CQ4: 8.408883547 | CR4: 13.34315295 | CS4: 7.790116644 | CT4: 4.966001038 | CU4: 22.91024121 | CV4: 26.14686809 | CW4: 45.3603737 | CX4: 9.725746442 | CY4: 13.70806676 | CZ4: 3.411150873 | DA4: 28.25702188 | DB4: 16.89709618 | DC4: 18.45194635 | DD4: 15.18358784 | DE4: 6.600180293 | DF4: 120.9927282 | DG4: 16.6432431 | DH4: 7.203081378 | DI4: 4.014051957 | DJ4: 17.34133909 | DK4: 4.585221406 | DL4: 3.458748327 | DM4: 13.59700604 | DN4: 5.299183216 | DO4: 8.043969733 | DP4: 53.86445215 | DQ4: 4.997732674 | DR4: 9.027650449 | DS4: 7.980506461 | DT4: 21.06980632 | DU4: 26.40072117 | DV4: 9.519490808 | DW4: 9.186308629 | DX4: 9.789209714 | DY4: 56.5457754 | DZ4: 117.9464911 | EA4: 6.885765018 | EB4: 21.19673287 | EC4: 7.50453192 | ED4: 13.89845658 | EE4: 7.076154834 | EF4: 9.678148988 | EG4: 11.34405988 | EH4: 6.409790477 | EI4: 8.916589723 | EJ4: 16.16726856 | EK4: 20.51450269 | EL4: 113.5040621 | EM4: 13.5652744 | EN4: 5.473707214 | EO4: 18.00770344 | EP4: 8.980052995 | EQ4: 16.738438 | ER4: 28.63780151 | ES4: 14.32683367 | ET4: 3.665003961 | EU4: 13.83499331 | EV4: 12.16908242 | EW4: 0.3966454503 | EX4: 19.95919906 | EY4: 12.53399623 | EZ4: 117.5498457 | FA4: 3.220761057 | FB4: 6.568448657 | FC4: 21.21259868 | FD4: 25.44877209 | FE4: 35.23798181 | FF4: 5.965547573 | FG4: 11.02674352 | FH4: 80.45556314 | FI4: 8.297822821 | FJ4: 68.93697927 | FK4: 24.35403065 | FL4: 73.6332614 | FM4: 4.807342858 | FN4: 10.8363537 | FO4: 13.43834786 | FP4: 10.80462207 | FQ4: 38.55393777 | FR4: 31.76336766 | FS4: 14.72347912 | FT4: 8.075701369 | FU4: 5.315049034 | FV4: 6.758838474 | FW4: 36.93562433 | FX4: 10.99501188 | FY4: 23.41794739 | FZ4: 4.172710137 | GA4: 11.67724206 | GB4: 21.0539405 | GC4: 6.520851203 | GD4: 6.996825744 | GE4: 13.9143224 | GF4: 17.38893654 | GG4: 36.33272325 | GH4: 6.124205753 | GI4: 25.51223536 | GJ4: 11.85176606 | GK4: 57.08521321 | GL4: 7.250678832 | GM4: 11.32819406 | GN4: 67.25520256 | GO4: 5.759291939 | GP4: 3.902991231 | GQ4: 4.854940312 | GR4: 11.24886497 | GS4: 7.869445734 | GT4: 2.252946158 | GU4: 8.488212637 | GV4: 6.901630836 | GW4: 17.19854673 | GX4: 15.10425875 | GY4: 9.58295408 | GZ4: 10.85221952 | HA4: 53.61059907 | HB4: 21.32365941 | HC4: 74.22029666 | HD4: 44.88439916 | HE4: 23.46554484 | HF4: 26.41658699 | HG4: 74.09337012 | HH4: 8.345420275 | HI4: 5.394378124 | HJ4: 10.78875625 | HK4: 12.35947223 | HL4: 77.75837408 | HM4: 4.759745404 | HN4: 17.80144781 | HO4: 21.52991504 | HP4: 18.68993362 | HQ4: 21.2284645 | HR4: 14.02538312 | HS4: 5.156390854 | HT4: 16.16726856 | HU4: 12.20081405 | HV4: 14.42202857 | HW4: 3.347687601 | HX4: 11.26473079 | HY4: 3.680869779 | HZ4: 22.32320594 | IA4: 6.457387931 | IB4: 11.3599257 | IC4: 6.616046111 | ID4: 6.409790477 | IE4: 6.266998115 | IF4: 13.61287186 | IG4: 11.10607261 | IH4: 16.38939001 | II4: 24.97279755 | IJ4: 8.281957003 | IK4: 2.919310514 | IL4: 7.932909006 | IM4: 12.02629005 | IN4: 14.89800311 | IO4: 8.059835551 | IP4: 5.140525036 | IQ4: 15.04079548 | IR4: 3.474614145 | IS4: 17.23027836 | IT4: 48.73979294 | IU4: 7.726653372 | IV4: 32.60425602 | IW4: 8.028103915 | IX4: 19.37216379 | IY4: 47.05801623 | IZ4: 7.250678832 | JA4: 3.807796323 | JB4: 4.997732674 | JC4: 21.64097577 | JD4: 8.615139181 | JE4: 0.8884858087 | JF4: 6.140071571 | JG4: 8.012238097 | JH4: 8.726199907 | JI4: 26.62284263 | JJ4: 17.42066818 | JK4: 8.980052995 | JL4: 14.19990712 | JM4: 9.97959953 | JN4: 8.250225367 | JO4: 18.46781217 | JP4: 13.75566422 | JQ4: 12.75611768 | JR4: 12.64505696 | JS4: 16.04034201 | JT4: 7.472800284 | JU4: 17.18268091 | JV4: 7.694921736 | JW4: 77.80597154 | JX4: 5.410243942 | JY4: 7.26654465 | JZ4: 15.07252711 | KA4: 15.31051438 | KB4: 16.18313437 | KC4: 14.42202857 | KD4: 8.075701369 | KE4: 70.88847488 | KF4: 11.28059661 | KG4: 22.11695031 | KH4: 190.6436692 | KI4: 11.42338897 | KJ4: 14.66001584 | KK4: 10.23345262 | KL4: 17.97597181 | KM4: 8.662736635 | KN4: 4.71214795 | KO4: 15.73889147 | KP4: 13.64460349 | KQ4: 10.5666348 | KR4: 11.50271806 | KS4: 4.331368318 | KT4: 5.473707214 | KU4: 5.283317398 | KV4: 6.504985385 | KW4: 5.394378124 | KX4: 8.250225367 | KY4: 15.73889147 | KZ4: 8.012238097 | LA4: 3.236626875 | LB4: 19.08657907 | LC4: 35.72982217 | LD4: 6.584314475 | LE4: 5.441975578 | LF4: 11.31232824 | LG4: 22.22801104 | LH4: 17.35720491 | LI4: 12.7719835 | LJ4: 28.0983637 | LK4: 19.65774852 | LL4: 11.64551042 | LM4: 55.10198596 | LN4: 11.91522933 | LO4: 5.489573032 | LP4: 20.35584451 | LQ4: 18.15049581 | LR4: 5.50543885 | LS4: 10.3921108 | LT4: 29.46282405 | LU4: 1.761105799 | LV4: 7.74251919 | LW4: 4.537623952 | LX4: 6.996825744 | LY4: 17.38893654 | LZ4: 2.39573852 | MA4: 81.04259841 | MB4: 64.39935531 | MC4: 4.680416314 | MD4: 27.22574371 | ME4: 35.42837162 | MF4: 7.234813014 | MG4: 22.8150463 | MH4: 16.83363291 | MI4: 26.8608299 | MJ4: 26.5117819 | MK4: 21.14913541 | ML4: 13.31142131 | MM4: 60.19491354 | MN4: 4.331368318 | MO4: 16.34179255 | MP4: 24.84587101 | MQ4: 4.3155025 | MR4: 8.805528997 | MS4: 14.91386893 | MT4: 67.12827601 | MU4: 58.76698992 | MV4: 107.7289043 | MW4: 192.6110307 | MX4: 40.12465375 | MY4: 73.4587374 | MZ4: 32.36626875 | NA4: 176.7928101 | NB4: 76.34631628 | NC4: 225.453274 | ND4: 53.86445215 | NE4: 157.8490234 | NF4: 101.5253695 | NG4: 58.29101538 | NH4: 190.5008769 | NI4: 138.7624443 | NJ4: 113.5040621 | NK4: 63.8599175 | NL4: 115.0271806 | NM4: 231.9582593 | NN4: 95.06798153 | NO4: 95.97233316 | NP4: 673.0121343 | NQ4: 138.1436774 | NR4: 199.3698692 | NS4: 74.22029666 | NT4: 77.75837408 | NU4: 140.5235501 | NV4: 133.3204688 | NW4: 329.3267845 | NX4: 182.1554566 | NY4: 93.98910591 | NZ4: 53.40434343 | OA4: 66.63643565 | OB4: 117.0580053 | OC4: 64.62147677 | OD4: 91.81548884 | OE4: 60.19491354 | OF4: 91.43470921 | OG4: 32.36626875 | OH4: 91.70442811 | OI4: 76.34631628 | OJ4: 142.9986178 | OK4: 53.86445215 | OL4: 67.25520256 | OM4: 190.6436692 | ON4: 166.1309804 | OO4: 67.22347092 | OP4: 67.12827601 | OQ4: 40.12465375 | OR4: 38.33181632 | OS4: 92.83090119 | OT4: 76.28285301 | OU4: 44.10697408 | OV4: 117.0580053 | OW4: 190.5008769 | OX4: 113.5040621 | OY4: 42.64731882 | OZ4: 140.967793 | PA4: 115.0271806 | PB4: 95.09971317 | PC4: 97.98729205 | PD4: 38.55393777 | PE4: 53.91204961 | PF4: 673.0121343 | PG4: 95.97233316 | PH4: 68.524468 | PI4: 74.22029666 | PJ4: 44.88439916 | PK4: 77.75837408 | PL4: 47.05801623 | PM4: 118.2003442 | PN4: 293.8349496 | PO4: 93.98910591 | PP4: 107.7289043 | PQ4: 169.8118502 | PR4: 100.5099571 | PS4: 80.70941623 | PT4: 70.88847488 | PU4: 44.97959407 | PV4: 66.63643565 | PW4: 116.1536537 | PX4: 91.81548884 | PY4: 175.6346054 | PZ4: 53.40434343
B5: 2 | C5: Participation sport | D5: 1267.2 | E5: 1.480832572 | F5: 2.322371804 | G5: 2.54074001 | H5: 3.392163521 | I5: 2.504600321 | J5: 2.586675968 | K5: 4.407611744 | L5: 1.904322536 | M5: 2.809127234 | N5: 9.737253366 | O5: 4.961221181 | P5: 1.347995404 | Q5: 3.937598558 | R5: 3.883346818 | S5: 2.655050226 | T5: 5.513840663 | U5: 3.965435548 | V5: 5.137131847 | W5: 20.83359463 | X5: 2.413782817 | Y5: 3.014341485 | Z5: 2.694377107 | AA5: 1.314594681 | AB5: 6.904448789 | AC5: 1.116794577 | AD5: 5.362253574 | AE5: 2.980571421 | AF5: 10.33918215 | AG5: 3.152032404 | AH5: 2.589157022 | AI5: 7.161966582 | AJ5: 1.964434358 | AK5: 7.9245564 | AL5: 10.88090186 | AM5: 2.762850446 | AN5: 7.905528149 | AO5: 2.456707154 | AP5: 2.473294425 | AQ5: 2.773151603 | AR5: 13.39246042 | AS5: 1.645080443 | AT5: 4.630134254 | AU5: 4.885404961 | AV5: 4.053911801 | AW5: 16.98484424 | AX5: 7.233266386 | AY5: 2.05984489 | AZ5: 3.840871445 | BA5: 2.774435561 | BB5: 1.860465107 | BC5: 5.30941795 | BD5: 4.618199927 | BE5: 4.598615848 | BF5: 3.055748015 | BG5: 3.401516573 | BH5: 9.503264723 | BI5: 8.170938962 | BJ5: 2.341338278 | BK5: 2.755970911 | BL5: 2.655774929 | BM5: 2.751597189 | BN5: 1.208545161 | BO5: 0.2286531498 | BP5: 4.263190709 | BQ5: 1.546580268 | BR5: 1.382601008 | BS5: 11.54617752 | BT5: 1.833123003 | BU5: 11.77886015 | BV5: 7.372157185 | BW5: 1.380514247 | BX5: 2.524702486 | BY5: 8.46929251 | BZ5: 11.60853868 | CA5: 3.374385511 | CB5: 2.600112158 | CC5: 2.220690217 | CD5: 1.645409906 | CE5: 5.811287875 | CF5: 23.58755814 | CG5: 1.718483017 | CH5: 17.61576061 | CI5: 6.877898987 | CJ5: 9.24719466 | CK5: 2.423768466 | CL5: 6.836151235 | CM5: 6.660778564 | CN5: 2.1114361 | CO5: 3.302199232 | CP5: 2.116623629 | CQ5: 2.943859661 | CR5: 3.595978455 | CS5: 4.089319719 | CT5: 1.656870576 | CU5: 7.05709123 | CV5: 2.620185537 | CW5: 12.27745433 | CX5: 2.358822566 | CY5: 2.797009376 | CZ5: 1.361446021 | DA5: 2.283038758 | DB5: 8.610220519 | DC5: 2.720647912 | DD5: 1.961562376 | DE5: 3.065398813 | DF5: 32.837382 | DG5: 2.740861044 | DH5: 2.487621289 | DI5: 2.397670194 | DJ5: 1.063389485 | DK5: 1.864980518 | DL5: 1.625280466 | DM5: 5.073313699 | DN5: 2.67819018 | DO5: 3.254561927 | DP5: 15.22647067 | DQ5: 1.74221873 | DR5: 2.133599251 | DS5: 2.513182972 | DT5: 5.383607083 | DU5: 3.041527756 | DV5: 7.20286808 | DW5: 3.207171357 | DX5: 2.106575024 | DY5: 4.298161551 | DZ5: 32.07832267 | EA5: 2.773654388 | EB5: 6.670773133 | EC5: 2.186481963 | ED5: 3.408297886 | EE5: 6.213027755 | EF5: 2.17084704 | EG5: 2.722575129 | EH5: 1.813370308 | EI5: 2.582966741 | EJ5: 5.078559895 | EK5: 4.138033663 | EL5: 28.4607612 | EM5: 2.472007328 | EN5: 2.227016061 | EO5: 7.350404403 | EP5: 2.387994628 | EQ5: 3.714811248 | ER5: 6.394157237 | ES5: 4.193063122 | ET5: 1.77623556 | EU5: 2.795799586 | EV5: 2.527741276 | EW5: 0.06309380095 | EX5: 6.733313719 | EY5: 4.676467463 | EZ5: 33.13676169 | FA5: 1.835878059 | FB5: 3.384191673 | FC5: 5.725406554 | FD5: 4.545856366 | FE5: 8.572014662 | FF5: 3.019210073 | FG5: 9.339265976 | FH5: 27.86191154 | FI5: 3.401516925 | FJ5: 19.73661774 | FK5: 6.684556363 | FL5: 17.6070012 | FM5: 2.487099836 | FN5: 6.538357819 | FO5: 2.712906222 | FP5: 2.110376671 | FQ5: 16.6503627 | FR5: 11.99016673 | FS5: 3.769358548 | FT5: 3.451752189 | FU5: 1.539277661 | FV5: 1.74983376 | FW5: 14.30010131 | FX5: 2.316931558 | FY5: 5.423118224 | FZ5: 1.044693773 | GA5: 2.374471781 | GB5: 5.4761648 | GC5: 1.667258877 | GD5: 2.319203941 | GE5: 3.704230178 | GF5: 3.270181584 | GG5: 6.527795658 | GH5: 2.489185623 | GI5: 4.464511992 | GJ5: 2.618658077 | GK5: 6.974262254 | GL5: 2.989980352 | GM5: 5.905871294 | GN5: 19.31367229 | GO5: 2.370246539 | GP5: 1.493901239 | GQ5: 2.349254448 | GR5: 3.542660558 | GS5: 3.339539132 | GT5: 2.505006559 | GU5: 3.481320457 | GV5: 2.066261105 | GW5: 5.18780635 | GX5: 5.508168662 | GY5: 1.424116238 | GZ5: 1.916817979 | HA5: 13.84509463 | HB5: 5.451537436 | HC5: 15.38318377 | HD5: 6.908202389 | HE5: 3.145023663 | HF5: 6.77430923 | HG5: 18.80200471 | HH5: 2.67628418 | HI5: 1.429027494 | HJ5: 4.59986151 | HK5: 4.309135511 | HL5: 16.66321479 | HM5: 1.735886622 | HN5: 3.891431007 | HO5: 6.773143551 | HP5: 4.200130419 | HQ5: 4.875225439 | HR5: 3.507329934 | HS5: 0.9660577085 | HT5: 4.043958086 | HU5: 7.189312089 | HV5: 2.936997862 | HW5: 2.199652003 | HX5: 3.96675292 | HY5: 1.483770873 | HZ5: 6.577956584 | IA5: 1.438810118 | IB5: 4.356672986 | IC5: 1.907259785 | ID5: 1.600931452 | IE5: 1.909815156 | IF5: 5.908779086 | IG5: 2.221717899 | IH5: 2.025275394 | II5: 3.255422748 | IJ5: 2.287485569 | IK5: 1.022830189 | IL5: 1.202254329 | IM5: 5.426843007 | IN5: 5.106456853 | IO5: 2.171407506 | IP5: 2.233635665 | IQ5: 6.513461857 | IR5: 2.137235521 | IS5: 3.112498101 | IT5: 14.9101166 | IU5: 2.297053609 | IV5: 7.794039792 | IW5: 2.822277375 | IX5: 5.207588935 | IY5: 11.43009656 | IZ5: 2.059013415 | JA5: 4.228763025 | JB5: 2.219444958 | JC5: 6.666684627 | JD5: 1.86954254 | JE5: 1.502737947 | JF5: 3.060121673 | JG5: 2.25570962 | JH5: 2.853005407 | JI5: 1.895321582 | JJ5: 3.164235318 | JK5: 2.913942887 | JL5: 3.458423923 | JM5: 2.562337459 | JN5: 3.096214668 | JO5: 5.520840321 | JP5: 3.897433833 | JQ5: 7.646910266 | JR5: 2.320102267 | JS5: 4.304493831 | JT5: 2.335534747 | JU5: 3.803329602 | JV5: 2.873084408 | JW5: 19.49214778 | JX5: 2.216232023 | JY5: 1.761556806 | JZ5: 7.154443348 | KA5: 4.848764561 | KB5: 4.936631208 | KC5: 3.055242908 | KD5: 3.126350767 | KE5: 15.9978118 | KF5: 3.238930291 | KG5: 6.63292986 | KH5: 29.03980129 | KI5: 2.625285732 | KJ5: 4.885432481 | KK5: 2.890827453 | KL5: 4.477846267 | KM5: 4.867703264 | KN5: 1.457576886 | KO5: 2.349065455 | KP5: 2.74706446 | KQ5: 3.017557048 | KR5: 3.510993573 | KS5: 2.508999049 | KT5: 3.237836888 | KU5: 2.091706442 | KV5: 2.273505451 | KW5: 2.148374781 | KX5: 3.155373936 | KY5: 3.034845134 | KZ5: 2.572762212 | LA5: 1.415993309 | LB5: 7.030054367 | LC5: 6.305183872 | LD5: 2.870674406 | LE5: 2.198378652 | LF5: 3.163496381 | LG5: 6.689074696 | LH5: 5.774391888 | LI5: 6.290617146 | LJ5: 9.23170475 | LK5: 5.456185324 | LL5: 3.876480174 | LM5: 13.2538414 | LN5: 2.347670461 | LO5: 2.340631214 | LP5: 3.252040269 | LQ5: 3.70834646 | LR5: 1.515565206 | LS5: 2.643460468 | LT5: 3.89496484 | LU5: 1.23210202 | LV5: 2.029489961 | LW5: 2.757565263 | LX5: 2.266005558 | LY5: 2.624831007 | LZ5: 0.6165007314 | MA5: 20.02733885 | MB5: 6.936666232 | MC5: 1.432576961 | MD5: 7.096850974 | ME5: 10.56932288 | MF5: 3.480618564 | MG5: 4.174481314 | MH5: 7.800310007 | MI5: 2.725964742 | MJ5: 4.265998378 | MK5: 5.462873572 | ML5: 2.489773777 | MM5: 13.83893271 | MN5: 2.454627935 | MO5: 2.60045887 | MP5: 4.27006033 | MQ5: 2.662773925 | MR5: 2.342507149 | MS5: 5.683005014 | MT5: 23.17987355 | MU5: 13.39246042 | MV5: 23.13038901 | MW5: 49.67485397 | MX5: 11.60927132 | MY5: 20.62599858 | MZ5: 11.60853868 | NA5: 49.16387209 | NB5: 18.80957865 | NC5: 40.74174145 | ND5: 15.22647067 | NE5: 41.89056341 | NF5: 34.22013913 | NG5: 23.67434372 | NH5: 65.64224331 | NI5: 38.39176293 | NJ5: 28.4607612 | NK5: 19.8064788 | NL5: 33.57063013 | NM5: 67.79256806 | NN5: 23.26872737 | NO5: 36.33364962 | NP5: 211.5487288 | NQ5: 35.31148409 | NR5: 45.97195168 | NS5: 15.38318377 | NT5: 16.66321479 | NU5: 41.31825349 | NV5: 36.66045028 | NW5: 90.72752401 | NX5: 39.59188401 | NY5: 24.42877898 | NZ5: 15.04716914 | OA5: 16.37863129 | OB5: 22.18225141 | OC5: 15.44306703 | OD5: 28.2492335 | OE5: 13.83893271 | OF5: 26.58519088 | OG5: 11.60853868 | OH5: 26.96166637 | OI5: 18.80957865 | OJ5: 39.89018977 | OK5: 15.22647067 | OL5: 19.31367229 | OM5: 29.03980129 | ON5: 40.22934958 | OO5: 20.83359463 | OP5: 23.17987355 | OQ5: 11.60927132 | OR5: 11.77886015 | OS5: 25.83358752 | OT5: 23.58755814 | OU5: 11.30503336 | OV5: 22.18225141 | OW5: 65.64224331 | OX5: 28.4607612 | OY5: 14.08107224 | OZ5: 38.55987992 | PA5: 33.57063013 | PB5: 19.92025608 | PC5: 24.29155756 | PD5: 16.6503627 | PE5: 20.87627525 | PF5: 211.5487288 | PG5: 36.33364962 | PH5: 19.52809965 | PI5: 15.38318377 | PJ5: 6.908202389 | PK5: 16.66321479 | PL5: 11.43009656 | PM5: 32.65801586 | PN5: 82.88031007 | PO5: 24.42877898 | PP5: 23.13038901 | PQ5: 45.0021297 | PR5: 25.57631394 | PS5: 17.97696638 | PT5: 15.9978118 | PU5: 13.04421205 | PV5: 16.37863129 | PW5: 27.28488914 | PX5: 28.2492335 | PY5: 50.22229421 | PZ5: 15.04716914
B6: 3 | C6: Sports equipment | D6: 1267.2 | E6: 0.4260993168 | F6: 6.972534275 | G6: 0.735989729 | H6: 0.3873630153 | I6: 0.6197808244 | J6: 3.56373974 | K6: 2.982695218 | L6: 0.8521986336 | M6: 0.7166215782 | N6: 9.742179834 | O6: 1.762501719 | P6: 1.859342473 | Q6: 5.481186666 | R6: 5.791077078 | S6: 1.00714384 | T6: 4.377202073 | U6: 4.454674676 | V6: 3.311953781 | W6: 18.59342473 | X6: 3.505635288 | Y6: 2.421018845 | Z6: 2.827750011 | AA6: 5.791077078 | AB6: 5.694236324 | AC6: 1.162089046 | AD6: 7.514842496 | AE6: 2.808381861 | AF6: 7.689155853 | AG6: 5.32624146 | AH6: 1.607556513 | AI6: 4.803301389 | AJ6: 1.433243156 | AK6: 6.953166124 | AL6: 13.03476546 | AM6: 3.79615755 | AN6: 7.902205511 | AO6: 0.6778852767 | AP6: 1.471979458 | AQ6: 2.866486313 | AR6: 6.58517126 | AS6: 3.641212344 | AT6: 8.599458939 | AU6: 3.447530836 | AV6: 9.664707231 | AW6: 27.9288734 | AX6: 9.955229492 | AY6: 0.8134623321 | AZ6: 3.54437159 | BA6: 3.331321931 | BB6: 1.762501719 | BC6: 1.51071576 | BD6: 4.106047962 | BE6: 6.759484616 | BF6: 3.273217479 | BG6: 4.745196937 | BH6: 7.785996607 | BI6: 17.31512678 | BJ6: 4.493410977 | BK6: 2.382282544 | BL6: 0.7747260305 | BM6: 4.454674676 | BN6: 2.014287679 | BO6: 5.810445229 | BP6: 4.687092485 | BQ6: 0.6972534275 | BR6: 2.149864735 | BS6: 17.02460452 | BT6: 2.653436655 | BU6: 4.667724334 | BV6: 5.732972626 | BW6: 1.917446926 | BX6: 8.87061305 | BY6: 8.773772296 | BZ6: 26.57310285 | CA6: 7.669787702 | CB6: 1.685029116 | CC6: 3.176376725 | CD6: 1.801238021 | CE6: 5.965390435 | CF6: 23.41609427 | CG6: 3.699316796 | CH6: 23.37735797 | CI6: 5.035719198 | CJ6: 11.67899491 | CK6: 1.181457197 | CL6: 4.280361319 | CM6: 6.991902426 | CN6: 1.994919529 | CO6: 3.834893851 | CP6: 0.7747260305 | CQ6: 1.045880141 | CR6: 2.014287679 | CS6: 3.176376725 | CT6: 0.6391489752 | CU6: 3.834893851 | CV6: 3.253849328 | CW6: 7.10811133 | CX6: 2.924590765 | CY6: 3.060167821 | CZ6: 2.653436655 | DA6: 2.595332202 | DB6: 7.030638727 | DC6: 1.646292815 | DD6: 1.452611307 | DE6: 0.9877756889 | DF6: 41.69962859 | DG6: 6.217176395 | DH6: 2.905222615 | DI6: 1.917446926 | DJ6: 0.7940941813 | DK6: 0.8521986336 | DL6: 1.491347609 | DM6: 6.062231189 | DN6: 0.4842037691 | DO6: 5.694236324 | DP6: 16.85029116 | DQ6: 0.1936815076 | DR6: 1.103984594 | DS6: 4.164152414 | DT6: 4.590251731 | DU6: 4.57088358 | DV6: 4.783933239 | DW6: 1.53008391 | DX6: 0.8521986336 | DY6: 9.703443532 | DZ6: 25.85648127 | EA6: 0.7553578798 | EB6: 6.701380164 | EC6: 4.706460636 | ED6: 3.176376725 | EE6: 3.428162685 | EF6: 0.6197808244 | EG6: 1.142720895 | EH6: 1.646292815 | EI6: 2.885854464 | EJ6: 4.280361319 | EK6: 3.137640424 | EL6: 31.20209088 | EM6: 4.028575359 | EN6: 1.433243156 | EO6: 7.282424687 | EP6: 0.8521986336 | EQ6: 2.672804805 | ER6: 7.727892155 | ES6: 12.37624834 | ET6: 0.5810445229 | EU6: 4.725828786 | EV6: 2.498491448 | EW6: 0.01936815076 | EX6: 6.643275712 | EY6: 4.977614746 | EZ6: 28.45181347 | FA6: 3.370058233 | FB6: 3.215113027 | FC6: 5.868549681 | FD6: 5.752340777 | FE6: 10.80742813 | FF6: 1.103984594 | FG6: 3.834893851 | FH6: 26.47626209 | FI6: 2.905222615 | FJ6: 13.79012334 | FK6: 4.299729469 | FL6: 14.70042643 | FM6: 0.6391489752 | FN6: 2.266073639 | FO6: 0.9296712366 | FP6: 3.137640424 | FQ6: 15.43641616 | FR6: 15.08778944 | FS6: 3.970470907 | FT6: 4.551515429 | FU6: 2.28544179 | FV6: 0.5616763721 | FW6: 16.5985052 | FX6: 1.820606172 | FY6: 4.648356183 | FZ6: 0.6972534275 | GA6: 4.377202073 | GB6: 6.062231189 | GC6: 1.27829795 | GD6: 1.103984594 | GE6: 1.00714384 | GF6: 3.215113027 | GG6: 8.967453803 | GH6: 1.142720895 | GI6: 2.498491448 | GJ6: 1.27829795 | GK6: 6.197808244 | GL6: 1.78186987 | GM6: 11.5240497 | GN6: 26.22447613 | GO6: 4.06731166 | GP6: 1.162089046 | GQ6: 0.2517859599 | GR6: 2.808381861 | GS6: 1.723765418 | GT6: 0.7166215782 | GU6: 3.931734605 | GV6: 1.801238021 | GW6: 3.989839057 | GX6: 4.086679811 | GY6: 0.329258563 | GZ6: 2.924590765 | HA6: 11.71773121 | HB6: 5.732972626 | HC6: 15.88188363 | HD6: 3.641212344 | HE6: 10.45880141 | HF6: 6.35275345 | HG6: 9.761547985 | HH6: 1.839974323 | HI6: 0.2711541107 | HJ6: 4.04794351 | HK6: 6.778852767 | HL6: 16.05619698 | HM6: 2.440386996 | HN6: 8.018414416 | HO6: 8.463881884 | HP6: 4.280361319 | HQ6: 5.0744555 | HR6: 5.423082214 | HS6: 0.329258563 | HT6: 5.868549681 | HU6: 5.016351048 | HV6: 0.7940941813 | HW6: 2.28544179 | HX6: 1.317034252 | HY6: 0.3873630153 | HZ6: 3.060167821 | IA6: 0.5035719198 | IB6: 5.423082214 | IC6: 4.57088358 | ID6: 1.626924664 | IE6: 0.7747260305 | IF6: 7.669787702 | IG6: 2.053023981 | IH6: 1.859342473 | II6: 1.685029116 | IJ6: 2.672804805 | IK6: 1.588188363 | IL6: 0.7747260305 | IM6: 4.04794351 | IN6: 3.176376725 | IO6: 1.78186987 | IP6: 3.602476042 | IQ6: 4.396570223 | IR6: 2.711541107 | IS6: 1.452611307 | IT6: 20.1816131 | IU6: 1.200825347 | IV6: 4.57088358 | IW6: 3.718684947 | IX6: 3.718684947 | IY6: 13.73201889 | IZ6: 0.3679948645 | JA6: 1.975551378 | JB6: 0.05810445229 | JC6: 9.529130176 | JD6: 2.459755147 | JE6: 1.394506855 | JF6: 1.549452061 | JG6: 11.05921409 | JH6: 1.181457197 | JI6: 1.317034252 | JJ6: 1.801238021 | JK6: 0.5229400706 | JL6: 1.239561649 | JM6: 0.8715667844 | JN6: 0.9877756889 | JO6: 7.204952084 | JP6: 4.357833922 | JQ6: 9.509762025 | JR6: 2.130496584 | JS6: 2.343546242 | JT6: 2.440386996 | JU6: 1.839974323 | JV6: 2.149864735 | JW6: 12.95729286 | JX6: 0.1936815076 | JY6: 1.994919529 | JZ6: 7.185583933 | KA6: 3.583107891 | KB6: 6.236544546 | KC6: 2.885854464 | KD6: 3.873630153 | KE6: 16.50166445 | KF6: 2.014287679 | KG6: 3.931734605 | KH6: 23.16430831 | KI6: 1.626924664 | KJ6: 2.982695218 | KK6: 1.859342473 | KL6: 5.229400706 | KM6: 3.79615755 | KN6: 2.963327067 | KO6: 1.142720895 | KP6: 4.164152414 | KQ6: 2.885854464 | KR6: 2.479123298 | KS6: 2.188601036 | KT6: 1.685029116 | KU6: 0.5035719198 | KV6: 2.672804805 | KW6: 0.6972534275 | KX6: 9.39355312 | KY6: 0.8909349351 | KZ6: 3.098904122 | LA6: 1.045880141 | LB6: 5.655500023 | LC6: 9.238607914 | LD6: 3.253849328 | LE6: 0.8521986336 | LF6: 1.142720895 | LG6: 7.069375029 | LH6: 2.885854464 | LI6: 6.488330506 | LJ6: 7.61168325 | LK6: 9.296712366 | LL6: 1.820606172 | LM6: 8.928717502 | LN6: 5.558659269 | LO6: 4.57088358 | LP6: 2.130496584 | LQ6: 1.123352744 | LR6: 0.8715667844 | LS6: 3.699316796 | LT6: 4.260993168 | LU6: 1.588188363 | LV6: 5.82981338 | LW6: 1.975551378 | LX6: 4.299729469 | LY6: 1.588188363 | LZ6: 0.3486267137 | MA6: 17.72185795 | MB6: 33.37132377 | MC6: 1.568820212 | MD6: 6.062231189 | ME6: 11.60152231 | MF6: 2.498491448 | MG6: 6.004126737 | MH6: 4.667724334 | MI6: 3.195744876 | MJ6: 1.53008391 | MK6: 4.958246595 | ML6: 2.324178092 | MM6: 9.587234628 | MN6: 1.975551378 | MO6: 1.2589298 | MP6: 2.459755147 | MQ6: 1.02651199 | MR6: 2.479123298 | MS6: 6.643275712 | MT6: 15.3008391 | MU6: 6.58517126 | MV6: 34.39783576 | MW6: 39.14303269 | MX6: 17.04397267 | MY6: 14.66169013 | MZ6: 26.57310285 | NA6: 39.53039571 | NB6: 23.47419873 | NC6: 34.92077583 | ND6: 16.85029116 | NE6: 35.71487001 | NF6: 46.56103444 | NG6: 22.17653262 | NH6: 70.69375029 | NI6: 48.67216287 | NJ6: 31.20209088 | NK6: 16.44356 | NL6: 31.72503095 | NM6: 59.01475538 | NN6: 17.41196754 | NO6: 28.62612683 | NP6: 228.292393 | NQ6: 42.72614058 | NR6: 29.57516622 | NS6: 15.88188363 | NT6: 16.05619698 | NU6: 46.19303957 | NV6: 31.55071759 | NW6: 95.65929662 | NX6: 41.00237517 | NY6: 19.19383741 | NZ6: 16.83092301 | OA6: 10.42006511 | OB6: 24.1908203 | OC6: 10.1876473 | OD6: 30.93093677 | OE6: 9.587234628 | OF6: 22.19590077 | OG6: 26.57310285 | OH6: 34.94014398 | OI6: 23.47419873 | OJ6: 55.45101564 | OK6: 16.85029116 | OL6: 26.22447613 | OM6: 23.16430831 | ON6: 31.7831354 | OO6: 18.59342473 | OP6: 15.3008391 | OQ6: 17.04397267 | OR6: 4.667724334 | OS6: 18.38037507 | OT6: 23.41609427 | OU6: 7.050006878 | OV6: 24.1908203 | OW6: 70.69375029 | OX6: 31.20209088 | OY6: 10.57501032 | OZ6: 33.10016965 | PA6: 31.72503095 | PB6: 15.55262506 | PC6: 19.0001559 | PD6: 15.43641616 | PE6: 35.94728782 | PF6: 228.292393 | PG6: 28.62612683 | PH6: 18.36100692 | PI6: 15.88188363 | PJ6: 3.641212344 | PK6: 16.05619698 | PL6: 13.73201889 | PM6: 34.64962172 | PN6: 77.4532349 | PO6: 19.19383741 | PP6: 34.39783576 | PQ6: 40.6343803 | PR6: 16.11430144 | PS6: 12.72487505 | PT6: 16.50166445 | PU6: 9.935861342 | PV6: 10.42006511 | PW6: 21.26622954 | PX6: 30.93093677 | PY6: 42.80361319 | PZ6: 16.83092301
B7: 4 | C7: Sportswear | D7: 84.48 | E7: 0.02840662112 | F7: 0.4648356183 | G7: 0.04906598193 | H7: 0.02582420102 | I7: 0.04131872163 | J7: 0.2375826494 | K7: 0.1988463478 | L7: 0.05681324224 | M7: 0.04777477188 | N7: 0.6494786556 | O7: 0.1175001146 | P7: 0.1239561649 | Q7: 0.3654124444 | R7: 0.3860718052 | S7: 0.06714292265 | T7: 0.2918134715 | U7: 0.2969783117 | V7: 0.2207969187 | W7: 1.239561649 | X7: 0.2337090192 | Y7: 0.1614012564 | Z7: 0.1885166674 | AA7: 0.3860718052 | AB7: 0.379615755 | AC7: 0.07747260305 | AD7: 0.5009894997 | AE7: 0.1872254574 | AF7: 0.5126103902 | AG7: 0.355082764 | AH7: 0.1071704342 | AI7: 0.3202200926 | AJ7: 0.09554954377 | AK7: 0.4635444083 | AL7: 0.8689843643 | AM7: 0.25307717 | AN7: 0.5268137008 | AO7: 0.04519235178 | AP7: 0.09813196387 | AQ7: 0.1910990875 | AR7: 0.4390114173 | AS7: 0.2427474896 | AT7: 0.5732972626 | AU7: 0.2298353891 | AV7: 0.6443138154 | AW7: 1.861924893 | AX7: 0.6636819662 | AY7: 0.05423082214 | AZ7: 0.2362914393 | BA7: 0.2220881288 | BB7: 0.1175001146 | BC7: 0.100714384 | BD7: 0.2737365308 | BE7: 0.4506323078 | BF7: 0.2182144986 | BG7: 0.3163464625 | BH7: 0.5190664405 | BI7: 1.154341786 | BJ7: 0.2995607318 | BK7: 0.1588188363 | BL7: 0.05164840204 | BM7: 0.2969783117 | BN7: 0.1342858453 | BO7: 0.3873630153 | BP7: 0.3124728323 | BQ7: 0.04648356183 | BR7: 0.1433243156 | BS7: 1.134973635 | BT7: 0.176895777 | BU7: 0.3111816223 | BV7: 0.3821981751 | BW7: 0.127829795 | BX7: 0.5913742033 | BY7: 0.5849181531 | BZ7: 1.77154019 | CA7: 0.5113191802 | CB7: 0.1123352744 | CC7: 0.2117584483 | CD7: 0.1200825347 | CE7: 0.3976926957 | CF7: 1.561072952 | CG7: 0.2466211197 | CH7: 1.558490531 | CI7: 0.3357146132 | CJ7: 0.7785996607 | CK7: 0.0787638131 | CL7: 0.2853574212 | CM7: 0.4661268284 | CN7: 0.1329946352 | CO7: 0.2556595901 | CP7: 0.05164840204 | CQ7: 0.06972534275 | CR7: 0.1342858453 | CS7: 0.2117584483 | CT7: 0.04260993168 | CU7: 0.2556595901 | CV7: 0.2169232886 | CW7: 0.4738740887 | CX7: 0.1949727177 | CY7: 0.204011188 | CZ7: 0.176895777 | DA7: 0.1730221468 | DB7: 0.4687092485 | DC7: 0.1097528543 | DD7: 0.09684075382 | DE7: 0.0658517126 | DF7: 2.77997524 | DG7: 0.4144784263 | DH7: 0.1936815076 | DI7: 0.127829795 | DJ7: 0.05293961209 | DK7: 0.05681324224 | DL7: 0.09942317392 | DM7: 0.4041487459 | DN7: 0.03228025127 | DO7: 0.379615755 | DP7: 1.123352744 | DQ7: 0.01291210051 | DR7: 0.0735989729 | DS7: 0.2776101609 | DT7: 0.3060167821 | DU7: 0.304725572 | DV7: 0.3189288826 | DW7: 0.102005594 | DX7: 0.05681324224 | DY7: 0.6468962355 | DZ7: 1.723765418 | EA7: 0.05035719198 | EB7: 0.4467586776 | EC7: 0.3137640424 | ED7: 0.2117584483 | EE7: 0.228544179 | EF7: 0.04131872163 | EG7: 0.076181393 | EH7: 0.1097528543 | EI7: 0.1923902976 | EJ7: 0.2853574212 | EK7: 0.2091760282 | EL7: 2.080139392 | EM7: 0.2685716906 | EN7: 0.09554954377 | EO7: 0.4854949791 | EP7: 0.05681324224 | EQ7: 0.178186987 | ER7: 0.5151928103 | ES7: 0.8250832225 | ET7: 0.03873630153 | EU7: 0.3150552524 | EV7: 0.1665660966 | EW7: 0.001291210051 | EX7: 0.4428850475 | EY7: 0.3318409831 | EZ7: 1.896787565 | FA7: 0.2246705489 | FB7: 0.2143408684 | FC7: 0.3912366454 | FD7: 0.3834893851 | FE7: 0.7204952084 | FF7: 0.0735989729 | FG7: 0.2556595901 | FH7: 1.76508414 | FI7: 0.1936815076 | FJ7: 0.9193415562 | FK7: 0.2866486313 | FL7: 0.9800284286 | FM7: 0.04260993168 | FN7: 0.151071576 | FO7: 0.06197808244 | FP7: 0.2091760282 | FQ7: 1.029094411 | FR7: 1.00585263 | FS7: 0.2646980604 | FT7: 0.303434362 | FU7: 0.152362786 | FV7: 0.03744509148 | FW7: 1.106567014 | FX7: 0.1213737448 | FY7: 0.3098904122 | FZ7: 0.04648356183 | GA7: 0.2918134715 | GB7: 0.4041487459 | GC7: 0.08521986336 | GD7: 0.0735989729 | GE7: 0.06714292265 | GF7: 0.2143408684 | GG7: 0.5978302536 | GH7: 0.076181393 | GI7: 0.1665660966 | GJ7: 0.08521986336 | GK7: 0.4131872163 | GL7: 0.1187913247 | GM7: 0.7682699803 | GN7: 1.748298409 | GO7: 0.2711541107 | GP7: 0.07747260305 | GQ7: 0.01678573066 | GR7: 0.1872254574 | GS7: 0.1149176945 | GT7: 0.04777477188 | GU7: 0.2621156403 | GV7: 0.1200825347 | GW7: 0.2659892705 | GX7: 0.2724453207 | GY7: 0.02195057087 | GZ7: 0.1949727177 | HA7: 0.7811820808 | HB7: 0.3821981751 | HC7: 1.058792242 | HD7: 0.2427474896 | HE7: 0.6972534275 | HF7: 0.4235168967 | HG7: 0.6507698657 | HH7: 0.1226649548 | HI7: 0.01807694071 | HJ7: 0.2698629006 | HK7: 0.4519235178 | HL7: 1.070413132 | HM7: 0.1626924664 | HN7: 0.5345609611 | HO7: 0.5642587922 | HP7: 0.2853574212 | HQ7: 0.3382970333 | HR7: 0.3615388143 | HS7: 0.02195057087 | HT7: 0.3912366454 | HU7: 0.3344234032 | HV7: 0.05293961209 | HW7: 0.152362786 | HX7: 0.08780228346 | HY7: 0.02582420102 | HZ7: 0.204011188 | IA7: 0.03357146132 | IB7: 0.3615388143 | IC7: 0.304725572 | ID7: 0.1084616443 | IE7: 0.05164840204 | IF7: 0.5113191802 | IG7: 0.1368682654 | IH7: 0.1239561649 | II7: 0.1123352744 | IJ7: 0.178186987 | IK7: 0.1058792242 | IL7: 0.05164840204 | IM7: 0.2698629006 | IN7: 0.2117584483 | IO7: 0.1187913247 | IP7: 0.2401650695 | IQ7: 0.2931046816 | IR7: 0.1807694071 | IS7: 0.09684075382 | IT7: 1.345440873 | IU7: 0.08005502316 | IV7: 0.304725572 | IW7: 0.2479123298 | IX7: 0.2479123298 | IY7: 0.9154679261 | IZ7: 0.02453299097 | JA7: 0.1317034252 | JB7: 0.003873630153 | JC7: 0.635275345 | JD7: 0.1639836765 | JE7: 0.09296712366 | JF7: 0.1032968041 | JG7: 0.7372809391 | JH7: 0.0787638131 | JI7: 0.08780228346 | JJ7: 0.1200825347 | JK7: 0.03486267137 | JL7: 0.08263744326 | JM7: 0.05810445229 | JN7: 0.0658517126 | JO7: 0.4803301389 | JP7: 0.2905222615 | JQ7: 0.633984135 | JR7: 0.1420331056 | JS7: 0.1562364162 | JT7: 0.1626924664 | JU7: 0.1226649548 | JV7: 0.1433243156 | JW7: 0.863819524 | JX7: 0.01291210051 | JY7: 0.1329946352 | JZ7: 0.4790389289 | KA7: 0.2388738594 | KB7: 0.4157696364 | KC7: 0.1923902976 | KD7: 0.2582420102 | KE7: 1.100110963 | KF7: 0.1342858453 | KG7: 0.2621156403 | KH7: 1.544287221 | KI7: 0.1084616443 | KJ7: 0.1988463478 | KK7: 0.1239561649 | KL7: 0.3486267137 | KM7: 0.25307717 | KN7: 0.1975551378 | KO7: 0.076181393 | KP7: 0.2776101609 | KQ7: 0.1923902976 | KR7: 0.1652748865 | KS7: 0.1459067358 | KT7: 0.1123352744 | KU7: 0.03357146132 | KV7: 0.178186987 | KW7: 0.04648356183 | KX7: 0.6262368747 | KY7: 0.05939566234 | KZ7: 0.2065936081 | LA7: 0.06972534275 | LB7: 0.3770333349 | LC7: 0.6159071943 | LD7: 0.2169232886 | LE7: 0.05681324224 | LF7: 0.076181393 | LG7: 0.4712916686 | LH7: 0.1923902976 | LI7: 0.4325553671 | LJ7: 0.50744555 | LK7: 0.6197808244 | LL7: 0.1213737448 | LM7: 0.5952478335 | LN7: 0.3705772846 | LO7: 0.304725572 | LP7: 0.1420331056 | LQ7: 0.07489018295 | LR7: 0.05810445229 | LS7: 0.2466211197 | LT7: 0.2840662112 | LU7: 0.1058792242 | LV7: 0.3886542253 | LW7: 0.1317034252 | LX7: 0.2866486313 | LY7: 0.1058792242 | LZ7: 0.02324178092 | MA7: 1.181457197 | MB7: 2.224754918 | MC7: 0.1045880141 | MD7: 0.4041487459 | ME7: 0.7734348205 | MF7: 0.1665660966 | MG7: 0.4002751158 | MH7: 0.3111816223 | MI7: 0.2130496584 | MJ7: 0.102005594 | MK7: 0.330549773 | ML7: 0.1549452061 | MM7: 0.6391489752 | MN7: 0.1317034252 | MO7: 0.08392865331 | MP7: 0.1639836765 | MQ7: 0.0684341327 | MR7: 0.1652748865 | MS7: 0.4428850475 | MT7: 1.02005594 | MU7: 0.4390114173 | MV7: 2.29318905 | MW7: 2.609535513 | MX7: 1.136264845 | MY7: 0.9774460085 | MZ7: 1.77154019 | NA7: 2.635359714 | NB7: 1.564946582 | NC7: 2.328051722 | ND7: 1.123352744 | NE7: 2.380991334 | NF7: 3.104068962 | NG7: 1.478435508 | NH7: 4.712916686 | NI7: 3.244810858 | NJ7: 2.080139392 | NK7: 1.096237333 | NL7: 2.115002063 | NM7: 3.934317025 | NN7: 1.160797836 | NO7: 1.908408455 | NP7: 15.21949287 | NQ7: 2.848409372 | NR7: 1.971677748 | NS7: 1.058792242 | NT7: 1.070413132 | NU7: 3.079535971 | NV7: 2.103381173 | NW7: 6.377286441 | NX7: 2.733491678 | NY7: 1.27958916 | NZ7: 1.122061534 | OA7: 0.6946710074 | OB7: 1.612721354 | OC7: 0.6791764868 | OD7: 2.062062451 | OE7: 0.6391489752 | OF7: 1.479726718 | OG7: 1.77154019 | OH7: 2.329342932 | OI7: 1.564946582 | OJ7: 3.696734376 | OK7: 1.123352744 | OL7: 1.748298409 | OM7: 1.544287221 | ON7: 2.118875694 | OO7: 1.239561649 | OP7: 1.02005594 | OQ7: 1.136264845 | OR7: 0.3111816223 | OS7: 1.225358338 | OT7: 1.561072952 | OU7: 0.4700004585 | OV7: 1.612721354 | OW7: 4.712916686 | OX7: 2.080139392 | OY7: 0.7050006878 | OZ7: 2.206677977 | PA7: 2.115002063 | PB7: 1.036841671 | PC7: 1.26667706 | PD7: 1.029094411 | PE7: 2.396485854 | PF7: 15.21949287 | PG7: 1.908408455 | PH7: 1.224067128 | PI7: 1.058792242 | PJ7: 0.2427474896 | PK7: 1.070413132 | PL7: 0.9154679261 | PM7: 2.309974781 | PN7: 5.163548994 | PO7: 1.27958916 | PP7: 2.29318905 | PQ7: 2.708958687 | PR7: 1.074286762 | PS7: 0.8483250034 | PT7: 1.100110963 | PU7: 0.6623907561 | PV7: 0.6946710074 | PW7: 1.417748636 | PX7: 2.062062451 | PY7: 2.853574212 | PZ7: 1.122061534
B8: 5 | C8: Sport education | D8: 4630.29136 | E8: 4.554127423 | F8: 7.563372552 | G8: 9.919918616 | H8: 10.20273074 | I8: 10.32613527 | J8: 10.86671698 | K8: 15.76573963 | L8: 7.466331128 | M8: 24.55809192 | N8: 37.9723775 | O8: 20.13129554 | P8: 5.675259873 | Q8: 15.94052138 | R8: 14.3395853 | S8: 9.255261801 | T8: 13.77204416 | U8: 14.31766385 | V8: 24.68189531 | W8: 111.0211177 | X8: 8.221501151 | Y8: 15.67898052 | Z8: 11.60308724 | AA8: 6.304455454 | AB8: 26.42811658 | AC8: 5.162055467 | AD8: 12.55214126 | AE8: 10.10266078 | AF8: 57.48181243 | AG8: 12.97429113 | AH8: 10.22492526 | AI8: 31.05589442 | AJ8: 6.237652641 | AK8: 18.83832808 | AL8: 33.90144139 | AM8: 9.647499108 | AN8: 31.22321659 | AO8: 7.870016183 | AP8: 8.373338423 | AQ8: 8.484664763 | AR8: 45.140365 | AS8: 7.775665771 | AT8: 17.15001552 | AU8: 18.92082992 | AV8: 7.975204407 | AW8: 50.88930538 | AX8: 18.38968148 | AY8: 8.21966046 | AZ8: 11.11846532 | BA8: 8.39616267 | BB8: 6.850014398 | BC8: 22.71209547 | BD8: 13.20001687 | BE8: 14.16605653 | BF8: 8.820477606 | BG8: 11.94923483 | BH8: 31.14157213 | BI8: 27.27251115 | BJ8: 8.1101627 | BK8: 8.204478314 | BL8: 8.573918999 | BM8: 9.315644875 | BN8: 3.582423755 | BO8: 0.333143685 | BP8: 14.31304971 | BQ8: 5.512797539 | BR8: 5.882044118 | BS8: 41.59529103 | BT8: 6.537240447 | BU8: 42.80839521 | BV8: 27.97288433 | BW8: 4.590029995 | BX8: 9.207066068 | BY8: 39.75664706 | BZ8: 38.80870214 | CA8: 12.80620475 | CB8: 9.729409516 | CC8: 8.497765127 | CD8: 7.006899865 | CE8: 22.69549981 | CF8: 85.933041 | CG8: 5.740340635 | CH8: 56.91170161 | CI8: 26.6796363 | CJ8: 31.76811037 | CK8: 8.704198764 | CL8: 27.03535448 | CM8: 33.95964681 | CN8: 7.389209142 | CO8: 9.7632207 | CP8: 6.458623001 | CQ8: 9.558254998 | CR8: 12.72446862 | CS8: 9.799808045 | CT8: 8.140527732 | CU8: 27.05808073 | CV8: 9.900771617 | CW8: 40.17399967 | CX8: 7.196855594 | CY8: 10.28580769 | CZ8: 4.045858223 | DA8: 12.12357056 | DB8: 35.51281669 | DC8: 10.3046839 | DD8: 6.495736474 | DE8: 9.154719806 | DF8: 118.0783756 | DG8: 8.191538044 | DH8: 8.632450488 | DI8: 7.492697619 | DJ8: 4.844842747 | DK8: 6.427975523 | DL8: 5.775604256 | DM8: 16.77318275 | DN8: 9.461069241 | DO8: 10.8352162 | DP8: 49.07394207 | DQ8: 6.836855472 | DR8: 8.942100943 | DS8: 7.601459395 | DT8: 26.86683768 | DU8: 10.82014354 | DV8: 25.12458625 | DW8: 11.47953395 | DX8: 7.332360737 | DY8: 13.87273332 | DZ8: 106.7822041 | EA8: 7.976556558 | EB8: 25.84789821 | EC8: 7.393823278 | ED8: 13.91618066 | EE8: 24.39527169 | EF8: 8.159792984 | EG8: 8.608417022 | EH8: 7.023778612 | EI8: 9.43993328 | EJ8: 23.28104112 | EK8: 14.64278017 | EL8: 100.7839349 | EM8: 9.084574522 | EN8: 7.614200508 | EO8: 29.23635966 | EP8: 8.724211128 | EQ8: 11.06119257 | ER8: 25.10807913 | ES8: 14.54902981 | ET8: 7.435723575 | EU8: 11.21432784 | EV8: 9.819443898 | EW8: 0.1645636354 | EX8: 16.23400173 | EY8: 11.97741587 | EZ8: 123.5983637 | FA8: 8.630416917 | FB8: 11.18993884 | FC8: 21.65898664 | FD8: 15.3846354 | FE8: 40.5972083 | FF8: 12.99698677 | FG8: 26.4098906 | FH8: 99.67746842 | FI8: 10.76620143 | FJ8: 63.25378558 | FK8: 31.01754296 | FL8: 58.49384839 | FM8: 7.632380218 | FN8: 27.50986502 | FO8: 8.264624311 | FP8: 6.759256158 | FQ8: 56.61526507 | FR8: 34.94646731 | FS8: 20.54411073 | FT8: 12.97133308 | FU8: 4.971401904 | FV8: 5.911068691 | FW8: 43.57267118 | FX8: 8.419211249 | FY8: 23.05196588 | FZ8: 4.247055831 | GA8: 9.466739656 | GB8: 18.75959102 | GC8: 6.725122816 | GD8: 8.180863038 | GE8: 12.02601808 | GF8: 13.19377246 | GG8: 23.52777024 | GH8: 6.984128249 | GI8: 12.65916514 | GJ8: 9.751223993 | GK8: 23.04541978 | GL8: 9.771248881 | GM8: 34.33480862 | GN8: 64.94000851 | GO8: 7.356727376 | GP8: 5.803033458 | GQ8: 7.597331046 | GR8: 14.07131505 | GS8: 11.01394251 | GT8: 9.020438886 | GU8: 14.77394165 | GV8: 6.544163101 | GW8: 16.83146203 | GX8: 17.29233386 | GY8: 4.984276472 | GZ8: 8.316644918 | HA8: 49.95396845 | HB8: 19.2979901 | HC8: 63.89410066 | HD8: 26.69889178 | HE8: 9.284959854 | HF8: 24.64156098 | HG8: 65.49197613 | HH8: 10.69602779 | HI8: 4.625606565 | HJ8: 23.43962876 | HK8: 10.63384977 | HL8: 52.30952828 | HM8: 8.256909241 | HN8: 17.01891087 | HO8: 19.69500253 | HP8: 11.68335186 | HQ8: 15.55930599 | HR8: 12.11982668 | HS8: 3.449173848 | HT8: 12.19091324 | HU8: 32.2181457 | HV8: 11.70390944 | HW8: 7.388835864 | HX8: 11.67734663 | HY8: 5.194699018 | HZ8: 18.4887242 | IA8: 4.372285316 | IB8: 20.29345691 | IC8: 6.886927485 | ID8: 6.161964262 | IE8: 6.235176945 | IF8: 23.33346409 | IG8: 8.981361523 | IH8: 5.923638378 | II8: 9.794409817 | IJ8: 7.685247368 | IK8: 3.18225537 | IL8: 4.153844968 | IM8: 20.19993868 | IN8: 29.98619111 | IO8: 8.165773276 | IP8: 9.626639545 | IQ8: 21.87985383 | IR8: 7.423493494 | IS8: 9.872311049 | IT8: 47.2972051 | IU8: 8.160422355 | IV8: 24.70260303 | IW8: 13.95566908 | IX8: 18.50698698 | IY8: 43.56738965 | IZ8: 5.651120803 | JA8: 13.48316441 | JB8: 8.796412426 | JC8: 22.54921554 | JD8: 6.357353072 | JE8: 6.861822489 | JF8: 11.66287146 | JG8: 7.61525128 | JH8: 10.44706295 | JI8: 8.031213616 | JJ8: 11.24937445 | JK8: 9.179121905 | JL8: 13.18840956 | JM8: 8.406226887 | JN8: 12.46897424 | JO8: 16.77525046 | JP8: 14.55957641 | JQ8: 25.23638446 | JR8: 7.403918601 | JS8: 13.68816387 | JT8: 9.081937873 | JU8: 14.61000566 | JV8: 10.34571241 | JW8: 69.30540132 | JX8: 7.508963168 | JY8: 7.426781391 | JZ8: 24.80212801 | KA8: 17.99484166 | KB8: 21.38333126 | KC8: 9.635015122 | KD8: 9.682604506 | KE8: 59.81436263 | KF8: 10.14516663 | KG8: 23.3359143 | KH8: 95.03185049 | KI8: 7.393219297 | KJ8: 19.51741787 | KK8: 11.85545858 | KL8: 18.60102079 | KM8: 19.31322199 | KN8: 6.888193579 | KO8: 7.028813579 | KP8: 9.122288646 | KQ8: 9.537362107 | KR8: 15.41656108 | KS8: 10.28556819 | KT8: 9.58217109 | KU8: 6.770427784 | KV8: 11.10273105 | KW8: 8.132085029 | KX8: 15.21544287 | KY8: 11.16566813 | KZ8: 9.836508149 | LA8: 4.86761911 | LB8: 25.4344699 | LC8: 21.95289362 | LD8: 10.34119233 | LE8: 7.754385044 | LF8: 10.03909432 | LG8: 28.08558517 | LH8: 25.57168045 | LI8: 26.9756346 | LJ8: 23.28179145 | LK8: 18.11250246 | LL8: 10.71683196 | LM8: 45.01351287 | LN8: 8.358177691 | LO8: 8.880893378 | LP8: 10.75468897 | LQ8: 12.08580831 | LR8: 6.905008312 | LS8: 9.176198079 | LT8: 13.56294167 | LU8: 4.112758385 | LV8: 7.546608494 | LW8: 9.421450177 | LX8: 7.34901256 | LY8: 8.437974897 | LZ8: 2.163312243 | MA8: 63.27442711 | MB8: 16.45084526 | MC8: 4.928247817 | MD8: 27.50733066 | ME8: 41.71854719 | MF8: 9.602940328 | MG8: 12.60503925 | MH8: 27.59948367 | MI8: 8.426646222 | MJ8: 13.9789558 | MK8: 22.05376241 | ML8: 8.233082505 | MM8: 46.46040934 | MN8: 8.018813915 | MO8: 9.433013343 | MP8: 15.14958557 | MQ8: 8.274657227 | MR8: 7.624392757 | MS8: 14.95412015 | MT8: 104.6469884 | MU8: 45.140365 | MV8: 76.52658574 | MW8: 155.2790038 | MX8: 41.75985466 | MY8: 72.9863972 | MZ8: 38.80870214 | NA8: 176.0665781 | NB8: 56.00360349 | NC8: 134.4329828 | ND8: 49.07394207 | NE8: 185.6845994 | NF8: 114.9018726 | NG8: 84.59428047 | NH8: 244.6594019 | NI8: 130.0106019 | NJ8: 100.7839349 | NK8: 77.56232406 | NL8: 126.9595362 | NM8: 269.3543412 | NN8: 86.32913598 | NO8: 123.5123312 | NP8: 809.3898402 | NQ8: 124.7543711 | NR8: 162.4231119 | NS8: 63.89410066 | NT8: 52.30952828 | NU8: 149.6768571 | NV8: 118.7515788 | NW8: 327.9953563 | NX8: 158.9602793 | NY8: 90.68873257 | NZ8: 60.31956799 | OA8: 61.23035011 | OB8: 76.39617982 | OC8: 54.76194428 | OD8: 87.05416311 | OE8: 46.46040934 | OF8: 91.96616933 | OG8: 38.80870214 | OH8: 86.44321229 | OI8: 56.00360349 | OJ8: 147.8533949 | OK8: 49.07394207 | OL8: 64.94000851 | OM8: 95.03185049 | ON8: 122.2867549 | OO8: 111.0211177 | OP8: 104.6469884 | OQ8: 41.75985466 | OR8: 42.80839521 | OS8: 91.49338418 | OT8: 85.933041 | OU8: 40.1191641 | OV8: 76.39617982 | OW8: 244.6594019 | OX8: 100.7839349 | OY8: 55.90333742 | OZ8: 146.6503296 | PA8: 126.9595362 | PB8: 68.66813524 | PC8: 89.51139135 | PD8: 56.61526507 | PE8: 67.90821625 | PF8: 809.3898402 | PG8: 123.5123312 | PH8: 64.9080886 | PI8: 63.89410066 | PJ8: 26.69889178 | PK8: 52.30952828 | PL8: 43.56738965 | PM8: 117.441601 | PN8: 325.7808224 | PO8: 90.68873257 | PP8: 76.52658574 | PQ8: 148.9362045 | PR8: 90.13353712 | PS8: 61.10318952 | PT8: 59.81436263 | PU8: 57.57387005 | PV8: 61.23035011 | PW8: 92.91582493 | PX8: 87.05416311 | PY8: 208.3392214 | PZ8: 60.31956799
B9: 9 | C9: Spectator sports | D9: 1161.6 | E9: 1.043177534 | F9: 1.174070533 | G9: 1.995126615 | H9: 2.558363155 | I9: 1.614346983 | J9: 2.483000519 | K9: 4.454328407 | L9: 2.118086705 | M9: 2.705121971 | N9: 6.266998115 | O9: 5.009632038 | P9: 0.8567541727 | Q9: 3.87522605 | R9: 4.63281886 | S9: 1.951495616 | T9: 3.764165324 | U9: 2.879645969 | V9: 2.364006884 | W9: 16.80586773 | X9: 3.387352146 | Y9: 5.041363674 | Z9: 3.601540689 | AA9: 0.2578195427 | AB9: 5.275384489 | AC9: 0.9202174448 | AD9: 5.564935668 | AE9: 3.518245144 | AF9: 8.563575272 | AG9: 2.63372579 | AH9: 1.804736799 | AI9: 5.227787035 | AJ9: 2.11412025 | AK9: 9.932002076 | AL9: 9.479826263 | AM9: 1.598481165 | AN9: 9.126811812 | AO9: 2.907411151 | AP9: 1.304963532 | AQ9: 1.677810255 | AR9: 14.69174748 | AS9: 2.498866337 | AT9: 2.899478242 | AU9: 3.744333051 | AV9: 1.705575436 | AW9: 9.027650449 | AX9: 6.965094108 | AY9: 0.7932909006 | AZ9: 2.839981424 | BA9: 2.245013249 | BB9: 1.32082935 | BC9: 4.684382768 | BD9: 5.219854126 | BE9: 3.708634961 | BF9: 3.042270604 | BG9: 4.819242221 | BH9: 9.753511623 | BI9: 12.26427732 | BJ9: 2.15775125 | BK9: 5.192088945 | BL9: 2.213281613 | BM9: 2.082388614 | BN9: 1.102674352 | BO9: 3.557909689 | BP9: 4.680416314 | BQ9: 0.9598819898 | BR9: 0.9797142623 | BS9: 9.932002076 | BT9: 3.926789958 | BU9: 9.58295408 | BV9: 4.58918786 | BW9: 0.9995465348 | BX9: 2.720987789 | BY9: 4.680416314 | BZ9: 8.091567187 | CA9: 5.624432486 | CB9: 2.042724069 | CC9: 1.665910891 | CD9: 2.165684159 | CE9: 7.976540006 | CF9: 19.07071325 | CG9: 1.201835714 | CH9: 15.54056874 | CI9: 8.952287814 | CJ9: 8.849159997 | CK9: 2.118086705 | CL9: 3.430983145 | CM9: 3.958521594 | CN9: 1.784904526 | CO9: 2.264845521 | CP9: 2.375906247 | CQ9: 2.102220887 | CR9: 3.335788237 | CS9: 1.947529161 | CT9: 1.24150026 | CU9: 5.727560303 | CV9: 6.536717021 | CW9: 11.34009342 | CX9: 2.43143661 | CY9: 3.427016691 | CZ9: 0.8527877182 | DA9: 7.06425547 | DB9: 4.224274046 | DC9: 4.612986587 | DD9: 3.79589696 | DE9: 1.650045073 | DF9: 30.24818204 | DG9: 4.160810774 | DH9: 1.800770344 | DI9: 1.003512989 | DJ9: 4.335334772 | DK9: 1.146305351 | DL9: 0.8646870817 | DM9: 3.399251509 | DN9: 1.324795804 | DO9: 2.010992433 | DP9: 13.46611304 | DQ9: 1.249433169 | DR9: 2.256912612 | DS9: 1.995126615 | DT9: 5.26745158 | DU9: 6.600180293 | DV9: 2.379872702 | DW9: 2.296577157 | DX9: 2.447302428 | DY9: 14.13644385 | DZ9: 29.48662278 | EA9: 1.721441254 | EB9: 5.299183216 | EC9: 1.87613298 | ED9: 3.474614145 | EE9: 1.769038708 | EF9: 2.419537247 | EG9: 2.83601497 | EH9: 1.602447619 | EI9: 2.229147431 | EJ9: 4.041817139 | EK9: 5.128625673 | EL9: 28.37601552 | EM9: 3.3913186 | EN9: 1.368426804 | EO9: 4.501925861 | EP9: 2.245013249 | EQ9: 4.184609501 | ER9: 7.159450378 | ES9: 3.581708416 | ET9: 0.9162509902 | EU9: 3.458748327 | EV9: 3.042270604 | EW9: 0.09916136258 | EX9: 4.989799765 | EY9: 3.133499058 | EZ9: 29.38746141 | FA9: 0.8051902642 | FB9: 1.642112164 | FC9: 5.303149671 | FD9: 6.362193023 | FE9: 8.809495452 | FF9: 1.491386893 | FG9: 2.75668588 | FH9: 20.11389079 | FI9: 2.074455705 | FJ9: 17.23424482 | FK9: 6.088507662 | FL9: 18.40831535 | FM9: 1.201835714 | FN9: 2.709088426 | FO9: 3.359586964 | FP9: 2.701155517 | FQ9: 9.638484443 | FR9: 7.940841915 | FS9: 3.680869779 | FT9: 2.018925342 | FU9: 1.328762259 | FV9: 1.689709618 | FW9: 9.233906084 | FX9: 2.748752971 | FY9: 5.854486847 | FZ9: 1.043177534 | GA9: 2.919310514 | GB9: 5.263485126 | GC9: 1.630212801 | GD9: 1.749206436 | GE9: 3.478580599 | GF9: 4.347234136 | GG9: 9.083180812 | GH9: 1.531051438 | GI9: 6.378058841 | GJ9: 2.962941514 | GK9: 14.2713033 | GL9: 1.812669708 | GM9: 2.832048515 | GN9: 16.81380064 | GO9: 1.439822985 | GP9: 0.9757478078 | GQ9: 1.213735078 | GR9: 2.812216243 | GS9: 1.967361434 | GT9: 0.5632365395 | GU9: 2.122053159 | GV9: 1.725407709 | GW9: 4.299636682 | GX9: 3.776064687 | GY9: 2.39573852 | GZ9: 2.71305488 | HA9: 13.40264977 | HB9: 5.330914852 | HC9: 18.55507417 | HD9: 11.22109979 | HE9: 5.86638621 | HF9: 6.604146748 | HG9: 18.52334253 | HH9: 2.086355069 | HI9: 1.348594531 | HJ9: 2.697189062 | HK9: 3.089868058 | HL9: 19.43959352 | HM9: 1.189936351 | HN9: 4.450361953 | HO9: 5.382478761 | HP9: 4.672483405 | HQ9: 5.307116125 | HR9: 3.506345781 | HS9: 1.289097714 | HT9: 4.041817139 | HU9: 3.050203513 | HV9: 3.605507143 | HW9: 0.8369219002 | HX9: 2.816182697 | HY9: 0.9202174448 | HZ9: 5.580801486 | IA9: 1.614346983 | IB9: 2.839981424 | IC9: 1.654011528 | ID9: 1.602447619 | IE9: 1.566749529 | IF9: 3.403217964 | IG9: 2.776518152 | IH9: 4.097347502 | II9: 6.243199388 | IJ9: 2.070489251 | IK9: 0.7298276286 | IL9: 1.983227252 | IM9: 3.006572513 | IN9: 3.724500779 | IO9: 2.014958888 | IP9: 1.285131259 | IQ9: 3.760198869 | IR9: 0.8686535362 | IS9: 4.307569591 | IT9: 12.18494823 | IU9: 1.931663343 | IV9: 8.151064004 | IW9: 2.007025979 | IX9: 4.843040948 | IY9: 11.76450406 | IZ9: 1.812669708 | JA9: 0.9519490808 | JB9: 1.249433169 | JC9: 5.410243942 | JD9: 2.153784795 | JE9: 0.2221214522 | JF9: 1.535017893 | JG9: 2.003059524 | JH9: 2.181549977 | JI9: 6.655710656 | JJ9: 4.355167045 | JK9: 2.245013249 | JL9: 3.54997678 | JM9: 2.494899883 | JN9: 2.062556342 | JO9: 4.616953042 | JP9: 3.438916054 | JQ9: 3.189029421 | JR9: 3.161264239 | JS9: 4.010085503 | JT9: 1.868200071 | JU9: 4.295670227 | JV9: 1.923730434 | JW9: 19.45149288 | JX9: 1.352560986 | JY9: 1.816636162 | JZ9: 3.768131778 | KA9: 3.827628596 | KB9: 4.045783593 | KC9: 3.605507143 | KD9: 2.018925342 | KE9: 17.72211872 | KF9: 2.820149152 | KG9: 5.529237578 | KH9: 47.66091731 | KI9: 2.855847242 | KJ9: 3.665003961 | KK9: 2.558363155 | KL9: 4.493992952 | KM9: 2.165684159 | KN9: 1.178036987 | KO9: 3.934722867 | KP9: 3.411150873 | KQ9: 2.641658699 | KR9: 2.875679515 | KS9: 1.082842079 | KT9: 1.368426804 | KU9: 1.32082935 | KV9: 1.626246346 | KW9: 1.348594531 | KX9: 2.062556342 | KY9: 3.934722867 | KZ9: 2.003059524 | LA9: 0.8091567187 | LB9: 4.771644767 | LC9: 8.932455541 | LD9: 1.646078619 | LE9: 1.360493895 | LF9: 2.828082061 | LG9: 5.557002759 | LH9: 4.339301227 | LI9: 3.192995875 | LJ9: 7.024590925 | LK9: 4.91443713 | LL9: 2.911377605 | LM9: 13.77549649 | LN9: 2.978807332 | LO9: 1.372393258 | LP9: 5.088961128 | LQ9: 4.537623952 | LR9: 1.376359713 | LS9: 2.5980277 | LT9: 7.365706013 | LU9: 0.4402764499 | LV9: 1.935629798 | LW9: 1.134405988 | LX9: 1.749206436 | LY9: 4.347234136 | LZ9: 0.59893463 | MA9: 20.2606496 | MB9: 16.09983883 | MC9: 1.170104078 | MD9: 6.806435928 | ME9: 8.857092906 | MF9: 1.808703253 | MG9: 5.703761576 | MH9: 4.208408228 | MI9: 6.715207474 | MJ9: 6.627945475 | MK9: 5.287283853 | ML9: 3.327855328 | MM9: 15.04872839 | MN9: 1.082842079 | MO9: 4.085448138 | MP9: 6.211467752 | MQ9: 1.078875625 | MR9: 2.201382249 | MS9: 3.728467233 | MT9: 16.782069 | MU9: 14.69174748 | MV9: 26.93222608 | MW9: 48.15275767 | MX9: 10.03116344 | MY9: 18.36468435 | MZ9: 8.091567187 | NA9: 44.19820253 | NB9: 19.08657907 | NC9: 56.36331849 | ND9: 13.46611304 | NE9: 39.46225585 | NF9: 25.38134237 | NG9: 14.57275384 | NH9: 47.62521922 | NI9: 34.69061109 | NJ9: 28.37601552 | NK9: 15.96497938 | NL9: 28.75679515 | NM9: 57.98956484 | NN9: 23.76699538 | NO9: 23.99308329 | NP9: 168.2530336 | NQ9: 34.53591936 | NR9: 49.84246729 | NS9: 18.55507417 | NT9: 19.43959352 | NU9: 35.13088754 | NV9: 33.33011719 | NW9: 82.33169612 | NX9: 45.53886415 | NY9: 23.49727648 | NZ9: 13.35108586 | OA9: 16.65910891 | OB9: 29.26450132 | OC9: 16.15536919 | OD9: 22.95387221 | OE9: 15.04872839 | OF9: 22.8586773 | OG9: 8.091567187 | OH9: 22.92610703 | OI9: 19.08657907 | OJ9: 35.74965444 | OK9: 13.46611304 | OL9: 16.81380064 | OM9: 47.66091731 | ON9: 41.5327451 | OO9: 16.80586773 | OP9: 16.782069 | OQ9: 10.03116344 | OR9: 9.58295408 | OS9: 23.2077253 | OT9: 19.07071325 | OU9: 11.02674352 | OV9: 29.26450132 | OW9: 47.62521922 | OX9: 28.37601552 | OY9: 10.6618297 | OZ9: 35.24194826 | PA9: 28.75679515 | PB9: 23.77492829 | PC9: 24.49682301 | PD9: 9.638484443 | PE9: 13.4780124 | PF9: 168.2530336 | PG9: 23.99308329 | PH9: 17.131117 | PI9: 18.55507417 | PJ9: 11.22109979 | PK9: 19.43959352 | PL9: 11.76450406 | PM9: 29.55008605 | PN9: 73.4587374 | PO9: 23.49727648 | PP9: 26.93222608 | PQ9: 42.45296255 | PR9: 25.12748928 | PS9: 20.17735406 | PT9: 17.72211872 | PU9: 11.24489852 | PV9: 16.65910891 | PW9: 29.03841342 | PX9: 22.95387221 | PY9: 43.90865135 | PZ9: 13.35108586
B10: 10 | C10: Sports equipment | D10: 1584 | E10: 0.532624146 | F10: 8.715667844 | G10: 0.9199871613 | H10: 0.4842037691 | I10: 0.7747260305 | J10: 4.454674676 | K10: 3.728369022 | L10: 1.065248292 | M10: 0.8957769728 | N10: 12.17772479 | O10: 2.203127149 | P10: 2.324178092 | Q10: 6.851483333 | R10: 7.238846348 | S10: 1.2589298 | T10: 5.471502591 | U10: 5.568343344 | V10: 4.139942226 | W10: 23.24178092 | X10: 4.38204411 | Y10: 3.026273557 | Z10: 3.534687514 | AA10: 7.238846348 | AB10: 7.117795406 | AC10: 1.452611307 | AD10: 9.39355312 | AE10: 3.510477326 | AF10: 9.611444816 | AG10: 6.657801825 | AH10: 2.009445642 | AI10: 6.004126737 | AJ10: 1.791553946 | AK10: 8.691457655 | AL10: 16.29345683 | AM10: 4.745196937 | AN10: 9.877756889 | AO10: 0.8473565959 | AP10: 1.839974323 | AQ10: 3.583107891 | AR10: 8.231464074 | AS10: 4.551515429 | AT10: 10.74932367 | AU10: 4.309413545 | AV10: 12.08088404 | AW10: 34.91109175 | AX10: 12.44403687 | AY10: 1.016827915 | AZ10: 4.430464487 | BA10: 4.164152414 | BB10: 2.203127149 | BC10: 1.888394699 | BD10: 5.132559952 | BE10: 8.449355771 | BF10: 4.091521849 | BG10: 5.931496171 | BH10: 9.732495759 | BI10: 21.64390848 | BJ10: 5.616763721 | BK10: 2.97785318 | BL10: 0.9684075382 | BM10: 5.568343344 | BN10: 2.517859599 | BO10: 7.263056536 | BP10: 5.858865606 | BQ10: 0.8715667844 | BR10: 2.687330918 | BS10: 21.28075565 | BT10: 3.316795818 | BU10: 5.834655417 | BV10: 7.166215782 | BW10: 2.396808657 | BX10: 11.08826631 | BY10: 10.96721537 | BZ10: 33.21637856 | CA10: 9.587234628 | CB10: 2.106286396 | CC10: 3.970470907 | CD10: 2.251547526 | CE10: 7.456738044 | CF10: 29.27011784 | CG10: 4.624145995 | CH10: 29.22169746 | CI10: 6.294648998 | CJ10: 14.59874364 | CK10: 1.476821496 | CL10: 5.350451648 | CM10: 8.739878032 | CN10: 2.493649411 | CO10: 4.793617314 | CP10: 0.9684075382 | CQ10: 1.307350177 | CR10: 2.517859599 | CS10: 3.970470907 | CT10: 0.798936219 | CU10: 4.793617314 | CV10: 4.06731166 | CW10: 8.885139163 | CX10: 3.655738457 | CY10: 3.825209776 | CZ10: 3.316795818 | DA10: 3.244165253 | DB10: 8.788298409 | DC10: 2.057866019 | DD10: 1.815764134 | DE10: 1.234719611 | DF10: 52.12453574 | DG10: 7.771470494 | DH10: 3.631528268 | DI10: 2.396808657 | DJ10: 0.9926177266 | DK10: 1.065248292 | DL10: 1.864184511 | DM10: 7.577788986 | DN10: 0.6052547114 | DO10: 7.117795406 | DP10: 21.06286396 | DQ10: 0.2421018845 | DR10: 1.379980742 | DS10: 5.205190518 | DT10: 5.737814664 | DU10: 5.713604475 | DV10: 5.979916548 | DW10: 1.912604888 | DX10: 1.065248292 | DY10: 12.12930442 | DZ10: 32.32060159 | EA10: 0.9441973497 | EB10: 8.376725205 | EC10: 5.883075794 | ED10: 3.970470907 | EE10: 4.285203356 | EF10: 0.7747260305 | EG10: 1.428401119 | EH10: 2.057866019 | EI10: 3.60731808 | EJ10: 5.350451648 | EK10: 3.92205053 | EL10: 39.0026136 | EM10: 5.035719198 | EN10: 1.791553946 | EO10: 9.103030859 | EP10: 1.065248292 | EQ10: 3.341006007 | ER10: 9.659865193 | ES10: 15.47031042 | ET10: 0.7263056536 | EU10: 5.907285983 | EV10: 3.123114311 | EW10: 0.02421018845 | EX10: 8.30409464 | EY10: 6.222018433 | EZ10: 35.56476684 | FA10: 4.212572791 | FB10: 4.018891283 | FC10: 7.335687102 | FD10: 7.190425971 | FE10: 13.50928516 | FF10: 1.379980742 | FG10: 4.793617314 | FH10: 33.09532762 | FI10: 3.631528268 | FJ10: 17.23765418 | FK10: 5.374661837 | FL10: 18.37553304 | FM10: 0.798936219 | FN10: 2.832592049 | FO10: 1.162089046 | FP10: 3.92205053 | FQ10: 19.2955202 | FR10: 18.85973681 | FS10: 4.963088633 | FT10: 5.689394287 | FU10: 2.856802238 | FV10: 0.7020954652 | FW10: 20.74813151 | FX10: 2.275757715 | FY10: 5.810445229 | FZ10: 0.8715667844 | GA10: 5.471502591 | GB10: 7.577788986 | GC10: 1.597872438 | GD10: 1.379980742 | GE10: 1.2589298 | GF10: 4.018891283 | GG10: 11.20931725 | GH10: 1.428401119 | GI10: 3.123114311 | GJ10: 1.597872438 | GK10: 7.747260305 | GL10: 2.227337338 | GM10: 14.40506213 | GN10: 32.78059517 | GO10: 5.084139575 | GP10: 1.452611307 | GQ10: 0.3147324499 | GR10: 3.510477326 | GS10: 2.154706772 | GT10: 0.8957769728 | GU10: 4.914668256 | GV10: 2.251547526 | GW10: 4.987298822 | GX10: 5.108349764 | GY10: 0.4115732037 | GZ10: 3.655738457 | HA10: 14.64716401 | HB10: 7.166215782 | HC10: 19.85235453 | HD10: 4.551515429 | HE10: 13.07350177 | HF10: 7.940941813 | HG10: 12.20193498 | HH10: 2.299967903 | HI10: 0.3389426384 | HJ10: 5.059929387 | HK10: 8.473565959 | HL10: 20.07024623 | HM10: 3.050483745 | HN10: 10.02301802 | HO10: 10.57985235 | HP10: 5.350451648 | HQ10: 6.343069375 | HR10: 6.778852767 | HS10: 0.4115732037 | HT10: 7.335687102 | HU10: 6.27043881 | HV10: 0.9926177266 | HW10: 2.856802238 | HX10: 1.646292815 | HY10: 0.4842037691 | HZ10: 3.825209776 | IA10: 0.6294648998 | IB10: 6.778852767 | IC10: 5.713604475 | ID10: 2.03365583 | IE10: 0.9684075382 | IF10: 9.587234628 | IG10: 2.566279976 | IH10: 2.324178092 | II10: 2.106286396 | IJ10: 3.341006007 | IK10: 1.985235453 | IL10: 0.9684075382 | IM10: 5.059929387 | IN10: 3.970470907 | IO10: 2.227337338 | IP10: 4.503095053 | IQ10: 5.495712779 | IR10: 3.389426384 | IS10: 1.815764134 | IT10: 25.22701637 | IU10: 1.501031684 | IV10: 5.713604475 | IW10: 4.648356183 | IX10: 4.648356183 | IY10: 17.16502361 | IZ10: 0.4599935806 | JA10: 2.469439222 | JB10: 0.07263056536 | JC10: 11.91141272 | JD10: 3.074693934 | JE10: 1.743133569 | JF10: 1.936815076 | JG10: 13.82401761 | JH10: 1.476821496 | JI10: 1.646292815 | JJ10: 2.251547526 | JK10: 0.6536750883 | JL10: 1.549452061 | JM10: 1.08945848 | JN10: 1.234719611 | JO10: 9.006190105 | JP10: 5.447292402 | JQ10: 11.88720253 | JR10: 2.66312073 | JS10: 2.929432803 | JT10: 3.050483745 | JU10: 2.299967903 | JV10: 2.687330918 | JW10: 16.19661608 | JX10: 0.2421018845 | JY10: 2.493649411 | JZ10: 8.981979917 | KA10: 4.478884864 | KB10: 7.795680682 | KC10: 3.60731808 | KD10: 4.842037691 | KE10: 20.62708056 | KF10: 2.517859599 | KG10: 4.914668256 | KH10: 28.95538539 | KI10: 2.03365583 | KJ10: 3.728369022 | KK10: 2.324178092 | KL10: 6.536750883 | KM10: 4.745196937 | KN10: 3.704158834 | KO10: 1.428401119 | KP10: 5.205190518 | KQ10: 3.60731808 | KR10: 3.098904122 | KS10: 2.735751295 | KT10: 2.106286396 | KU10: 0.6294648998 | KV10: 3.341006007 | KW10: 0.8715667844 | KX10: 11.7419414 | KY10: 1.113668669 | KZ10: 3.873630153 | LA10: 1.307350177 | LB10: 7.069375029 | LC10: 11.54825989 | LD10: 4.06731166 | LE10: 1.065248292 | LF10: 1.428401119 | LG10: 8.836718786 | LH10: 3.60731808 | LI10: 8.110413132 | LJ10: 9.514604063 | LK10: 11.62089046 | LL10: 2.275757715 | LM10: 11.16089688 | LN10: 6.948324086 | LO10: 5.713604475 | LP10: 2.66312073 | LQ10: 1.40419093 | LR10: 1.08945848 | LS10: 4.624145995 | LT10: 5.32624146 | LU10: 1.985235453 | LV10: 7.287266725 | LW10: 2.469439222 | LX10: 5.374661837 | LY10: 1.985235453 | LZ10: 0.4357833922 | MA10: 22.15232244 | MB10: 41.71415471 | MC10: 1.961025265 | MD10: 7.577788986 | ME10: 14.50190288 | MF10: 3.123114311 | MG10: 7.505158421 | MH10: 5.834655417 | MI10: 3.994681095 | MJ10: 1.912604888 | MK10: 6.197808244 | ML10: 2.905222615 | MM10: 11.98404328 | MN10: 2.469439222 | MO10: 1.57366225 | MP10: 3.074693934 | MQ10: 1.283139988 | MR10: 3.098904122 | MS10: 8.30409464 | MT10: 19.12604888 | MU10: 8.231464074 | MV10: 42.99729469 | MW10: 48.92879087 | MX10: 21.30496584 | MY10: 18.32711266 | MZ10: 33.21637856 | NA10: 49.41299464 | NB10: 29.34274841 | NC10: 43.65096978 | ND10: 21.06286396 | NE10: 44.64358751 | NF10: 58.20129304 | NG10: 27.72066578 | NH10: 88.36718786 | NI10: 60.84020359 | NJ10: 39.0026136 | NK10: 20.55445 | NL10: 39.65628869 | NM10: 73.76844422 | NN10: 21.76495942 | NO10: 35.78265854 | NP10: 285.3654913 | NQ10: 53.40767573 | NR10: 36.96895777 | NS10: 19.85235453 | NT10: 20.07024623 | NU10: 57.74129946 | NV10: 39.43839699 | NW10: 119.5741208 | NX10: 51.25296896 | NY10: 23.99229676 | NZ10: 21.03865377 | OA10: 13.02508139 | OB10: 30.23852538 | OC10: 12.73455913 | OD10: 38.66367096 | OE10: 11.98404328 | OF10: 27.74487597 | OG10: 33.21637856 | OH10: 43.67517997 | OI10: 29.34274841 | OJ10: 69.31376954 | OK10: 21.06286396 | OL10: 32.78059517 | OM10: 28.95538539 | ON10: 39.72891925 | OO10: 23.24178092 | OP10: 19.12604888 | OQ10: 21.30496584 | OR10: 5.834655417 | OS10: 22.97546884 | OT10: 29.27011784 | OU10: 8.812508597 | OV10: 30.23852538 | OW10: 88.36718786 | OX10: 39.0026136 | OY10: 13.2187629 | OZ10: 41.37521207 | PA10: 39.65628869 | PB10: 19.44078133 | PC10: 23.75019487 | PD10: 19.2955202 | PE10: 44.93410977 | PF10: 285.3654913 | PG10: 35.78265854 | PH10: 22.95125865 | PI10: 19.85235453 | PJ10: 4.551515429 | PK10: 20.07024623 | PL10: 17.16502361 | PM10: 43.31202714 | PN10: 96.81654363 | PO10: 23.99229676 | PP10: 42.99729469 | PQ10: 50.79297538 | PR10: 20.14287679 | PS10: 15.90609381 | PT10: 20.62708056 | PU10: 12.41982668 | PV10: 13.02508139 | PW10: 26.58278692 | PX10: 38.66367096 | PY10: 53.50451648 | PZ10: 21.03865377
B11: 11 | C11: Sportswear | D11: 422.4 | E11: 0.1420331056 | F11: 2.324178092 | G11: 0.2453299097 | H11: 0.1291210051 | I11: 0.2065936081 | J11: 1.187913247 | K11: 0.9942317392 | L11: 0.2840662112 | M11: 0.2388738594 | N11: 3.247393278 | O11: 0.5875005732 | P11: 0.6197808244 | Q11: 1.827062222 | R11: 1.930359026 | S11: 0.3357146132 | T11: 1.459067358 | U11: 1.484891559 | V11: 1.103984594 | W11: 6.197808244 | X11: 1.168545096 | Y11: 0.8070062818 | Z11: 0.9425833372 | AA11: 1.930359026 | AB11: 1.898078775 | AC11: 0.3873630153 | AD11: 2.504947499 | AE11: 0.9361272869 | AF11: 2.563051951 | AG11: 1.77541382 | AH11: 0.5358521711 | AI11: 1.601100463 | AJ11: 0.4777477188 | AK11: 2.317722041 | AL11: 4.344921821 | AM11: 1.26538585 | AN11: 2.634068504 | AO11: 0.2259617589 | AP11: 0.4906598193 | AQ11: 0.9554954377 | AR11: 2.195057087 | AS11: 1.213737448 | AT11: 2.866486313 | AU11: 1.149176945 | AV11: 3.221569077 | AW11: 9.309624467 | AX11: 3.318409831 | AY11: 0.2711541107 | AZ11: 1.181457197 | BA11: 1.110440644 | BB11: 0.5875005732 | BC11: 0.5035719198 | BD11: 1.368682654 | BE11: 2.253161539 | BF11: 1.091072493 | BG11: 1.581732312 | BH11: 2.595332202 | BI11: 5.771708928 | BJ11: 1.497803659 | BK11: 0.7940941813 | BL11: 0.2582420102 | BM11: 1.484891559 | BN11: 0.6714292265 | BO11: 1.936815076 | BP11: 1.562364162 | BQ11: 0.2324178092 | BR11: 0.7166215782 | BS11: 5.674868174 | BT11: 0.8844788849 | BU11: 1.555908111 | BV11: 1.910990875 | BW11: 0.6391489752 | BX11: 2.956871017 | BY11: 2.924590765 | BZ11: 8.857700949 | CA11: 2.556595901 | CB11: 0.5616763721 | CC11: 1.058792242 | CD11: 0.6004126737 | CE11: 1.988463478 | CF11: 7.805364758 | CG11: 1.233105599 | CH11: 7.792452657 | CI11: 1.678573066 | CJ11: 3.892998303 | CK11: 0.3938190655 | CL11: 1.426787106 | CM11: 2.330634142 | CN11: 0.6649731762 | CO11: 1.27829795 | CP11: 0.2582420102 | CQ11: 0.3486267137 | CR11: 0.6714292265 | CS11: 1.058792242 | CT11: 0.2130496584 | CU11: 1.27829795 | CV11: 1.084616443 | CW11: 2.369370443 | CX11: 0.9748635884 | CY11: 1.02005594 | CZ11: 0.8844788849 | DA11: 0.8651107341 | DB11: 2.343546242 | DC11: 0.5487642716 | DD11: 0.4842037691 | DE11: 0.329258563 | DF11: 13.8998762 | DG11: 2.072392132 | DH11: 0.9684075382 | DI11: 0.6391489752 | DJ11: 0.2646980604 | DK11: 0.2840662112 | DL11: 0.4971158696 | DM11: 2.02074373 | DN11: 0.1614012564 | DO11: 1.898078775 | DP11: 5.616763721 | DQ11: 0.06456050254 | DR11: 0.3679948645 | DS11: 1.388050805 | DT11: 1.53008391 | DU11: 1.52362786 | DV11: 1.594644413 | DW11: 0.5100279701 | DX11: 0.2840662112 | DY11: 3.234481177 | DZ11: 8.61882709 | EA11: 0.2517859599 | EB11: 2.233793388 | EC11: 1.568820212 | ED11: 1.058792242 | EE11: 1.142720895 | EF11: 0.2065936081 | EG11: 0.380906965 | EH11: 0.5487642716 | EI11: 0.9619514879 | EJ11: 1.426787106 | EK11: 1.045880141 | EL11: 10.40069696 | EM11: 1.342858453 | EN11: 0.4777477188 | EO11: 2.427474896 | EP11: 0.2840662112 | EQ11: 0.8909349351 | ER11: 2.575964052 | ES11: 4.125416113 | ET11: 0.1936815076 | EU11: 1.575276262 | EV11: 0.8328304828 | EW11: 0.006456050254 | EX11: 2.214425237 | EY11: 1.659204915 | EZ11: 9.483937824 | FA11: 1.123352744 | FB11: 1.071704342 | FC11: 1.956183227 | FD11: 1.917446926 | FE11: 3.602476042 | FF11: 0.3679948645 | FG11: 1.27829795 | FH11: 8.825420698 | FI11: 0.9684075382 | FJ11: 4.596707781 | FK11: 1.433243156 | FL11: 4.900142143 | FM11: 0.2130496584 | FN11: 0.7553578798 | FO11: 0.3098904122 | FP11: 1.045880141 | FQ11: 5.145472053 | FR11: 5.029263148 | FS11: 1.323490302 | FT11: 1.51717181 | FU11: 0.76181393 | FV11: 0.1872254574 | FW11: 5.532835068 | FX11: 0.6068687239 | FY11: 1.549452061 | FZ11: 0.2324178092 | GA11: 1.459067358 | GB11: 2.02074373 | GC11: 0.4260993168 | GD11: 0.3679948645 | GE11: 0.3357146132 | GF11: 1.071704342 | GG11: 2.989151268 | GH11: 0.380906965 | GI11: 0.8328304828 | GJ11: 0.4260993168 | GK11: 2.065936081 | GL11: 0.5939566234 | GM11: 3.841349901 | GN11: 8.741492045 | GO11: 1.355770553 | GP11: 0.3873630153 | GQ11: 0.08392865331 | GR11: 0.9361272869 | GS11: 0.5745884726 | GT11: 0.2388738594 | GU11: 1.310578202 | GV11: 0.6004126737 | GW11: 1.329946352 | GX11: 1.362226604 | GY11: 0.1097528543 | GZ11: 0.9748635884 | HA11: 3.905910404 | HB11: 1.910990875 | HC11: 5.293961209 | HD11: 1.213737448 | HE11: 3.486267137 | HF11: 2.117584483 | HG11: 3.253849328 | HH11: 0.6133247742 | HI11: 0.09038470356 | HJ11: 1.349314503 | HK11: 2.259617589 | HL11: 5.352065661 | HM11: 0.8134623321 | HN11: 2.672804805 | HO11: 2.821293961 | HP11: 1.426787106 | HQ11: 1.691485167 | HR11: 1.807694071 | HS11: 0.1097528543 | HT11: 1.956183227 | HU11: 1.672117016 | HV11: 0.2646980604 | HW11: 0.76181393 | HX11: 0.4390114173 | HY11: 0.1291210051 | HZ11: 1.02005594 | IA11: 0.1678573066 | IB11: 1.807694071 | IC11: 1.52362786 | ID11: 0.5423082214 | IE11: 0.2582420102 | IF11: 2.556595901 | IG11: 0.684341327 | IH11: 0.6197808244 | II11: 0.5616763721 | IJ11: 0.8909349351 | IK11: 0.5293961209 | IL11: 0.2582420102 | IM11: 1.349314503 | IN11: 1.058792242 | IO11: 0.5939566234 | IP11: 1.200825347 | IQ11: 1.465523408 | IR11: 0.9038470356 | IS11: 0.4842037691 | IT11: 6.727204365 | IU11: 0.4002751158 | IV11: 1.52362786 | IW11: 1.239561649 | IX11: 1.239561649 | IY11: 4.57733963 | IZ11: 0.1226649548 | JA11: 0.658517126 | JB11: 0.01936815076 | JC11: 3.176376725 | JD11: 0.8199183823 | JE11: 0.4648356183 | JF11: 0.5164840204 | JG11: 3.686404695 | JH11: 0.3938190655 | JI11: 0.4390114173 | JJ11: 0.6004126737 | JK11: 0.1743133569 | JL11: 0.4131872163 | JM11: 0.2905222615 | JN11: 0.329258563 | JO11: 2.401650695 | JP11: 1.452611307 | JQ11: 3.169920675 | JR11: 0.710165528 | JS11: 0.7811820808 | JT11: 0.8134623321 | JU11: 0.6133247742 | JV11: 0.7166215782 | JW11: 4.31909762 | JX11: 0.06456050254 | JY11: 0.6649731762 | JZ11: 2.395194644 | KA11: 1.194369297 | KB11: 2.078848182 | KC11: 0.9619514879 | KD11: 1.291210051 | KE11: 5.500554817 | KF11: 0.6714292265 | KG11: 1.310578202 | KH11: 7.721436104 | KI11: 0.5423082214 | KJ11: 0.9942317392 | KK11: 0.6197808244 | KL11: 1.743133569 | KM11: 1.26538585 | KN11: 0.9877756889 | KO11: 0.380906965 | KP11: 1.388050805 | KQ11: 0.9619514879 | KR11: 0.8263744326 | KS11: 0.7295336788 | KT11: 0.5616763721 | KU11: 0.1678573066 | KV11: 0.8909349351 | KW11: 0.2324178092 | KX11: 3.131184373 | KY11: 0.2969783117 | KZ11: 1.032968041 | LA11: 0.3486267137 | LB11: 1.885166674 | LC11: 3.079535971 | LD11: 1.084616443 | LE11: 0.2840662112 | LF11: 0.380906965 | LG11: 2.356458343 | LH11: 0.9619514879 | LI11: 2.162776835 | LJ11: 2.53722775 | LK11: 3.098904122 | LL11: 0.6068687239 | LM11: 2.976239167 | LN11: 1.852886423 | LO11: 1.52362786 | LP11: 0.710165528 | LQ11: 0.3744509148 | LR11: 0.2905222615 | LS11: 1.233105599 | LT11: 1.420331056 | LU11: 0.5293961209 | LV11: 1.943271127 | LW11: 0.658517126 | LX11: 1.433243156 | LY11: 0.5293961209 | LZ11: 0.1162089046 | MA11: 5.907285983 | MB11: 11.12377459 | MC11: 0.5229400706 | MD11: 2.02074373 | ME11: 3.867174102 | MF11: 0.8328304828 | MG11: 2.001375579 | MH11: 1.555908111 | MI11: 1.065248292 | MJ11: 0.5100279701 | MK11: 1.652748865 | ML11: 0.7747260305 | MM11: 3.195744876 | MN11: 0.658517126 | MO11: 0.4196432665 | MP11: 0.8199183823 | MQ11: 0.3421706635 | MR11: 0.8263744326 | MS11: 2.214425237 | MT11: 5.100279701 | MU11: 2.195057087 | MV11: 11.46594525 | MW11: 13.04767756 | MX11: 5.681324224 | MY11: 4.887230043 | MZ11: 8.857700949 | NA11: 13.17679857 | NB11: 7.824732908 | NC11: 11.64025861 | ND11: 5.616763721 | NE11: 11.90495667 | NF11: 15.52034481 | NG11: 7.392177541 | NH11: 23.56458343 | NI11: 16.22405429 | NJ11: 10.40069696 | NK11: 5.481186666 | NL11: 10.57501032 | NM11: 19.67158513 | NN11: 5.803989179 | NO11: 9.542042276 | NP11: 76.09746435 | NQ11: 14.24204686 | NR11: 9.858388739 | NS11: 5.293961209 | NT11: 5.352065661 | NU11: 15.39767986 | NV11: 10.51690586 | NW11: 31.88643221 | NX11: 13.66745839 | NY11: 6.397945802 | NZ11: 5.610307671 | OA11: 3.473355037 | OB11: 8.063606768 | OC11: 3.395882434 | OD11: 10.31031226 | OE11: 3.195744876 | OF11: 7.398633592 | OG11: 8.857700949 | OH11: 11.64671466 | OI11: 7.824732908 | OJ11: 18.48367188 | OK11: 5.616763721 | OL11: 8.741492045 | OM11: 7.721436104 | ON11: 10.59437847 | OO11: 6.197808244 | OP11: 5.100279701 | OQ11: 5.681324224 | OR11: 1.555908111 | OS11: 6.126791692 | OT11: 7.805364758 | OU11: 2.350002293 | OV11: 8.063606768 | OW11: 23.56458343 | OX11: 10.40069696 | OY11: 3.525003439 | OZ11: 11.03338988 | PA11: 10.57501032 | PB11: 5.184208354 | PC11: 6.3333853 | PD11: 5.145472053 | PE11: 11.98242927 | PF11: 76.09746435 | PG11: 9.542042276 | PH11: 6.120335641 | PI11: 5.293961209 | PJ11: 1.213737448 | PK11: 5.352065661 | PL11: 4.57733963 | PM11: 11.54987391 | PN11: 25.81774497 | PO11: 6.397945802 | PP11: 11.46594525 | PQ11: 13.54479343 | PR11: 5.371433812 | PS11: 4.241625017 | PT11: 5.500554817 | PU11: 3.311953781 | PV11: 3.473355037 | PW11: 7.088743179 | PX11: 10.31031226 | PY11: 14.26787106 | PZ11: 5.610307671
B12: 12 | C12: Sports gambling | D12: 689.958732 | E12: 0.1787715154 | F12: 0.8938575771 | G12: 0.834267072 | H12: 1.50962613 | I12: 0.9137210788 | J12: 0.6157685531 | K12: 0.8144035703 | L12: 0.2184985189 | M12: 10.4283384 | N12: 3.495976302 | O12: 2.482937714 | P12: 1.013038587 | Q12: 1.39044512 | R12: 0.69522256 | S12: 0.6157685531 | T12: 0.7548130651 | U12: 1.251400608 | V12: 2.78089024 | W12: 19.08882515 | X12: 0.1589080137 | Y12: 1.628807141 | Z12: 7.031679607 | AA12: 0.3774065326 | AB12: 4.429560882 | AC12: 0.8541305737 | AD12: 3.833655831 | AE12: 0.7150860617 | AF12: 6.475501559 | AG12: 0.4767240411 | AH12: 1.27126411 | AI12: 3.694611319 | AJ12: 0.3178160274 | AK12: 5.820006002 | AL12: 4.767240411 | AM12: 0.1191810103 | AN12: 1.827442158 | AO12: 0.2979525257 | AP12: 0.8541305737 | AQ12: 1.072629093 | AR12: 2.244575694 | AS12: 0.9931750857 | AT12: 1.39044512 | AU12: 1.489762629 | AV12: 0.7945400686 | AW12: 2.145258185 | AX12: 7.548130651 | AY12: 0.6753590583 | AZ12: 1.191810103 | BA12: 1.211673605 | BB12: 0.6554955566 | BC12: 1.092492594 | BD12: 1.549353134 | BE12: 0.6157685531 | BF12: 0.6157685531 | BG12: 0.9534480823 | BH12: 1.96648667 | BI12: 2.90007125 | BJ12: 1.27126411 | BK12: 0.3774065326 | BL12: 0.278089024 | BM12: 0.5164510446 | BN12: 0.1787715154 | BO12: 4.806967415 | BP12: 1.013038587 | BQ12: 0.7349495634 | BR12: 1.032902089 | BS12: 2.105531182 | BT12: 0.09931750857 | BU12: 5.10491994 | BV12: 4.429560882 | BW12: 0.09931750857 | BX12: 1.251400608 | BY12: 3.217887278 | BZ12: 4.40969738 | CA12: 0.8541305737 | CB12: 1.350718117 | CC12: 0.8541305737 | CD12: 0.139044512 | CE12: 2.383620206 | CF12: 6.972089102 | CG12: 0.278089024 | CH12: 3.178160274 | CI12: 2.999388759 | CJ12: 1.688397646 | CK12: 0.7548130651 | CL12: 2.880207749 | CM12: 3.35693179 | CN12: 0.1589080137 | CO12: 0.6356320548 | CP12: 0.1191810103 | CQ12: 0.3178160274 | CR12: 0.5959050514 | CS12: 2.919934752 | CT12: 0.4767240411 | CU12: 2.224712192 | CV12: 1.013038587 | CW12: 2.820617243 | CX12: 0.69522256 | CY12: 0.5760415497 | CZ12: 0.1589080137 | DA12: 0.4767240411 | DB12: 3.893246336 | DC12: 0.69522256 | DD12: 0.4965875428 | DE12: 0.8541305737 | DF12: 9.097483785 | DG12: 0.8541305737 | DH12: 0.3575430309 | DI12: 0.4965875428 | DJ12: 0.6554955566 | DK12: 0.1589080137 | DL12: 0.278089024 | DM12: 2.880207749 | DN12: 0.834267072 | DO12: 1.132219598 | DP12: 2.443210711 | DQ12: 0.6356320548 | DR12: 0.5363145463 | DS12: 3.674747817 | DT12: 2.383620206 | DU12: 1.688397646 | DV12: 3.039115762 | DW12: 1.847305659 | DX12: 0.4568605394 | DY12: 7.19058762 | DZ12: 6.157685531 | EA12: 0.1986350171 | EB12: 6.197412535 | EC12: 1.569216635 | ED12: 0.6157685531 | EE12: 11.28246897 | EF12: 0.2383620206 | EG12: 1.807578656 | EH12: 1.132219598 | EI12: 0.8144035703 | EJ12: 2.482937714 | EK12: 0.9137210788 | EL12: 15.1161248 | EM12: 0.7945400686 | EN12: 0.3575430309 | EO12: 3.337068288 | EP12: 0.4369970377 | EQ12: 0.3774065326 | ER12: 2.602118725 | ES12: 0.4568605394 | ET12: 0.556178048 | EU12: 1.688397646 | EV12: 1.191810103 | EW12: 0 | EX12: 9.018029778 | EY12: 5.621370985 | EZ12: 10.60710992 | FA12: 1.072629093 | FB12: 1.052765591 | FC12: 5.780278999 | FD12: 1.807578656 | FE12: 4.032290848 | FF12: 2.443210711 | FG12: 4.429560882 | FH12: 8.422124727 | FI12: 1.628807141 | FJ12: 29.51716355 | FK12: 7.130997115 | FL12: 3.317204786 | FM12: 0.2979525257 | FN12: 3.257614281 | FO12: 1.251400608 | FP12: 0.973311584 | FQ12: 6.594682569 | FR12: 14.61953726 | FS12: 4.072017851 | FT12: 0.7945400686 | FU12: 0.1191810103 | FV12: 0.1191810103 | FW12: 11.77905652 | FX12: 1.132219598 | FY12: 2.065804178 | FZ12: 0.1787715154 | GA12: 0.2582255223 | GB12: 1.569216635 | GC12: 0.2184985189 | GD12: 0.139044512 | GE12: 0.417133536 | GF12: 3.35693179 | GG12: 3.913109838 | GH12: 0.2383620206 | GI12: 0.9534480823 | GJ12: 0.4965875428 | GK12: 7.270041627 | GL12: 0.7150860617 | GM12: 9.455026816 | GN12: 8.640623246 | GO12: 0.417133536 | GP12: 0.1589080137 | GQ12: 0.278089024 | GR12: 2.20484869 | GS12: 0.6157685531 | GT12: 0.1986350171 | GU12: 1.291127611 | GV12: 0.6157685531 | GW12: 2.244575694 | GX12: 2.383620206 | GY12: 0.1787715154 | GZ12: 0.4767240411 | HA12: 4.211062363 | HB12: 5.661097988 | HC12: 8.898848768 | HD12: 2.66170923 | HE12: 1.549353134 | HF12: 10.50779241 | HG12: 5.383008964 | HH12: 1.350718117 | HI12: 0.278089024 | HJ12: 1.986350171 | HK12: 1.052765591 | HL12: 3.416522295 | HM12: 0.417133536 | HN12: 1.589080137 | HO12: 3.4761128 | HP12: 0.8938575771 | HQ12: 4.29051637 | HR12: 1.747988151 | HS12: 0.1191810103 | HT12: 4.191198862 | HU12: 2.621982226 | HV12: 1.628807141 | HW12: 0.3774065326 | HX12: 0.556178048 | HY12: 0.09931750857 | HZ12: 0.9335845806 | IA12: 0.3178160274 | IB12: 2.08566768 | IC12: 0.2979525257 | ID12: 0.3178160274 | IE12: 0.3774065326 | IF12: 2.383620206 | IG12: 0.5164510446 | IH12: 1.112356096 | II12: 0.3178160274 | IJ12: 0.834267072 | IK12: 0.03972700343 | IL12: 0.1589080137 | IM12: 4.05215435 | IN12: 4.389833879 | IO12: 2.20484869 | IP12: 0.7945400686 | IQ12: 4.191198862 | IR12: 0.3575430309 | IS12: 0.3178160274 | IT12: 8.441988228 | IU12: 0.8541305737 | IV12: 1.171946601 | IW12: 1.469899127 | IX12: 1.350718117 | IY12: 2.463074213 | IZ12: 0.2979525257 | JA12: 0.2184985189 | JB12: 0.3575430309 | JC12: 0.8739940754 | JD12: 0.09931750857 | JE12: 0.5760415497 | JF12: 0.7349495634 | JG12: 0.3972700343 | JH12: 0.3774065326 | JI12: 0.1986350171 | JJ12: 0.5760415497 | JK12: 0.5363145463 | JL12: 0.4568605394 | JM12: 0.2184985189 | JN12: 3.217887278 | JO12: 3.734338322 | JP12: 4.588468896 | JQ12: 4.588468896 | JR12: 0.69522256 | JS12: 1.569216635 | JT12: 1.489762629 | JU12: 2.165121687 | JV12: 0.8739940754 | JW12: 7.409086139 | JX12: 1.628807141 | JY12: 2.741163237 | JZ12: 3.654884315 | KA12: 3.178160274 | KB12: 21.90944239 | KC12: 0.278089024 | KD12: 0.1986350171 | KE12: 6.872771593 | KF12: 0.5959050514 | KG12: 6.674136576 | KH12: 7.786492672 | KI12: 0.4965875428 | KJ12: 1.469899127 | KK12: 1.211673605 | KL12: 1.450035625 | KM12: 2.820617243 | KN12: 1.032902089 | KO12: 0.2582255223 | KP12: 0.6356320548 | KQ12: 0.6157685531 | KR12: 1.350718117 | KS12: 1.728124649 | KT12: 0.4965875428 | KU12: 0.2383620206 | KV12: 2.78089024 | KW12: 5.124783442 | KX12: 1.032902089 | KY12: 0.3972700343 | KZ12: 2.125394683 | LA12: 0.2184985189 | LB12: 3.078842766 | LC12: 1.96648667 | LD12: 0.278089024 | LE12: 0.2383620206 | LF12: 0.556178048 | LG12: 3.774065326 | LH12: 7.846083177 | LI12: 2.602118725 | LJ12: 3.178160274 | LK12: 5.959050514 | LL12: 1.112356096 | LM12: 3.436385797 | LN12: 1.370581618 | LO12: 2.065804178 | LP12: 0.3376795291 | LQ12: 0.3376795291 | LR12: 0.3178160274 | LS12: 0.5959050514 | LT12: 0.556178048 | LU12: 0.139044512 | LV12: 0.2582255223 | LW12: 0.6356320548 | LX12: 0.3376795291 | LY12: 0.2979525257 | LZ12: 0.2979525257 | MA12: 4.886421422 | MB12: 41.6736266 | MC12: 0.834267072 | MD12: 3.932973339 | ME12: 1.648670642 | MF12: 0.2184985189 | MG12: 1.569216635 | MH12: 5.085056439 | MI12: 1.450035625 | MJ12: 0.3972700343 | MK12: 4.886421422 | ML12: 1.032902089 | MM12: 2.66170923 | MN12: 0.7746765668 | MO12: 0.278089024 | MP12: 0.834267072 | MQ12: 0.69522256 | MR12: 0.5363145463 | MS12: 1.688397646 | MT12: 20.00254623 | MU12: 2.244575694 | MV12: 10.80574493 | MW12: 15.77162036 | MX12: 2.105531182 | MY12: 7.865946679 | MZ12: 4.40969738 | NA12: 22.86289047 | NB12: 6.396047552 | NC12: 10.01120486 | ND12: 2.443210711 | NE12: 25.64378071 | NF12: 7.826219675 | NG12: 10.11052237 | NH12: 38.09819629 | NI12: 11.24274197 | NJ12: 15.1161248 | NK12: 11.52083099 | NL12: 17.06274797 | NM12: 50.51288486 | NN12: 10.4283384 | NO12: 30.35143062 | NP12: 178.8311059 | NQ12: 15.51339484 | NR12: 30.19252261 | NS12: 8.898848768 | NT12: 3.416522295 | NU12: 18.85046313 | NV12: 13.60649867 | NW12: 30.23224961 | NX12: 20.20118124 | NY12: 29.33839203 | NZ12: 3.118569769 | OA12: 11.30233248 | OB12: 8.898848768 | OC12: 3.436385797 | OD12: 8.640623246 | OE12: 2.66170923 | OF12: 8.124172201 | OG12: 4.40969738 | OH12: 8.779667758 | OI12: 6.396047552 | OJ12: 14.69899127 | OK12: 2.443210711 | OL12: 8.640623246 | OM12: 7.786492672 | ON12: 13.54690817 | OO12: 19.08882515 | OP12: 20.00254623 | OQ12: 2.105531182 | OR12: 5.10491994 | OS12: 9.216664795 | OT12: 6.972089102 | OU12: 2.522664718 | OV12: 8.898848768 | OW12: 38.09819629 | OX12: 15.1161248 | OY12: 5.740551995 | OZ12: 12.6927776 | PA12: 17.06274797 | PB12: 6.13782203 | PC12: 10.4680654 | PD12: 6.594682569 | PE12: 3.734338322 | PF12: 178.8311059 | PG12: 30.35143062 | PH12: 5.899460009 | PI12: 8.898848768 | PJ12: 2.66170923 | PK12: 3.416522295 | PL12: 2.463074213 | PM12: 16.30793491 | PN12: 61.57685531 | PO12: 29.33839203 | PP12: 10.80574493 | PQ12: 15.37435033 | PR12: 15.89080137 | PS12: 3.555566807 | PT12: 6.872771593 | PU12: 6.435774555 | PV12: 11.30233248 | PW12: 22.42589344 | PX12: 8.640623246 | PY12: 45.26892041 | PZ12: 3.118569769
B13: 13 | C13: TV/satellite subscriptions | D13: 4646.4 | E13: 0.167600909 | F13: 0 | G13: 0 | H13: 0.167600909 | I13: 0 | J13: 0 | K13: 0.502802727 | L13: 0.335201818 | M13: 0 | N13: 16.08968726 | O13: 0.335201818 | P13: 0 | Q13: 0 | R13: 14.9164809 | S13: 0 | T13: 0 | U13: 2.849215453 | V13: 0.167600909 | W13: 22.79372362 | X13: 0 | Y13: 0 | Z13: 0 | AA13: 0 | AB13: 0.167600909 | AC13: 0 | AD13: 0 | AE13: 1.005605454 | AF13: 2.011210908 | AG13: 0.670403636 | AH13: 0 | AI13: 44.41424088 | AJ13: 0.670403636 | AK13: 0.167600909 | AL13: 1.340807272 | AM13: 0.335201818 | AN13: 1.508408181 | AO13: 0 | AP13: 0 | AQ13: 0 | AR13: 34.86098907 | AS13: 0 | AT13: 0 | AU13: 0 | AV13: 0 | AW13: 1.005605454 | AX13: 300.0056271 | AY13: 0 | AZ13: 0 | BA13: 0 | BB13: 0 | BC13: 2.178811817 | BD13: 0 | BE13: 5.698430906 | BF13: 0 | BG13: 0.167600909 | BH13: 0.335201818 | BI13: 0 | BJ13: 0 | BK13: 0.335201818 | BL13: 30.83856725 | BM13: 0 | BN13: 0 | BO13: 0.167600909 | BP13: 1.843609999 | BQ13: 0 | BR13: 0 | BS13: 0 | BT13: 0.335201818 | BU13: 0 | BV13: 0.167600909 | BW13: 0.502802727 | BX13: 0.167600909 | BY13: 0.670403636 | BZ13: 0.167600909 | CA13: 2.849215453 | CB13: 0 | CC13: 0 | CD13: 0.167600909 | CE13: 0 | CF13: 0 | CG13: 0 | CH13: 0.335201818 | CI13: 0.335201818 | CJ13: 0.167600909 | CK13: 0 | CL13: 0 | CM13: 72.57119359 | CN13: 0.335201818 | CO13: 0.167600909 | CP13: 0 | CQ13: 0.167600909 | CR13: 0.335201818 | CS13: 0 | CT13: 0 | CU13: 0 | CV13: 0 | CW13: 1.508408181 | CX13: 0 | CY13: 0.167600909 | CZ13: 0.167600909 | DA13: 1.173206363 | DB13: 1.340807272 | DC13: 0 | DD13: 0.502802727 | DE13: 0 | DF13: 10.22365545 | DG13: 0 | DH13: 0 | DI13: 0 | DJ13: 0 | DK13: 0 | DL13: 0.167600909 | DM13: 0 | DN13: 0 | DO13: 0 | DP13: 0.838004545 | DQ13: 0.335201818 | DR13: 0 | DS13: 0.335201818 | DT13: 1.508408181 | DU13: 0.167600909 | DV13: 43.07343361 | DW13: 0 | DX13: 0 | DY13: 596.9944378 | DZ13: 17.09529272 | EA13: 0 | EB13: 4.525224543 | EC13: 0 | ED13: 0.335201818 | EE13: 3.016816362 | EF13: 0.167600909 | EG13: 0 | EH13: 0.167600909 | EI13: 0 | EJ13: 0.167600909 | EK13: 0.167600909 | EL13: 18.43609999 | EM13: 8.044843632 | EN13: 0 | EO13: 46.25785088 | EP13: 0 | EQ13: 0 | ER13: 2158.196905 | ES13: 0.335201818 | ET13: 0.167600909 | EU13: 0 | EV13: 0 | EW13: 0 | EX13: 17.26289363 | EY13: 9.050449086 | EZ13: 25.81053998 | FA13: 0 | FB13: 0.335201818 | FC13: 0 | FD13: 1.508408181 | FE13: 7.542040905 | FF13: 0 | FG13: 8.715247268 | FH13: 0.502802727 | FI13: 0 | FJ13: 8.882848177 | FK13: 0 | FL13: 0 | FM13: 0.335201818 | FN13: 2.011210908 | FO13: 0.335201818 | FP13: 0 | FQ13: 0 | FR13: 0.167600909 | FS13: 1.173206363 | FT13: 5.530829997 | FU13: 0.335201818 | FV13: 0 | FW13: 13.40807272 | FX13: 0 | FY13: 0.167600909 | FZ13: 0 | GA13: 0 | GB13: 22.2909209 | GC13: 0 | GD13: 0.670403636 | GE13: 0.335201818 | GF13: 0 | GG13: 1.843609999 | GH13: 0.167600909 | GI13: 0.335201818 | GJ13: 0 | GK13: 0.167600909 | GL13: 0 | GM13: 2.681614544 | GN13: 17.59809544 | GO13: 0 | GP13: 0.167600909 | GQ13: 0 | GR13: 0 | GS13: 0.335201818 | GT13: 0 | GU13: 0 | GV13: 0 | GW13: 0.167600909 | GX13: 0 | GY13: 0.167600909 | GZ13: 0 | HA13: 2.849215453 | HB13: 0 | HC13: 0.167600909 | HD13: 0 | HE13: 11.2292609 | HF13: 0 | HG13: 0 | HH13: 0 | HI13: 0 | HJ13: 0 | HK13: 0.167600909 | HL13: 0.670403636 | HM13: 0.167600909 | HN13: 0.670403636 | HO13: 0 | HP13: 0.167600909 | HQ13: 0.167600909 | HR13: 0 | HS13: 0 | HT13: 0.335201818 | HU13: 0.838004545 | HV13: 0 | HW13: 0.167600909 | HX13: 0.167600909 | HY13: 0 | HZ13: 7.709641814 | IA13: 1.67600909 | IB13: 0 | IC13: 0 | ID13: 0 | IE13: 1.005605454 | IF13: 0.335201818 | IG13: 0 | IH13: 0.167600909 | II13: 0 | IJ13: 0 | IK13: 0 | IL13: 0 | IM13: 416.8234607 | IN13: 0.335201818 | IO13: 0.335201818 | IP13: 0 | IQ13: 0 | IR13: 0 | IS13: 0 | IT13: 36.20179634 | IU13: 0 | IV13: 0.167600909 | IW13: 0.167600909 | IX13: 0.335201818 | IY13: 0 | IZ13: 0.167600909 | JA13: 0.335201818 | JB13: 0 | JC13: 0.167600909 | JD13: 0.167600909 | JE13: 0 | JF13: 0 | JG13: 0 | JH13: 5.363229088 | JI13: 0 | JJ13: 0.335201818 | JK13: 0 | JL13: 0 | JM13: 0 | JN13: 0 | JO13: 0.167600909 | JP13: 0.670403636 | JQ13: 5.866031815 | JR13: 0.335201818 | JS13: 2.514013635 | JT13: 0.335201818 | JU13: 0 | JV13: 8.715247268 | JW13: 9.050449086 | JX13: 0 | JY13: 1.508408181 | JZ13: 1.005605454 | KA13: 0 | KB13: 0 | KC13: 0.502802727 | KD13: 0.335201818 | KE13: 2.011210908 | KF13: 0.670403636 | KG13: 0 | KH13: 3.184417271 | KI13: 0.167600909 | KJ13: 0.670403636 | KK13: 0 | KL13: 0 | KM13: 0 | KN13: 0 | KO13: 0 | KP13: 0 | KQ13: 0 | KR13: 0 | KS13: 0 | KT13: 0.167600909 | KU13: 0.167600909 | KV13: 0 | KW13: 2.178811817 | KX13: 2.681614544 | KY13: 0.335201818 | KZ13: 0 | LA13: 0 | LB13: 55.81110269 | LC13: 4.860426361 | LD13: 19.94450817 | LE13: 1.005605454 | LF13: 0 | LG13: 0.502802727 | LH13: 0.167600909 | LI13: 2.514013635 | LJ13: 23.96692999 | LK13: 0.167600909 | LL13: 0.167600909 | LM13: 0.838004545 | LN13: 0.670403636 | LO13: 0 | LP13: 0.335201818 | LQ13: 0 | LR13: 0 | LS13: 0 | LT13: 2.178811817 | LU13: 0 | LV13: 0 | LW13: 0 | LX13: 0 | LY13: 0 | LZ13: 0 | MA13: 1.173206363 | MB13: 507.6631533 | MC13: 0 | MD13: 0.167600909 | ME13: 1.005605454 | MF13: 0.838004545 | MG13: 0.335201818 | MH13: 0.167600909 | MI13: 0 | MJ13: 0.335201818 | MK13: 0 | ML13: 0 | MM13: 1.005605454 | MN13: 0 | MO13: 0.670403636 | MP13: 3.35201818 | MQ13: 0 | MR13: 0.167600909 | MS13: 0 | MT13: 0.502802727 | MU13: 34.86098907 | MV13: 0.502802727 | MW13: 3.184417271 | MX13: 0 | MY13: 1.005605454 | MZ13: 0.167600909 | NA13: 0 | NB13: 0.335201818 | NC13: 18.93890272 | ND13: 0.838004545 | NE13: 23.79932908 | NF13: 3.687219998 | NG13: 0 | NH13: 436.432767 | NI13: 0.335201818 | NJ13: 18.43609999 | NK13: 0 | NL13: 0.502802727 | NM13: 20.11210908 | NN13: 0 | NO13: 0.335201818 | NP13: 3959.236273 | NQ13: 19.60930635 | NR13: 0.167600909 | NS13: 0.167600909 | NT13: 0.670403636 | NU13: 37.2074018 | NV13: 2.346412726 | NW13: 41.0622227 | NX13: 8.882848177 | NY13: 9.050449086 | NZ13: 1.005605454 | OA13: 0 | OB13: 4.357623634 | OC13: 0.335201818 | OD13: 1.67600909 | OE13: 1.005605454 | OF13: 2.849215453 | OG13: 0.167600909 | OH13: 0.335201818 | OI13: 0.335201818 | OJ13: 13.57567363 | OK13: 0.838004545 | OL13: 17.59809544 | OM13: 3.184417271 | ON13: 2.849215453 | OO13: 22.79372362 | OP13: 0.502802727 | OQ13: 0 | OR13: 0 | OS13: 1.340807272 | OT13: 0 | OU13: 0.167600909 | OV13: 4.357623634 | OW13: 436.432767 | OX13: 18.43609999 | OY13: 0 | OZ13: 25.97814089 | PA13: 0.502802727 | PB13: 36.70459907 | PC13: 0 | PD13: 0 | PE13: 1.67600909 | PF13: 3959.236273 | PG13: 0.335201818 | PH13: 2.849215453 | PI13: 0.167600909 | PJ13: 0 | PK13: 0.670403636 | PL13: 0 | PM13: 37.2074018 | PN13: 56.14630451 | PO13: 9.050449086 | PP13: 0.502802727 | PQ13: 17.43049454 | PR13: 0 | PS13: 1.173206363 | PT13: 2.011210908 | PU13: 6.201233633 | PV13: 0 | PW13: 0.167600909 | PX13: 1.67600909 | PY13: 18.93890272 | PZ13: 1.005605454
B14: 21 | C14: Health cost savings | D14: 3232.908563 | E14: 3.665443732 | F14: 5.554935918 | G14: 6.397205241 | H14: 8.105699029 | I14: 6.337575852 | J14: 6.684122485 | K14: 10.94160703 | L14: 4.676514274 | M14: 7.297278213 | N14: 23.97897904 | O14: 12.80524388 | P14: 3.382755736 | Q14: 10.00554401 | R14: 9.804286334 | S14: 6.394962257 | T14: 13.75687077 | U14: 9.33449074 | V14: 13.41267336 | W14: 55.67568758 | X14: 6.308553511 | Y14: 7.501609226 | Z14: 7.595967987 | AA14: 3.628230806 | AB14: 17.30336609 | AC14: 3.007033875 | AD14: 13.79828629 | AE14: 7.603346663 | AF14: 26.74036493 | AG14: 8.014722443 | AH14: 6.599871699 | AI14: 18.27597103 | AJ14: 4.79721253 | AK14: 20.23916913 | AL14: 28.52735483 | AM14: 6.994795263 | AN14: 19.99880088 | AO14: 6.041029198 | AP14: 5.858210943 | AQ14: 6.610686065 | AR14: 32.70440349 | AS14: 4.183249522 | AT14: 11.47677747 | AU14: 12.57971249 | AV14: 10.53281093 | AW14: 41.93144574 | AX14: 18.23356556 | AY14: 5.398982797 | AZ14: 9.605384617 | BA14: 6.968691412 | BB14: 4.807129907 | BC14: 13.61443613 | BD14: 11.36690015 | BE14: 11.46623713 | BF14: 7.531683854 | BG14: 8.425263296 | BH14: 22.74837632 | BI14: 20.6733729 | BJ14: 5.904309711 | BK14: 6.535665789 | BL14: 6.109150474 | BM14: 7.387144669 | BN14: 2.726305033 | BO14: 0.5756330457 | BP14: 10.54868873 | BQ14: 3.931228756 | BR14: 3.663832824 | BS14: 31.1002681 | BT14: 4.568709405 | BU14: 30.56083309 | BV14: 20.5205763 | BW14: 2.921798418 | BX14: 7.575457408 | BY14: 21.1722611 | BZ14: 28.5570027 | CA14: 8.00280759 | CB14: 6.898630077 | CC14: 5.912103377 | CD14: 4.055173401 | CE14: 15.76711527 | CF14: 59.9553421 | CG14: 3.755282648 | CH14: 44.62564114 | CI14: 20.58995894 | CJ14: 22.60785371 | CK14: 6.233302075 | CL14: 17.96666516 | CM14: 19.3995474 | CN14: 4.715916398 | CO14: 7.208733969 | CP14: 5.005034695 | CQ14: 8.09016777 | CR14: 9.205287237 | CS14: 8.593096835 | CT14: 4.496110069 | CU14: 17.5019599 | CV14: 7.549334894 | CW14: 30.01255366 | CX14: 5.360420617 | CY14: 7.58269028 | CZ14: 3.076921301 | DA14: 7.549127561 | DB14: 23.36548938 | DC14: 6.63505249 | DD14: 5.147437803 | DE14: 7.35521469 | DF14: 81.82271168 | DG14: 8.019506063 | DH14: 5.659232512 | DI14: 5.897331577 | DJ14: 2.998904649 | DK14: 4.411449823 | DL14: 4.105990354 | DM14: 13.10069628 | DN14: 6.61068713 | DO14: 8.51351733 | DP14: 38.19983026 | DQ14: 4.226856253 | DR14: 5.727328304 | DS14: 5.734767927 | DT14: 16.08122428 | DU14: 7.769900699 | DV14: 21.18669577 | DW14: 7.0908761 | DX14: 4.738800109 | DY14: 13.67916359 | DZ14: 79.67726982 | EA14: 5.607546515 | EB14: 20.10877618 | EC14: 5.216707269 | ED14: 7.788515925 | EE14: 18.1557694 | EF14: 4.688079479 | EG14: 6.669623427 | EH14: 4.553503299 | EI14: 6.237366694 | EJ14: 12.80653239 | EK14: 9.523075613 | EL14: 70.79172573 | EM14: 6.115090493 | EN14: 5.676708368 | EO14: 17.27669924 | EP14: 5.811840176 | EQ14: 8.951602837 | ER14: 16.71522577 | ES14: 10.61431288 | ET14: 4.469610397 | EU14: 7.21552524 | EV14: 6.69231401 | EW14: 0.1870295644 | EX14: 17.36492023 | EY14: 11.52983664 | EZ14: 83.93761137 | FA14: 4.809211716 | FB14: 8.534638591 | FC14: 14.10230064 | FD14: 11.56150107 | FE14: 21.58090503 | FF14: 7.236798627 | FG14: 25.21947513 | FH14: 70.72508234 | FI14: 8.864503327 | FJ14: 50.61766386 | FK14: 17.55937534 | FL14: 42.83563551 | FM14: 6.321131361 | FN14: 17.31554538 | FO14: 6.504881906 | FP14: 5.365724911 | FQ14: 39.5101919 | FR14: 30.80784421 | FS14: 9.300267961 | FT14: 8.850241513 | FU14: 3.700054268 | FV14: 4.26856294 | FW14: 36.45816838 | FX14: 6.360135187 | FY14: 13.92164184 | FZ14: 2.775109748 | GA14: 6.072608526 | GB14: 14.37297258 | GC14: 4.445878662 | GD14: 5.737726673 | GE14: 8.92812659 | GF14: 7.834570999 | GG14: 17.05243042 | GH14: 5.934895189 | GI14: 10.88536828 | GJ14: 6.592818129 | GK14: 18.10113021 | GL14: 7.261911789 | GM14: 14.69017036 | GN14: 48.02740205 | GO14: 5.893767705 | GP14: 3.816808571 | GQ14: 5.916914759 | GR14: 9.02858673 | GS14: 8.505991797 | GT14: 6.208650679 | GU14: 8.863123697 | GV14: 5.118712988 | GW14: 12.65578501 | GX14: 13.46662029 | GY14: 3.430053427 | GZ14: 4.988967097 | HA14: 32.72263754 | HB14: 13.44512008 | HC14: 39.58548604 | HD14: 16.49441148 | HE14: 8.019920278 | HF14: 17.9016313 | HG14: 46.89204264 | HH14: 6.697191191 | HI14: 3.462157485 | HJ14: 11.53244618 | HK14: 10.63846326 | HL14: 41.27295915 | HM14: 4.271174311 | HN14: 9.70028275 | HO14: 17.20874681 | HP14: 10.14175689 | HQ14: 12.8040787 | HR14: 8.840421499 | HS14: 2.49627999 | HT14: 10.34869641 | HU14: 17.92322031 | HV14: 7.353592402 | HW14: 5.443857543 | HX14: 10.06005931 | HY14: 3.781108917 | HZ14: 16.27577234 | IA14: 3.60458889 | IB14: 10.73518827 | IC14: 4.792312048 | ID14: 4.328619658 | IE14: 4.372406195 | IF14: 14.87708108 | IG14: 5.782527351 | IH14: 6.001607937 | II14: 7.985178024 | IJ14: 5.968271091 | IK14: 2.514560826 | IL14: 2.978331393 | IM14: 14.20271538 | IN14: 13.03793324 | IO14: 5.440387153 | IP14: 5.559326304 | IQ14: 15.67312773 | IR14: 5.250215655 | IS14: 7.683355963 | IT14: 38.08876972 | IU14: 5.734389488 | IV14: 19.46452732 | IW14: 6.989563271 | IX14: 13.15464579 | IY14: 28.89532314 | IZ14: 4.798302335 | JA14: 10.17107395 | JB14: 5.554360604 | JC14: 17.37990859 | JD14: 5.051564656 | JE14: 3.691876507 | JF14: 7.192681495 | JG14: 5.642469573 | JH14: 7.024695301 | JI14: 5.329999997 | JJ14: 7.887400043 | JK14: 7.258273032 | JL14: 9.056478375 | JM14: 6.29354162 | JN14: 7.827631155 | JO14: 14.67653613 | JP14: 9.759835529 | JQ14: 20.4960325 | JR14: 5.719533708 | JS14: 10.68971535 | JT14: 5.948406694 | JU14: 9.312051008 | JV14: 7.406510582 | JW14: 49.94239947 | JX14: 5.522080776 | JY14: 4.493205192 | JZ14: 16.78351681 | KA14: 12.08785617 | KB14: 12.65166433 | KC14: 7.552764124 | KD14: 7.611597975 | KE14: 39.56472644 | KF14: 7.266954667 | KG14: 15.87728884 | KH14: 74.7725643 | KI14: 6.242508491 | KJ14: 11.73784428 | KK14: 7.380351398 | KL14: 12.06492823 | KM14: 12.15178533 | KN14: 4.005155105 | KO14: 5.636040629 | KP14: 6.639258235 | KQ14: 7.206084255 | KR14: 9.163673328 | KS14: 6.167614939 | KT14: 7.800132311 | KU14: 5.562871868 | KV14: 5.56360805 | KW14: 5.360634064 | KX14: 8.26687645 | KY14: 7.640904736 | KZ14: 6.499756729 | LA14: 3.767997492 | LB14: 18.13495024 | LC14: 15.61969529 | LD14: 6.922519367 | LE14: 5.671435909 | LF14: 7.709194642 | LG14: 16.73654537 | LH14: 14.48323595 | LI14: 16.62488906 | LJ14: 24.25408449 | LK14: 13.75458063 | LL14: 9.623462164 | LM14: 33.08599826 | LN14: 6.03956588 | LO14: 5.720694246 | LP14: 8.070008824 | LQ14: 9.40509219 | LR14: 3.786037948 | LS14: 6.521217186 | LT14: 9.985602818 | LU14: 3.032108334 | LV14: 4.838864364 | LW14: 6.757654799 | LX14: 5.451127595 | LY14: 6.612637909 | LZ14: 1.567651697 | MA14: 49.96103994 | MB14: 18.04166482 | MC14: 3.724561062 | MD14: 17.95952171 | ME14: 28.71824877 | MF14: 8.734818819 | MG14: 10.37922061 | MH14: 19.37467452 | MI14: 6.641444153 | MJ14: 11.097047 | MK14: 13.82981114 | ML14: 6.20547446 | MM14: 34.36355408 | MN14: 6.199044557 | MO14: 6.496646497 | MP14: 10.85534365 | MQ14: 6.477331855 | MR14: 5.907983445 | MS14: 13.5501233 | MT14: 59.31764549 | MU14: 32.70440349 | MV14: 57.17632985 | MW14: 124.4720345 | MX14: 31.28729766 | MY14: 53.60657456 | MZ14: 28.5570027 | NA14: 124.749016 | NB14: 46.54789689 | NC14: 103.9652555 | ND14: 38.19983026 | NE14: 109.6815583 | NF14: 85.80566695 | NG14: 57.40190232 | NH14: 164.2231809 | NI14: 97.22946781 | NJ14: 70.79172573 | NK14: 49.49597097 | NL14: 85.82265955 | NM14: 170.5710888 | NN14: 57.88045002 | NO14: 89.4953722 | NP14: 557.2631651 | NQ14: 87.59212849 | NR14: 115.4286113 | NS14: 39.58548604 | NT14: 41.27295915 | NU14: 108.2054711 | NV14: 93.38956176 | NW14: 227.7212305 | NX14: 99.97183359 | NY14: 62.5940638 | NZ14: 40.78317699 | OA14: 40.84427308 | OB14: 56.40347677 | OC14: 38.15127626 | OD14: 72.3199192 | OE14: 34.36355408 | OF14: 63.77472075 | OG14: 28.5570027 | OH14: 68.33414467 | OI14: 46.54789689 | OJ14: 99.84942365 | OK14: 38.19983026 | OL14: 48.02740205 | OM14: 74.7725643 | ON14: 100.2127627 | OO14: 55.67568758 | OP14: 59.31764549 | OQ14: 31.28729766 | OR14: 30.56083309 | OS14: 66.76122035 | OT14: 59.9553421 | OU14: 28.62820065 | OV14: 56.40347677 | OW14: 164.2231809 | OX14: 70.79172573 | OY14: 35.39367033 | OZ14: 97.85925321 | PA14: 85.82265955 | PB14: 49.7568339 | PC14: 60.39501085 | PD14: 39.5101919 | PE14: 51.63172849 | PF14: 557.2631651 | PG14: 89.4953722 | PH14: 46.27276085 | PI14: 39.58548604 | PJ14: 16.49441148 | PK14: 41.27295915 | PL14: 28.89532314 | PM14: 86.36105361 | PN14: 214.6162453 | PO14: 62.5940638 | PP14: 57.17632985 | PQ14: 113.8501987 | PR14: 64.79367394 | PS14: 43.88662969 | PT14: 39.56472644 | PU14: 32.24919483 | PV14: 40.84427308 | PW14: 68.37336677 | PX14: 72.3199192 | PY14: 128.2551917 | PZ14: 40.78317699
B15: 22 | C15: Other health benefits (QALY's etc) | D15: 17827.51142 | E15: 20.30576904 | F15: 30.79698601 | G15: 35.35933559 | H15: 45.28478398 | I15: 35.02787401 | J15: 36.73652679 | K15: 59.76346839 | L15: 25.96252038 | M15: 40.66660357 | N15: 132.3077651 | O15: 71.34765035 | P15: 18.55802037 | Q15: 55.01900946 | R15: 54.44823829 | S15: 35.25875976 | T15: 75.43122514 | U15: 51.63277333 | V15: 74.41565971 | W15: 306.6099461 | X15: 34.72603558 | Y15: 41.07857246 | Z15: 41.73292432 | AA15: 20.10095227 | AB15: 95.02911187 | AC15: 16.63501897 | AD15: 75.95752784 | AE15: 41.49750388 | AF15: 146.5821887 | AG15: 44.2423151 | AH15: 36.90572629 | AI15: 100.265223 | AJ15: 26.39533129 | AK15: 112.3692728 | AL15: 158.0487888 | AM15: 38.58097404 | AN15: 109.1777913 | AO15: 33.41173778 | AP15: 32.27624039 | AQ15: 36.47395866 | AR15: 179.9913377 | AS15: 22.99239442 | AT15: 63.40607191 | AU15: 69.5539102 | AV15: 58.35619493 | AW15: 231.7702506 | AX15: 100.9995632 | AY15: 29.9052741 | AZ15: 53.33405422 | BA15: 38.0206289 | BB15: 26.49057181 | BC15: 75.06009824 | BD15: 62.81390483 | BE15: 63.13127966 | BF15: 41.84163024 | BG15: 46.1784215 | BH15: 125.851535 | BI15: 113.8728561 | BJ15: 32.22237114 | BK15: 35.68694093 | BL15: 33.82819761 | BM15: 40.44095292 | BN15: 15.30802422 | BO15: 3.165005029 | BP15: 58.41083132 | BQ15: 21.50933516 | BR15: 20.14751998 | BS15: 169.4885147 | BT15: 25.14909934 | BU15: 168.1303691 | BV15: 113.9414669 | BW15: 16.15254659 | BX15: 41.814878 | BY15: 115.932115 | BZ15: 156.6056978 | CA15: 44.38460906 | CB15: 37.88427121 | CC15: 32.53038568 | CD15: 22.32018026 | CE15: 88.22876925 | CF15: 330.509116 | CG15: 20.53621727 | CH15: 246.4335512 | CI15: 112.5349907 | CJ15: 125.1569312 | CK15: 34.12262454 | CL15: 98.44060428 | CM15: 107.5261361 | CN15: 25.71116704 | CO15: 39.87495763 | CP15: 27.78672651 | CQ15: 44.27395585 | CR15: 50.17011268 | CS15: 47.3213171 | CT15: 24.86148578 | CU15: 96.68567926 | CV15: 41.62276156 | CW15: 164.7384842 | CX15: 29.72724768 | CY15: 42.05216944 | CZ15: 16.92643777 | DA15: 41.07475231 | DB15: 128.7113156 | DC15: 36.88751415 | DD15: 28.37414683 | DE15: 40.23707565 | DF15: 451.9492784 | DG15: 44.62972709 | DH15: 30.85340756 | DI15: 32.78288922 | DJ15: 16.51450133 | DK15: 24.3655201 | DL15: 22.77931435 | DM15: 71.83513144 | DN15: 36.6519045 | DO15: 46.87132973 | DP15: 210.4046508 | DQ15: 23.25033524 | DR15: 31.65050454 | DS15: 31.81506508 | DT15: 89.11009056 | DU15: 42.64854231 | DV15: 117.673821 | DW15: 38.45627534 | DX15: 26.1541105 | DY15: 75.30291828 | DZ15: 439.7010979 | EA15: 30.6654199 | EB15: 111.4217334 | EC15: 28.61525748 | ED15: 43.60753784 | EE15: 99.91827164 | EF15: 26.02583752 | EG15: 36.36182524 | EH15: 25.00597458 | EI15: 34.61632052 | EJ15: 70.22677368 | EK15: 52.66805236 | EL15: 389.5753516 | EM15: 33.6461235 | EN15: 31.02234566 | EO15: 95.99891033 | EP15: 32.04285292 | EQ15: 49.07294519 | ER15: 91.80258589 | ES15: 59.06093001 | ET15: 24.58101727 | EU15: 39.79354527 | EV15: 37.16254198 | EW15: 1.02167745 | EX15: 95.98688607 | EY15: 63.90792829 | EZ15: 462.5685522 | FA15: 26.57922337 | FB15: 47.64647904 | FC15: 78.34335379 | FD15: 63.75793025 | FE15: 119.5828436 | FF15: 39.73446782 | FG15: 139.9051319 | FH15: 388.8289402 | FI15: 48.64803898 | FJ15: 278.3446852 | FK15: 97.07897603 | FL15: 235.8709676 | FM15: 34.43942987 | FN15: 95.69675538 | FO15: 35.79613018 | FP15: 29.48750141 | FQ15: 218.0581022 | FR15: 170.405542 | FS15: 51.44946611 | FT15: 49.09901716 | FU15: 20.54750069 | FV15: 23.31775672 | FW15: 202.4020005 | FX15: 35.13736125 | FY15: 76.49734691 | FZ15: 15.16631371 | GA15: 33.38538094 | GB15: 78.98080477 | GC15: 24.45239104 | GD15: 31.74156875 | GE15: 49.29700994 | GF15: 43.30941214 | GG15: 94.05467576 | GH15: 32.59484351 | GI15: 60.2861184 | GJ15: 36.10134927 | GK15: 100.8066611 | GL15: 40.13715778 | GM15: 81.30240386 | GN15: 266.9779027 | GO15: 32.68692424 | GP15: 20.80081129 | GQ15: 32.46359626 | GR15: 49.84097094 | GS15: 47.08400664 | GT15: 34.38505762 | GU15: 48.62738195 | GV15: 28.47675681 | GW15: 69.98419521 | GX15: 74.11939129 | GY15: 18.78219352 | GZ15: 27.68964499 | HA15: 180.7649394 | HB15: 74.49490515 | HC15: 218.6992799 | HD15: 90.77387952 | HE15: 44.53260583 | HF15: 99.1977974 | HG15: 258.1389733 | HH15: 36.8284233 | HI15: 18.99003924 | HJ15: 63.74711558 | HK15: 58.89767801 | HL15: 227.1906027 | HM15: 23.50010291 | HN15: 53.68813459 | HO15: 95.21487307 | HP15: 55.65567903 | HQ15: 70.70526767 | HR15: 48.55818063 | HS15: 13.7708318 | HT15: 57.08482644 | HU15: 98.65464461 | HV15: 40.5548894 | HW15: 29.88746785 | HX15: 55.51678241 | HY15: 20.89489156 | HZ15: 89.45296149 | IA15: 19.84474016 | IB15: 59.62575732 | IC15: 26.69564127 | ID15: 23.56198397 | IE15: 24.11953843 | IF15: 82.98745374 | IG15: 31.83283255 | IH15: 33.19423582 | II15: 43.48776589 | IJ15: 32.79700655 | IK15: 13.77675645 | IL15: 16.36982223 | IM15: 78.58925208 | IN15: 72.05701151 | IO15: 29.86388318 | IP15: 30.84269433 | IQ15: 86.56533221 | IR15: 28.77229888 | IS15: 42.01664798 | IT15: 210.7100783 | IU15: 31.38844818 | IV15: 106.4984112 | IW15: 38.42121568 | IX15: 72.01991056 | IY15: 159.7564152 | IZ15: 26.45505203 | JA15: 55.85906942 | JB15: 30.33845294 | JC15: 95.24092742 | JD15: 27.65188617 | JE15: 20.07000862 | JF15: 40.08767762 | JG15: 30.79428958 | JH15: 39.02029563 | JI15: 29.32093995 | JJ15: 43.20572408 | JK15: 39.74300639 | JL15: 50.11215387 | JM15: 34.59809827 | JN15: 43.15064454 | JO15: 81.05087733 | JP15: 53.63531409 | JQ15: 113.707141 | JR15: 31.63499109 | JS15: 59.16792639 | JT15: 32.79730852 | JU15: 51.46991161 | JV15: 40.79088846 | JW15: 274.9017238 | JX15: 30.00669466 | JY15: 24.53736059 | JZ15: 91.75842095 | KA15: 66.03914705 | KB15: 70.2921275 | KC15: 41.70065714 | KD15: 41.57094731 | KE15: 218.704477 | KF15: 40.08246768 | KG15: 87.80350766 | KH15: 410.9889783 | KI15: 34.62343474 | KJ15: 64.41695651 | KK15: 40.5758814 | KL15: 66.51923605 | KM15: 66.94404584 | KN15: 22.04471882 | KO15: 30.71421916 | KP15: 36.70836151 | KQ15: 39.76859176 | KR15: 50.38483194 | KS15: 34.33144358 | KT15: 43.01057254 | KU15: 30.60612413 | KV15: 30.97277326 | KW15: 29.43304021 | KX15: 45.43766354 | KY15: 41.9339023 | KZ15: 36.39896992 | LA15: 20.77197256 | LB15: 100.3887581 | LC15: 85.66538436 | LD15: 38.20778616 | LE15: 31.18258261 | LF15: 42.39839622 | LG15: 92.15679826 | LH15: 80.01337436 | LI15: 91.85415261 | LJ15: 134.6822125 | LK15: 75.20315303 | LL15: 53.16597204 | LM15: 182.3100786 | LN15: 33.03089691 | LO15: 31.8125651 | LP15: 44.31604637 | LQ15: 51.44629364 | LR15: 20.97502544 | LS15: 35.84503526 | LT15: 55.05445199 | LU15: 16.59710066 | LV15: 26.95747249 | LW15: 37.31422081 | LX15: 30.07152086 | LY15: 36.5103829 | LZ15: 8.707824561 | MA15: 275.7195313 | MB15: 99.72445548 | MC15: 20.53306487 | MD15: 99.14814325 | ME15: 156.3510737 | MF15: 48.08713596 | MG15: 57.06071539 | MH15: 106.6663217 | MI15: 36.29698375 | MJ15: 61.15639138 | MK15: 76.57704986 | ML15: 34.30429648 | MM15: 189.6996843 | MN15: 34.25720425 | MO15: 36.03922217 | MP15: 59.94461967 | MQ15: 35.81483596 | MR15: 32.7392033 | MS15: 74.92502757 | MT15: 327.08804 | MU15: 179.9913377 | MV15: 314.9275441 | MW15: 685.6603409 | MX15: 170.5101922 | MY15: 296.2515455 | MZ15: 156.6056978 | NA15: 687.8458868 | NB15: 256.7701381 | NC15: 572.7178515 | ND15: 210.4046508 | NE15: 604.0371503 | NF15: 474.4600198 | NG15: 316.5264551 | NH15: 906.3153036 | NI15: 537.8038094 | NJ15: 389.5753516 | NK15: 273.497386 | NL15: 471.640437 | NM15: 941.0254871 | NN15: 319.1731872 | NO15: 493.2978507 | NP15: 3077.041405 | NQ15: 485.6823798 | NR15: 636.6195846 | NS15: 218.6992799 | NT15: 227.1906027 | NU15: 597.6258526 | NV15: 515.3487025 | NW15: 1254.826639 | NX15: 551.0016721 | NY15: 345.1938513 | NZ15: 222.8703097 | OA15: 224.149545 | OB15: 310.2751048 | OC15: 209.5512955 | OD15: 398.7051366 | OE15: 189.6996843 | OF15: 352.3756462 | OG15: 156.6056978 | OH15: 378.0473942 | OI15: 256.7701381 | OJ15: 551.022256 | OK15: 210.4046508 | OL15: 266.9779027 | OM15: 410.9889783 | ON15: 552.8272884 | OO15: 306.6099461 | OP15: 327.08804 | OQ15: 170.5101922 | OR15: 168.1303691 | OS15: 368.271456 | OT15: 330.509116 | OU15: 156.8832431 | OV15: 310.2751048 | OW15: 906.3153036 | OX15: 389.5753516 | OY15: 195.1540322 | OZ15: 539.0658991 | PA15: 471.640437 | PB15: 274.0460135 | PC15: 332.9499436 | PD15: 218.0581022 | PE15: 285.4583852 | PF15: 3077.041405 | PG15: 493.2978507 | PH15: 255.689967 | PI15: 218.6992799 | PJ15: 90.77387952 | PK15: 227.1906027 | PL15: 159.7564152 | PM15: 477.5801732 | PN15: 1183.800599 | PO15: 345.1938513 | PP15: 314.9275441 | PQ15: 628.6197849 | PR15: 357.3367707 | PS15: 242.3677367 | PT15: 218.704477 | PU15: 178.1423377 | PV15: 224.149545 | PW15: 377.715336 | PX15: 398.7051366 | PY15: 706.2204259 | PZ15: 222.8703097
B16: 23 | C16: Volunteering | D16: 6964.199525 | E16: 4.682347254 | F16: 6.713649761 | G16: 9.437513957 | H16: 8.421832192 | I16: 21.63313716 | J16: 11.79048204 | K16: 47.70214112 | L16: 13.33393807 | M16: 17.1765502 | N16: 31.07198595 | O16: 47.00832861 | P16: 14.43361168 | Q16: 21.5293281 | R16: 22.24626997 | S16: 11.18731436 | T16: 16.56052426 | U16: 11.53565971 | V16: 25.63795608 | W16: 84.22516896 | X16: 5.856414633 | Y16: 37.69400759 | Z16: 24.80024501 | AA16: 10.37576503 | AB16: 45.28401597 | AC16: 5.746695878 | AD16: 23.16800176 | AE16: 14.34980508 | AF16: 137.7383034 | AG16: 11.62622353 | AH16: 7.554350178 | AI16: 21.15490025 | AJ16: 10.25678835 | AK16: 24.12350531 | AL16: 50.8960586 | AM16: 16.17195775 | AN16: 55.50994607 | AO16: 28.82144727 | AP16: 5.46930405 | AQ16: 7.723241326 | AR16: 106.3917981 | AS16: 8.405825321 | AT16: 27.34189626 | AU16: 43.44260232 | AV16: 13.26724698 | AW16: 66.96497517 | AX16: 15.22624023 | AY16: 13.17727282 | AZ16: 15.72209308 | BA16: 11.40849461 | BB16: 4.813792665 | BC16: 55.0831165 | BD16: 10.30589272 | BE16: 37.11580186 | BF16: 16.41052601 | BG16: 29.02658429 | BH16: 52.33768473 | BI16: 47.57505026 | BJ16: 13.37121954 | BK16: 13.89770543 | BL16: 13.12066234 | BM16: 16.40686275 | BN16: 4.535842948 | BO16: 0.09635653216 | BP16: 55.416647 | BQ16: 10.39588979 | BR16: 5.995285413 | BS16: 89.08039885 | BT16: 9.656494166 | BU16: 35.82855247 | BV16: 34.09205226 | BW16: 12.66253074 | BX16: 11.94566526 | BY16: 20.19894617 | BZ16: 64.86516823 | CA16: 7.689996567 | CB16: 8.116731208 | CC16: 7.82992284 | CD16: 5.185718006 | CE16: 27.04440781 | CF16: 132.3754426 | CG16: 6.408128233 | CH16: 84.18220371 | CI16: 54.38232942 | CJ16: 55.50511128 | CK16: 16.23102533 | CL16: 26.68450467 | CM16: 21.10109757 | CN16: 7.910180771 | CO16: 11.19175385 | CP16: 23.21370695 | CQ16: 15.46138265 | CR16: 14.56861326 | CS16: 21.45533966 | CT16: 6.577413732 | CU16: 31.80150828 | CV16: 7.628837092 | CW16: 66.95329673 | CX16: 8.164815097 | CY16: 18.74150666 | CZ16: 3.669447557 | DA16: 15.99785024 | DB16: 68.60475386 | DC16: 8.422652334 | DD16: 9.023630081 | DE16: 33.05087126 | DF16: 241.6035649 | DG16: 9.831921751 | DH16: 11.45015527 | DI16: 7.958048144 | DJ16: 7.736670651 | DK16: 7.348373068 | DL16: 13.93039287 | DM16: 29.93905788 | DN16: 12.13288811 | DO16: 21.98472715 | DP16: 99.14308725 | DQ16: 5.970700271 | DR16: 6.442188527 | DS16: 12.97890326 | DT16: 19.95243929 | DU16: 15.41800164 | DV16: 64.75060296 | DW16: 7.377544286 | DX16: 7.965582189 | DY16: 32.66940884 | DZ16: 190.8484334 | EA16: 10.94238862 | EB16: 42.69960376 | EC16: 15.2438131 | ED16: 12.70103083 | EE16: 20.11592815 | EF16: 6.105027945 | EG16: 8.093361553 | EH16: 9.415818033 | EI16: 23.0530183 | EJ16: 19.54075671 | EK16: 21.36994614 | EL16: 99.77252946 | EM16: 9.443033439 | EN16: 11.25024892 | EO16: 29.850576 | EP16: 12.16566089 | EQ16: 15.22681867 | ER16: 20.02359509 | ES16: 16.55379834 | ET16: 8.931476988 | EU16: 18.21567928 | EV16: 18.37744059 | EW16: 0.3781198613 | EX16: 28.9775613 | EY16: 6.060948112 | EZ16: 184.5863411 | FA16: 11.93382359 | FB16: 49.76242133 | FC16: 30.57290778 | FD16: 17.59073728 | FE16: 74.53035505 | FF16: 11.72850789 | FG16: 13.26783292 | FH16: 149.1437345 | FI16: 18.68170636 | FJ16: 147.5231453 | FK16: 15.29309573 | FL16: 72.69053125 | FM16: 16.10126648 | FN16: 12.00682561 | FO16: 14.32734652 | FP16: 11.58583776 | FQ16: 101.7053171 | FR16: 60.15515687 | FS16: 26.63481699 | FT16: 19.36776234 | FU16: 16.04409983 | FV16: 11.43808139 | FW16: 44.03303765 | FX16: 22.24056986 | FY16: 61.90678282 | FZ16: 11.63874226 | GA16: 16.5830667 | GB16: 23.55001154 | GC16: 7.096268205 | GD16: 11.00842764 | GE16: 18.96679563 | GF16: 5.332893398 | GG16: 34.67538607 | GH16: 7.980855603 | GI16: 18.08142872 | GJ16: 15.46026107 | GK16: 17.59189419 | GL16: 22.15572298 | GM16: 6.971686381 | GN16: 134.4416373 | GO16: 9.473886881 | GP16: 6.373548156 | GQ16: 12.69984538 | GR16: 15.33264853 | GS16: 7.251180757 | GT16: 16.78944276 | GU16: 26.56774813 | GV16: 11.24209667 | GW16: 31.40069565 | GX16: 19.59965281 | GY16: 16.93644468 | GZ16: 9.927559738 | HA16: 77.75968684 | HB16: 33.69980666 | HC16: 105.5734626 | HD16: 40.37961406 | HE16: 20.38843458 | HF16: 155.7156617 | HG16: 109.2697937 | HH16: 19.79670799 | HI16: 2.524773632 | HJ16: 19.52943522 | HK16: 15.22464871 | HL16: 103.142203 | HM16: 2.91160408 | HN16: 6.59539946 | HO16: 35.54354242 | HP16: 20.58535079 | HQ16: 47.95806738 | HR16: 21.78612443 | HS16: 5.595045616 | HT16: 16.47060879 | HU16: 21.67375642 | HV16: 12.75555767 | HW16: 11.88177631 | HX16: 43.84834809 | HY16: 15.52003441 | HZ16: 22.06894943 | IA16: 8.270065623 | IB16: 27.39408446 | IC16: 19.32665144 | ID16: 4.709857754 | IE16: 7.404149116 | IF16: 48.08997271 | IG16: 15.47575577 | IH16: 9.38362835 | II16: 18.89238179 | IJ16: 4.508527098 | IK16: 9.329098762 | IL16: 8.043147849 | IM16: 17.83839407 | IN16: 18.15635845 | IO16: 7.969313024 | IP16: 12.20402121 | IQ16: 41.23615211 | IR16: 20.1480166 | IS16: 22.16650249 | IT16: 149.2064298 | IU16: 11.48441403 | IV16: 38.93123323 | IW16: 9.284827357 | IX16: 33.29298829 | IY16: 71.76347438 | IZ16: 9.009200529 | JA16: 21.27570094 | JB16: 8.737442416 | JC16: 19.19355134 | JD16: 15.6906952 | JE16: 10.34742512 | JF16: 16.3714277 | JG16: 18.24407484 | JH16: 16.34347354 | JI16: 32.61231619 | JJ16: 22.62805955 | JK16: 19.38013617 | JL16: 22.58989099 | JM16: 19.53586623 | JN16: 16.48160171 | JO16: 34.27445242 | JP16: 21.8942998 | JQ16: 14.011124 | JR16: 15.20459462 | JS16: 15.3623941 | JT16: 7.433430373 | JU16: 20.91517853 | JV16: 19.40456372 | JW16: 112.5843027 | JX16: 10.04920076 | JY16: 7.71387973 | JZ16: 31.84516324 | KA16: 18.49754233 | KB16: 28.47415105 | KC16: 13.99988427 | KD16: 32.22359293 | KE16: 98.23916469 | KF16: 13.71857351 | KG16: 14.84786013 | KH16: 165.8193301 | KI16: 9.554460735 | KJ16: 16.33009168 | KK16: 17.26865066 | KL16: 18.06297344 | KM16: 39.42566409 | KN16: 6.305492536 | KO16: 13.22933243 | KP16: 13.959548 | KQ16: 11.0812898 | KR16: 21.41574917 | KS16: 17.39005762 | KT16: 16.17634129 | KU16: 11.51937392 | KV16: 13.63952269 | KW16: 15.15356734 | KX16: 27.2154833 | KY16: 21.80006742 | KZ16: 21.65669063 | LA16: 13.03839986 | LB16: 56.47235702 | LC16: 20.44942063 | LD16: 20.84370964 | LE16: 24.41770906 | LF16: 20.4301554 | LG16: 37.85574241 | LH16: 28.43289283 | LI16: 38.84021733 | LJ16: 19.53697915 | LK16: 19.19726227 | LL16: 38.35867266 | LM16: 104.5674654 | LN16: 5.429954604 | LO16: 26.79244517 | LP16: 20.18499996 | LQ16: 25.867248 | LR16: 9.569099044 | LS16: 11.69060561 | LT16: 18.81768905 | LU16: 6.777988158 | LV16: 9.573190001 | LW16: 7.811205806 | LX16: 19.40914821 | LY16: 15.8327551 | LZ16: 6.42694748 | MA16: 80.51460738 | MB16: 13.89439055 | MC16: 6.213777611 | MD16: 23.98705213 | ME16: 73.78011213 | MF16: 49.05407524 | MG16: 28.18805499 | MH16: 28.84866745 | MI16: 5.9936283 | MJ16: 15.05107274 | MK16: 20.59771479 | ML16: 33.93188323 | MM16: 112.9128239 | MN16: 7.373442942 | MO16: 21.19633905 | MP16: 36.55979415 | MQ16: 10.66850759 | MR16: 5.643296642 | MS16: 27.96484566 | MT16: 93.87147075 | MU16: 106.3917981 | MV16: 119.1099973 | MW16: 215.0204915 | MX16: 89.45851871 | MY16: 138.6595176 | MZ16: 64.86516823 | NA16: 397.3608979 | NB16: 99.25846383 | NC16: 223.3702168 | ND16: 99.14308725 | NE16: 205.3036264 | NF16: 179.4908856 | NG16: 143.6057138 | NH16: 297.1281637 | NI16: 213.1459111 | NJ16: 99.77252946 | NK16: 104.2748127 | NL16: 211.6379871 | NM16: 561.5749009 | NN16: 78.65452822 | NO16: 170.2612071 | NP16: 836.6351124 | NQ16: 232.680802 | NR16: 174.6682333 | NS16: 105.5734626 | NT16: 103.142203 | NU16: 346.3212048 | NV16: 258.5985688 | NW16: 604.1597686 | NX16: 294.0846545 | NY16: 141.0584537 | NZ16: 91.84308557 | OA16: 52.79608615 | OB16: 102.162058 | OC16: 81.71692853 | OD16: 118.0508298 | OE16: 112.9128239 | OF16: 137.5260408 | OG16: 64.86516823 | OH16: 141.3824368 | OI16: 99.25846383 | OJ16: 290.713348 | OK16: 99.14308725 | OL16: 134.4416373 | OM16: 165.8193301 | ON16: 171.5914094 | OO16: 84.22516896 | OP16: 93.87147075 | OQ16: 89.45851871 | OR16: 35.82855247 | OS16: 171.9525059 | OT16: 132.3754426 | OU16: 60.34698239 | OV16: 102.162058 | OW16: 297.1281637 | OX16: 99.77252946 | OY16: 73.70190494 | OZ16: 246.4931239 | PA16: 211.6379871 | PB16: 141.0671842 | PC16: 87.98362698 | PD16: 101.7053171 | PE16: 73.56037464 | PF16: 836.6351124 | PG16: 170.2612071 | PH16: 105.7245325 | PI16: 105.5734626 | PJ16: 40.37961406 | PK16: 103.142203 | PL16: 71.76347438 | PM16: 298.6870605 | PN16: 739.777209 | PO16: 141.0584537 | PP16: 119.1099973 | PQ16: 291.4583938 | PR16: 264.9854553 | PS16: 134.28277 | PT16: 98.23916469 | PU16: 93.2535932 | PV16: 52.79608615 | PW16: 98.46006672 | PX16: 118.0508298 | PY16: 441.0901485 | PZ16: 91.84308557
B17: 25 | C17: Spectator wider spending | D17: 1768.844697 | E17: 0.03801788856 | F17: 4.4069784 | G17: 2.2127407 | H17: 4.54942786 | I17: 0.5757683284 | J17: 4.15801362 | K17: 3.21363922 | L17: 2.63282948 | M17: 4.9348242 | N17: 5.86257998 | O17: 4.12294288 | P17: 1.020982991 | Q17: 3.34532942 | R17: 4.66007472 | S17: 3.4042461 | T17: 8.10348956 | U17: 4.635624 | V17: 4.65025758 | W17: 34.3687413 | X17: 2.19889532 | Y17: 3.47897824 | Z17: 11.61516822 | AA17: 0.89917812 | AB17: 6.65099576 | AC17: 2.52313802 | AD17: 6.22713724 | AE17: 1.29667512 | AF17: 12.42519534 | AG17: 4.61431378 | AH17: 4.43472158 | AI17: 5.87879108 | AJ17: 1.4532964 | AK17: 13.4512064 | AL17: 19.55884552 | AM17: 3.46841414 | AN17: 7.922234 | AO17: 2.72325336 | AP17: 1.4043944 | AQ17: 1.52793068 | AR17: 10.85640628 | AS17: 3.62538814 | AT17: 4.4976644 | AU17: 6.6570809 | AV17: 6.85592922 | AW17: 18.02636668 | AX17: 12.93046642 | AY17: 2.89991644 | AZ17: 5.9900609 | BA17: 4.17774716 | BB17: 1.55739658 | BC17: 6.74341852 | BD17: 3.83296832 | BE17: 6.02931408 | BF17: 4.93316378 | BG17: 3.21444112 | BH17: 11.036027 | BI17: 14.77888278 | BJ17: 3.91084194 | BK17: 5.11367224 | BL17: 1.35549254 | BM17: 3.05412712 | BN17: 2.422626979 | BO17: 40.5239473 | BP17: 6.48365744 | BQ17: 1.34950806 | BR17: 0.9376138807 | BS17: 34.94311148 | BT17: 3.43216236 | BU17: 11.30332674 | BV17: 9.2534742 | BW17: 3.7359693 | BX17: 3.41171206 | BY17: 8.23744832 | BZ17: 24.60410819 | CA17: 2.9931994 | CB17: 3.42221786 | CC17: 2.4363343 | CD17: 2.13516304 | CE17: 9.12592282 | CF17: 30.72537092 | CG17: 5.81831492 | CH17: 36.70662698 | CI17: 9.09154242 | CJ17: 19.66650629 | CK17: 3.90002746 | CL17: 6.81075796 | CM17: 4.32385998 | CN17: 2.32802366 | CO17: 5.37218028 | CP17: 1.140536657 | CQ17: 2.07075328 | CR17: 4.44266454 | CS17: 9.55730786 | CT17: 1.95478026 | CU17: 11.37407916 | CV17: 2.56182892 | CW17: 18.32327204 | CX17: 6.0286531 | CY17: 2.42896802 | CZ17: 3.15058316 | DA17: 2.1754302 | DB17: 7.40858042 | DC17: 1.851779 | DD17: 1.4576624 | DE17: 2.99388904 | DF17: 37.20643139 | DG17: 7.97830698 | DH17: 2.31800912 | DI17: 1.59783352 | DJ17: 2.68675888 | DK17: 2.54740644 | DL17: 2.13557098 | DM17: 5.82163534 | DN17: 1.328840724 | DO17: 3.84720822 | DP17: 18.74913728 | DQ17: 2.01802016 | DR17: 2.53020848 | DS17: 6.2277279 | DT17: 9.31310624 | DU17: 4.50060834 | DV17: 6.10414534 | DW17: 3.46100634 | DX17: 3.14845468 | DY17: 6.27010438 | DZ17: 32.28302088 | EA17: 1.14604014 | EB17: 4.4419879 | EC17: 2.07055588 | ED17: 5.25733658 | EE17: 7.10760572 | EF17: 1.64222762 | EG17: 1.16460312 | EH17: 3.1359897 | EI17: 1.99740098 | EJ17: 4.97390864 | EK17: 5.97768176 | EL17: 24.34872714 | EM17: 1.3982114 | EN17: 2.70186052 | EO17: 6.1780904 | EP17: 3.17456736 | EQ17: 2.61936492 | ER17: 4.81188012 | ES17: 4.90634524 | ET17: 1.146579095 | EU17: 5.75829716 | EV17: 6.90919694 | EW17: 2.729180645 | EX17: 10.44303314 | EY17: 10.08098476 | EZ17: 45.56115696 | FA17: 2.52618066 | FB17: 6.50801268 | FC17: 8.74129372 | FD17: 5.56721048 | FE17: 10.83599624 | FF17: 1.14005356 | FG17: 6.90435058 | FH17: 29.77876442 | FI17: 4.2232004 | FJ17: 27.86247838 | FK17: 9.85619768 | FL17: 16.85935791 | FM17: 1.68415786 | FN17: 6.38262668 | FO17: 3.15434158 | FP17: 6.53178452 | FQ17: 30.61106966 | FR17: 19.26102866 | FS17: 3.66986822 | FT17: 7.28906022 | FU17: 1.44524034 | FV17: 3.75844658 | FW17: 34.33912422 | FX17: 2.92397306 | FY17: 5.53823886 | FZ17: 2.37486904 | GA17: 2.71728188 | GB17: 3.29024442 | GC17: 2.54896956 | GD17: 2.44733444 | GE17: 2.80515536 | GF17: 4.88947092 | GG17: 7.71945824 | GH17: 1.9408366 | GI17: 5.44406006 | GJ17: 3.61213594 | GK17: 15.4944652 | GL17: 2.7029423 | GM17: 7.7589365 | GN17: 47.72943086 | GO17: 6.2320939 | GP17: 1.12051882 | GQ17: 1.49787462 | GR17: 5.52969056 | GS17: 4.29115566 | GT17: 2.76616906 | GU17: 3.87146154 | GV17: 7.6469934 | GW17: 5.29402734 | GX17: 4.762794 | GY17: 1.79697626 | GZ17: 2.39272896 | HA17: 28.98045536 | HB17: 7.03611334 | HC17: 19.3384064 | HD17: 13.84117272 | HE17: 16.11500722 | HF17: 15.8404262 | HG17: 15.09720815 | HH17: 2.41502422 | HI17: 0.1085536657 | HJ17: 4.37266286 | HK17: 6.33150086 | HL17: 17.60772806 | HM17: 1.66265038 | HN17: 6.54140412 | HO17: 11.35486148 | HP17: 2.71904366 | HQ17: 8.60059456 | HR17: 4.94258514 | HS17: 8.46660215 | HT17: 5.4759854 | HU17: 3.75765712 | HV17: 2.29581228 | HW17: 1.87170882 | HX17: 3.17506002 | HY17: 3.83022192 | HZ17: 5.97669364 | IA17: 1.98621924 | IB17: 2.8626058 | IC17: 2.249370406 | ID17: 0.2218216171 | IE17: 3.29731684 | IF17: 5.04157116 | IG17: 2.77667612 | IH17: 1.296478 | II17: 1.72431332 | IJ17: 1.9801183 | IK17: 1.6307351 | IL17: 2.65119828 | IM17: 2.97788876 | IN17: 3.031745146 | IO17: 9.93835316 | IP17: 2.26861838 | IQ17: 8.29635312 | IR17: 2.26292412 | IS17: 2.80888764 | IT17: 19.40849084 | IU17: 3.60132076 | IV17: 10.99508488 | IW17: 1.3288865 | IX17: 5.5881259 | IY17: 13.44052264 | IZ17: 1.47490202 | JA17: 2.33823504 | JB17: 1.56474824 | JC17: 3.83543246 | JD17: 4.42274758 | JE17: 2.1116975 | JF17: 4.9141196 | JG17: 10.49830842 | JH17: 3.32855394 | JI17: 2.57146264 | JJ17: 2.75085898 | JK17: 0.9854360976 | JL17: 3.07021394 | JM17: 2.40382724 | JN17: 1.9895412 | JO17: 9.49357598 | JP17: 3.18792022 | JQ17: 10.8084169 | JR17: 1.7396371 | JS17: 1.5363677 | JT17: 2.43585534 | JU17: 1.90627278 | JV17: 4.0835629 | JW17: 23.68667768 | JX17: 3.32314754 | JY17: 3.08491812 | JZ17: 5.9978909 | KA17: 1.77694774 | KB17: 3.575107 | KC17: 5.08872886 | KD17: 2.53718066 | KE17: 26.42504218 | KF17: 4.74906228 | KG17: 4.287029 | KH17: 26.06012046 | KI17: 2.02990762 | KJ17: 4.290862989 | KK17: 2.57812502 | KL17: 4.63277904 | KM17: 3.38431544 | KN17: 2.55711076 | KO17: 1.81868044 | KP17: 3.17515914 | KQ17: 4.39496106 | KR17: 3.34454192 | KS17: 3.88205598 | KT17: 3.3889356 | KU17: 1.45201582 | KV17: 4.12157716 | KW17: 0.7716310391 | KX17: 2.59423686 | KY17: 2.25948752 | KZ17: 7.89367312 | LA17: 2.99177552 | LB17: 6.92399772 | LC17: 3.4869363 | LD17: 3.88805388 | LE17: 2.22412208 | LF17: 2.32527684 | LG17: 8.3283787 | LH17: 4.56874996 | LI17: 3.02128398 | LJ17: 7.29114326 | LK17: 5.13750252 | LL17: 5.58467742 | LM17: 17.66208288 | LN17: 2.59227922 | LO17: 5.7149046 | LP17: 3.34317424 | LQ17: 4.17715454 | LR17: 2.17709258 | LS17: 1.83390566 | LT17: 3.34113132 | LU17: 2.7655921 | LV17: 3.52983802 | LW17: 1.046167546 | LX17: 2.2068531 | LY17: 2.98565026 | LZ17: 2.2092493 | MA17: 21.31236379 | MB17: 24.94680672 | MC17: 2.98638366 | MD17: 5.91501672 | ME17: 15.2624041 | MF17: 4.33445302 | MG17: 4.24026066 | MH17: 8.04753108 | MI17: 2.5826455 | MJ17: 1.60981912 | MK17: 6.2924852 | ML17: 3.2809205 | MM17: 18.43496266 | MN17: 2.77501346 | MO17: 3.58296594 | MP17: 4.8123725 | MQ17: 2.90501598 | MR17: 3.21766746 | MS17: 12.3769409 | MT17: 20.70373827 | MU17: 10.85640628 | MV17: 30.9524123 | MW17: 53.07741583 | MX17: 37.67229213 | MY17: 26.91555708 | MZ17: 24.60410819 | NA17: 61.66300527 | NB17: 28.61268719 | NC17: 41.1885036 | ND17: 18.74913728 | NE17: 58.94269454 | NF17: 44.34441054 | NG17: 40.01222176 | NH17: 74.48510116 | NI17: 69.39568422 | NJ17: 24.34872714 | NK17: 29.51652498 | NL17: 44.87291088 | NM17: 93.86524334 | NN17: 25.08482049 | NO17: 42.11224554 | NP17: 269.3180669 | NQ17: 74.15447304 | NR17: 57.4999642 | NS17: 19.3384064 | NT17: 17.60772806 | NU17: 47.37668808 | NV17: 49.00396772 | NW17: 112.4112563 | NX17: 44.40298288 | NY17: 27.26178468 | NZ17: 19.89518314 | OA17: 13.54905192 | OB17: 17.29275812 | OC17: 20.31730856 | OD17: 36.79179488 | OE17: 18.43496266 | OF17: 52.73147542 | OG17: 24.60410819 | OH17: 55.95516158 | OI17: 28.61268719 | OJ17: 42.98858847 | OK17: 18.74913728 | OL17: 47.72943086 | OM17: 26.06012046 | ON17: 53.08684223 | OO17: 34.3687413 | OP17: 20.70373827 | OQ17: 37.67229213 | OR17: 11.30332674 | OS17: 32.50368298 | OT17: 30.72537092 | OU17: 14.3396268 | OV17: 17.29275812 | OW17: 74.48510116 | OX17: 24.34872714 | OY17: 20.77523126 | OZ17: 51.09939582 | PA17: 44.87291088 | PB17: 18.57586452 | PC17: 26.71555559 | PD17: 30.61106966 | PE17: 24.5677708 | PF17: 269.3180669 | PG17: 42.11224554 | PH17: 41.35739626 | PI17: 19.3384064 | PJ17: 13.84117272 | PK17: 17.60772806 | PL17: 13.44052264 | PM17: 37.6645473 | PN17: 103.7736769 | PO17: 27.26178468 | PP17: 30.9524123 | PQ17: 57.28638836 | PR17: 30.93763435 | PS17: 24.41264442 | PT17: 26.42504218 | PU17: 15.04891074 | PV17: 13.54905192 | PW17: 32.35546474 | PX17: 36.79179488 | PY17: 66.10912956 | PZ17: 19.89518314
B18: 26 | C18: Participation wider spending | D18: 1120.924887 | E18: 0.02107882388 | F18: 7.8597178 | G18: 0.8904702 | H18: 4.23688212 | I18: 0.3435323582 | J18: 2.50047964 | K18: 1.42125664 | L18: 1.53532216 | M18: 1.8520606 | N18: 2.36423576 | O18: 1.63067156 | P18: 0.5417782447 | Q18: 1.21933364 | R18: 1.71094044 | S18: 1.5892902 | T18: 8.00994012 | U18: 1.8530016 | V18: 1.75882816 | W18: 17.3376146 | X18: 0.78576964 | Y18: 1.26608828 | Z18: 15.89820704 | AA18: 0.40122644 | AB18: 2.42898112 | AC18: 0.94462304 | AD18: 8.57072748 | AE18: 0.63482284 | AF18: 5.01211208 | AG18: 1.64475536 | AH18: 2.79005276 | AI18: 2.67411176 | AJ18: 0.6367872 | AK18: 9.5904554 | AL18: 10.06678264 | AM18: 3.28424928 | AN18: 2.8029972 | AO18: 1.00824332 | AP18: 0.5200108 | AQ18: 0.81451176 | AR18: 4.43029036 | AS18: 1.31515268 | AT18: 1.8092274 | AU18: 2.6299946 | AV18: 3.64901184 | AW18: 8.18503096 | AX18: 7.35912924 | AY18: 1.17160408 | AZ18: 4.2702084 | BA18: 2.90602452 | BB18: 0.53484536 | BC18: 3.22040644 | BD18: 1.48231864 | BE18: 2.31890316 | BF18: 3.40801796 | BG18: 1.77944084 | BH18: 5.2009068 | BI18: 9.17109876 | BJ18: 1.51038208 | BK18: 4.68153008 | BL18: 0.50345908 | BM18: 2.39463144 | BN18: 1.464715904 | BO18: 36.1539348 | BP18: 2.51742208 | BQ18: 1.80601272 | BR18: 0.4631539303 | BS18: 60.75725456 | BT18: 3.61477432 | BU18: 6.79778628 | BV18: 4.3509334 | BW18: 3.811893 | BX18: 2.49463332 | BY18: 3.21176304 | BZ18: 40.09409644 | CA18: 1.251584 | CB18: 1.54610192 | CC18: 0.9662196 | CD18: 1.06344688 | CE18: 4.06000364 | CF18: 17.81375964 | CG18: 5.56412904 | CH18: 40.15725616 | CI18: 3.49224804 | CJ18: 20.79075401 | CK18: 2.40238792 | CL18: 2.38131212 | CM18: 1.95225136 | CN18: 1.07985012 | CO18: 7.09741896 | CP18: 0.6323647164 | CQ18: 0.99478176 | CR18: 1.63595208 | CS18: 14.42600552 | CT18: 0.70379872 | CU18: 7.50159932 | CV18: 1.30894884 | CW18: 12.46802508 | CX18: 4.5341126 | CY18: 0.86287084 | CZ18: 6.94673352 | DA18: 0.9298 | DB18: 2.73485744 | DC18: 0.8723528 | DD18: 0.5247684182 | DE18: 1.05251308 | DF18: 15.58206906 | DG18: 4.32564936 | DH18: 0.92689464 | DI18: 0.58188544 | DJ18: 2.26348956 | DK18: 2.16102368 | DL18: 1.62129276 | DM18: 2.15154028 | DN18: 0.4664597812 | DO18: 1.78825624 | DP18: 13.25736496 | DQ18: 0.72581092 | DR18: 0.94715636 | DS18: 8.0707856 | DT18: 4.43323928 | DU18: 1.85942488 | DV18: 2.39679688 | DW18: 1.20905188 | DX18: 1.90807436 | DY18: 2.70649776 | DZ18: 17.07040856 | EA18: 0.63322568 | EB18: 1.8909578 | EC18: 0.79393856 | ED18: 5.58281296 | EE18: 2.43157984 | EF18: 0.70124844 | EG18: 0.49099424 | EH18: 2.2070294 | EI18: 1.32074056 | EJ18: 1.71605068 | EK18: 4.71387492 | EL18: 10.28433978 | EM18: 0.8199238 | EN18: 2.96045324 | EO18: 3.0742664 | EP18: 1.31252732 | EQ18: 1.07480044 | ER18: 2.16008924 | ES18: 1.84153348 | ET18: 0.3996065292 | EU18: 2.32978052 | EV18: 11.89474468 | EW18: 2.485202376 | EX18: 4.25566248 | EY18: 8.23481412 | EZ18: 24.87790452 | FA18: 1.09524212 | FB18: 4.58010696 | FC18: 3.327808422 | FD18: 2.21669716 | FE18: 4.37997588 | FF18: 0.43240912 | FG18: 3.21939036 | FH18: 16.25219081 | FI18: 3.6172568 | FJ18: 13.85187876 | FK18: 3.90088236 | FL18: 7.493272952 | FM18: 0.91591312 | FN18: 2.18879116 | FO18: 1.30689656 | FP18: 3.08945664 | FQ18: 24.08501832 | FR18: 12.57609752 | FS18: 1.67945184 | FT18: 3.13835804 | FU18: 0.63228468 | FV18: 2.06229856 | FW18: 21.50151604 | FX18: 1.12897992 | FY18: 2.30541012 | FZ18: 1.34865068 | GA18: 2.36673176 | GB18: 1.40247024 | GC18: 1.50689152 | GD18: 1.12114428 | GE18: 1.28911972 | GF18: 2.14327204 | GG18: 3.23518348 | GH18: 0.7993506 | GI18: 5.17446352 | GJ18: 2.51455448 | GK18: 9.7748818 | GL18: 1.2587998 | GM18: 2.7992872 | GN18: 37.26741852 | GO18: 10.596712 | GP18: 1.22995424 | GQ18: 0.70060924 | GR18: 2.70082172 | GS18: 1.78874212 | GT18: 1.12465252 | GU18: 1.44535188 | GV18: 9.667068 | GW18: 3.72661248 | GX18: 2.0988538 | GY18: 0.69947132 | GZ18: 1.04888132 | HA18: 35.71344512 | HB18: 2.90579468 | HC18: 8.82614997 | HD18: 14.64296344 | HE18: 7.15343744 | HF18: 10.800052 | HG18: 7.483238339 | HH18: 0.85819804 | HI18: 0.03588647164 | HJ18: 1.66793212 | HK18: 5.14180572 | HL18: 11.63114772 | HM18: 0.60704836 | HN18: 2.74050104 | HO18: 5.10419036 | HP18: 2.81546492 | HQ18: 5.59531512 | HR18: 2.25687108 | HS18: 5.147874587 | HT18: 2.8867152 | HU18: 1.35915044 | HV18: 1.01755016 | HW18: 0.67694344 | HX18: 1.21328724 | HY18: 1.73318904 | HZ18: 2.90786148 | IA18: 3.02540108 | IB18: 1.1107092 | IC18: 0.7751728971 | ID18: 0.09521580042 | IE18: 2.80814908 | IF18: 1.99166352 | IG18: 1.07814324 | IH18: 0.634429 | II18: 0.62590984 | IJ18: 0.7639592 | IK18: 0.8460132 | IL18: 3.49741516 | IM18: 1.30008912 | IN18: 1.046177044 | IO18: 16.77781732 | IP18: 3.71564936 | IQ18: 4.32758224 | IR18: 1.11003124 | IS18: 1.24066788 | IT18: 8.30602188 | IU18: 2.90543692 | IV18: 6.79225556 | IW18: 0.6971228 | IX18: 2.023257 | IY18: 15.00441368 | IZ18: 0.64517484 | JA18: 1.03275008 | JB18: 0.67397268 | JC18: 1.58746632 | JD18: 7.59055096 | JE18: 0.9068032 | JF18: 2.6029528 | JG18: 20.03382964 | JH18: 1.72171848 | JI18: 1.81772548 | JJ18: 1.57405636 | JK18: 0.3422375584 | JL18: 2.79289028 | JM18: 0.90332888 | JN18: 0.7152838 | JO18: 5.73939636 | JP18: 1.61669264 | JQ18: 4.1264818 | JR18: 0.7335642 | JS18: 0.5634178 | JT18: 1.62251788 | JU18: 0.78825936 | JV18: 1.8663154 | JW18: 11.73994516 | JX18: 2.76906948 | JY18: 1.18389864 | JZ18: 2.0577292 | KA18: 0.79445908 | KB18: 1.6967428 | KC18: 4.92283132 | KD18: 1.14994212 | KE18: 16.79894936 | KF18: 3.55365516 | KG18: 1.7361816 | KH18: 10.77166074 | KI18: 1.08295724 | KJ18: 1.454281838 | KK18: 1.16218824 | KL18: 2.10367508 | KM18: 1.18335148 | KN18: 1.15498212 | KO18: 0.70805588 | KP18: 1.61438288 | KQ18: 3.58196712 | KR18: 1.91933104 | KS18: 2.64602556 | KT18: 1.73802 | KU18: 1.13535064 | KV18: 2.48564692 | KW18: 0.2816581805 | KX18: 0.97074392 | KY18: 1.15907384 | KZ18: 11.25752904 | LA18: 3.27641364 | LB18: 3.07932504 | LC18: 1.6712926 | LD18: 1.70008076 | LE18: 0.99024776 | LF18: 1.03004648 | LG18: 3.242727 | LH18: 1.57896412 | LI18: 1.16109876 | LJ18: 3.39887752 | LK18: 2.22147484 | LL18: 2.81816224 | LM18: 10.37680616 | LN18: 1.42363904 | LO18: 4.3730398 | LP18: 1.37116088 | LQ18: 2.00282088 | LR18: 0.77698816 | LS18: 0.81551332 | LT18: 2.08024324 | LU18: 2.1816526 | LV18: 6.83367364 | LW18: 0.499040402 | LX18: 0.9905246 | LY18: 2.10579832 | LZ18: 4.5147594 | MA18: 14.82855022 | MB18: 16.04894744 | MC18: 5.48217092 | MD18: 2.13149244 | ME18: 12.4346464 | MF18: 2.15067824 | MG18: 4.56289812 | MH18: 2.84465856 | MI18: 0.9148624 | MJ18: 0.63855464 | MK18: 2.4600766 | ML18: 1.7520166 | MM18: 8.77419832 | MN18: 1.03050572 | MO18: 1.70085148 | MP18: 1.8603998 | MQ18: 1.37064836 | MR18: 1.57384492 | MS18: 13.9304762 | MT18: 7.466529884 | MU18: 4.43029036 | MV18: 16.5934804 | MW18: 31.79214392 | MX18: 63.24245694 | MY18: 14.72773956 | MZ18: 40.09409644 | NA18: 36.09704998 | NB18: 32.17694641 | NC18: 20.7602902 | ND18: 13.25736496 | NE18: 27.56233488 | NF18: 23.01664948 | NG18: 28.23119192 | NH18: 36.86232072 | NI18: 71.52338924 | NJ18: 10.28433978 | NK18: 14.97558134 | NL18: 33.41648613 | NM18: 55.18257328 | NN18: 10.54814211 | NO18: 22.17805868 | NP18: 141.5267843 | NQ18: 54.06636788 | NR18: 37.917491 | NS18: 8.82614997 | NT18: 11.63114772 | NU18: 19.62211296 | NV18: 37.12371664 | NW18: 57.82084534 | NX18: 20.53410393 | NY18: 13.43668796 | NZ18: 14.53832148 | OA18: 5.99237744 | OB18: 11.50035684 | OC18: 13.42546152 | OD18: 23.39080156 | OE18: 8.77419832 | OF18: 57.14552064 | OG18: 40.09409644 | OH18: 56.51897556 | OI18: 32.17694641 | OJ18: 18.16950562 | OK18: 13.25736496 | OL18: 37.26741852 | OM18: 10.77166074 | ON18: 36.8870307 | OO18: 17.3376146 | OP18: 7.466529884 | OQ18: 63.24245694 | OR18: 6.79778628 | OS18: 16.75099656 | OT18: 17.81375964 | OU18: 8.7115866 | OV18: 11.50035684 | OW18: 36.86232072 | OX18: 10.28433978 | OY18: 11.64777292 | OZ18: 27.18331464 | PA18: 33.41648613 | PB18: 7.66547384 | PC18: 11.39415531 | PD18: 24.08501832 | PE18: 10.925532 | PF18: 141.5267843 | PG18: 22.17805868 | PH18: 49.64392132 | PI18: 8.82614997 | PJ18: 14.64296344 | PK18: 11.63114772 | PL18: 15.00441368 | PM18: 15.420605 | PN18: 44.53729332 | PO18: 13.43668796 | PP18: 16.5934804 | PQ18: 40.29986472 | PR18: 18.28329034 | PS18: 13.48807324 | PT18: 16.79894936 | PU18: 6.75285988 | PV18: 5.99237744 | PW18: 16.47674128 | PX18: 23.39080156 | PY18: 29.11668832 | PZ18: 14.53832148
B19: 17 | C19: Total direct economic value of sport | D19: 20399.93009 | E19: 12.72638328 | F19: 35.12717043 | G19: 25.22093156 | H19: 29.09044907 | I19: 23.45861077 | J19: 35.92807441 | K19: 51.66634203 | L19: 22.7731139 | M19: 53.22021459 | N19: 124.4470616 | O19: 57.629446 | P19: 17.24732228 | Q19: 55.16983997 | R19: 72.34508413 | S19: 24.95248983 | T19: 50.46111 | U19: 48.5868332 | V19: 53.36423025 | W19: 307.0391753 | X19: 37.02088622 | Y19: 51.94464745 | Z19: 46.83038493 | AA19: 24.63190864 | AB19: 79.39637587 | AC19: 14.81360381 | AD19: 69.48706162 | AE19: 39.83736137 | AF19: 139.5018464 | AG19: 44.55662003 | AH19: 27.36905515 | AI19: 125.1943971 | AJ19: 23.55900228 | AK19: 100.836392 | AL19: 132.8316507 | AM19: 30.91695571 | AN19: 109.0394987 | AO19: 26.9581276 | AP19: 22.12632664 | AQ19: 28.31568546 | AR19: 186.5478314 | AS19: 32.55746569 | AT19: 60.45655229 | AU19: 53.15361948 | AV19: 46.96300762 | AW19: 190.17478 | AX19: 394.3835343 | AY19: 17.07699409 | AZ19: 39.7436387 | BA19: 32.4353412 | BB19: 20.64075137 | BC19: 58.71812843 | BD19: 56.34786766 | BE19: 61.53468087 | BF19: 36.37737351 | BG19: 53.14278339 | BH19: 112.3469745 | BI19: 145.549994 | BJ19: 34.41906043 | BK19: 43.94655104 | BL19: 55.46578225 | BM19: 34.80052407 | BN19: 15.82097454 | BO19: 38.72359346 | BP19: 57.25576566 | BQ19: 14.4414589 | BR19: 18.89326007 | BS19: 150.0222121 | BT19: 35.4704397 | BU19: 119.9764152 | BV19: 78.08052007 | BW19: 16.6516315 | BX19: 50.2628336 | BY19: 98.76680864 | BZ19: 165.8710976 | CA19: 68.33103612 | CB19: 28.3591873 | CC19: 28.3195387 | CD19: 24.56065674 | CE19: 86.58139258 | CF19: 273.8989043 | CG19: 23.54928076 | CH19: 217.6936667 | CI19: 94.99822081 | CJ19: 118.0664401 | CK19: 25.60407539 | CL19: 65.24958668 | CM19: 154.8697002 | CN19: 24.20581446 | CO19: 35.35534921 | CP19: 22.62698286 | CQ19: 26.2702184 | CR19: 39.26835748 | CS19: 34.96410664 | CT19: 18.17536843 | CU19: 75.14015437 | CV19: 54.84028157 | CW19: 132.3174416 | CX19: 30.1582493 | CY19: 39.07098771 | CZ19: 17.02935889 | DA19: 58.25544741 | DB19: 89.10965368 | DC19: 41.14816327 | DD19: 32.28559388 | DE19: 23.94208014 | DF19: 431.9818228 | DG19: 49.06610098 | DH19: 28.18030646 | DI19: 20.48575466 | DJ19: 30.34475123 | DK19: 16.44171719 | DL19: 16.12208123 | DM19: 57.78787439 | DN19: 20.8806455 | DO19: 40.36668615 | DP19: 179.5654648 | DQ19: 16.31032991 | DR19: 25.82213697 | DS19: 35.13522898 | DT19: 74.64389814 | DU19: 60.8314128 | DV19: 103.0167903 | DW19: 32.07161912 | DX19: 24.39063482 | DY19: 718.7522649 | DZ19: 378.0662943 | EA19: 21.55775062 | EB19: 87.49588194 | EC19: 33.00230746 | ED19: 44.06591797 | EE19: 62.83740944 | EF19: 24.47670837 | EG19: 30.34685603 | EH19: 22.51188348 | EI19: 31.63055507 | EJ19: 62.56218283 | EK19: 53.82001131 | EL19: 387.3625393 | EM19: 48.02828325 | EN19: 20.83898798 | EO19: 127.989738 | EP19: 25.03259542 | EQ19: 43.15939059 | ER19: 2248.577426 | ES19: 70.23975547 | ET19: 16.05676103 | EU19: 45.51571299 | EV19: 35.37135064 | EW19: 0.7747898488 | EX19: 91.80191832 | EY19: 60.18387776 | EZ19: 415.4873881 | FA19: 24.49552971 | FB19: 32.69270826 | FC19: 75.2320772 | FD19: 70.30114678 | FE19: 133.4307165 | FF19: 28.84190119 | FG19: 72.83986283 | FH19: 307.1958559 | FI19: 33.86764395 | FJ19: 244.105466 | FK19: 86.66991784 | FL19: 210.4157612 | FM19: 18.45555775 | FN19: 58.8675853 | FO19: 31.82569656 | FP19: 31.66346912 | FQ19: 168.9592354 | FR19: 141.4106238 | FS19: 58.48479029 | FT19: 44.90459794 | FU19: 19.66529443 | FV19: 17.71707394 | FW19: 173.2154709 | FX19: 30.43673361 | FY19: 72.29906731 | FZ19: 12.53413037 | GA19: 38.29557502 | GB19: 90.47823163 | GC19: 20.14943378 | GD19: 22.98110648 | GE19: 36.54441778 | GF19: 50.07710604 | GG19: 104.9919424 | GH19: 20.56274436 | GI19: 56.92362358 | GJ19: 31.06866675 | GK19: 125.2380329 | GL19: 27.26161899 | GM19: 97.07629557 | GN19: 264.0562644 | GO19: 28.12159827 | GP19: 15.58171863 | GQ19: 16.9605827 | GR19: 41.32211744 | GS19: 29.70923754 | GT19: 16.43931034 | GU19: 40.57575222 | GV19: 22.62651206 | GW19: 56.50270189 | GX19: 54.89414766 | GY19: 19.60599293 | GZ19: 32.02562687 | HA19: 168.9245774 | HB19: 72.25757725 | HC19: 223.2060966 | HD19: 102.0235151 | HE19: 82.25635235 | HF19: 91.779193 | HG19: 208.1618046 | HH19: 30.03073739 | HI19: 13.79425413 | HJ19: 54.23883606 | HK19: 49.5766519 | HL19: 212.8065586 | HM19: 22.9942376 | HN19: 66.67043361 | HO19: 79.28593968 | HP19: 51.65031529 | HQ19: 64.87553641 | HR19: 49.27804154 | HS19: 11.85243633 | HT19: 56.52201435 | HU19: 71.4117924 | HV19: 36.40159974 | HW19: 20.37452555 | HX19: 33.93893276 | HY19: 12.40538661 | HZ19: 69.72335933 | IA19: 17.21112105 | IB19: 55.30687257 | IC19: 29.47503892 | ID19: 20.4043002 | IE19: 19.41477571 | IF19: 69.30209243 | IG19: 31.04263478 | IH19: 34.64286584 | II19: 49.04897269 | IJ19: 28.242379 | IK19: 12.10264987 | IL19: 17.48416755 | IM19: 472.2623096 | IN19: 66.85758587 | IO19: 27.67398088 | IP19: 28.62703309 | IQ19: 63.03641998 | IR19: 21.44712366 | IS19: 38.68989309 | IT19: 221.2571221 | IU19: 24.15211042 | IV19: 86.70435184 | IW19: 38.30509149 | IX19: 59.4702157 | IY19: 152.6729308 | IZ19: 18.21422258 | JA19: 28.26058432 | JB19: 17.77454306 | JC19: 82.56090983 | JD19: 25.78108915 | JE19: 13.74665241 | JF19: 27.23908012 | JG19: 49.59044588 | JH19: 33.07931543 | JI19: 46.89386427 | JJ19: 41.87396912 | JK19: 25.24023677 | JL19: 38.1384163 | JM19: 25.97121426 | JN19: 31.71346347 | JO19: 68.37591824 | JP19: 52.45872294 | JQ19: 84.48381191 | JR19: 32.20658239 | JS19: 48.33671303 | JT19: 29.05046296 | JU19: 46.93274004 | JV19: 38.12383188 | JW19: 236.8513748 | JX19: 18.63006326 | JY19: 27.80762718 | JZ19: 74.49951744 | KA19: 54.65514539 | KB19: 84.98516587 | KC19: 39.14619983 | KD19: 33.70253872 | KE19: 217.0361613 | KF19: 34.08901372 | KG19: 74.70826533 | KH19: 434.7325653 | KI19: 29.27328005 | KJ19: 52.77231525 | KK19: 33.67703296 | KL19: 60.85677932 | KM19: 47.88978079 | KN19: 23.12167422 | KO19: 32.33792926 | KP19: 40.59574342 | KQ19: 34.02649553 | KR19: 41.22634708 | KS19: 25.73669503 | KT19: 24.79165761 | KU19: 17.20670949 | KV19: 31.3712912 | KW19: 26.17474931 | KX19: 57.29103092 | KY19: 36.96757703 | KZ19: 32.76205859 | LA19: 13.31947691 | LB19: 130.1997686 | LC19: 104.2295792 | LD19: 50.28755774 | LE19: 20.25752702 | LF19: 30.92738943 | LG19: 85.57038554 | LH19: 68.70377689 | LI19: 71.54143932 | LJ19: 114.9525017 | LK19: 78.90381263 | LL19: 35.25476352 | LM19: 155.0803284 | LN19: 42.37131713 | LO19: 32.26213655 | LP19: 45.77023217 | LQ19: 41.79683883 | LR19: 17.92984009 | LS19: 35.2088916 | LT19: 68.31305834 | LU19: 11.89398633 | LV19: 34.96147842 | LW19: 23.72188859 | LX19: 30.09301292 | LY19: 37.30562827 | LZ19: 6.996299442 | MA19: 237.6275653 | MB19: 741.6574935 | MC19: 17.2029858 | MD19: 88.80184817 | ME19: 129.9716448 | MF19: 29.80458056 | MG19: 63.11368275 | MH19: 74.06396165 | MI19: 54.64740788 | MJ19: 56.17187577 | MK19: 71.97883015 | ML19: 34.55410695 | MM19: 164.6164704 | MN19: 21.89753997 | MO19: 36.74536953 | MP19: 61.18162105 | MQ19: 19.74728861 | MR19: 28.24740335 | MS19: 58.57253961 | MT19: 272.7897796 | MU19: 186.5478314 | MV19: 336.7809175 | MW19: 568.4027204 | MX19: 150.7970019 | MY19: 233.1608485 | MZ19: 165.8710976 | NA19: 573.839902 | NB19: 239.1839535 | NC19: 578.4814802 | ND19: 179.5654648 | NE19: 568.9739574 | NF19: 410.9289045 | NG19: 250.0107272 | NH19: 1210.297143 | NI19: 482.4145957 | NJ19: 387.3625393 | NK19: 232.2899647 | NL19: 405.9510248 | NM19: 854.1088292 | NN19: 285.0028926 | NO19: 386.3572658 | NP19: 6605.245958 | NQ19: 481.0924258 | NR19: 566.341714 | NS19: 223.2060966 | NT19: 212.8065586 | NU19: 545.1189681 | NV19: 421.6249281 | NW19: 1155.172969 | NX19: 563.9868076 | NY19: 321.8564042 | NZ19: 190.8482876 | OA19: 199.820031 | OB19: 322.2630841 | OC19: 181.7507102 | OD19: 322.3563724 | OE19: 164.6164704 | OF19: 302.6372714 | OG19: 165.8710976 | OH19: 329.7416649 | OI19: 239.1839535 | OJ19: 541.7117132 | OK19: 179.5654648 | OL19: 264.0562644 | OM19: 434.7325653 | ON19: 470.8012624 | OO19: 307.0391753 | OP19: 272.7897796 | OQ19: 150.7970019 | OR19: 119.9764152 | OS19: 292.6310642 | OT19: 273.8989043 | OU19: 127.9306989 | OV19: 322.2630841 | OW19: 1210.297143 | OX19: 387.3625393 | OY19: 157.0578875 | OZ19: 487.8063189 | PA19: 405.9510248 | PB19: 291.5199103 | PC19: 297.1055425 | PD19: 168.9592354 | PE19: 256.8452136 | PF19: 6605.245958 | PG19: 386.3572658 | PH19: 227.4971171 | PI19: 223.2060966 | PJ19: 102.0235151 | PK19: 212.8065586 | PL19: 152.6729308 | PM19: 443.1868814 | PN19: 1098.929052 | PO19: 321.8564042 | PP19: 336.7809175 | PQ19: 546.6890996 | PR19: 299.9409976 | PS19: 218.4166182 | PT19: 217.0361613 | PU19: 165.8096154 | PV19: 199.820031 | PW19: 344.3417838 | PX19: 322.3563724 | PY19: 655.7421704 | PZ19: 190.8482876
B22: Jobs | D22: England | E22: Local Authority | F22: Local Authority | G22: Local Authority | H22: Local Authority | I22: Local Authority | J22: Local Authority | K22: Local Authority | L22: Local Authority | M22: Local Authority | N22: Local Authority | O22: Local Authority | P22: Local Authority | Q22: Local Authority | R22: Local Authority | S22: Local Authority | T22: Local Authority | U22: Local Authority | V22: Local Authority | W22: Local Authority | X22: Local Authority | Y22: Local Authority | Z22: Local Authority | AA22: Local Authority | AB22: Local Authority | AC22: Local Authority | AD22: Local Authority | AE22: Local Authority | AF22: Local Authority | AG22: Local Authority | AH22: Local Authority | AI22: Local Authority | AJ22: Local Authority | AK22: Local Authority | AL22: Local Authority | AM22: Local Authority | AN22: Local Authority | AO22: Local Authority | AP22: Local Authority | AQ22: Local Authority | AR22: Local Authority | AS22: Local Authority | AT22: Local Authority | AU22: Local Authority | AV22: Local Authority | AW22: Local Authority | AX22: Local Authority | AY22: Local Authority | AZ22: Local Authority | BA22: Local Authority | BB22: Local Authority | BC22: Local Authority | BD22: Local Authority | BE22: Local Authority | BF22: Local Authority | BG22: Local Authority | BH22: Local Authority | BI22: Local Authority | BJ22: Local Authority | BK22: Local Authority | BL22: Local Authority | BM22: Local Authority | BN22: Local Authority | BO22: Local Authority | BP22: Local Authority | BQ22: Local Authority | BR22: Local Authority | BS22: Local Authority | BT22: Local Authority | BU22: Local Authority | BV22: Local Authority | BW22: Local Authority | BX22: Local Authority | BY22: Local Authority | BZ22: Local Authority | CA22: Local Authority | CB22: Local Authority | CC22: Local Authority | CD22: Local Authority | CE22: Local Authority | CF22: Local Authority | CG22: Local Authority | CH22: Local Authority | CI22: Local Authority | CJ22: Local Authority | CK22: Local Authority | CL22: Local Authority | CM22: Local Authority | CN22: Local Authority | CO22: Local Authority | CP22: Local Authority | CQ22: Local Authority | CR22: Local Authority | CS22: Local Authority | CT22: Local Authority | CU22: Local Authority | CV22: Local Authority | CW22: Local Authority | CX22: Local Authority | CY22: Local Authority | CZ22: Local Authority | DA22: Local Authority | DB22: Local Authority | DC22: Local Authority | DD22: Local Authority | DE22: Local Authority | DF22: Local Authority | DG22: Local Authority | DH22: Local Authority | DI22: Local Authority | DJ22: Local Authority | DK22: Local Authority | DL22: Local Authority | DM22: Local Authority | DN22: Local Authority | DO22: Local Authority | DP22: Local Authority | DQ22: Local Authority | DR22: Local Authority | DS22: Local Authority | DT22: Local Authority | DU22: Local Authority | DV22: Local Authority | DW22: Local Authority | DX22: Local Authority | DY22: Local Authority | DZ22: Local Authority | EA22: Local Authority | EB22: Local Authority | EC22: Local Authority | ED22: Local Authority | EE22: Local Authority | EF22: Local Authority | EG22: Local Authority | EH22: Local Authority | EI22: Local Authority | EJ22: Local Authority | EK22: Local Authority | EL22: Local Authority | EM22: Local Authority | EN22: Local Authority | EO22: Local Authority | EP22: Local Authority | EQ22: Local Authority | ER22: Local Authority | ES22: Local Authority | ET22: Local Authority | EU22: Local Authority | EV22: Local Authority | EW22: Local Authority | EX22: Local Authority | EY22: Local Authority | EZ22: Local Authority | FA22: Local Authority | FB22: Local Authority | FC22: Local Authority | FD22: Local Authority | FE22: Local Authority | FF22: Local Authority | FG22: Local Authority | FH22: Local Authority | FI22: Local Authority | FJ22: Local Authority | FK22: Local Authority | FL22: Local Authority | FM22: Local Authority | FN22: Local Authority | FO22: Local Authority | FP22: Local Authority | FQ22: Local Authority | FR22: Local Authority | FS22: Local Authority | FT22: Local Authority | FU22: Local Authority | FV22: Local Authority | FW22: Local Authority | FX22: Local Authority | FY22: Local Authority | FZ22: Local Authority | GA22: Local Authority | GB22: Local Authority | GC22: Local Authority | GD22: Local Authority | GE22: Local Authority | GF22: Local Authority | GG22: Local Authority | GH22: Local Authority | GI22: Local Authority | GJ22: Local Authority | GK22: Local Authority | GL22: Local Authority | GM22: Local Authority | GN22: Local Authority | GO22: Local Authority | GP22: Local Authority | GQ22: Local Authority | GR22: Local Authority | GS22: Local Authority | GT22: Local Authority | GU22: Local Authority | GV22: Local Authority | GW22: Local Authority | GX22: Local Authority | GY22: Local Authority | GZ22: Local Authority | HA22: Local Authority | HB22: Local Authority | HC22: Local Authority | HD22: Local Authority | HE22: Local Authority | HF22: Local Authority | HG22: Local Authority | HH22: Local Authority | HI22: Local Authority | HJ22: Local Authority | HK22: Local Authority | HL22: Local Authority | HM22: Local Authority | HN22: Local Authority | HO22: Local Authority | HP22: Local Authority | HQ22: Local Authority | HR22: Local Authority | HS22: Local Authority | HT22: Local Authority | HU22: Local Authority | HV22: Local Authority | HW22: Local Authority | HX22: Local Authority | HY22: Local Authority | HZ22: Local Authority | IA22: Local Authority | IB22: Local Authority | IC22: Local Authority | ID22: Local Authority | IE22: Local Authority | IF22: Local Authority | IG22: Local Authority | IH22: Local Authority | II22: Local Authority | IJ22: Local Authority | IK22: Local Authority | IL22: Local Authority | IM22: Local Authority | IN22: Local Authority | IO22: Local Authority | IP22: Local Authority | IQ22: Local Authority | IR22: Local Authority | IS22: Local Authority | IT22: Local Authority | IU22: Local Authority | IV22: Local Authority | IW22: Local Authority | IX22: Local Authority | IY22: Local Authority | IZ22: Local Authority | JA22: Local Authority | JB22: Local Authority | JC22: Local Authority | JD22: Local Authority | JE22: Local Authority | JF22: Local Authority | JG22: Local Authority | JH22: Local Authority | JI22: Local Authority | JJ22: Local Authority | JK22: Local Authority | JL22: Local Authority | JM22: Local Authority | JN22: Local Authority | JO22: Local Authority | JP22: Local Authority | JQ22: Local Authority | JR22: Local Authority | JS22: Local Authority | JT22: Local Authority | JU22: Local Authority | JV22: Local Authority | JW22: Local Authority | JX22: Local Authority | JY22: Local Authority | JZ22: Local Authority | KA22: Local Authority | KB22: Local Authority | KC22: Local Authority | KD22: Local Authority | KE22: Local Authority | KF22: Local Authority | KG22: Local Authority | KH22: Local Authority | KI22: Local Authority | KJ22: Local Authority | KK22: Local Authority | KL22: Local Authority | KM22: Local Authority | KN22: Local Authority | KO22: Local Authority | KP22: Local Authority | KQ22: Local Authority | KR22: Local Authority | KS22: Local Authority | KT22: Local Authority | KU22: Local Authority | KV22: Local Authority | KW22: Local Authority | KX22: Local Authority | KY22: Local Authority | KZ22: Local Authority | LA22: Local Authority | LB22: Local Authority | LC22: Local Authority | LD22: Local Authority | LE22: Local Authority | LF22: Local Authority | LG22: Local Authority | LH22: Local Authority | LI22: Local Authority | LJ22: Local Authority | LK22: Local Authority | LL22: Local Authority | LM22: Local Authority | LN22: Local Authority | LO22: Local Authority | LP22: Local Authority | LQ22: Local Authority | LR22: Local Authority | LS22: Local Authority | LT22: Local Authority | LU22: Local Authority | LV22: Local Authority | LW22: Local Authority | LX22: Local Authority | LY22: Local Authority | LZ22: Local Authority | MA22: Local Authority | MB22: Local Authority | MC22: Local Authority | MD22: Local Authority | ME22: Local Authority | MF22: Local Authority | MG22: Local Authority | MH22: Local Authority | MI22: Local Authority | MJ22: Local Authority | MK22: Local Authority | ML22: Local Authority | MM22: Local Authority | MN22: Local Authority | MO22: Local Authority | MP22: Local Authority | MQ22: Local Authority | MR22: Local Authority | MS22: Local Authority | MT22: LEP | MU22: LEP | MV22: LEP | MW22: LEP | MX22: LEP | MY22: LEP | MZ22: LEP | NA22: LEP | NB22: LEP | NC22: LEP | ND22: LEP | NE22: LEP | NF22: LEP | NG22: LEP | NH22: LEP | NI22: LEP | NJ22: LEP | NK22: LEP | NL22: LEP | NM22: LEP | NN22: LEP | NO22: LEP | NP22: LEP | NQ22: LEP | NR22: LEP | NS22: LEP | NT22: LEP | NU22: LEP | NV22: LEP | NW22: LEP | NX22: LEP | NY22: LEP | NZ22: LEP | OA22: LEP | OB22: LEP | OC22: LEP | OD22: LEP | OE22: LEP | OF22: LEP | OG22: CSP | OH22: CSP | OI22: CSP | OJ22: CSP | OK22: CSP | OL22: CSP | OM22: CSP | ON22: CSP | OO22: CSP | OP22: CSP | OQ22: CSP | OR22: CSP | OS22: CSP | OT22: CSP | OU22: CSP | OV22: CSP | OW22: CSP | OX22: CSP | OY22: CSP | OZ22: CSP | PA22: CSP | PB22: CSP | PC22: CSP | PD22: CSP | PE22: CSP | PF22: CSP | PG22: CSP | PH22: CSP | PI22: CSP | PJ22: CSP | PK22: CSP | PL22: CSP | PM22: CSP | PN22: CSP | PO22: CSP | PP22: CSP | PQ22: CSP | PR22: CSP | PS22: CSP | PT22: CSP | PU22: CSP | PV22: CSP | PW22: CSP | PX22: CSP | PY22: CSP | PZ22: CSP
D23: England | E23: Adur | F23: Allerdale | G23: Amber Valley | H23: Arun | I23: Ashfield | J23: Ashford | K23: Aylesbury Vale | L23: Babergh | M23: Barking and Dagenham | N23: Barnet | O23: Barnsley | P23: Barrow-in-Furness | Q23: Basildon | R23: Basingstoke and Deane | S23: Bassetlaw | T23: Bath and North East Somerset | U23: Bedford | V23: Bexley | W23: Birmingham | X23: Blaby | Y23: Blackburn with Darwen | Z23: Blackpool | AA23: Bolsover | AB23: Bolton | AC23: Boston | AD23: Bournemouth | AE23: Bracknell Forest | AF23: Bradford | AG23: Braintree | AH23: Breckland | AI23: Brent | AJ23: Brentwood | AK23: Brighton and Hove | AL23: Bristol | AM23: Broadland | AN23: Bromley | AO23: Bromsgrove | AP23: Broxbourne | AQ23: Broxtowe | AR23: Buckinghamshire CC | AS23: Burnley | AT23: Bury | AU23: Calderdale | AV23: Cambridge | AW23: Cambridgeshire CC | AX23: Camden | AY23: Cannock Chase | AZ23: Canterbury | BA23: Carlisle | BB23: Castle Point | BC23: Central Bedfordshire | BD23: Charnwood | BE23: Chelmsford | BF23: Cheltenham | BG23: Cherwell | BH23: Cheshire East | BI23: Cheshire West and Chester | BJ23: Chesterfield | BK23: Chichester | BL23: Chiltern | BM23: Chorley | BN23: Christchurch | BO23: City of London | BP23: Colchester | BQ23: Copeland | BR23: Corby | BS23: Cornwall | BT23: Cotswold | BU23: County Durham | BV23: Coventry | BW23: Craven | BX23: Crawley | BY23: Croydon | BZ23: Cumbria CC | CA23: Dacorum | CB23: Darlington | CC23: Dartford | CD23: Daventry | CE23: Derby | CF23: Derbyshire CC | CG23: Derbyshire Dales | CH23: Devon CC | CI23: Doncaster | CJ23: Dorset CC | CK23: Dover | CL23: Dudley | CM23: Ealing | CN23: East Cambridgeshire | CO23: East Devon | CP23: East Dorset | CQ23: East Hampshire | CR23: East Hertfordshire | CS23: East Lindsey | CT23: East Northamptonshire | CU23: East Riding of Yorkshire | CV23: East Staffordshire | CW23: East Sussex CC | CX23: Eastbourne | CY23: Eastleigh | CZ23: Eden | DA23: Elmbridge | DB23: Enfield | DC23: Epping Forest | DD23: Epsom and Ewell | DE23: Erewash | DF23: Essex CC | DG23: Exeter | DH23: Fareham | DI23: Fenland | DJ23: Forest Heath | DK23: Forest of Dean | DL23: Fylde | DM23: Gateshead | DN23: Gedling | DO23: Gloucester | DP23: Gloucestershire CC | DQ23: Gosport | DR23: Gravesham | DS23: Great Yarmouth | DT23: Greenwich | DU23: Guildford | DV23: Hackney | DW23: Halton | DX23: Hambleton | DY23: Hammersmith and Fulham | DZ23: Hampshire CC | EA23: Harborough | EB23: Haringey | EC23: Harlow | ED23: Harrogate | EE23: Harrow | EF23: Hart | EG23: Hartlepool | EH23: Hastings | EI23: Havant | EJ23: Havering | EK23: Herefordshire | EL23: Hertfordshire CC | EM23: Hertsmere | EN23: High Peak | EO23: Hillingdon | EP23: Hinckley and Bosworth | EQ23: Horsham | ER23: Hounslow | ES23: Huntingdonshire | ET23: Hyndburn | EU23: Ipswich | EV23: Isle of Wight | EW23: Isles of Scilly | EX23: Islington | EY23: Kensington and Chelsea | EZ23: Kent CC | FA23: Kettering | FB23: King`s Lynn and West Norfolk | FC23: Kingston upon Hull | FD23: Kingston upon Thames | FE23: Kirklees | FF23: Knowsley | FG23: Lambeth | FH23: Lancashire CC | FI23: Lancaster | FJ23: Leeds | FK23: Leicester | FL23: Leicestershire CC | FM23: Lewes | FN23: Lewisham | FO23: Lichfield | FP23: Lincoln | FQ23: Lincolnshire CC | FR23: Liverpool | FS23: Luton | FT23: Maidstone | FU23: Maldon | FV23: Malvern Hills | FW23: Manchester | FX23: Mansfield | FY23: Medway | FZ23: Melton | GA23: Mendip | GB23: Merton | GC23: Mid Devon | GD23: Mid Suffolk | GE23: Mid Sussex | GF23: Middlesbrough | GG23: Milton Keynes | GH23: Mole Valley | GI23: New Forest | GJ23: Newark and Sherwood | GK23: Newcastle upon Tyne | GL23: Newcastle-under-Lyme | GM23: Newham | GN23: Norfolk CC | GO23: North Devon | GP23: North Dorset | GQ23: North East Derbyshire | GR23: North East Lincolnshire | GS23: North Hertfordshire | GT23: North Kesteven | GU23: North Lincolnshire | GV23: North Norfolk | GW23: North Somerset | GX23: North Tyneside | GY23: North Warwickshire | GZ23: North West Leicestershire | HA23: North Yorkshire CC | HB23: Northampton | HC23: Northamptonshire CC | HD23: Northumberland | HE23: Norwich | HF23: Nottingham | HG23: Nottinghamshire CC | HH23: Nuneaton and Bedworth | HI23: Oadby and Wigston | HJ23: Oldham | HK23: Oxford | HL23: Oxfordshire CC | HM23: Pendle | HN23: Peterborough | HO23: Plymouth | HP23: Poole | HQ23: Portsmouth | HR23: Preston | HS23: Purbeck | HT23: Reading | HU23: Redbridge | HV23: Redcar and Cleveland | HW23: Redditch | HX23: Reigate and Banstead | HY23: Ribble Valley | HZ23: Richmond upon Thames | IA23: Richmondshire | IB23: Rochdale | IC23: Rochford | ID23: Rossendale | IE23: Rother | IF23: Rotherham | IG23: Rugby | IH23: Runnymede | II23: Rushcliffe | IJ23: Rushmoor | IK23: Rutland | IL23: Ryedale | IM23: Salford | IN23: Sandwell | IO23: Scarborough | IP23: Sedgemoor | IQ23: Sefton | IR23: Selby | IS23: Sevenoaks | IT23: Sheffield | IU23: Shepway | IV23: Shropshire | IW23: Slough | IX23: Solihull | IY23: Somerset CC | IZ23: South Bucks | JA23: South Cambridgeshire | JB23: South Derbyshire | JC23: South Gloucestershire | JD23: South Hams | JE23: South Holland | JF23: South Kesteven | JG23: South Lakeland | JH23: South Norfolk | JI23: South Northamptonshire | JJ23: South Oxfordshire | JK23: South Ribble | JL23: South Somerset | JM23: South Staffordshire | JN23: South Tyneside | JO23: Southampton | JP23: Southend-on-Sea | JQ23: Southwark | JR23: Spelthorne | JS23: St Albans | JT23: St Edmundsbury | JU23: St Helens | JV23: Stafford | JW23: Staffordshire CC | JX23: Staffordshire Moorlands | JY23: Stevenage | JZ23: Stockport | KA23: Stockton-on-Tees | KB23: Stoke-on-Trent | KC23: Stratford-on-Avon | KD23: Stroud | KE23: Suffolk CC | KF23: Suffolk Coastal | KG23: Sunderland | KH23: Surrey CC | KI23: Surrey Heath | KJ23: Sutton | KK23: Swale | KL23: Swindon | KM23: Tameside | KN23: Tamworth | KO23: Tandridge | KP23: Taunton Deane | KQ23: Teignbridge | KR23: Telford and Wrekin | KS23: Tendring | KT23: Test Valley | KU23: Tewkesbury | KV23: Thanet | KW23: Three Rivers | KX23: Thurrock | KY23: Tonbridge and Malling | KZ23: Torbay | LA23: Torridge | LB23: Tower Hamlets | LC23: Trafford | LD23: Tunbridge Wells | LE23: Uttlesford | LF23: Vale of White Horse | LG23: Wakefield | LH23: Walsall | LI23: Waltham Forest | LJ23: Wandsworth | LK23: Warrington | LL23: Warwick | LM23: Warwickshire CC | LN23: Watford | LO23: Waveney | LP23: Waverley | LQ23: Wealden | LR23: Wellingborough | LS23: Welwyn Hatfield | LT23: West Berkshire | LU23: West Devon | LV23: West Dorset | LW23: West Lancashire | LX23: West Lindsey | LY23: West Oxfordshire | LZ23: West Somerset | MA23: West Sussex CC | MB23: Westminster | MC23: Weymouth and Portland | MD23: Wigan | ME23: Wiltshire | MF23: Winchester | MG23: Windsor and Maidenhead | MH23: Wirral | MI23: Woking | MJ23: Wokingham | MK23: Wolverhampton | ML23: Worcester | MM23: Worcestershire CC | MN23: Worthing | MO23: Wychavon | MP23: Wycombe | MQ23: Wyre | MR23: Wyre Forest | MS23: York | MT23: Black Country | MU23: Buckinghamshire Thames Valley | MV23: Cheshire and Warrington | MW23: Coast to Capital | MX23: Cornwall and Isles of Scilly | MY23: Coventry and Warwickshire | MZ23: Cumbria | NA23: Derby, Derbyshire, Nottingham and Nottinghamshire | NB23: Dorset | NC23: Enterprise M3 | ND23: Gloucestershire | NE23: Greater Birmingham and Solihull | NF23: Greater Cambridge and Greater Peterborough | NG23: Greater Lincolnshire | NH23: Greater Manchester | NI23: Heart of the South West | NJ23: Hertfordshire | NK23: Humber | NL23: Lancashire | NM23: Leeds City Region | NN23: Leicester and Leicestershire | NO23: Liverpool City Region | NP23: London Enterprise Panel | NQ23: New Anglia | NR23: North Eastern | NS23: Northamptonshire | NT23: Oxfordshire | NU23: Sheffield City Region | NV23: Solent | NW23: South East | NX23: South East Midlands | NY23: Stoke-on-Trent and Staffordshire | NZ23: Swindon and Wiltshire | OA23: Tees Valley | OB23: Thames Valley Berkshire | OC23: The Marches | OD23: West of England | OE23: Worcestershire | OF23: York North Yorkshire and East Riding | OG23: Active Cumbria | OH23: Active Devon | OI23: Active Dorset | OJ23: Active Essex | OK23: Active Gloucestershire | OL23: Active Norfolk | OM23: Active Surrey | ON23: Active Sussex | OO23: Birmingham Sport & Physical Activity Partnership | OP23: Black Country Be Active Partnership | OQ23: Cornwall Sports Partnership | OR23: County Durham Sport | OS23: Coventry Solihull & Warwickshire Sport | OT23: Derbyshire Sports Partnership | OU23: Energize Shropshire Telford & Wrekin | OV23: Get Berkshire Active | OW23: Greater Sport | OX23: Herts Sports Partnership | OY23: Humber Sports Partnership | OZ23: Kent Sport | PA23: Lancashire Sport Partnership | PB23: Leap (Bucks & MK Sport and Activity Partnership) | PC23: Leicestershire & Rutland Sport | PD23: Lincolnshire Sports Partnership | PE23: Living Sport | PF23: London | PG23: Merseyside Sport | PH23: North Yorkshire Sport | PI23: Northamptonshire Sport | PJ23: Northumberland Sport | PK23: Oxfordshire Sports Partnership | PL23: Somerset Activity & Sports Partnership | PM23: South Yorkshire Sport | PN23: South & West Yorkshire Sport | PO23: Sport Across Staffordshire & Stoke On Trent | PP23: Sport Cheshire | PQ23: Sport Hampshire & Isle of Wight | PR23: Sport Nottinghamshire | PS23: Sports Partnership Herefordshire & Worcestershire | PT23: Suffolk Sport | PU23: Teams Beds & Luton | PV23: Tees Valley Sport | PW23: Tyne & Wear Sport | PX23: Wesport | PY23: West Yorkshire Sport | PZ23: Wiltshire & Swindon Sport
B24: 1 | C24: Sport/class subscription fees | D24: 244775 | E24: 234 | F24: 291 | G24: 435 | H24: 564 | I24: 371 | J24: 518 | K24: 920 | L24: 430 | M24: 564 | N24: 1441 | O24: 1035 | P24: 198 | Q24: 805 | R24: 928 | S24: 433 | T24: 851 | U24: 641 | V24: 604 | W24: 3645 | X24: 661 | Y24: 959 | Z24: 708 | AA24: 97 | AB24: 1159 | AC24: 199 | AD24: 1143 | AE24: 706 | AF24: 1846 | AG24: 567 | AH24: 406 | AI24: 1162 | AJ24: 431 | AK24: 1972 | AL24: 2020 | AM24: 379 | AN24: 1838 | AO24: 583 | AP24: 318 | AQ24: 393 | AR24: 2987 | AS24: 482 | AT24: 672 | AU24: 822 | AV24: 450 | AW24: 2198 | AX24: 1453 | AY24: 217 | AZ24: 629 | BA24: 487 | BB24: 296 | BC24: 995 | BD24: 1055 | BE24: 804 | BF24: 630 | BG24: 939 | BH24: 2008 | BI24: 2369 | BJ24: 454 | BK24: 974 | BL24: 476 | BM24: 459 | BN24: 233 | BO24: 599 | BP24: 951 | BQ24: 223 | BR24: 219 | BS24: 2122 | BT24: 726 | BU24: 2074 | BV24: 1065 | BW24: 223 | BX24: 555 | BY24: 1125 | BZ24: 1820 | CA24: 1071 | CB24: 446 | CC24: 368 | CD24: 427 | CE24: 1561 | CF24: 4134 | CG24: 270 | CH24: 3302 | CI24: 1767 | CJ24: 1848 | CK24: 451 | CL24: 851 | CM24: 931 | CN24: 383 | CO24: 512 | CP24: 481 | CQ24: 470 | CR24: 701 | CS24: 492 | CT24: 274 | CU24: 1240 | CV24: 1191 | CW24: 2386 | CX24: 500 | CY24: 683 | CZ24: 198 | DA24: 1264 | DB24: 1056 | DC24: 876 | DD24: 710 | DE24: 400 | DF24: 6367 | DG24: 802 | DH24: 401 | DI24: 265 | DJ24: 762 | DK24: 267 | DL24: 210 | DM24: 773 | DN24: 330 | DO24: 468 | DP24: 2860 | DQ24: 279 | DR24: 462 | DS24: 434 | DT24: 1095 | DU24: 1219 | DV24: 692 | DW24: 513 | DX24: 492 | DY24: 2518 | DZ24: 6210 | EA24: 400 | EB24: 1153 | EC24: 401 | ED24: 716 | EE24: 550 | EF24: 490 | EG24: 582 | EH24: 340 | EI24: 476 | EJ24: 879 | EK24: 1020 | EL24: 5876 | EM24: 664 | EN24: 319 | EO24: 1050 | EP24: 471 | EQ24: 847 | ER24: 1450 | ES24: 767 | ET24: 225 | EU24: 688 | EV24: 608 | EW24: 19 | EX24: 1105 | EY24: 712 | EZ24: 6237 | FA24: 209 | FB24: 412 | FC24: 1115 | FD24: 1242 | FE24: 1813 | FF24: 372 | FG24: 843 | FH24: 4483 | FI24: 484 | FJ24: 3670 | FK24: 1285 | FL24: 3777 | FM24: 302 | FN24: 719 | FO24: 669 | FP24: 535 | FQ24: 2285 | FR24: 1811 | FS24: 765 | FT24: 477 | FU24: 284 | FV24: 352 | FW24: 2121 | FX24: 551 | FY24: 1194 | FZ24: 216 | GA24: 582 | GB24: 1098 | GC24: 339 | GD24: 386 | GE24: 729 | GF24: 855 | GG24: 1774 | GH24: 357 | GI24: 1241 | GJ24: 599 | GK24: 2652 | GL24: 424 | GM24: 713 | GN24: 3583 | GO24: 336 | GP24: 223 | GQ24: 298 | GR24: 612 | GS24: 464 | GT24: 197 | GU24: 495 | GV24: 371 | GW24: 927 | GX24: 853 | GY24: 456 | GZ24: 529 | HA24: 2792 | HB24: 1108 | HC24: 3709 | HD24: 2144 | HE24: 1101 | HF24: 1374 | HG24: 3845 | HH24: 456 | HI24: 282 | HJ24: 637 | HK24: 690 | HL24: 3908 | HM24: 269 | HN24: 898 | HO24: 1172 | HP24: 947 | HQ24: 1080 | HR24: 726 | HS24: 253 | HT24: 837 | HU24: 803 | HV24: 719 | HW24: 230 | HX24: 630 | HY24: 214 | HZ24: 1196 | IA24: 327 | IB24: 651 | IC24: 353 | ID24: 332 | IE24: 338 | IF24: 808 | IG24: 552 | IH24: 762 | II24: 1168 | IJ24: 437 | IK24: 163 | IL24: 378 | IM24: 722 | IN24: 828 | IO24: 423 | IP24: 305 | IQ24: 892 | IR24: 232 | IS24: 842 | IT24: 2635 | IU24: 415 | IV24: 1672 | IW24: 449 | IX24: 1017 | IY24: 2421 | IZ24: 385 | JA24: 333 | JB24: 299 | JC24: 1172 | JD24: 434 | JE24: 99 | JF24: 381 | JG24: 425 | JH24: 479 | JI24: 1180 | JJ24: 852 | JK24: 492 | JL24: 731 | JM24: 519 | JN24: 470 | JO24: 993 | JP24: 731 | JQ24: 845 | JR24: 619 | JS24: 842 | JT24: 406 | JU24: 869 | JV24: 437 | JW24: 4027 | JX24: 316 | JY24: 374 | JZ24: 920 | KA24: 834 | KB24: 874 | KC24: 723 | KD24: 464 | KE24: 3596 | KF24: 601 | KG24: 1190 | KH24: 9093 | KI24: 582 | KJ24: 809 | KK24: 543 | KL24: 929 | KM24: 560 | KN24: 255 | KO24: 749 | KP24: 678 | KQ24: 562 | KR24: 621 | KS24: 283 | KT24: 361 | KU24: 305 | KV24: 363 | KW24: 312 | KX24: 472 | KY24: 777 | KZ24: 438 | LA24: 193 | LB24: 1081 | LC24: 1740 | LD24: 391 | LE24: 316 | LF24: 599 | LG24: 1197 | LH24: 957 | LI24: 789 | LJ24: 1545 | LK24: 1040 | LL24: 642 | LM24: 2829 | LN24: 590 | LO24: 324 | LP24: 977 | LQ24: 905 | LR24: 291 | LS24: 540 | LT24: 1381 | LU24: 124 | LV24: 404 | LW24: 302 | LX24: 383 | LY24: 828 | LZ24: 125 | MA24: 4183 | MB24: 2953 | MC24: 253 | MD24: 1421 | ME24: 1904 | MF24: 444 | MG24: 1117 | MH24: 1020 | MI24: 1225 | MJ24: 1274 | MK24: 1102 | ML24: 654 | MM24: 3064 | MN24: 281 | MO24: 784 | MP24: 1205 | MQ24: 289 | MR24: 461 | MS24: 853 | MT24: 3738 | MU24: 2987 | MV24: 5417 | MW24: 10029 | MX24: 2141 | MY24: 3894 | MZ24: 1820 | NA24: 9353 | NB24: 3939 | NC24: 11018 | ND24: 2860 | NE24: 8268 | NF24: 5619 | NG24: 3393 | NH24: 10602 | NI24: 7333 | NJ24: 5876 | NK24: 3463 | NL24: 6151 | NM24: 12407 | NN24: 4898 | NO24: 5476 | NP24: 36614 | NQ24: 7180 | NR24: 10155 | NS24: 3709 | NT24: 3908 | NU24: 7527 | NV24: 7036 | NW24: 17387 | NX24: 9179 | NY24: 4902 | NZ24: 2833 | OA24: 3436 | OB24: 5763 | OC24: 3314 | OD24: 4970 | OE24: 3064 | OF24: 4885 | OG24: 1820 | OH24: 4912 | OI24: 3939 | OJ24: 7570 | OK24: 2860 | OL24: 3583 | OM24: 9093 | ON24: 8542 | OO24: 3645 | OP24: 3738 | OQ24: 2141 | OR24: 2074 | OS24: 4912 | OT24: 4134 | OU24: 2294 | OV24: 5763 | OW24: 10602 | OX24: 5876 | OY24: 2348 | OZ24: 7431 | PA24: 6151 | PB24: 4761 | PC24: 5061 | PD24: 2285 | PE24: 3096 | PF24: 36614 | PG24: 5476 | PH24: 3645 | PI24: 3709 | PJ24: 2144 | PK24: 3908 | PL24: 2421 | PM24: 6244 | PN24: 15593 | PO24: 4902 | PP24: 5417 | PQ24: 8892 | PR24: 5219 | PS24: 4085 | PT24: 3596 | PU24: 2402 | PV24: 3436 | PW24: 5937 | PX24: 4970 | PY24: 9349 | PZ24: 2833
B25: 2 | C25: Participation sport
B26: 3 | C26: Sports equipment | D26: 24689 | E26: 8 | F26: 136 | G26: 14 | H26: 8 | I26: 12 | J26: 69 | K26: 58 | L26: 17 | M26: 14 | N26: 190 | O26: 34 | P26: 36 | Q26: 107 | R26: 113 | S26: 20 | T26: 85 | U26: 87 | V26: 65 | W26: 362 | X26: 68 | Y26: 47 | Z26: 55 | AA26: 113 | AB26: 111 | AC26: 23 | AD26: 146 | AE26: 55 | AF26: 150 | AG26: 104 | AH26: 31 | AI26: 94 | AJ26: 28 | AK26: 135 | AL26: 254 | AM26: 74 | AN26: 154 | AO26: 13 | AP26: 29 | AQ26: 56 | AR26: 128 | AS26: 71 | AT26: 168 | AU26: 67 | AV26: 188 | AW26: 544 | AX26: 194 | AY26: 16 | AZ26: 69 | BA26: 65 | BB26: 34 | BC26: 29 | BD26: 80 | BE26: 132 | BF26: 64 | BG26: 92 | BH26: 152 | BI26: 337 | BJ26: 88 | BK26: 46 | BL26: 15 | BM26: 87 | BN26: 39 | BO26: 113 | BP26: 91 | BQ26: 14 | BR26: 42 | BS26: 332 | BT26: 52 | BU26: 91 | BV26: 112 | BW26: 37 | BX26: 173 | BY26: 171 | BZ26: 518 | CA26: 149 | CB26: 33 | CC26: 62 | CD26: 35 | CE26: 116 | CF26: 456 | CG26: 72 | CH26: 455 | CI26: 98 | CJ26: 228 | CK26: 23 | CL26: 83 | CM26: 136 | CN26: 39 | CO26: 75 | CP26: 15 | CQ26: 20 | CR26: 39 | CS26: 62 | CT26: 12 | CU26: 75 | CV26: 63 | CW26: 138 | CX26: 57 | CY26: 60 | CZ26: 52 | DA26: 51 | DB26: 137 | DC26: 32 | DD26: 28 | DE26: 19 | DF26: 812 | DG26: 121 | DH26: 57 | DI26: 37 | DJ26: 15 | DK26: 17 | DL26: 29 | DM26: 118 | DN26: 9 | DO26: 111 | DP26: 328 | DQ26: 4 | DR26: 22 | DS26: 81 | DT26: 89 | DU26: 89 | DV26: 93 | DW26: 30 | DX26: 17 | DY26: 189 | DZ26: 504 | EA26: 15 | EB26: 131 | EC26: 92 | ED26: 62 | EE26: 67 | EF26: 12 | EG26: 22 | EH26: 32 | EI26: 56 | EJ26: 83 | EK26: 61 | EL26: 608 | EM26: 78 | EN26: 28 | EO26: 142 | EP26: 17 | EQ26: 52 | ER26: 151 | ES26: 241 | ET26: 11 | EU26: 92 | EV26: 49 | EW26: 0 | EX26: 129 | EY26: 97 | EZ26: 554 | FA26: 66 | FB26: 63 | FC26: 114 | FD26: 112 | FE26: 211 | FF26: 22 | FG26: 75 | FH26: 516 | FI26: 57 | FJ26: 269 | FK26: 84 | FL26: 286 | FM26: 12 | FN26: 44 | FO26: 18 | FP26: 61 | FQ26: 301 | FR26: 294 | FS26: 77 | FT26: 89 | FU26: 45 | FV26: 11 | FW26: 323 | FX26: 35 | FY26: 91 | FZ26: 14 | GA26: 85 | GB26: 118 | GC26: 25 | GD26: 22 | GE26: 20 | GF26: 63 | GG26: 175 | GH26: 22 | GI26: 49 | GJ26: 25 | GK26: 121 | GL26: 35 | GM26: 225 | GN26: 511 | GO26: 79 | GP26: 23 | GQ26: 5 | GR26: 55 | GS26: 34 | GT26: 14 | GU26: 77 | GV26: 35 | GW26: 78 | GX26: 80 | GY26: 6 | GZ26: 57 | HA26: 228 | HB26: 112 | HC26: 309 | HD26: 71 | HE26: 204 | HF26: 124 | HG26: 190 | HH26: 36 | HI26: 5 | HJ26: 79 | HK26: 132 | HL26: 313 | HM26: 48 | HN26: 156 | HO26: 165 | HP26: 83 | HQ26: 99 | HR26: 106 | HS26: 6 | HT26: 114 | HU26: 98 | HV26: 15 | HW26: 45 | HX26: 26 | HY26: 8 | HZ26: 60 | IA26: 10 | IB26: 106 | IC26: 89 | ID26: 32 | IE26: 15 | IF26: 149 | IG26: 40 | IH26: 36 | II26: 33 | IJ26: 52 | IK26: 31 | IL26: 15 | IM26: 79 | IN26: 62 | IO26: 35 | IP26: 70 | IQ26: 86 | IR26: 53 | IS26: 28 | IT26: 393 | IU26: 23 | IV26: 89 | IW26: 72 | IX26: 72 | IY26: 268 | IZ26: 7 | JA26: 38 | JB26: 1 | JC26: 186 | JD26: 48 | JE26: 27 | JF26: 30 | JG26: 215 | JH26: 23 | JI26: 26 | JJ26: 35 | JK26: 10 | JL26: 24 | JM26: 17 | JN26: 19 | JO26: 140 | JP26: 85 | JQ26: 185 | JR26: 42 | JS26: 46 | JT26: 48 | JU26: 36 | JV26: 42 | JW26: 252 | JX26: 4 | JY26: 39 | JZ26: 140 | KA26: 70 | KB26: 122 | KC26: 56 | KD26: 75 | KE26: 322 | KF26: 39 | KG26: 77 | KH26: 451 | KI26: 32 | KJ26: 58 | KK26: 36 | KL26: 102 | KM26: 74 | KN26: 58 | KO26: 22 | KP26: 81 | KQ26: 56 | KR26: 48 | KS26: 43 | KT26: 33 | KU26: 10 | KV26: 52 | KW26: 14 | KX26: 183 | KY26: 17 | KZ26: 60 | LA26: 20 | LB26: 110 | LC26: 180 | LD26: 63 | LE26: 17 | LF26: 22 | LG26: 138 | LH26: 56 | LI26: 126 | LJ26: 148 | LK26: 181 | LL26: 35 | LM26: 174 | LN26: 108 | LO26: 89 | LP26: 42 | LQ26: 22 | LR26: 17 | LS26: 72 | LT26: 83 | LU26: 31 | LV26: 114 | LW26: 38 | LX26: 84 | LY26: 31 | LZ26: 7 | MA26: 345 | MB26: 650 | MC26: 31 | MD26: 118 | ME26: 226 | MF26: 49 | MG26: 117 | MH26: 91 | MI26: 62 | MJ26: 30 | MK26: 97 | ML26: 45 | MM26: 187 | MN26: 38 | MO26: 25 | MP26: 48 | MQ26: 20 | MR26: 48 | MS26: 129 | MT26: 298 | MU26: 128 | MV26: 670 | MW26: 763 | MX26: 332 | MY26: 286 | MZ26: 518 | NA26: 770 | NB26: 457 | NC26: 680 | ND26: 328 | NE26: 696 | NF26: 907 | NG26: 432 | NH26: 1377 | NI26: 948 | NJ26: 608 | NK26: 320 | NL26: 618 | NM26: 1150 | NN26: 339 | NO26: 558 | NP26: 4448 | NQ26: 832 | NR26: 576 | NS26: 309 | NT26: 313 | NU26: 900 | NV26: 615 | NW26: 1864 | NX26: 799 | NY26: 374 | NZ26: 328 | OA26: 203 | OB26: 471 | OC26: 198 | OD26: 603 | OE26: 187 | OF26: 432 | OG26: 518 | OH26: 681 | OI26: 457 | OJ26: 1080 | OK26: 328 | OL26: 511 | OM26: 451 | ON26: 619 | OO26: 362 | OP26: 298 | OQ26: 332 | OR26: 91 | OS26: 358 | OT26: 456 | OU26: 137 | OV26: 471 | OW26: 1377 | OX26: 608 | OY26: 206 | OZ26: 645 | PA26: 618 | PB26: 303 | PC26: 370 | PD26: 301 | PE26: 700 | PF26: 4448 | PG26: 558 | PH26: 358 | PI26: 309 | PJ26: 71 | PK26: 313 | PL26: 268 | PM26: 675 | PN26: 1509 | PO26: 374 | PP26: 670 | PQ26: 792 | PR26: 314 | PS26: 248 | PT26: 322 | PU26: 194 | PV26: 203 | PW26: 414 | PX26: 603 | PY26: 834 | PZ26: 328
B27: 4 | C27: Sportswear | D27: 1646 | E27: 1 | F27: 9 | G27: 1 | H27: 1 | I27: 1 | J27: 5 | K27: 4 | L27: 1 | M27: 1 | N27: 13 | O27: 2 | P27: 2 | Q27: 7 | R27: 8 | S27: 1 | T27: 6 | U27: 6 | V27: 4 | W27: 24 | X27: 5 | Y27: 3 | Z27: 4 | AA27: 8 | AB27: 7 | AC27: 2 | AD27: 10 | AE27: 4 | AF27: 10 | AG27: 7 | AH27: 2 | AI27: 6 | AJ27: 2 | AK27: 9 | AL27: 17 | AM27: 5 | AN27: 10 | AO27: 1 | AP27: 2 | AQ27: 4 | AR27: 9 | AS27: 5 | AT27: 11 | AU27: 4 | AV27: 13 | AW27: 36 | AX27: 13 | AY27: 1 | AZ27: 5 | BA27: 4 | BB27: 2 | BC27: 2 | BD27: 5 | BE27: 9 | BF27: 4 | BG27: 6 | BH27: 10 | BI27: 22 | BJ27: 6 | BK27: 3 | BL27: 1 | BM27: 6 | BN27: 3 | BO27: 8 | BP27: 6 | BQ27: 1 | BR27: 3 | BS27: 22 | BT27: 3 | BU27: 6 | BV27: 7 | BW27: 2 | BX27: 12 | BY27: 11 | BZ27: 35 | CA27: 10 | CB27: 2 | CC27: 4 | CD27: 2 | CE27: 8 | CF27: 30 | CG27: 5 | CH27: 30 | CI27: 7 | CJ27: 15 | CK27: 2 | CL27: 6 | CM27: 9 | CN27: 3 | CO27: 5 | CP27: 1 | CQ27: 1 | CR27: 3 | CS27: 4 | CT27: 1 | CU27: 5 | CV27: 4 | CW27: 9 | CX27: 4 | CY27: 4 | CZ27: 3 | DA27: 3 | DB27: 9 | DC27: 2 | DD27: 2 | DE27: 1 | DF27: 54 | DG27: 8 | DH27: 4 | DI27: 2 | DJ27: 1 | DK27: 1 | DL27: 2 | DM27: 8 | DN27: 1 | DO27: 7 | DP27: 22 | DQ27: 0 | DR27: 1 | DS27: 5 | DT27: 6 | DU27: 6 | DV27: 6 | DW27: 2 | DX27: 1 | DY27: 13 | DZ27: 34 | EA27: 1 | EB27: 9 | EC27: 6 | ED27: 4 | EE27: 4 | EF27: 1 | EG27: 1 | EH27: 2 | EI27: 4 | EJ27: 6 | EK27: 4 | EL27: 41 | EM27: 5 | EN27: 2 | EO27: 9 | EP27: 1 | EQ27: 3 | ER27: 10 | ES27: 16 | ET27: 1 | EU27: 6 | EV27: 3 | EW27: 0 | EX27: 9 | EY27: 6 | EZ27: 37 | FA27: 4 | FB27: 4 | FC27: 8 | FD27: 7 | FE27: 14 | FF27: 1 | FG27: 5 | FH27: 34 | FI27: 4 | FJ27: 18 | FK27: 6 | FL27: 19 | FM27: 1 | FN27: 3 | FO27: 1 | FP27: 4 | FQ27: 20 | FR27: 20 | FS27: 5 | FT27: 6 | FU27: 3 | FV27: 1 | FW27: 22 | FX27: 2 | FY27: 6 | FZ27: 1 | GA27: 6 | GB27: 8 | GC27: 2 | GD27: 1 | GE27: 1 | GF27: 4 | GG27: 12 | GH27: 1 | GI27: 3 | GJ27: 2 | GK27: 8 | GL27: 2 | GM27: 15 | GN27: 34 | GO27: 5 | GP27: 2 | GQ27: 0 | GR27: 4 | GS27: 2 | GT27: 1 | GU27: 5 | GV27: 2 | GW27: 5 | GX27: 5 | GY27: 0 | GZ27: 4 | HA27: 15 | HB27: 7 | HC27: 21 | HD27: 5 | HE27: 14 | HF27: 8 | HG27: 13 | HH27: 2 | HI27: 0 | HJ27: 5 | HK27: 9 | HL27: 21 | HM27: 3 | HN27: 10 | HO27: 11 | HP27: 6 | HQ27: 7 | HR27: 7 | HS27: 0 | HT27: 8 | HU27: 7 | HV27: 1 | HW27: 3 | HX27: 2 | HY27: 1 | HZ27: 4 | IA27: 1 | IB27: 7 | IC27: 6 | ID27: 2 | IE27: 1 | IF27: 10 | IG27: 3 | IH27: 2 | II27: 2 | IJ27: 3 | IK27: 2 | IL27: 1 | IM27: 5 | IN27: 4 | IO27: 2 | IP27: 5 | IQ27: 6 | IR27: 4 | IS27: 2 | IT27: 26 | IU27: 2 | IV27: 6 | IW27: 5 | IX27: 5 | IY27: 18 | IZ27: 0 | JA27: 3 | JB27: 0 | JC27: 12 | JD27: 3 | JE27: 2 | JF27: 2 | JG27: 14 | JH27: 2 | JI27: 2 | JJ27: 2 | JK27: 1 | JL27: 2 | JM27: 1 | JN27: 1 | JO27: 9 | JP27: 6 | JQ27: 12 | JR27: 3 | JS27: 3 | JT27: 3 | JU27: 2 | JV27: 3 | JW27: 17 | JX27: 0 | JY27: 3 | JZ27: 9 | KA27: 5 | KB27: 8 | KC27: 4 | KD27: 5 | KE27: 21 | KF27: 3 | KG27: 5 | KH27: 30 | KI27: 2 | KJ27: 4 | KK27: 2 | KL27: 7 | KM27: 5 | KN27: 4 | KO27: 1 | KP27: 5 | KQ27: 4 | KR27: 3 | KS27: 3 | KT27: 2 | KU27: 1 | KV27: 3 | KW27: 1 | KX27: 12 | KY27: 1 | KZ27: 4 | LA27: 1 | LB27: 7 | LC27: 12 | LD27: 4 | LE27: 1 | LF27: 1 | LG27: 9 | LH27: 4 | LI27: 8 | LJ27: 10 | LK27: 12 | LL27: 2 | LM27: 12 | LN27: 7 | LO27: 6 | LP27: 3 | LQ27: 1 | LR27: 1 | LS27: 5 | LT27: 6 | LU27: 2 | LV27: 8 | LW27: 3 | LX27: 6 | LY27: 2 | LZ27: 0 | MA27: 23 | MB27: 43 | MC27: 2 | MD27: 8 | ME27: 15 | MF27: 3 | MG27: 8 | MH27: 6 | MI27: 4 | MJ27: 2 | MK27: 6 | ML27: 3 | MM27: 12 | MN27: 3 | MO27: 2 | MP27: 3 | MQ27: 1 | MR27: 3 | MS27: 9 | MT27: 20 | MU27: 9 | MV27: 45 | MW27: 51 | MX27: 22 | MY27: 19 | MZ27: 35 | NA27: 51 | NB27: 30 | NC27: 45 | ND27: 22 | NE27: 46 | NF27: 60 | NG27: 29 | NH27: 92 | NI27: 63 | NJ27: 41 | NK27: 21 | NL27: 41 | NM27: 77 | NN27: 23 | NO27: 37 | NP27: 297 | NQ27: 55 | NR27: 38 | NS27: 21 | NT27: 21 | NU27: 60 | NV27: 41 | NW27: 124 | NX27: 53 | NY27: 25 | NZ27: 22 | OA27: 14 | OB27: 31 | OC27: 13 | OD27: 40 | OE27: 12 | OF27: 29 | OG27: 35 | OH27: 45 | OI27: 30 | OJ27: 72 | OK27: 22 | OL27: 34 | OM27: 30 | ON27: 41 | OO27: 24 | OP27: 20 | OQ27: 22 | OR27: 6 | OS27: 24 | OT27: 30 | OU27: 9 | OV27: 31 | OW27: 92 | OX27: 41 | OY27: 14 | OZ27: 43 | PA27: 41 | PB27: 20 | PC27: 25 | PD27: 20 | PE27: 47 | PF27: 297 | PG27: 37 | PH27: 24 | PI27: 21 | PJ27: 5 | PK27: 21 | PL27: 18 | PM27: 45 | PN27: 101 | PO27: 25 | PP27: 45 | PQ27: 53 | PR27: 21 | PS27: 17 | PT27: 21 | PU27: 13 | PV27: 14 | PW27: 28 | PX27: 40 | PY27: 56 | PZ27: 22
B28: 5 | C28: Sport education | D28: 58359 | E28: 55 | F28: 95 | G28: 124 | H28: 124 | I28: 130 | J28: 132 | K28: 191 | L28: 93 | M28: 322 | N28: 498 | O28: 256 | P28: 72 | Q28: 198 | R28: 174 | S28: 116 | T28: 172 | U28: 178 | V28: 324 | W28: 1390 | X28: 103 | Y28: 198 | Z28: 146 | AA28: 79 | AB28: 333 | AC28: 65 | AD28: 157 | AE28: 123 | AF28: 731 | AG28: 161 | AH28: 127 | AI28: 408 | AJ28: 77 | AK28: 229 | AL28: 423 | AM28: 120 | AN28: 410 | AO28: 99 | AP28: 104 | AQ28: 106 | AR28: 548 | AS28: 98 | AT28: 216 | AU28: 241 | AV28: 99 | AW28: 632 | AX28: 241 | AY28: 103 | AZ28: 135 | BA28: 106 | BB28: 85 | BC28: 282 | BD28: 166 | BE28: 176 | BF28: 110 | BG28: 145 | BH28: 393 | BI28: 344 | BJ28: 102 | BK28: 100 | BL28: 104 | BM28: 118 | BN28: 45 | BO28: 4 | BP28: 178 | BQ28: 70 | BR28: 74 | BS28: 519 | BT28: 82 | BU28: 552 | BV28: 350 | BW28: 58 | BX28: 112 | BY28: 522 | BZ28: 490 | CA28: 159 | CB28: 126 | CC28: 103 | CD28: 88 | CE28: 285 | CF28: 1078 | CG28: 72 | CH28: 710 | CI28: 339 | CJ28: 396 | CK28: 106 | CL28: 338 | CM28: 446 | CN28: 92 | CO28: 122 | CP28: 81 | CQ28: 116 | CR28: 158 | CS28: 123 | CT28: 102 | CU28: 344 | CV28: 124 | CW28: 487 | CX28: 87 | CY28: 125 | CZ28: 51 | DA28: 147 | DB28: 466 | DC28: 128 | DD28: 79 | DE28: 115 | DF28: 1466 | DG28: 102 | DH28: 105 | DI28: 93 | DJ28: 60 | DK28: 80 | DL28: 73 | DM28: 216 | DN28: 119 | DO28: 135 | DP28: 612 | DQ28: 83 | DR28: 108 | DS28: 94 | DT28: 353 | DU28: 131 | DV28: 330 | DW28: 145 | DX28: 93 | DY28: 182 | DZ28: 1296 | EA28: 100 | EB28: 339 | EC28: 92 | ED28: 177 | EE28: 320 | EF28: 99 | EG28: 111 | EH28: 85 | EI28: 115 | EJ28: 306 | EK28: 183 | EL28: 1251 | EM28: 113 | EN28: 96 | EO28: 384 | EP28: 109 | EQ28: 134 | ER28: 330 | ES28: 181 | ET28: 94 | EU28: 139 | EV28: 119 | EW28: 2 | EX28: 213 | EY28: 157 | EZ28: 1500 | FA28: 108 | FB28: 139 | FC28: 276 | FD28: 202 | FE28: 516 | FF28: 164 | FG28: 347 | FH28: 1257 | FI28: 136 | FJ28: 805 | FK28: 389 | FL28: 734 | FM28: 93 | FN28: 361 | FO28: 103 | FP28: 85 | FQ28: 710 | FR28: 441 | FS28: 255 | FT28: 157 | FU28: 62 | FV28: 74 | FW28: 550 | FX28: 106 | FY28: 280 | FZ28: 53 | GA28: 118 | GB28: 246 | GC28: 84 | GD28: 102 | GE28: 146 | GF28: 170 | GG28: 285 | GH28: 85 | GI28: 154 | GJ28: 122 | GK28: 297 | GL28: 122 | GM28: 451 | GN28: 806 | GO28: 92 | GP28: 72 | GQ28: 95 | GR28: 179 | GS28: 137 | GT28: 113 | GU28: 188 | GV28: 81 | GW28: 210 | GX28: 223 | GY28: 62 | GZ28: 104 | HA28: 635 | HB28: 242 | HC28: 802 | HD28: 344 | HE28: 115 | HF28: 309 | HG28: 822 | HH28: 134 | HI28: 58 | HJ28: 296 | HK28: 129 | HL28: 635 | HM28: 104 | HN28: 211 | HO28: 246 | HP28: 146 | HQ28: 189 | HR28: 153 | HS28: 43 | HT28: 148 | HU28: 423 | HV28: 151 | HW28: 92 | HX28: 142 | HY28: 66 | HZ28: 243 | IA28: 56 | IB28: 256 | IC28: 85 | ID28: 78 | IE28: 76 | IF28: 297 | IG28: 112 | IH28: 72 | II28: 123 | IJ28: 93 | IK28: 40 | IL28: 53 | IM28: 255 | IN28: 375 | IO28: 104 | IP28: 120 | IQ28: 276 | IR28: 94 | IS28: 120 | IT28: 602 | IU28: 99 | IV28: 309 | IW28: 169 | IX28: 232 | IY28: 543 | IZ28: 69 | JA28: 167 | JB28: 110 | JC28: 281 | JD28: 79 | JE28: 86 | JF28: 146 | JG28: 96 | JH28: 130 | JI28: 101 | JJ28: 136 | JK28: 116 | JL28: 165 | JM28: 105 | JN28: 161 | JO28: 204 | JP28: 181 | JQ28: 331 | JR28: 90 | JS28: 170 | JT28: 113 | JU28: 184 | JV28: 129 | JW28: 867 | JX28: 94 | JY28: 92 | JZ28: 313 | KA28: 232 | KB28: 268 | KC28: 121 | KD28: 121 | KE28: 742 | KF28: 126 | KG28: 301 | KH28: 1153 | KI28: 90 | KJ28: 256 | KK28: 144 | KL28: 232 | KM28: 244 | KN28: 86 | KO28: 85 | KP28: 114 | KQ28: 119 | KR28: 193 | KS28: 128 | KT28: 116 | KU28: 84 | KV28: 135 | KW28: 101 | KX28: 189 | KY28: 135 | KZ28: 123 | LA28: 61 | LB28: 334 | LC28: 277 | LD28: 125 | LE28: 96 | LF28: 122 | LG28: 357 | LH28: 320 | LI28: 354 | LJ28: 306 | LK28: 228 | LL28: 134 | LM28: 563 | LN28: 104 | LO28: 110 | LP28: 130 | LQ28: 147 | LR28: 87 | LS28: 114 | LT28: 165 | LU28: 51 | LV28: 94 | LW28: 119 | LX28: 92 | LY28: 102 | LZ28: 27 | MA28: 768 | MB28: 216 | MC28: 61 | MD28: 347 | ME28: 520 | MF28: 117 | MG28: 153 | MH28: 348 | MI28: 102 | MJ28: 170 | MK28: 276 | ML28: 103 | MM28: 582 | MN28: 97 | MO28: 118 | MP28: 184 | MQ28: 104 | MR28: 95 | MS28: 190 | MT28: 1310 | MU28: 548 | MV28: 965 | MW28: 1884 | MX28: 521 | MY28: 914 | MZ28: 490 | NA28: 2209 | NB28: 699 | NC28: 1631 | ND28: 612 | NE28: 2324 | NF28: 1426 | NG28: 1061 | NH28: 3086 | NI28: 1622 | NJ28: 1251 | NK28: 987 | NL28: 1601 | NM28: 3426 | NN28: 1083 | NO28: 1558 | NP28: 10625 | NQ28: 1548 | NR28: 2096 | NS28: 802 | NT28: 635 | NU28: 1904 | NV28: 1441 | NW28: 3979 | NX28: 1973 | NY28: 1135 | NZ28: 752 | OA28: 790 | OB28: 927 | OC28: 685 | OD28: 1086 | OE28: 582 | OF28: 1170 | OG28: 490 | OH28: 1078 | OI28: 699 | OJ28: 1835 | OK28: 612 | OL28: 806 | OM28: 1153 | ON28: 1484 | OO28: 1390 | OP28: 1310 | OQ28: 521 | OR28: 552 | OS28: 1145 | OT28: 1078 | OU28: 502 | OV28: 927 | OW28: 3086 | OX28: 1251 | OY28: 711 | OZ28: 1779 | PA28: 1601 | PB28: 833 | PC28: 1123 | PD28: 710 | PE28: 843 | PF28: 10625 | PG28: 1558 | PH28: 826 | PI28: 802 | PJ28: 344 | PK28: 635 | PL28: 543 | PM28: 1494 | PN28: 4144 | PO28: 1135 | PP28: 965 | PQ28: 1807 | PR28: 1131 | PS28: 765 | PT28: 742 | PU28: 715 | PV28: 790 | PW28: 1199 | PX28: 1086 | PY28: 2650 | PZ28: 752
B29: 9 | C29: Spectator sports | D29: 48100* | E29: 25* | F29: 25* | G29: 100* | H29: 100* | I29: 100* | J29: 100* | K29: 200* | L29: 100* | M29: 100* | N29: 300* | O29: 200* | P29: 25* | Q29: 200* | R29: 200* | S29: 100* | T29: 200* | U29: 100* | V29: 100* | W29: 700* | X29: 100* | Y29: 200* | Z29: 100* | AA29: 25* | AB29: 200* | AC29: 25* | AD29: 200* | AE29: 100* | AF29: 400* | AG29: 100* | AH29: 100* | AI29: 200* | AJ29: 100* | AK29: 400* | AL29: 400* | AM29: 100* | AN29: 400* | AO29: 100* | AP29: 100* | AQ29: 100* | AR29: 600* | AS29: 100* | AT29: 100* | AU29: 200* | AV29: 100* | AW29: 400* | AX29: 300* | AY29: 25* | AZ29: 100* | BA29: 100* | BB29: 100* | BC29: 200* | BD29: 200* | BE29: 200* | BF29: 100* | BG29: 200* | BH29: 400* | BI29: 500* | BJ29: 100* | BK29: 200* | BL29: 100* | BM29: 100* | BN29: 25* | BO29: 100* | BP29: 200* | BQ29: 25* | BR29: 25* | BS29: 400* | BT29: 200* | BU29: 400* | BV29: 200* | BW29: 25* | BX29: 100* | BY29: 200* | BZ29: 300* | CA29: 200* | CB29: 100* | CC29: 100* | CD29: 100* | CE29: 300* | CF29: 800* | CG29: 25* | CH29: 600* | CI29: 400* | CJ29: 400* | CK29: 100* | CL29: 100* | CM29: 200* | CN29: 100* | CO29: 100* | CP29: 100* | CQ29: 100* | CR29: 100* | CS29: 100* | CT29: 100* | CU29: 200* | CV29: 300* | CW29: 500* | CX29: 100* | CY29: 100* | CZ29: 25* | DA29: 300* | DB29: 200* | DC29: 200* | DD29: 200* | DE29: 100* | DF29: 1300* | DG29: 200* | DH29: 100* | DI29: 25* | DJ29: 200* | DK29: 25* | DL29: 25* | DM29: 100* | DN29: 100* | DO29: 100* | DP29: 600* | DQ29: 100* | DR29: 100* | DS29: 100* | DT29: 200* | DU29: 300* | DV29: 100* | DW29: 100* | DX29: 100* | DY29: 600* | DZ29: 1200* | EA29: 100* | EB29: 200* | EC29: 100* | ED29: 100* | EE29: 100* | EF29: 100* | EG29: 100* | EH29: 100* | EI29: 100* | EJ29: 200* | EK29: 200* | EL29: 1200* | EM29: 100* | EN29: 100* | EO29: 200* | EP29: 100* | EQ29: 200* | ER29: 300* | ES29: 100* | ET29: 25* | EU29: 100* | EV29: 100* | EW29: 25* | EX29: 200* | EY29: 100* | EZ29: 1200* | FA29: 25* | FB29: 100* | FC29: 200* | FD29: 300* | FE29: 400* | FF29: 100* | FG29: 100* | FH29: 800* | FI29: 100* | FJ29: 700* | FK29: 300* | FL29: 800* | FM29: 25* | FN29: 100* | FO29: 100* | FP29: 100* | FQ29: 400* | FR29: 300* | FS29: 200* | FT29: 100* | FU29: 100* | FV29: 100* | FW29: 400* | FX29: 100* | FY29: 200* | FZ29: 25* | GA29: 100* | GB29: 200* | GC29: 100* | GD29: 100* | GE29: 100* | GF29: 200* | GG29: 400* | GH29: 100* | GI29: 300* | GJ29: 100* | GK29: 600* | GL29: 100* | GM29: 100* | GN29: 700* | GO29: 100* | GP29: 25* | GQ29: 100* | GR29: 100* | GS29: 100* | GT29: 25* | GU29: 100* | GV29: 100* | GW29: 200* | GX29: 200* | GY29: 100* | GZ29: 100* | HA29: 600* | HB29: 200* | HC29: 800* | HD29: 500* | HE29: 200* | HF29: 300* | HG29: 800* | HH29: 100* | HI29: 100* | HJ29: 100* | HK29: 100* | HL29: 800* | HM29: 25* | HN29: 200* | HO29: 200* | HP29: 200* | HQ29: 200* | HR29: 100* | HS29: 100* | HT29: 200* | HU29: 100* | HV29: 100* | HW29: 25* | HX29: 100* | HY29: 25* | HZ29: 200* | IA29: 100* | IB29: 100* | IC29: 100* | ID29: 100* | IE29: 100* | IF29: 100* | IG29: 100* | IH29: 200* | II29: 300* | IJ29: 100* | IK29: 25* | IL29: 100* | IM29: 100* | IN29: 200* | IO29: 100* | IP29: 100* | IQ29: 200* | IR29: 25* | IS29: 200* | IT29: 500* | IU29: 100* | IV29: 300* | IW29: 100* | IX29: 200* | IY29: 500* | IZ29: 100* | JA29: 25* | JB29: 100* | JC29: 200* | JD29: 100* | JE29: 25* | JF29: 100* | JG29: 100* | JH29: 100* | JI29: 300* | JJ29: 200* | JK29: 100* | JL29: 100* | JM29: 100* | JN29: 100* | JO29: 200* | JP29: 100* | JQ29: 100* | JR29: 100* | JS29: 200* | JT29: 100* | JU29: 200* | JV29: 100* | JW29: 800* | JX29: 100* | JY29: 100* | JZ29: 200* | KA29: 200* | KB29: 200* | KC29: 100* | KD29: 100* | KE29: 700* | KF29: 100* | KG29: 200* | KH29: 2000* | KI29: 100* | KJ29: 200* | KK29: 100* | KL29: 200* | KM29: 100* | KN29: 25* | KO29: 200* | KP29: 100* | KQ29: 100* | KR29: 100* | KS29: 25* | KT29: 100* | KU29: 100* | KV29: 100* | KW29: 100* | KX29: 100* | KY29: 200* | KZ29: 100* | LA29: 25* | LB29: 200* | LC29: 400* | LD29: 100* | LE29: 100* | LF29: 100* | LG29: 200* | LH29: 200* | LI29: 100* | LJ29: 300* | LK29: 200* | LL29: 100* | LM29: 600* | LN29: 100* | LO29: 100* | LP29: 200* | LQ29: 200* | LR29: 100* | LS29: 100* | LT29: 300* | LU29: 25* | LV29: 100* | LW29: 25* | LX29: 100* | LY29: 200* | LZ29: 25* | MA29: 800* | MB29: 700* | MC29: 25* | MD29: 300* | ME29: 400* | MF29: 100* | MG29: 200* | MH29: 200* | MI29: 300* | MJ29: 300* | MK29: 200* | ML29: 100* | MM29: 600* | MN29: 25* | MO29: 200* | MP29: 300* | MQ29: 25* | MR29: 100* | MS29: 200* | MT29: 700* | MU29: 600* | MV29: 1100* | MW29: 2000* | MX29: 400* | MY29: 800* | MZ29: 300* | NA29: 1800* | NB29: 800* | NC29: 2300* | ND29: 600* | NE29: 1600* | NF29: 1100* | NG29: 600* | NH29: 2000* | NI29: 1400* | NJ29: 1200* | NK29: 700* | NL29: 1200* | NM29: 2400* | NN29: 1000* | NO29: 1000* | NP29: 7000* | NQ29: 1400* | NR29: 2100* | NS29: 800* | NT29: 800* | NU29: 1500* | NV29: 1400* | NW29: 3400* | NX29: 1900* | NY29: 1000* | NZ29: 600* | OA29: 700* | OB29: 1200* | OC29: 700* | OD29: 1000* | OE29: 600* | OF29: 900* | OG29: 300* | OH29: 900* | OI29: 800* | OJ29: 1500* | OK29: 600* | OL29: 700* | OM29: 2000* | ON29: 1700* | OO29: 700* | OP29: 700* | OQ29: 400* | OR29: 400* | OS29: 1000* | OT29: 800* | OU29: 500* | OV29: 1200* | OW29: 2000* | OX29: 1200* | OY29: 400* | OZ29: 1500* | PA29: 1200* | PB29: 1000* | PC29: 1000* | PD29: 400* | PE29: 600* | PF29: 7000* | PG29: 1000* | PH29: 700* | PI29: 800* | PJ29: 500* | PK29: 800* | PL29: 500* | PM29: 1200* | PN29: 3000* | PO29: 1000* | PP29: 1100* | PQ29: 1800* | PR29: 1000* | PS29: 800* | PT29: 700* | PU29: 500* | PV29: 700* | PW29: 1200* | PX29: 1000* | PY29: 1800* | PZ29: 600*
B30: 10 | C30: Sports equipment | D30: 30862 | E30: 10 | F30: 170 | G30: 18 | H30: 9 | I30: 15 | J30: 87 | K30: 73 | L30: 21 | M30: 17 | N30: 237 | O30: 43 | P30: 45 | Q30: 133 | R30: 141 | S30: 25 | T30: 107 | U30: 108 | V30: 81 | W30: 453 | X30: 85 | Y30: 59 | Z30: 69 | AA30: 141 | AB30: 139 | AC30: 28 | AD30: 183 | AE30: 68 | AF30: 187 | AG30: 130 | AH30: 39 | AI30: 117 | AJ30: 35 | AK30: 169 | AL30: 317 | AM30: 92 | AN30: 192 | AO30: 17 | AP30: 36 | AQ30: 70 | AR30: 160 | AS30: 89 | AT30: 209 | AU30: 84 | AV30: 235 | AW30: 680 | AX30: 242 | AY30: 20 | AZ30: 86 | BA30: 81 | BB30: 43 | BC30: 37 | BD30: 100 | BE30: 165 | BF30: 80 | BG30: 116 | BH30: 190 | BI30: 422 | BJ30: 109 | BK30: 58 | BL30: 19 | BM30: 108 | BN30: 49 | BO30: 142 | BP30: 114 | BQ30: 17 | BR30: 52 | BS30: 415 | BT30: 65 | BU30: 114 | BV30: 140 | BW30: 47 | BX30: 216 | BY30: 214 | BZ30: 647 | CA30: 187 | CB30: 41 | CC30: 77 | CD30: 44 | CE30: 145 | CF30: 570 | CG30: 90 | CH30: 569 | CI30: 123 | CJ30: 284 | CK30: 29 | CL30: 104 | CM30: 170 | CN30: 49 | CO30: 93 | CP30: 19 | CQ30: 25 | CR30: 49 | CS30: 77 | CT30: 16 | CU30: 93 | CV30: 79 | CW30: 173 | CX30: 71 | CY30: 75 | CZ30: 65 | DA30: 63 | DB30: 171 | DC30: 40 | DD30: 35 | DE30: 24 | DF30: 1016 | DG30: 151 | DH30: 71 | DI30: 47 | DJ30: 19 | DK30: 21 | DL30: 36 | DM30: 148 | DN30: 12 | DO30: 139 | DP30: 410 | DQ30: 5 | DR30: 27 | DS30: 101 | DT30: 112 | DU30: 111 | DV30: 117 | DW30: 37 | DX30: 21 | DY30: 236 | DZ30: 630 | EA30: 18 | EB30: 163 | EC30: 115 | ED30: 77 | EE30: 83 | EF30: 15 | EG30: 28 | EH30: 40 | EI30: 70 | EJ30: 104 | EK30: 76 | EL30: 760 | EM30: 98 | EN30: 35 | EO30: 177 | EP30: 21 | EQ30: 65 | ER30: 188 | ES30: 301 | ET30: 14 | EU30: 115 | EV30: 61 | EW30: 0 | EX30: 162 | EY30: 121 | EZ30: 693 | FA30: 82 | FB30: 78 | FC30: 143 | FD30: 140 | FE30: 263 | FF30: 27 | FG30: 93 | FH30: 645 | FI30: 71 | FJ30: 336 | FK30: 105 | FL30: 358 | FM30: 16 | FN30: 55 | FO30: 23 | FP30: 76 | FQ30: 376 | FR30: 367 | FS30: 97 | FT30: 111 | FU30: 56 | FV30: 14 | FW30: 404 | FX30: 44 | FY30: 113 | FZ30: 17 | GA30: 107 | GB30: 148 | GC30: 31 | GD30: 27 | GE30: 25 | GF30: 78 | GG30: 218 | GH30: 28 | GI30: 61 | GJ30: 31 | GK30: 151 | GL30: 43 | GM30: 281 | GN30: 639 | GO30: 99 | GP30: 28 | GQ30: 6 | GR30: 68 | GS30: 42 | GT30: 17 | GU30: 96 | GV30: 44 | GW30: 97 | GX30: 100 | GY30: 8 | GZ30: 71 | HA30: 285 | HB30: 140 | HC30: 387 | HD30: 89 | HE30: 255 | HF30: 155 | HG30: 238 | HH30: 45 | HI30: 7 | HJ30: 99 | HK30: 165 | HL30: 391 | HM30: 59 | HN30: 195 | HO30: 206 | HP30: 104 | HQ30: 124 | HR30: 132 | HS30: 8 | HT30: 143 | HU30: 122 | HV30: 19 | HW30: 56 | HX30: 32 | HY30: 9 | HZ30: 75 | IA30: 12 | IB30: 132 | IC30: 111 | ID30: 40 | IE30: 19 | IF30: 187 | IG30: 50 | IH30: 45 | II30: 41 | IJ30: 65 | IK30: 39 | IL30: 19 | IM30: 99 | IN30: 77 | IO30: 43 | IP30: 88 | IQ30: 107 | IR30: 66 | IS30: 35 | IT30: 492 | IU30: 29 | IV30: 111 | IW30: 91 | IX30: 91 | IY30: 334 | IZ30: 9 | JA30: 48 | JB30: 1 | JC30: 232 | JD30: 60 | JE30: 34 | JF30: 38 | JG30: 269 | JH30: 29 | JI30: 32 | JJ30: 44 | JK30: 13 | JL30: 30 | JM30: 21 | JN30: 24 | JO30: 175 | JP30: 106 | JQ30: 232 | JR30: 52 | JS30: 57 | JT30: 59 | JU30: 45 | JV30: 52 | JW30: 316 | JX30: 5 | JY30: 49 | JZ30: 175 | KA30: 87 | KB30: 152 | KC30: 70 | KD30: 94 | KE30: 402 | KF30: 49 | KG30: 96 | KH30: 564 | KI30: 40 | KJ30: 73 | KK30: 45 | KL30: 127 | KM30: 92 | KN30: 72 | KO30: 28 | KP30: 101 | KQ30: 70 | KR30: 60 | KS30: 53 | KT30: 41 | KU30: 12 | KV30: 65 | KW30: 17 | KX30: 229 | KY30: 22 | KZ30: 75 | LA30: 25 | LB30: 138 | LC30: 225 | LD30: 79 | LE30: 21 | LF30: 28 | LG30: 172 | LH30: 70 | LI30: 158 | LJ30: 185 | LK30: 226 | LL30: 44 | LM30: 217 | LN30: 135 | LO30: 111 | LP30: 52 | LQ30: 27 | LR30: 21 | LS30: 90 | LT30: 104 | LU30: 39 | LV30: 142 | LW30: 48 | LX30: 105 | LY30: 39 | LZ30: 8 | MA30: 432 | MB30: 813 | MC30: 38 | MD30: 148 | ME30: 283 | MF30: 61 | MG30: 146 | MH30: 114 | MI30: 78 | MJ30: 37 | MK30: 121 | ML30: 57 | MM30: 233 | MN30: 48 | MO30: 31 | MP30: 60 | MQ30: 25 | MR30: 60 | MS30: 162 | MT30: 373 | MU30: 160 | MV30: 838 | MW30: 953 | MX30: 415 | MY30: 357 | MZ30: 647 | NA30: 963 | NB30: 572 | NC30: 850 | ND30: 410 | NE30: 870 | NF30: 1134 | NG30: 540 | NH30: 1722 | NI30: 1185 | NJ30: 760 | NK30: 400 | NL30: 773 | NM30: 1437 | NN30: 424 | NO30: 697 | NP30: 5560 | NQ30: 1041 | NR30: 720 | NS30: 387 | NT30: 391 | NU30: 1125 | NV30: 768 | NW30: 2330 | NX30: 999 | NY30: 467 | NZ30: 410 | OA30: 254 | OB30: 589 | OC30: 248 | OD30: 753 | OE30: 233 | OF30: 541 | OG30: 647 | OH30: 851 | OI30: 572 | OJ30: 1350 | OK30: 410 | OL30: 639 | OM30: 564 | ON30: 774 | OO30: 453 | OP30: 373 | OQ30: 415 | OR30: 114 | OS30: 448 | OT30: 570 | OU30: 172 | OV30: 589 | OW30: 1722 | OX30: 760 | OY30: 258 | OZ30: 806 | PA30: 773 | PB30: 379 | PC30: 463 | PD30: 376 | PE30: 875 | PF30: 5560 | PG30: 697 | PH30: 447 | PI30: 387 | PJ30: 89 | PK30: 391 | PL30: 334 | PM30: 844 | PN30: 1886 | PO30: 467 | PP30: 838 | PQ30: 990 | PR30: 392 | PS30: 310 | PT30: 402 | PU30: 242 | PV30: 254 | PW30: 518 | PX30: 753 | PY30: 1042 | PZ30: 410
B31: 11 | C31: Sportswear | D31: 8230 | E31: 3 | F31: 45 | G31: 5 | H31: 3 | I31: 4 | J31: 23 | K31: 19 | L31: 6 | M31: 5 | N31: 63 | O31: 11 | P31: 12 | Q31: 36 | R31: 38 | S31: 7 | T31: 28 | U31: 29 | V31: 22 | W31: 121 | X31: 23 | Y31: 16 | Z31: 18 | AA31: 38 | AB31: 37 | AC31: 8 | AD31: 49 | AE31: 18 | AF31: 50 | AG31: 35 | AH31: 10 | AI31: 31 | AJ31: 9 | AK31: 45 | AL31: 85 | AM31: 25 | AN31: 51 | AO31: 4 | AP31: 10 | AQ31: 19 | AR31: 43 | AS31: 24 | AT31: 56 | AU31: 22 | AV31: 63 | AW31: 181 | AX31: 65 | AY31: 5 | AZ31: 23 | BA31: 22 | BB31: 11 | BC31: 10 | BD31: 27 | BE31: 44 | BF31: 21 | BG31: 31 | BH31: 51 | BI31: 112 | BJ31: 29 | BK31: 15 | BL31: 5 | BM31: 29 | BN31: 13 | BO31: 38 | BP31: 30 | BQ31: 5 | BR31: 14 | BS31: 111 | BT31: 17 | BU31: 30 | BV31: 37 | BW31: 12 | BX31: 58 | BY31: 57 | BZ31: 173 | CA31: 50 | CB31: 11 | CC31: 21 | CD31: 12 | CE31: 39 | CF31: 152 | CG31: 24 | CH31: 152 | CI31: 33 | CJ31: 76 | CK31: 8 | CL31: 28 | CM31: 45 | CN31: 13 | CO31: 25 | CP31: 5 | CQ31: 7 | CR31: 13 | CS31: 21 | CT31: 4 | CU31: 25 | CV31: 21 | CW31: 46 | CX31: 19 | CY31: 20 | CZ31: 17 | DA31: 17 | DB31: 46 | DC31: 11 | DD31: 9 | DE31: 6 | DF31: 271 | DG31: 40 | DH31: 19 | DI31: 12 | DJ31: 5 | DK31: 6 | DL31: 10 | DM31: 39 | DN31: 3 | DO31: 37 | DP31: 109 | DQ31: 1 | DR31: 7 | DS31: 27 | DT31: 30 | DU31: 30 | DV31: 31 | DW31: 10 | DX31: 6 | DY31: 63 | DZ31: 168 | EA31: 5 | EB31: 44 | EC31: 31 | ED31: 21 | EE31: 22 | EF31: 4 | EG31: 7 | EH31: 11 | EI31: 19 | EJ31: 28 | EK31: 20 | EL31: 203 | EM31: 26 | EN31: 9 | EO31: 47 | EP31: 6 | EQ31: 17 | ER31: 50 | ES31: 80 | ET31: 4 | EU31: 31 | EV31: 16 | EW31: 0 | EX31: 43 | EY31: 32 | EZ31: 185 | FA31: 22 | FB31: 21 | FC31: 38 | FD31: 37 | FE31: 70 | FF31: 7 | FG31: 25 | FH31: 172 | FI31: 19 | FJ31: 90 | FK31: 28 | FL31: 95 | FM31: 4 | FN31: 15 | FO31: 6 | FP31: 20 | FQ31: 100 | FR31: 98 | FS31: 26 | FT31: 30 | FU31: 15 | FV31: 4 | FW31: 108 | FX31: 12 | FY31: 30 | FZ31: 5 | GA31: 28 | GB31: 39 | GC31: 8 | GD31: 7 | GE31: 7 | GF31: 21 | GG31: 58 | GH31: 7 | GI31: 16 | GJ31: 8 | GK31: 40 | GL31: 12 | GM31: 75 | GN31: 170 | GO31: 26 | GP31: 8 | GQ31: 2 | GR31: 18 | GS31: 11 | GT31: 5 | GU31: 26 | GV31: 12 | GW31: 26 | GX31: 27 | GY31: 2 | GZ31: 19 | HA31: 76 | HB31: 37 | HC31: 103 | HD31: 24 | HE31: 68 | HF31: 41 | HG31: 63 | HH31: 12 | HI31: 2 | HJ31: 26 | HK31: 44 | HL31: 104 | HM31: 16 | HN31: 52 | HO31: 55 | HP31: 28 | HQ31: 33 | HR31: 35 | HS31: 2 | HT31: 38 | HU31: 33 | HV31: 5 | HW31: 15 | HX31: 9 | HY31: 3 | HZ31: 20 | IA31: 3 | IB31: 35 | IC31: 30 | ID31: 11 | IE31: 5 | IF31: 50 | IG31: 13 | IH31: 12 | II31: 11 | IJ31: 17 | IK31: 10 | IL31: 5 | IM31: 26 | IN31: 21 | IO31: 12 | IP31: 23 | IQ31: 29 | IR31: 18 | IS31: 9 | IT31: 131 | IU31: 8 | IV31: 30 | IW31: 24 | IX31: 24 | IY31: 89 | IZ31: 2 | JA31: 13 | JB31: 0 | JC31: 62 | JD31: 16 | JE31: 9 | JF31: 10 | JG31: 72 | JH31: 8 | JI31: 9 | JJ31: 12 | JK31: 3 | JL31: 8 | JM31: 6 | JN31: 6 | JO31: 47 | JP31: 28 | JQ31: 62 | JR31: 14 | JS31: 15 | JT31: 16 | JU31: 12 | JV31: 14 | JW31: 84 | JX31: 1 | JY31: 13 | JZ31: 47 | KA31: 23 | KB31: 41 | KC31: 19 | KD31: 25 | KE31: 107 | KF31: 13 | KG31: 26 | KH31: 150 | KI31: 11 | KJ31: 19 | KK31: 12 | KL31: 34 | KM31: 25 | KN31: 19 | KO31: 7 | KP31: 27 | KQ31: 19 | KR31: 16 | KS31: 14 | KT31: 11 | KU31: 3 | KV31: 17 | KW31: 5 | KX31: 61 | KY31: 6 | KZ31: 20 | LA31: 7 | LB31: 37 | LC31: 60 | LD31: 21 | LE31: 6 | LF31: 7 | LG31: 46 | LH31: 19 | LI31: 42 | LJ31: 49 | LK31: 60 | LL31: 12 | LM31: 58 | LN31: 36 | LO31: 30 | LP31: 14 | LQ31: 7 | LR31: 6 | LS31: 24 | LT31: 28 | LU31: 10 | LV31: 38 | LW31: 13 | LX31: 28 | LY31: 10 | LZ31: 2 | MA31: 115 | MB31: 217 | MC31: 10 | MD31: 39 | ME31: 75 | MF31: 16 | MG31: 39 | MH31: 30 | MI31: 21 | MJ31: 10 | MK31: 32 | ML31: 15 | MM31: 62 | MN31: 13 | MO31: 8 | MP31: 16 | MQ31: 7 | MR31: 16 | MS31: 43 | MT31: 99 | MU31: 43 | MV31: 223 | MW31: 254 | MX31: 111 | MY31: 95 | MZ31: 173 | NA31: 257 | NB31: 152 | NC31: 227 | ND31: 109 | NE31: 232 | NF31: 302 | NG31: 144 | NH31: 459 | NI31: 316 | NJ31: 203 | NK31: 107 | NL31: 206 | NM31: 383 | NN31: 113 | NO31: 186 | NP31: 1483 | NQ31: 277 | NR31: 192 | NS31: 103 | NT31: 104 | NU31: 300 | NV31: 205 | NW31: 621 | NX31: 266 | NY31: 125 | NZ31: 109 | OA31: 68 | OB31: 157 | OC31: 66 | OD31: 201 | OE31: 62 | OF31: 144 | OG31: 173 | OH31: 227 | OI31: 152 | OJ31: 360 | OK31: 109 | OL31: 170 | OM31: 150 | ON31: 206 | OO31: 121 | OP31: 99 | OQ31: 111 | OR31: 30 | OS31: 119 | OT31: 152 | OU31: 46 | OV31: 157 | OW31: 459 | OX31: 203 | OY31: 69 | OZ31: 215 | PA31: 206 | PB31: 101 | PC31: 123 | PD31: 100 | PE31: 233 | PF31: 1483 | PG31: 186 | PH31: 119 | PI31: 103 | PJ31: 24 | PK31: 104 | PL31: 89 | PM31: 225 | PN31: 503 | PO31: 125 | PP31: 223 | PQ31: 264 | PR31: 105 | PS31: 83 | PT31: 107 | PU31: 65 | PV31: 68 | PW31: 138 | PX31: 201 | PY31: 278 | PZ31: 109
B32: 12 | C32: Sports gambling | D32: 34735 | E32: 9 | F32: 45 | G32: 42 | H32: 76 | I32: 46 | J32: 31 | K32: 41 | L32: 11 | M32: 525 | N32: 176 | O32: 125 | P32: 51 | Q32: 70 | R32: 35 | S32: 31 | T32: 38 | U32: 63 | V32: 140 | W32: 961 | X32: 8 | Y32: 82 | Z32: 354 | AA32: 19 | AB32: 223 | AC32: 43 | AD32: 193 | AE32: 36 | AF32: 326 | AG32: 24 | AH32: 64 | AI32: 186 | AJ32: 16 | AK32: 293 | AL32: 240 | AM32: 6 | AN32: 92 | AO32: 15 | AP32: 43 | AQ32: 54 | AR32: 113 | AS32: 50 | AT32: 70 | AU32: 75 | AV32: 40 | AW32: 108 | AX32: 380 | AY32: 34 | AZ32: 60 | BA32: 61 | BB32: 33 | BC32: 55 | BD32: 78 | BE32: 31 | BF32: 31 | BG32: 48 | BH32: 99 | BI32: 146 | BJ32: 64 | BK32: 19 | BL32: 14 | BM32: 26 | BN32: 9 | BO32: 242 | BP32: 51 | BQ32: 37 | BR32: 52 | BS32: 106 | BT32: 5 | BU32: 257 | BV32: 223 | BW32: 5 | BX32: 63 | BY32: 162 | BZ32: 222 | CA32: 43 | CB32: 68 | CC32: 43 | CD32: 7 | CE32: 120 | CF32: 351 | CG32: 14 | CH32: 160 | CI32: 151 | CJ32: 85 | CK32: 38 | CL32: 145 | CM32: 169 | CN32: 8 | CO32: 32 | CP32: 6 | CQ32: 16 | CR32: 30 | CS32: 147 | CT32: 24 | CU32: 112 | CV32: 51 | CW32: 142 | CX32: 35 | CY32: 29 | CZ32: 8 | DA32: 24 | DB32: 196 | DC32: 35 | DD32: 25 | DE32: 43 | DF32: 458 | DG32: 43 | DH32: 18 | DI32: 25 | DJ32: 33 | DK32: 8 | DL32: 14 | DM32: 145 | DN32: 42 | DO32: 57 | DP32: 123 | DQ32: 32 | DR32: 27 | DS32: 185 | DT32: 120 | DU32: 85 | DV32: 153 | DW32: 93 | DX32: 23 | DY32: 362 | DZ32: 310 | EA32: 10 | EB32: 312 | EC32: 79 | ED32: 31 | EE32: 568 | EF32: 12 | EG32: 91 | EH32: 57 | EI32: 41 | EJ32: 125 | EK32: 46 | EL32: 761 | EM32: 40 | EN32: 18 | EO32: 168 | EP32: 22 | EQ32: 19 | ER32: 131 | ES32: 23 | ET32: 28 | EU32: 85 | EV32: 60 | EW32: 0 | EX32: 454 | EY32: 283 | EZ32: 534 | FA32: 54 | FB32: 53 | FC32: 291 | FD32: 91 | FE32: 203 | FF32: 123 | FG32: 223 | FH32: 424 | FI32: 82 | FJ32: 1486 | FK32: 359 | FL32: 167 | FM32: 15 | FN32: 164 | FO32: 63 | FP32: 49 | FQ32: 332 | FR32: 736 | FS32: 205 | FT32: 40 | FU32: 6 | FV32: 6 | FW32: 593 | FX32: 57 | FY32: 104 | FZ32: 9 | GA32: 13 | GB32: 79 | GC32: 11 | GD32: 7 | GE32: 21 | GF32: 169 | GG32: 197 | GH32: 12 | GI32: 48 | GJ32: 25 | GK32: 366 | GL32: 36 | GM32: 476 | GN32: 435 | GO32: 21 | GP32: 8 | GQ32: 14 | GR32: 111 | GS32: 31 | GT32: 10 | GU32: 65 | GV32: 31 | GW32: 113 | GX32: 120 | GY32: 9 | GZ32: 24 | HA32: 212 | HB32: 285 | HC32: 448 | HD32: 134 | HE32: 78 | HF32: 529 | HG32: 271 | HH32: 68 | HI32: 14 | HJ32: 100 | HK32: 53 | HL32: 172 | HM32: 21 | HN32: 80 | HO32: 175 | HP32: 45 | HQ32: 216 | HR32: 88 | HS32: 6 | HT32: 211 | HU32: 132 | HV32: 82 | HW32: 19 | HX32: 28 | HY32: 5 | HZ32: 47 | IA32: 16 | IB32: 105 | IC32: 15 | ID32: 16 | IE32: 19 | IF32: 120 | IG32: 26 | IH32: 56 | II32: 16 | IJ32: 42 | IK32: 2 | IL32: 8 | IM32: 204 | IN32: 221 | IO32: 111 | IP32: 40 | IQ32: 211 | IR32: 18 | IS32: 16 | IT32: 425 | IU32: 43 | IV32: 59 | IW32: 74 | IX32: 68 | IY32: 124 | IZ32: 15 | JA32: 11 | JB32: 18 | JC32: 44 | JD32: 5 | JE32: 29 | JF32: 37 | JG32: 20 | JH32: 19 | JI32: 10 | JJ32: 29 | JK32: 27 | JL32: 23 | JM32: 11 | JN32: 162 | JO32: 188 | JP32: 231 | JQ32: 231 | JR32: 35 | JS32: 79 | JT32: 75 | JU32: 109 | JV32: 44 | JW32: 373 | JX32: 82 | JY32: 138 | JZ32: 184 | KA32: 160 | KB32: 1103 | KC32: 14 | KD32: 10 | KE32: 346 | KF32: 30 | KG32: 336 | KH32: 392 | KI32: 25 | KJ32: 74 | KK32: 61 | KL32: 73 | KM32: 142 | KN32: 52 | KO32: 13 | KP32: 32 | KQ32: 31 | KR32: 68 | KS32: 87 | KT32: 25 | KU32: 12 | KV32: 140 | KW32: 258 | KX32: 52 | KY32: 20 | KZ32: 107 | LA32: 11 | LB32: 155 | LC32: 99 | LD32: 14 | LE32: 12 | LF32: 28 | LG32: 190 | LH32: 395 | LI32: 131 | LJ32: 160 | LK32: 300 | LL32: 56 | LM32: 173 | LN32: 69 | LO32: 104 | LP32: 17 | LQ32: 17 | LR32: 16 | LS32: 30 | LT32: 28 | LU32: 7 | LV32: 13 | LW32: 32 | LX32: 17 | LY32: 15 | LZ32: 15 | MA32: 246 | MB32: 2098 | MC32: 42 | MD32: 198 | ME32: 83 | MF32: 11 | MG32: 79 | MH32: 256 | MI32: 73 | MJ32: 20 | MK32: 246 | ML32: 52 | MM32: 134 | MN32: 39 | MO32: 14 | MP32: 42 | MQ32: 35 | MR32: 27 | MS32: 85 | MT32: 1007 | MU32: 113 | MV32: 544 | MW32: 794 | MX32: 106 | MY32: 396 | MZ32: 222 | NA32: 1151 | NB32: 322 | NC32: 504 | ND32: 123 | NE32: 1291 | NF32: 394 | NG32: 509 | NH32: 1918 | NI32: 566 | NJ32: 761 | NK32: 580 | NL32: 859 | NM32: 2543 | NN32: 525 | NO32: 1528 | NP32: 9003 | NQ32: 781 | NR32: 1520 | NS32: 448 | NT32: 172 | NU32: 949 | NV32: 685 | NW32: 1522 | NX32: 1017 | NY32: 1477 | NZ32: 157 | OA32: 569 | OB32: 448 | OC32: 173 | OD32: 435 | OE32: 134 | OF32: 409 | OG32: 222 | OH32: 442 | OI32: 322 | OJ32: 740 | OK32: 123 | OL32: 435 | OM32: 392 | ON32: 682 | OO32: 961 | OP32: 1007 | OQ32: 106 | OR32: 257 | OS32: 464 | OT32: 351 | OU32: 127 | OV32: 448 | OW32: 1918 | OX32: 761 | OY32: 289 | OZ32: 639 | PA32: 859 | PB32: 309 | PC32: 527 | PD32: 332 | PE32: 188 | PF32: 9003 | PG32: 1528 | PH32: 297 | PI32: 448 | PJ32: 134 | PK32: 172 | PL32: 124 | PM32: 821 | PN32: 3100 | PO32: 1477 | PP32: 544 | PQ32: 774 | PR32: 800 | PS32: 179 | PT32: 346 | PU32: 324 | PV32: 569 | PW32: 1129 | PX32: 435 | PY32: 2279 | PZ32: 157
B33: 13 | C33: TV/satellite subscriptions | D33: 0 | E33: 0 | F33: 0 | G33: 0 | H33: 0 | I33: 0 | J33: 0 | K33: 0 | L33: 0 | M33: 0 | N33: 0 | O33: 0 | P33: 0 | Q33: 0 | R33: 0 | S33: 0 | T33: 0 | U33: 0 | V33: 0 | W33: 0 | X33: 0 | Y33: 0 | Z33: 0 | AA33: 0 | AB33: 0 | AC33: 0 | AD33: 0 | AE33: 0 | AF33: 0 | AG33: 0 | AH33: 0 | AI33: 0 | AJ33: 0 | AK33: 0 | AL33: 0 | AM33: 0 | AN33: 0 | AO33: 0 | AP33: 0 | AQ33: 0 | AR33: 0 | AS33: 0 | AT33: 0 | AU33: 0 | AV33: 0 | AW33: 0 | AX33: 0 | AY33: 0 | AZ33: 0 | BA33: 0 | BB33: 0 | BC33: 0 | BD33: 0 | BE33: 0 | BF33: 0 | BG33: 0 | BH33: 0 | BI33: 0 | BJ33: 0 | BK33: 0 | BL33: 0 | BM33: 0 | BN33: 0 | BO33: 0 | BP33: 0 | BQ33: 0 | BR33: 0 | BS33: 0 | BT33: 0 | BU33: 0 | BV33: 0 | BW33: 0 | BX33: 0 | BY33: 0 | BZ33: 0 | CA33: 0 | CB33: 0 | CC33: 0 | CD33: 0 | CE33: 0 | CF33: 0 | CG33: 0 | CH33: 0 | CI33: 0 | CJ33: 0 | CK33: 0 | CL33: 0 | CM33: 0 | CN33: 0 | CO33: 0 | CP33: 0 | CQ33: 0 | CR33: 0 | CS33: 0 | CT33: 0 | CU33: 0 | CV33: 0 | CW33: 0 | CX33: 0 | CY33: 0 | CZ33: 0 | DA33: 0 | DB33: 0 | DC33: 0 | DD33: 0 | DE33: 0 | DF33: 0 | DG33: 0 | DH33: 0 | DI33: 0 | DJ33: 0 | DK33: 0 | DL33: 0 | DM33: 0 | DN33: 0 | DO33: 0 | DP33: 0 | DQ33: 0 | DR33: 0 | DS33: 0 | DT33: 0 | DU33: 0 | DV33: 0 | DW33: 0 | DX33: 0 | DY33: 0 | DZ33: 0 | EA33: 0 | EB33: 0 | EC33: 0 | ED33: 0 | EE33: 0 | EF33: 0 | EG33: 0 | EH33: 0 | EI33: 0 | EJ33: 0 | EK33: 0 | EL33: 0 | EM33: 0 | EN33: 0 | EO33: 0 | EP33: 0 | EQ33: 0 | ER33: 0 | ES33: 0 | ET33: 0 | EU33: 0 | EV33: 0 | EW33: 0 | EX33: 0 | EY33: 0 | EZ33: 0 | FA33: 0 | FB33: 0 | FC33: 0 | FD33: 0 | FE33: 0 | FF33: 0 | FG33: 0 | FH33: 0 | FI33: 0 | FJ33: 0 | FK33: 0 | FL33: 0 | FM33: 0 | FN33: 0 | FO33: 0 | FP33: 0 | FQ33: 0 | FR33: 0 | FS33: 0 | FT33: 0 | FU33: 0 | FV33: 0 | FW33: 0 | FX33: 0 | FY33: 0 | FZ33: 0 | GA33: 0 | GB33: 0 | GC33: 0 | GD33: 0 | GE33: 0 | GF33: 0 | GG33: 0 | GH33: 0 | GI33: 0 | GJ33: 0 | GK33: 0 | GL33: 0 | GM33: 0 | GN33: 0 | GO33: 0 | GP33: 0 | GQ33: 0 | GR33: 0 | GS33: 0 | GT33: 0 | GU33: 0 | GV33: 0 | GW33: 0 | GX33: 0 | GY33: 0 | GZ33: 0 | HA33: 0 | HB33: 0 | HC33: 0 | HD33: 0 | HE33: 0 | HF33: 0 | HG33: 0 | HH33: 0 | HI33: 0 | HJ33: 0 | HK33: 0 | HL33: 0 | HM33: 0 | HN33: 0 | HO33: 0 | HP33: 0 | HQ33: 0 | HR33: 0 | HS33: 0 | HT33: 0 | HU33: 0 | HV33: 0 | HW33: 0 | HX33: 0 | HY33: 0 | HZ33: 0 | IA33: 0 | IB33: 0 | IC33: 0 | ID33: 0 | IE33: 0 | IF33: 0 | IG33: 0 | IH33: 0 | II33: 0 | IJ33: 0 | IK33: 0 | IL33: 0 | IM33: 0 | IN33: 0 | IO33: 0 | IP33: 0 | IQ33: 0 | IR33: 0 | IS33: 0 | IT33: 0 | IU33: 0 | IV33: 0 | IW33: 0 | IX33: 0 | IY33: 0 | IZ33: 0 | JA33: 0 | JB33: 0 | JC33: 0 | JD33: 0 | JE33: 0 | JF33: 0 | JG33: 0 | JH33: 0 | JI33: 0 | JJ33: 0 | JK33: 0 | JL33: 0 | JM33: 0 | JN33: 0 | JO33: 0 | JP33: 0 | JQ33: 0 | JR33: 0 | JS33: 0 | JT33: 0 | JU33: 0 | JV33: 0 | JW33: 0 | JX33: 0 | JY33: 0 | JZ33: 0 | KA33: 0 | KB33: 0 | KC33: 0 | KD33: 0 | KE33: 0 | KF33: 0 | KG33: 0 | KH33: 0 | KI33: 0 | KJ33: 0 | KK33: 0 | KL33: 0 | KM33: 0 | KN33: 0 | KO33: 0 | KP33: 0 | KQ33: 0 | KR33: 0 | KS33: 0 | KT33: 0 | KU33: 0 | KV33: 0 | KW33: 0 | KX33: 0 | KY33: 0 | KZ33: 0 | LA33: 0 | LB33: 0 | LC33: 0 | LD33: 0 | LE33: 0 | LF33: 0 | LG33: 0 | LH33: 0 | LI33: 0 | LJ33: 0 | LK33: 0 | LL33: 0 | LM33: 0 | LN33: 0 | LO33: 0 | LP33: 0 | LQ33: 0 | LR33: 0 | LS33: 0 | LT33: 0 | LU33: 0 | LV33: 0 | LW33: 0 | LX33: 0 | LY33: 0 | LZ33: 0 | MA33: 0 | MB33: 0 | MC33: 0 | MD33: 0 | ME33: 0 | MF33: 0 | MG33: 0 | MH33: 0 | MI33: 0 | MJ33: 0 | MK33: 0 | ML33: 0 | MM33: 0 | MN33: 0 | MO33: 0 | MP33: 0 | MQ33: 0 | MR33: 0 | MS33: 0 | MT33: 0 | MU33: 0 | MV33: 0 | MW33: 0 | MX33: 0 | MY33: 0 | MZ33: 0 | NA33: 0 | NB33: 0 | NC33: 0 | ND33: 0 | NE33: 0 | NF33: 0 | NG33: 0 | NH33: 0 | NI33: 0 | NJ33: 0 | NK33: 0 | NL33: 0 | NM33: 0 | NN33: 0 | NO33: 0 | NP33: 0 | NQ33: 0 | NR33: 0 | NS33: 0 | NT33: 0 | NU33: 0 | NV33: 0 | NW33: 0 | NX33: 0 | NY33: 0 | NZ33: 0 | OA33: 0 | OB33: 0 | OC33: 0 | OD33: 0 | OE33: 0 | OF33: 0 | OG33: 0 | OH33: 0 | OI33: 0 | OJ33: 0 | OK33: 0 | OL33: 0 | OM33: 0 | ON33: 0 | OO33: 0 | OP33: 0 | OQ33: 0 | OR33: 0 | OS33: 0 | OT33: 0 | OU33: 0 | OV33: 0 | OW33: 0 | OX33: 0 | OY33: 0 | OZ33: 0 | PA33: 0 | PB33: 0 | PC33: 0 | PD33: 0 | PE33: 0 | PF33: 0 | PG33: 0 | PH33: 0 | PI33: 0 | PJ33: 0 | PK33: 0 | PL33: 0 | PM33: 0 | PN33: 0 | PO33: 0 | PP33: 0 | PQ33: 0 | PR33: 0 | PS33: 0 | PT33: 0 | PU33: 0 | PV33: 0 | PW33: 0 | PX33: 0 | PY33: 0 | PZ33: 0
B34: 21 | C34: Health cost savings
B35: 22 | C35: Other health benefits (QALY's etc)
B36: 23 | C36: Volunteering
B37: 25 | C37: Spectator wider spending
B38: 26 | C38: Participation wider spending
B39: 17 | C39: Total direct economic value of sport | D39: 451396 | E39: 345 | F39: 816 | G39: 739 | H39: 885 | I39: 679 | J39: 965 | K39: 1506 | L39: 679 | M39: 1548 | N39: 2918 | O39: 1706 | P39: 441 | Q39: 1556 | R39: 1637 | S39: 733 | T39: 1487 | U39: 1212 | V39: 1340 | W39: 7656 | X39: 1053 | Y39: 1564 | Z39: 1454 | AA39: 520 | AB39: 2209 | AC39: 393 | AD39: 2081 | AE39: 1110 | AF39: 3700 | AG39: 1128 | AH39: 779 | AI39: 2204 | AJ39: 698 | AK39: 3252 | AL39: 3756 | AM39: 801 | AN39: 3147 | AO39: 832 | AP39: 642 | AQ39: 802 | AR39: 4588 | AS39: 919 | AT39: 1502 | AU39: 1515 | AV39: 1188 | AW39: 4779 | AX39: 2888 | AY39: 421 | AZ39: 1107 | BA39: 926 | BB39: 604 | BC39: 1610 | BD39: 1711 | BE39: 1561 | BF39: 1040 | BG39: 1577 | BH39: 3303 | BI39: 4252 | BJ39: 952 | BK39: 1415 | BL39: 734 | BM39: 933 | BN39: 416 | BO39: 1246 | BP39: 1621 | BQ39: 392 | BR39: 481 | BS39: 4027 | BT39: 1150 | BU39: 3524 | BV39: 2134 | BW39: 409 | BX39: 1289 | BY39: 2462 | BZ39: 4205 | CA39: 1869 | CB39: 827 | CC39: 778 | CD39: 715 | CE39: 2574 | CF39: 7571 | CG39: 572 | CH39: 5978 | CI39: 2918 | CJ39: 3332 | CK39: 757 | CL39: 1655 | CM39: 2106 | CN39: 687 | CO39: 964 | CP39: 708 | CQ39: 755 | CR39: 1093 | CS39: 1026 | CT39: 533 | CU39: 2094 | CV39: 1833 | CW39: 3881 | CX39: 873 | CY39: 1096 | CZ39: 419 | DA39: 1869 | DB39: 2281 | DC39: 1324 | DD39: 1088 | DE39: 708 | DF39: 11744 | DG39: 1467 | DH39: 775 | DI39: 506 | DJ39: 1095 | DK39: 425 | DL39: 399 | DM39: 1547 | DN39: 616 | DO39: 1054 | DP39: 5064 | DQ39: 504 | DR39: 754 | DS39: 1027 | DT39: 2005 | DU39: 1971 | DV39: 1522 | DW39: 930 | DX39: 753 | DY39: 4163 | DZ39: 10352 | EA39: 649 | EB39: 2351 | EC39: 916 | ED39: 1188 | EE39: 1714 | EF39: 733 | EG39: 942 | EH39: 667 | EI39: 881 | EJ39: 1731 | EK39: 1610 | EL39: 10700 | EM39: 1124 | EN39: 607 | EO39: 2177 | EP39: 747 | EQ39: 1337 | ER39: 2610 | ES39: 1709 | ET39: 402 | EU39: 1256 | EV39: 1016 | EW39: 46 | EX39: 2315 | EY39: 1508 | EZ39: 10940 | FA39: 570 | FB39: 870 | FC39: 2185 | FD39: 2131 | FE39: 3490 | FF39: 816 | FG39: 1711 | FH39: 8331 | FI39: 953 | FJ39: 7374 | FK39: 2556 | FL39: 6236 | FM39: 468 | FN39: 1461 | FO39: 983 | FP39: 930 | FQ39: 4524 | FR39: 4067 | FS39: 1630 | FT39: 1010 | FU39: 571 | FV39: 562 | FW39: 4521 | FX39: 907 | FY39: 2018 | FZ39: 340 | GA39: 1039 | GB39: 1936 | GC39: 600 | GD39: 652 | GE39: 1049 | GF39: 1560 | GG39: 3119 | GH39: 612 | GI39: 1872 | GJ39: 912 | GK39: 4235 | GL39: 774 | GM39: 2336 | GN39: 6878 | GO39: 758 | GP39: 389 | GQ39: 520 | GR39: 1147 | GS39: 821 | GT39: 382 | GU39: 1052 | GV39: 676 | GW39: 1656 | GX39: 1608 | GY39: 643 | GZ39: 908 | HA39: 4843 | HB39: 2131 | HC39: 6579 | HD39: 3311 | HE39: 2035 | HF39: 2840 | HG39: 6242 | HH39: 853 | HI39: 468 | HJ39: 1342 | HK39: 1322 | HL39: 6344 | HM39: 545 | HN39: 1802 | HO39: 2230 | HP39: 1559 | HQ39: 1948 | HR39: 1347 | HS39: 418 | HT39: 1699 | HU39: 1718 | HV39: 1092 | HW39: 485 | HX39: 969 | HY39: 331 | HZ39: 1845 | IA39: 525 | IB39: 1392 | IC39: 789 | ID39: 611 | IE39: 573 | IF39: 1721 | IG39: 896 | IH39: 1185 | II39: 1694 | IJ39: 809 | IK39: 312 | IL39: 579 | IM39: 1490 | IN39: 1788 | IO39: 830 | IP39: 751 | IQ39: 1807 | IR39: 510 | IS39: 1252 | IT39: 5204 | IU39: 719 | IV39: 2576 | IW39: 984 | IX39: 1709 | IY39: 4297 | IZ39: 587 | JA39: 638 | JB39: 529 | JC39: 2189 | JD39: 745 | JE39: 311 | JF39: 744 | JG39: 1211 | JH39: 790 | JI39: 1660 | JJ39: 1310 | JK39: 762 | JL39: 1083 | JM39: 780 | JN39: 943 | JO39: 1956 | JP39: 1468 | JQ39: 1998 | JR39: 955 | JS39: 1412 | JT39: 820 | JU39: 1457 | JV39: 821 | JW39: 6736 | JX39: 602 | JY39: 808 | JZ39: 1988 | KA39: 1611 | KB39: 2768 | KC39: 1107 | KD39: 894 | KE39: 6236 | KF39: 961 | KG39: 2231 | KH39: 13833 | KI39: 882 | KJ39: 1493 | KK39: 943 | KL39: 1704 | KM39: 1242 | KN39: 571 | KO39: 1105 | KP39: 1138 | KQ39: 961 | KR39: 1109 | KS39: 636 | KT39: 689 | KU39: 527 | KV39: 875 | KW39: 808 | KX39: 1298 | KY39: 1178 | KZ39: 927 | LA39: 343 | LB39: 2062 | LC39: 2993 | LD39: 797 | LE39: 569 | LF39: 907 | LG39: 2309 | LH39: 2021 | LI39: 1708 | LJ39: 2703 | LK39: 2247 | LL39: 1025 | LM39: 4626 | LN39: 1149 | LO39: 874 | LP39: 1435 | LQ39: 1326 | LR39: 539 | LS39: 975 | LT39: 2095 | LU39: 289 | LV39: 913 | LW39: 580 | LX39: 815 | LY39: 1227 | LZ39: 209 | MA39: 6912 | MB39: 7690 | MC39: 462 | MD39: 2579 | ME39: 3506 | MF39: 801 | MG39: 1859 | MH39: 2065 | MI39: 1865 | MJ39: 1843 | MK39: 2080 | ML39: 1029 | MM39: 4874 | MN39: 544 | MO39: 1182 | MP39: 1858 | MQ39: 506 | MR39: 810 | MS39: 1671 | MT39: 7545 | MU39: 4588 | MV39: 9802 | MW39: 16728 | MX39: 4048 | MY39: 6761 | MZ39: 4205 | NA39: 16554 | NB39: 6971 | NC39: 17255 | ND39: 5064 | NE39: 15327 | NF39: 10942 | NG39: 6708 | NH39: 21256 | NI39: 13433 | NJ39: 10700 | NK39: 6578 | NL39: 11449 | NM39: 23823 | NN39: 8405 | NO39: 11040 | NP39: 75030 | NQ39: 13114 | NR39: 17397 | NS39: 6579 | NT39: 6344 | NU39: 14265 | NV39: 12191 | NW39: 31227 | NX39: 16186 | NY39: 9505 | NZ39: 5211 | OA39: 6034 | OB39: 9586 | OC39: 5397 | OD39: 9088 | OE39: 4874 | OF39: 8510 | OG39: 4205 | OH39: 9136 | OI39: 6971 | OJ39: 14507 | OK39: 5064 | OL39: 6878 | OM39: 13833 | ON39: 14048 | OO39: 7656 | OP39: 7545 | OQ39: 4048 | OR39: 3524 | OS39: 8470 | OT39: 7571 | OU39: 3787 | OV39: 9586 | OW39: 21256 | OX39: 10700 | OY39: 4295 | OZ39: 13058 | PA39: 11449 | PB39: 7706 | PC39: 8692 | PD39: 4524 | PE39: 6582 | PF39: 75030 | PG39: 11040 | PH39: 6416 | PI39: 6579 | PJ39: 3311 | PK39: 6344 | PL39: 4297 | PM39: 11548 | PN39: 29836 | PO39: 9505 | PP39: 9802 | PQ39: 15372 | PR39: 8982 | PS39: 6487 | PT39: 6236 | PU39: 4455 | PV39: 6034 | PW39: 10563 | PX39: 9088 | PY39: 18288 | PZ39: 5211

Sheet Results for Export (hidden)
A1: ="Snapshot for " & LocalAuthority -> Snapshot for Adur
A2: =SNAPSHOT!B23 -> Participation | B2: =SNAPSHOT!D23 -> Gross Value Added | C2: =SNAPSHOT!E23 -> Jobs
A3: =SNAPSHOT!B24 -> Sports services | B3: =SNAPSHOT!D24 -> 5.65354271 | C3: =SNAPSHOT!E24 -> 234
A4: =SNAPSHOT!B25 -> Sportswear and equipment | B4: =SNAPSHOT!D25 -> 0.4545059379 | C4: =SNAPSHOT!E25 -> 9
A5: =SNAPSHOT!B26 -> Sport education | B5: =SNAPSHOT!D26 -> 4.554127423 | C5: =SNAPSHOT!E26 -> 55
A6: =SNAPSHOT!B27 -> Total participation | B6: =SNAPSHOT!D27 -> 10.66217607 | C6: =SNAPSHOT!E27 -> 298
A8: =SNAPSHOT!B29 -> Non-Participation | B8: =SNAPSHOT!D29 -> Gross Value Added | C8: =SNAPSHOT!E29 -> Jobs
A9: =SNAPSHOT!B30 -> Spectator sports | B9: =SNAPSHOT!D30 -> 1.043177534 | C9: =SNAPSHOT!E30 -> 25*
A10: =SNAPSHOT!B31 -> Sportswear and equipment | B10: =SNAPSHOT!D31 -> 0.6746572516 | C10: =SNAPSHOT!E31 -> 13
A11: =SNAPSHOT!B32 -> Sports broadcasting and gambling | B11: =SNAPSHOT!D32 -> 0.3463724244 | C11: =SNAPSHOT!E32 -> 9
A12: =SNAPSHOT!B33 -> Total non-participation | B12: =SNAPSHOT!D33 -> 2.06420721 | C12: =SNAPSHOT!E33 -> 47
B14: =SNAPSHOT!D20 -> Gross Value Added: | C14: =SNAPSHOT!D21 -> Jobs:
A15: =SNAPSHOT!B20 -> Total direct economic value of sport | B15: =SNAPSHOT!E20 -> 12.72638328 | C15: =SNAPSHOT!E21 -> 345
A17: =SNAPSHOT!B35 -> Wider impacts | D17: =SNAPSHOT!F35 -> Wider value
A18: =SNAPSHOT!B36 -> Health | D18: =SNAPSHOT!F36 -> 23.97121277
A19: =SNAPSHOT!B37 -> Volunteering | D19: =SNAPSHOT!F37 -> 4.682347254
A20: =SNAPSHOT!B38 -> Wider spending | D20: =SNAPSHOT!F38 -> 0.05909671244
A22: ="Snapshot for " & LocalAuthority -> Snapshot for Adur
A23: Participation | B23: Gross Value Added | C23: Jobs
A24: Sport/class subscription fees | B24: =DETAILED_BASIC_SNAPSHOT!D24 -> 4.172710137 | C24: =DETAILED_BASIC_SNAPSHOT!E24 -> 234
A25: Participation sport | B25: =DETAILED_BASIC_SNAPSHOT!D25 -> 1.480832572
A26: Sports equipment | B26: =DETAILED_BASIC_SNAPSHOT!D26 -> 0.4260993168 | C26: =DETAILED_BASIC_SNAPSHOT!E26 -> 8
A27: Sportswear | B27: =DETAILED_BASIC_SNAPSHOT!D27 -> 0.02840662112 | C27: =DETAILED_BASIC_SNAPSHOT!E27 -> 1
A28: Sport education | B28: =DETAILED_BASIC_SNAPSHOT!D28 -> 4.554127423 | C28: =DETAILED_BASIC_SNAPSHOT!E28 -> 55
A29: Total participation | B29: =DETAILED_BASIC_SNAPSHOT!D29 -> 10.66217607 | C29: =DETAILED_BASIC_SNAPSHOT!E29 -> 298
A31: Non-Participation | B31: =DETAILED_BASIC_SNAPSHOT!D31 -> Gross Value Added | C31: =DETAILED_BASIC_SNAPSHOT!E31 -> Jobs
A32: Spectator sports | B32: =DETAILED_BASIC_SNAPSHOT!D32 -> 1.043177534 | C32: =DETAILED_BASIC_SNAPSHOT!E32 -> 25*
A33: Sports equipment | B33: =DETAILED_BASIC_SNAPSHOT!D33 -> 0.532624146 | C33: =DETAILED_BASIC_SNAPSHOT!E33 -> 10
A34: Sportswear | B34: =DETAILED_BASIC_SNAPSHOT!D34 -> 0.1420331056 | C34: =DETAILED_BASIC_SNAPSHOT!E34 -> 3
A35: Sports gambling | B35: =DETAILED_BASIC_SNAPSHOT!D35 -> 0.1787715154 | C35: =DETAILED_BASIC_SNAPSHOT!E35 -> 9
A36: TV/satellite subscriptions | B36: =DETAILED_BASIC_SNAPSHOT!D36 -> 0.167600909 | C36: =DETAILED_BASIC_SNAPSHOT!E36 -> 0
A37: Total non-participation | B37: =DETAILED_BASIC_SNAPSHOT!D37 -> 2.06420721 | C37: =DETAILED_BASIC_SNAPSHOT!E37 -> 47
B39: =DETAILED_BASIC_SNAPSHOT!D20 -> Gross Value Added: | C39: =DETAILED_BASIC_SNAPSHOT!D21 -> Jobs:
A40: Total direct economic value of sport | B40: =DETAILED_BASIC_SNAPSHOT!E20 -> 12.72638328 | C40: =DETAILED_BASIC_SNAPSHOT!E21 -> 345
A42: Wider impacts | D42: =DETAILED_BASIC_SNAPSHOT!F39 -> Wider value
A43: Health | D43: =DETAILED_BASIC_SNAPSHOT!F40 -> 23.97121277
A44: Health cost savings | D44: =DETAILED_BASIC_SNAPSHOT!F41 -> 3.665443732
A45: Other health benefits (QALY's etc) | D45: =DETAILED_BASIC_SNAPSHOT!F42 -> 20.30576904
A46: Volunteering | D46: =DETAILED_BASIC_SNAPSHOT!F43 -> 4.682347254
A47: Wider spending | D47: =DETAILED_BASIC_SNAPSHOT!F44 -> 0.05909671244
A48: Spectator wider spending | D48: =DETAILED_BASIC_SNAPSHOT!F45 -> 0.03801788856
A49: Participation wider spending | D49: =DETAILED_BASIC_SNAPSHOT!F46 -> 0.02107882388
A55: ="Refined snapshot for " & LocalAuthority -> Refined snapshot for Adur
A56: =REFINED_SNAPSHOT!B10 -> Participation | B56: =REFINED_SNAPSHOT!D10 -> Gross Value Added | C56: =REFINED_SNAPSHOT!E10 -> Jobs
A57: =REFINED_SNAPSHOT!B11 -> Sports services | B57: =REFINED_SNAPSHOT!D11 -> 5.65354271 | C57: =REFINED_SNAPSHOT!E11 -> 234
A58: =REFINED_SNAPSHOT!B12 -> Sportswear and equipment | B58: =REFINED_SNAPSHOT!D12 -> 0.4545059379 | C58: =REFINED_SNAPSHOT!E12 -> 9
A59: =REFINED_SNAPSHOT!B13 -> Sport education | B59: =REFINED_SNAPSHOT!D13 -> 4.554127423 | C59: =REFINED_SNAPSHOT!E13 -> 55
A60: =REFINED_SNAPSHOT!B14 -> Total participation | B60: =REFINED_SNAPSHOT!D14 -> 10.66217607 | C60: =REFINED_SNAPSHOT!E14 -> 298
A62: =REFINED_SNAPSHOT!B16 -> Non-Participation | B62: =REFINED_SNAPSHOT!D16 -> Gross Value Added | C62: =REFINED_SNAPSHOT!E16 -> Jobs
A63: =REFINED_SNAPSHOT!B17 -> Spectator sports | B63: =REFINED_SNAPSHOT!D17 -> 1.043177534 | C63: =REFINED_SNAPSHOT!E17 -> 25*
A64: =REFINED_SNAPSHOT!B18 -> Sportswear and equipment | B64: =REFINED_SNAPSHOT!D18 -> 0.6746572516 | C64: =REFINED_SNAPSHOT!E18 -> 13
A65: =REFINED_SNAPSHOT!B19 -> Sports broadcasting and gambling | B65: =REFINED_SNAPSHOT!D19 -> 0.3463724244 | C65: =REFINED_SNAPSHOT!E19 -> 9
A66: =REFINED_SNAPSHOT!B20 -> Total non-participation | B66: =REFINED_SNAPSHOT!D20 -> 2.06420721 | C66: =REFINED_SNAPSHOT!E20 -> 47
B68: =REFINED_SNAPSHOT!D7 -> Gross Value Added: | C68: =REFINED_SNAPSHOT!D8 -> Jobs:
A69: =REFINED_SNAPSHOT!B7 -> Total direct economic value of sport | B69: =REFINED_SNAPSHOT!E7 -> 12.72638328 | C69: =REFINED_SNAPSHOT!E8 -> 345
A71: =REFINED_SNAPSHOT!B22 -> Wider impacts | D71: =REFINED_SNAPSHOT!I22 -> Wider value
A72: =REFINED_SNAPSHOT!B23 -> Health | D72: =REFINED_SNAPSHOT!I23 -> 23.97121277
A73: =REFINED_SNAPSHOT!B24 -> Volunteering | D73: =REFINED_SNAPSHOT!I24 -> 4.682347254
A74: =REFINED_SNAPSHOT!B25 -> Wider Spending | D74: =REFINED_SNAPSHOT!I25 -> 0.05909671244
A76: ="Refined snapshot for " & LocalAuthority -> Refined snapshot for Adur
A77: Participation | B77: Gross Value Added | C77: Jobs
A78: Sport/class subscription fees | B78: =DETAILED_REFINED_SNAPSHOT!D11 -> 4.172710137 | C78: =DETAILED_REFINED_SNAPSHOT!E11 -> 234
A79: Participation sport | B79: =DETAILED_REFINED_SNAPSHOT!D12 -> 1.480832572
A80: Sports equipment | B80: =DETAILED_REFINED_SNAPSHOT!D13 -> 0.4260993168 | C80: =DETAILED_REFINED_SNAPSHOT!E13 -> 8
A81: Sportswear | B81: =DETAILED_REFINED_SNAPSHOT!D14 -> 0.02840662112 | C81: =DETAILED_REFINED_SNAPSHOT!E14 -> 1
A82: Sport education | B82: =DETAILED_REFINED_SNAPSHOT!D15 -> 4.554127423 | C82: =DETAILED_REFINED_SNAPSHOT!E15 -> 55
A83: Total participation | B83: =DETAILED_REFINED_SNAPSHOT!D16 -> 10.66217607 | C83: =DETAILED_REFINED_SNAPSHOT!E16 -> 298
A85: Non-Participation | B85: Gross Value Added | C85: Jobs
A86: Spectator sports | B86: =DETAILED_REFINED_SNAPSHOT!D19 -> 1.043177534 | C86: =DETAILED_REFINED_SNAPSHOT!E19 -> 25*
A87: Sports equipment | B87: =DETAILED_REFINED_SNAPSHOT!D20 -> 0.532624146 | C87: =DETAILED_REFINED_SNAPSHOT!E20 -> 10
A88: Sportswear | B88: =DETAILED_REFINED_SNAPSHOT!D21 -> 0.1420331056 | C88: =DETAILED_REFINED_SNAPSHOT!E21 -> 3
A89: Sports gambling | B89: =DETAILED_REFINED_SNAPSHOT!D22 -> 0.1787715154 | C89: =DETAILED_REFINED_SNAPSHOT!E22 -> 9
A90: TV/satellite subscriptions | B90: =DETAILED_REFINED_SNAPSHOT!D23 -> 0.167600909 | C90: =DETAILED_REFINED_SNAPSHOT!E23 -> 
A91: Total non-participation | B91: =DETAILED_REFINED_SNAPSHOT!D24 -> 2.06420721 | C91: =DETAILED_REFINED_SNAPSHOT!E24 -> 47
B93: Gross Value Added | C93: Jobs
A94: Total direct economic value of sport | B94: =DETAILED_REFINED_SNAPSHOT!E7 -> 12.72638328 | C94: =DETAILED_REFINED_SNAPSHOT!E8 -> 345
A96: Wider impacts | D96: =DETAILED_REFINED_SNAPSHOT!I26 -> Wider value
A97: Health | D97: =DETAILED_REFINED_SNAPSHOT!I27 -> 23.97121277
A98: Health cost savings | D98: =DETAILED_REFINED_SNAPSHOT!I28 -> 3.665443732
A99: Other health benefits (QALY's etc) | D99: =DETAILED_REFINED_SNAPSHOT!I29 -> 20.30576904
A100: Volunteering | D100: =DETAILED_REFINED_SNAPSHOT!I30 -> 4.682347254
A101: Wider spending | D101: =DETAILED_REFINED_SNAPSHOT!I31 -> 0.05909671244
A102: Spectator wider spending | D102: =DETAILED_REFINED_SNAPSHOT!I32 -> 0.03801788856
A103: Participation wider spending | D103: =DETAILED_REFINED_SNAPSHOT!I33 -> 0.02107882388
A106: Refined Assumptions
A107: =ADJUST!B11 -> TV & satellite subscriptions | B107: =ADJUST!C11 -> New baseline value
A108: =ADJUST!B12 -> Sports TV subscriptions jobs | B108: =ADJUST!C12 -> 0
A110: =ADJUST!B14 -> Sports gambling | B110: =ADJUST!C14 -> New baseline value
A111: =ADJUST!B15 -> Online betting jobs | B111: =ADJUST!C15 -> 0
A112: =ADJUST!B16 -> Shop betting jobs | B112: =ADJUST!C16 -> 0
A114: =ADJUST!B18 -> Sporting goods (Equipment and sportswear) | B114: =ADJUST!C18 -> New baseline value
A115: =ADJUST!B19 -> Manufacture and retail of sporting goods jobs | B115: =ADJUST!C19 -> 0
A117: =ADJUST!B25 -> Sports services | B117: =ADJUST!C25 -> New baseline value
A118: =ADJUST!B26 -> Sports services jobs | B118: =ADJUST!C26 -> 0
A120: =ADJUST!B28 -> Wider Spending | B120: =ADJUST!C28 -> New baseline value
A121: =ADJUST!B29 -> Overnight visits
A122: =ADJUST!B30 -> Spectator sports visits | B122: =ADJUST!C30 -> 0
A123: =ADJUST!B31 -> Participation sports visits | B123: =ADJUST!C31 -> 0
A125: =ADJUST!B33 -> Average spend per spectating trip | B125: =ADJUST!C33 -> 0
A126: =ADJUST!B34 -> Average spend per participation trip | B126: =ADJUST!C34 -> 0
A127: =ADJUST!B35 -> Day Visits
A128: =ADJUST!B36 -> Spectator sports visits | B128: =ADJUST!C36 -> 0
A129: =ADJUST!B37 -> Participation sports visits | B129: =ADJUST!C37 -> 0
A131: =ADJUST!B39 -> Average spend per spectating trip | B131: =ADJUST!C39 -> 0
A132: =ADJUST!B40 -> Average spend per participation trip | B132: =ADJUST!C40 -> 0
A134: =ADJUST!B42 -> Education | B134: =ADJUST!C42 -> New baseline value
A135: =ADJUST!B43 -> Further education students on sport related courses | B135: =ADJUST!C43 -> 0
A136: =ADJUST!B44 -> Further education jobs for sports related courses | B136: =ADJUST!C44 -> 0
A138: Events
B139: =EVENTS!C15 -> Expenditure | C139: =EVENTS!D15 -> Spectator sports visits | D139: =EVENTS!E15 -> Spectator sports day visits | E139: =EVENTS!F15 -> Spectator sports overnight visits | G139: =EVENTS!H14 -> Large sports club/venue
A140: =EVENTS!B16 -> Recurring events | B140: =EVENTS!C16 -> 0 | C140: =EVENTS!D16 -> 0 | D140: =EVENTS!E16 -> 0 | E140: =EVENTS!F16 -> 0
A141: =EVENTS!B17 -> One off events | B141: =EVENTS!C17 -> 0 | C141: =EVENTS!D17 -> 0 | D141: =EVENTS!E17 -> 0 | E141: =EVENTS!F17 -> 0 | G141: =EVENTS!H16 -> GVA | H141: =EVENTS!I16 -> 0
A144: ="Impact assessment for " & LocalAuthority -> Impact assessment for Adur
B145: =ADDITIONAL_IMPACT_RESULTS!D7 -> Additional GVA | C145: =ADDITIONAL_IMPACT_RESULTS!E7 -> Additional jobs
A146: =ADDITIONAL_IMPACT_RESULTS!B8 -> Construction | B146: =ADDITIONAL_IMPACT_RESULTS!D8 -> 0 | C146: =ADDITIONAL_IMPACT_RESULTS!E8 -> 0
A148: =ADDITIONAL_IMPACT_RESULTS!B10 -> Participation | B148: =ADDITIONAL_IMPACT_RESULTS!D10 -> Additional GVA | C148: =ADDITIONAL_IMPACT_RESULTS!E10 -> Additional jobs
A149: =ADDITIONAL_IMPACT_RESULTS!B11 -> Sports services | B149: =ADDITIONAL_IMPACT_RESULTS!D11 -> 0 | C149: =ADDITIONAL_IMPACT_RESULTS!E11 -> 0
A150: =ADDITIONAL_IMPACT_RESULTS!B12 -> Sportswear and equipment | B150: =ADDITIONAL_IMPACT_RESULTS!D12 -> 0 | C150: =ADDITIONAL_IMPACT_RESULTS!E12 -> 0
A151: =ADDITIONAL_IMPACT_RESULTS!B13 -> Total participation | B151: =ADDITIONAL_IMPACT_RESULTS!D13 -> 0 | C151: =ADDITIONAL_IMPACT_RESULTS!E13 -> 0
A153: =ADDITIONAL_IMPACT_RESULTS!B15 -> Non-Participation | B153: =ADDITIONAL_IMPACT_RESULTS!D15 -> Additional GVA | C153: =ADDITIONAL_IMPACT_RESULTS!E15 -> Additional jobs
A154: =ADDITIONAL_IMPACT_RESULTS!B16 -> Spectator sports | B154: =ADDITIONAL_IMPACT_RESULTS!D16 -> 0 | C154: =ADDITIONAL_IMPACT_RESULTS!E16 -> 0
A156: =ADDITIONAL_IMPACT_RESULTS!B18 -> Wider impacts | D156: =ADDITIONAL_IMPACT_RESULTS!F18 -> Wider Impact
A157: =ADDITIONAL_IMPACT_RESULTS!B19 -> Health | D157: =ADDITIONAL_IMPACT_RESULTS!F19 -> 0
A158: =ADDITIONAL_IMPACT_RESULTS!B22 -> Volunteering | D158: =ADDITIONAL_IMPACT_RESULTS!F22 -> 0
A159: =ADDITIONAL_IMPACT_RESULTS!B23 -> Wider Spending | D159: =ADDITIONAL_IMPACT_RESULTS!F23 -> 0
A162: Impact assessment Inputs
A163: =ADDITIONAL_IMPACT_INPUTS!B10 -> Participation | B163: =ADDITIONAL_IMPACT_INPUTS!C10 -> Additional Impact
A164: =ADDITIONAL_IMPACT_INPUTS!B11 -> Expected additional participants | B164: =ADDITIONAL_IMPACT_INPUTS!C11 -> 0
A166: =ADDITIONAL_IMPACT_INPUTS!B13 -> Estimated participant breakdown | B166: =ADDITIONAL_IMPACT_INPUTS!C13 -> Athletics | C166: Badminton | D166: Cricket | E166: Golf | F166: Squash | G166: Tennis | H166: Swimming | I166: Football | J166: Cycling | K166: Health & fitness | L166: Total
A167: =ADDITIONAL_IMPACT_INPUTS!B14 -> 16-29 | B167: =ADDITIONAL_IMPACT_INPUTS!C14 -> 0 | C167: =ADDITIONAL_IMPACT_INPUTS!D14 -> 0 | D167: =ADDITIONAL_IMPACT_INPUTS!E14 -> 0 | E167: =ADDITIONAL_IMPACT_INPUTS!F14 -> 0 | F167: =ADDITIONAL_IMPACT_INPUTS!G14 -> 0 | G167: =ADDITIONAL_IMPACT_INPUTS!H14 -> 0 | H167: =ADDITIONAL_IMPACT_INPUTS!I14 -> 0 | I167: =ADDITIONAL_IMPACT_INPUTS!J14 -> 0 | J167: =ADDITIONAL_IMPACT_INPUTS!K14 -> 0 | K167: =ADDITIONAL_IMPACT_INPUTS!L14 -> 0 | L167: =ADDITIONAL_IMPACT_INPUTS!M14 -> 0
A168: =ADDITIONAL_IMPACT_INPUTS!B15 -> 30-49 | B168: =ADDITIONAL_IMPACT_INPUTS!C15 -> 0 | C168: =ADDITIONAL_IMPACT_INPUTS!D15 -> 0 | D168: =ADDITIONAL_IMPACT_INPUTS!E15 -> 0 | E168: =ADDITIONAL_IMPACT_INPUTS!F15 -> 0 | F168: =ADDITIONAL_IMPACT_INPUTS!G15 -> 0 | G168: =ADDITIONAL_IMPACT_INPUTS!H15 -> 0 | H168: =ADDITIONAL_IMPACT_INPUTS!I15 -> 0 | I168: =ADDITIONAL_IMPACT_INPUTS!J15 -> 0 | J168: =ADDITIONAL_IMPACT_INPUTS!K15 -> 0 | K168: =ADDITIONAL_IMPACT_INPUTS!L15 -> 0 | L168: =ADDITIONAL_IMPACT_INPUTS!M15 -> 0
A169: =ADDITIONAL_IMPACT_INPUTS!B16 -> 50-64 | B169: =ADDITIONAL_IMPACT_INPUTS!C16 -> 0 | C169: =ADDITIONAL_IMPACT_INPUTS!D16 -> 0 | D169: =ADDITIONAL_IMPACT_INPUTS!E16 -> 0 | E169: =ADDITIONAL_IMPACT_INPUTS!F16 -> 0 | F169: =ADDITIONAL_IMPACT_INPUTS!G16 -> 0 | G169: =ADDITIONAL_IMPACT_INPUTS!H16 -> 0 | H169: =ADDITIONAL_IMPACT_INPUTS!I16 -> 0 | I169: =ADDITIONAL_IMPACT_INPUTS!J16 -> 0 | J169: =ADDITIONAL_IMPACT_INPUTS!K16 -> 0 | K169: =ADDITIONAL_IMPACT_INPUTS!L16 -> 0 | L169: =ADDITIONAL_IMPACT_INPUTS!M16 -> 0
A170: =ADDITIONAL_IMPACT_INPUTS!B17 -> 65+ | B170: =ADDITIONAL_IMPACT_INPUTS!C17 -> 0 | C170: =ADDITIONAL_IMPACT_INPUTS!D17 -> 0 | D170: =ADDITIONAL_IMPACT_INPUTS!E17 -> 0 | E170: =ADDITIONAL_IMPACT_INPUTS!F17 -> 0 | F170: =ADDITIONAL_IMPACT_INPUTS!G17 -> 0 | G170: =ADDITIONAL_IMPACT_INPUTS!H17 -> 0 | H170: =ADDITIONAL_IMPACT_INPUTS!I17 -> 0 | I170: =ADDITIONAL_IMPACT_INPUTS!J17 -> 0 | J170: =ADDITIONAL_IMPACT_INPUTS!K17 -> 0 | K170: =ADDITIONAL_IMPACT_INPUTS!L17 -> 0 | L170: =ADDITIONAL_IMPACT_INPUTS!M17 -> 0
A171: =ADDITIONAL_IMPACT_INPUTS!B18 -> Total | B171: =ADDITIONAL_IMPACT_INPUTS!C18 -> 0 | C171: =ADDITIONAL_IMPACT_INPUTS!D18 -> 0 | D171: =ADDITIONAL_IMPACT_INPUTS!E18 -> 0 | E171: =ADDITIONAL_IMPACT_INPUTS!F18 -> 0 | F171: =ADDITIONAL_IMPACT_INPUTS!G18 -> 0 | G171: =ADDITIONAL_IMPACT_INPUTS!H18 -> 0 | H171: =ADDITIONAL_IMPACT_INPUTS!I18 -> 0 | I171: =ADDITIONAL_IMPACT_INPUTS!J18 -> 0 | J171: =ADDITIONAL_IMPACT_INPUTS!K18 -> 0 | K171: =ADDITIONAL_IMPACT_INPUTS!L18 -> 0 | L171: =ADDITIONAL_IMPACT_INPUTS!M18 -> 0
A173: =ADDITIONAL_IMPACT_INPUTS!B20 -> Participant share of total | B173: =ADDITIONAL_IMPACT_INPUTS!C20 -> Athletics | C173: Badminton | D173: Cricket | E173: Golf | F173: Squash | G173: Tennis | H173: Swimming | I173: Football | J173: Cycling | K173: Health & fitness | L173: Total
A174: =ADDITIONAL_IMPACT_INPUTS!B21 -> 16-29 | B174: =ADDITIONAL_IMPACT_INPUTS!C21 -> 0 | C174: =ADDITIONAL_IMPACT_INPUTS!D21 -> 0 | D174: =ADDITIONAL_IMPACT_INPUTS!E21 -> 0 | E174: =ADDITIONAL_IMPACT_INPUTS!F21 -> 0 | F174: =ADDITIONAL_IMPACT_INPUTS!G21 -> 0 | G174: =ADDITIONAL_IMPACT_INPUTS!H21 -> 0 | H174: =ADDITIONAL_IMPACT_INPUTS!I21 -> 0 | I174: =ADDITIONAL_IMPACT_INPUTS!J21 -> 0 | J174: =ADDITIONAL_IMPACT_INPUTS!K21 -> 0 | K174: =ADDITIONAL_IMPACT_INPUTS!L21 -> 0 | L174: =ADDITIONAL_IMPACT_INPUTS!M21 -> 0
A175: =ADDITIONAL_IMPACT_INPUTS!B22 -> 30-49 | B175: =ADDITIONAL_IMPACT_INPUTS!C22 -> 0 | C175: =ADDITIONAL_IMPACT_INPUTS!D22 -> 0 | D175: =ADDITIONAL_IMPACT_INPUTS!E22 -> 0 | E175: =ADDITIONAL_IMPACT_INPUTS!F22 -> 0 | F175: =ADDITIONAL_IMPACT_INPUTS!G22 -> 0 | G175: =ADDITIONAL_IMPACT_INPUTS!H22 -> 0 | H175: =ADDITIONAL_IMPACT_INPUTS!I22 -> 0 | I175: =ADDITIONAL_IMPACT_INPUTS!J22 -> 0 | J175: =ADDITIONAL_IMPACT_INPUTS!K22 -> 0 | K175: =ADDITIONAL_IMPACT_INPUTS!L22 -> 0 | L175: =ADDITIONAL_IMPACT_INPUTS!M22 -> 0
A176: =ADDITIONAL_IMPACT_INPUTS!B23 -> 50-64 | B176: =ADDITIONAL_IMPACT_INPUTS!C23 -> 0 | C176: =ADDITIONAL_IMPACT_INPUTS!D23 -> 0 | D176: =ADDITIONAL_IMPACT_INPUTS!E23 -> 0 | E176: =ADDITIONAL_IMPACT_INPUTS!F23 -> 0 | F176: =ADDITIONAL_IMPACT_INPUTS!G23 -> 0 | G176: =ADDITIONAL_IMPACT_INPUTS!H23 -> 0 | H176: =ADDITIONAL_IMPACT_INPUTS!I23 -> 0 | I176: =ADDITIONAL_IMPACT_INPUTS!J23 -> 0 | J176: =ADDITIONAL_IMPACT_INPUTS!K23 -> 0 | K176: =ADDITIONAL_IMPACT_INPUTS!L23 -> 0 | L176: =ADDITIONAL_IMPACT_INPUTS!M23 -> 0
A177: =ADDITIONAL_IMPACT_INPUTS!B24 -> 65+ | B177: =ADDITIONAL_IMPACT_INPUTS!C24 -> 0 | C177: =ADDITIONAL_IMPACT_INPUTS!D24 -> 0 | D177: =ADDITIONAL_IMPACT_INPUTS!E24 -> 0 | E177: =ADDITIONAL_IMPACT_INPUTS!F24 -> 0 | F177: =ADDITIONAL_IMPACT_INPUTS!G24 -> 0 | G177: =ADDITIONAL_IMPACT_INPUTS!H24 -> 0 | H177: =ADDITIONAL_IMPACT_INPUTS!I24 -> 0 | I177: =ADDITIONAL_IMPACT_INPUTS!J24 -> 0 | J177: =ADDITIONAL_IMPACT_INPUTS!K24 -> 0 | K177: =ADDITIONAL_IMPACT_INPUTS!L24 -> 0 | L177: =ADDITIONAL_IMPACT_INPUTS!M24 -> 0
A178: =ADDITIONAL_IMPACT_INPUTS!B25 -> Total | B178: =ADDITIONAL_IMPACT_INPUTS!C25 -> 0 | C178: =ADDITIONAL_IMPACT_INPUTS!D25 -> 0 | D178: =ADDITIONAL_IMPACT_INPUTS!E25 -> 0 | E178: =ADDITIONAL_IMPACT_INPUTS!F25 -> 0 | F178: =ADDITIONAL_IMPACT_INPUTS!G25 -> 0 | G178: =ADDITIONAL_IMPACT_INPUTS!H25 -> 0 | H178: =ADDITIONAL_IMPACT_INPUTS!I25 -> 0 | I178: =ADDITIONAL_IMPACT_INPUTS!J25 -> 0 | J178: =ADDITIONAL_IMPACT_INPUTS!K25 -> 0 | K178: =ADDITIONAL_IMPACT_INPUTS!L25 -> 0 | L178: =ADDITIONAL_IMPACT_INPUTS!M25 -> 0
A180: =ADDITIONAL_IMPACT_INPUTS!B27 -> Volunteering | B180: =ADDITIONAL_IMPACT_INPUTS!C27 -> Additional Impact
A181: =ADDITIONAL_IMPACT_INPUTS!B28 -> Expected additional volunteers | B181: =ADDITIONAL_IMPACT_INPUTS!C28 -> 0
A183: =ADDITIONAL_IMPACT_INPUTS!B30 -> Wider spending | B183: =ADDITIONAL_IMPACT_INPUTS!C30 -> Additional Impact
A184: =ADDITIONAL_IMPACT_INPUTS!B31 -> Overnight visits
A185: =ADDITIONAL_IMPACT_INPUTS!B32 -> Spectator sports visits | B185: =ADDITIONAL_IMPACT_INPUTS!C32 -> 0
A186: =ADDITIONAL_IMPACT_INPUTS!B33 -> Participation sports visits | B186: =ADDITIONAL_IMPACT_INPUTS!C33 -> 0
A188: =ADDITIONAL_IMPACT_INPUTS!B35 -> Average spend per spectating trip | B188: =ADDITIONAL_IMPACT_INPUTS!C35 -> 0
A189: =ADDITIONAL_IMPACT_INPUTS!B36 -> Average spend per participation trip | B189: =ADDITIONAL_IMPACT_INPUTS!C36 -> 0
A190: =ADDITIONAL_IMPACT_INPUTS!B37 -> Day Visits
A191: =ADDITIONAL_IMPACT_INPUTS!B38 -> Spectator sports visits | B191: =ADDITIONAL_IMPACT_INPUTS!C38 -> 0
A192: =ADDITIONAL_IMPACT_INPUTS!B39 -> Participation sports visits | B192: =ADDITIONAL_IMPACT_INPUTS!C39 -> 0
A194: =ADDITIONAL_IMPACT_INPUTS!B41 -> Average spend per spectating trip | B194: =ADDITIONAL_IMPACT_INPUTS!C41 -> 0
A195: =ADDITIONAL_IMPACT_INPUTS!B42 -> Average spend per participation trip | B195: =ADDITIONAL_IMPACT_INPUTS!C42 -> 0
A197: =ADDITIONAL_IMPACT_INPUTS!B47 -> Construction | B197: =ADDITIONAL_IMPACT_INPUTS!C47 -> Additional Impact
A198: =ADDITIONAL_IMPACT_INPUTS!B48 -> Value of Investment in construction projects | B198: =ADDITIONAL_IMPACT_INPUTS!C48 -> 0
A199: =ADDITIONAL_IMPACT_INPUTS!B49 -> Average Number of years to construction projects completion | B199: =ADDITIONAL_IMPACT_INPUTS!C49 -> 0
A201: Events
B202: =ADDEVENTS!C14 -> Expenditure | C202: =ADDEVENTS!D14 -> Spectator sports visits | D202: =ADDEVENTS!E14 -> Spectator sports day visits | E202: =ADDEVENTS!F14 -> Spectator sports overnight visits
A203: =ADDEVENTS!B15 -> Recurring events | B203: =ADDEVENTS!C15 -> 0 | C203: =ADDEVENTS!D15 -> 0 | D203: =ADDEVENTS!E15 -> 0 | E203: =ADDEVENTS!F15 -> 0
A204: =ADDEVENTS!B16 -> One off events | B204: =ADDEVENTS!C16 -> 0 | C204: =ADDEVENTS!D16 -> 0 | D204: =ADDEVENTS!E16 -> 0 | E204: =ADDEVENTS!F16 -> 0

Sheet SNAPSHOT (hidden)
B1: =LocalAreaTypeSelect & ": " & LocalAuthority -> Local authority: Adur
B3: Navigation:
B4: Contextual:
B5: ECONOMIC VALUE OF SPORT: RESULTS | G5: Level 1 makes an initial, snapshot for 2013, estimate of the overall contribution that sport makes to the economy of your local area. The model uses a consistent methodology suitable for any local area and supported by the available local area data and assumptions that are included in the model. Note: Gross value added (GVA) is the value added contributed by a sector, which is principally wages plus profits
B6: =HYPERLINK(GuidanceFileName,"For guidance: see pages 12-28") -> For guidance: see pages 12-28
B20: Total direct economic value of sport | D20: Gross Value Added: | E20: =SUM(D27,D33) -> 12.72638328
D21: Jobs: | E21: =SUM(E27,E33) -> 345
B23: Participation | C23: How it is calculated? | D23: Gross Value Added | E23: Jobs
B24: Sports services | C24: Local area jobs in sports activities (SIC 93.1) multiplied by national expenditure per job. Includes all front-line staff (e.g. leisure centre receptionists) but not high level managers/civil servants. | D24: =(SUBSCRIPTION!B19+PARTI_SPORT!B21)/1000000 -> 5.65354271 | E24: =ROUND(PARTI_SPORT!B22+SubscriptEmpEst,0) -> 234
B25: Sportswear and equipment | C25: Local area jobs in retail sale of sporting equipment in specialised stores (SIC 47.64) and manufacture of sports goods(SIC 32.3) multiplied by national expenditure per job multiplied by the national share of sportswear & equipment for participation | D25: =(PARTI_WEAR!B20+PARTI_EQUIP!B20)/1000000 -> 0.4545059379 | E25: =ROUND(ParSpEquipEmpEst+ParSpWearEmpEst,0) -> 9
B26: Sport education | C26: Local area school age population multiplied by England expenditure per school age person plus user specified FE students in sports related course multiplied by England expenditure per student. Includes teachers and support staff. | D26: =EDUCATION!B34/1000000 -> 4.554127423 | E26: =ROUND(EDUCATION!B35,0) -> 55
B27: Total participation | D27: =SUM(D24:D26) -> 10.66217607 | E27: =SUM(E24:E26) -> 298
B29: Non-Participation | D29: Gross Value Added | E29: Jobs
B30: Spectator sports | C30: Local area jobs in sports activities (SIC 93.1) multiplied by national expenditure per job. Includes revenue from tickets and all employment associated with hosting events. | D30: =SPECTATOR!B17/1000000 -> 1.043177534 | E30: =IF(SPECTATOR!B16>50,ROUND(SPECTATOR!B16,-2) &"*","25*") -> 25*
B31: Sportswear and equipment | C31: Local area jobs in retail sale of sporting equipment in specialised stores (SIC 47.64) and manufacture of sports goods(SIC 32.3) multiplied by national expenditure per job multiplied by the national share of sportswear & equipment for non-participation | D31: =(CONS_EQUIP!B19+CONS_WEAR!B19)/1000000 -> 0.6746572516 | E31: =ROUND(ConsSpEquipEmpEst+ConsSpWearEmpEst,0) -> 13
B32: Sports broadcasting and gambling | C32: Local area jobs in gambling and betting (SIC 92) and television programming and broadcasting activities (SIC 60.2) multiplied by national expenditure per job plus user input of online betting jobs. Includes betting shop staff and on-site bookmakers. | D32: =(SPORT_GAMBLING!B32+TV_SUBS!B22)/1000000 -> 0.3463724244 | E32: =ROUND(GambleEmpEst,0) -> 9
B33: Total non-participation | D33: =SUM(D30:D32) -> 2.06420721 | E33: =SUM(E30:E32)+LEFT(E30,LEN(E30)-1) -> 47
B35: Wider impacts | F35: Wider value
B36: Health | C36: Participants in any sport by age group multiplied by national per participant value | F36: =HEALTH!B26/1000000 -> 23.97121277
B37: Volunteering | C37: The number of volunteers and the average number of hours volunteers in each area from the Active People Survey are multiplied by national replacement wage rate to derive a local area estimate of the value of volunteer’s time. | F37: =IF(VOLUNTEER!B15<>0,VOLUNTEER!B15/1000000,"**") -> 4.682347254
B38: Wider spending | C38: Number of sports visits (based on regional sports visits as percentage of all visits data and LA total tourist visits) multiplied by LA average spend per visit. Includes all non-entry fee spending during trip. | F38: =(TOURISM!B25+TOURISM!C25)/1000000 -> 0.05909671244
B40: * Employment estimate directly from BRES and must be supressed by rounding to the nearest 100 (any value below 50 is set to 25). ** The sample from the APS survey for volunteering in this area is too small to be disclosed.

Sheet REFINED_SNAPSHOT (hidden)
B1: =LocalAreaTypeSelect & ": " & LocalAuthority -> Local authority: Adur
B3: Navigation:
B4: Contextual:
B5: REFINED ECONOMIC VALUE OF SPORT: RESULTS | H5: Level 2 gives you the option to refine the snapshot for 2013 - to input local area data and assumptions that better capture your local knowledge. Note: Gross value added (GVA) is the value added contributed by a sector, which is principally wages plus profits
B6: =HYPERLINK(GuidanceFileName,"For guidance: see pages 29-42") -> For guidance: see pages 29-42
B7: Total direct economic value of sport | D7: Gross Value Added: | E7: =SUM(D14,D20) -> 12.72638328
D8: Jobs: | E8: =SUM(E14,E20) -> 345
B10: Participation | C10: How it is calculated? | D10: Gross Value Added | E10: Jobs | G10: Gross Value Added (Diff from snapshot) | H10: Jobs (Diff from snapshot)
B11: Sports services | C11: Local area jobs in sports activities (SIC 93.1) multiplied by national expenditure per job. Includes all front-line staff (e.g. leisure centre receptionists) but not high level managers/civil servants. | D11: =(SUBSCRIPTION!B22+PARTI_SPORT!B21)/1000000 -> 5.65354271 | E11: =ROUND(SUBSCRIPTION!B16+PARTI_SPORT!B22,0) -> 234 | G11: =D11-SNAPSHOT!D24 -> 0 | H11: =E11-SNAPSHOT!E24 -> 0
B12: Sportswear and equipment | C12: Local area jobs in retail sale of sporting equipment in specialised stores (SIC 47.64) and manufacture of sports goods(SIC 32.3) multiplied by national expenditure per job multiplied by the national share of sportswear & equipment for participation | D12: =(PARTI_EQUIP!B23+PARTI_WEAR!B23)/1000000 -> 0.4545059379 | E12: =ROUND(PARTI_EQUIP!B16+PARTI_WEAR!B16,0) -> 9 | G12: =D12-SNAPSHOT!D25 -> 0 | H12: =E12-SNAPSHOT!E25 -> 0
B13: Sport education | C13: Local area school age population multiplied by England expenditure per school age person plus user specified FE students in sports related course multiplied by England expenditure per student. Includes teachers and support staff. | D13: =EDUCATION!B39/1000000 -> 4.554127423 | E13: =ROUND(EDUCATION!B40,0) -> 55 | G13: =D13-SNAPSHOT!D26 -> 0 | H13: =E13-SNAPSHOT!E26 -> 0
B14: Total participation | D14: =SUM(D11:D13) -> 10.66217607 | E14: =SUM(E11:E13) -> 298 | G14: =D14-SNAPSHOT!D27 -> 0 | H14: =E14-SNAPSHOT!E27 -> 0
B16: Non-Participation | D16: Gross Value Added | E16: Jobs | G16: Gross Value Added (Diff from snapshot) | H16: Jobs (Diff from snapshot)
B17: Spectator sports | C17: Local area jobs in sports activities (SIC 93.1) multiplied by national expenditure per job. Includes revenue from tickets and all employment associated with hosting events. | D17: =SPECTATOR!B22/1000000 -> 1.043177534 | E17: =IF(OR(RecurrEventExp<>0,OneEventExp<>0),SPECTATOR!B23,SNAPSHOT!E30) -> 25* | G17: =D17-SNAPSHOT!D30 -> 0 | H17: =IF(E17=SNAPSHOT!E30,0,E17-LEFT(SNAPSHOT!E30,LEN(SNAPSHOT!E30)-1)) -> 0
B18: Sportswear and equipment | C18: Local area jobs in retail sale of sporting equipment in specialised stores (SIC 47.64) and manufacture of sports goods(SIC 32.3) multiplied by national expenditure per job multiplied by the national share of sportswear & equipment for non-participation | D18: =(CONS_EQUIP!B22+CONS_WEAR!B22)/1000000 -> 0.6746572516 | E18: =ROUND(CONS_EQUIP!B16+CONS_WEAR!B16,0) -> 13 | G18: =D18-SNAPSHOT!D31 -> 0 | H18: =E18-SNAPSHOT!E31 -> 0
B19: Sports broadcasting and gambling | C19: Local area jobs in gambling and betting (SIC 92) and television programming and broadcasting activities (SIC 60.2) multiplied by national expenditure per job plus user input of online betting jobs. Includes betting shop staff and on-site bookmakers. | D19: =(SPORT_GAMBLING!B36+TV_SUBS!B25)/1000000 -> 0.3463724244 | E19: =IF(OR(ISBLANK(TVEmpFix),TVEmpFix=0),ROUND(SPORT_GAMBLING!B37,0),ROUND(SPORT_GAMBLING!B37,0)+ROUND(TVEmpFix,0)) -> 9 | G19: =D19-SNAPSHOT!D32 -> 0 | H19: =E19-SNAPSHOT!E32 -> 0
B20: Total non-participation | D20: =SUM(D17:D19) -> 2.06420721 | E20: =IF(E17=SNAPSHOT!E30,SUM(E17:E19)+LEFT(E17,LEN(E17)-1),SUM(E17:E19)) -> 47 | G20: =D20-SNAPSHOT!D33 -> 0 | H20: =E20-SNAPSHOT!E33 -> 0
B22: Wider impacts | I22: Wider value | K22: Wider value (diff from snapshot)
B23: Health | C23: Participants by age (assuming distribution of participants across sports is as in England) multiplied by national per participant value | I23: =SNAPSHOT!F36 -> 23.97121277 | K23: =I23-SNAPSHOT!F36 -> 0
B24: Volunteering | C24: The number of volunteers and the average number of hours volunteers in each area from the Active People Survey are multiplied by national replacement wage rate to derive a local area estimate of the value of volunteer’s time. | I24: =SNAPSHOT!F37 -> 4.682347254 | K24: =IF(I24<>"**",I24-SNAPSHOT!F37,"**") -> 0
B25: Wider Spending | C25: Number of sports visits (based on regional sports visits as percentage of all visits data and LA total tourist visits) multiplied by LA average spend per visit. Includes all non-entry fee spending during trip. | I25: =(TOURISM!B29+TOURISM!C29)/1000000 -> 0.05909671244 | K25: =I25-SNAPSHOT!F38 -> 0
B27: * Employment estimate directly from BRES and must be supressed by rounding to the nearest 100 (any value below 50 is set to 25). ** The sample from the APS survey for volunteering in this area is too small to be disclosed.

Sheet DETAILED_BASIC_SNAPSHOT (hidden)
B1: =LocalAreaTypeSelect & ": " & LocalAuthority -> Local authority: Adur
B3: Navigation:
B4: Contextual:
B5: ECONOMIC VALUE OF SPORT: DETAILED RESULTS | G5: Level 1 makes an initial, snapshot for 2012, estimate of the overall contribution that sport makes to the economy of your local area. The model uses a consistent methodology suitable for any local area and supported by the available local area data and assumptions that are included in the model. Note: Gross value added (GVA) is the value added contributed by a sector, which is principally wages plus profits
B6: =HYPERLINK(GuidanceFileName,"For guidance: see pages 12-28") -> For guidance: see pages 12-28
B20: Total direct economic value of sport | D20: Gross Value Added: | E20: =SUM(D29,D37) -> 12.72638328
D21: Jobs: | E21: =SUM(E29,E37) -> 345
B23: Participation | C23: How it is calculated? | D23: Gross Value Added | E23: Jobs
B24: Sport/class subscription fees | C24: Local area jobs in sports activities (SIC 93.1) multiplied by national expenditure per job | D24: =SUBSCRIPTION!B19/1000000 -> 4.172710137 | E24: =ROUND(PARTI_SPORT!B22+SUBSCRIPTION!B14,0) -> 234
B25: Participation sport | C25: Local area participation in participation sports multiplied by national expenditure per participant | D25: =PARTI_SPORT!B21/1000000 -> 1.480832572
B26: Sports equipment | C26: Local area jobs in retail sale of sporting equipment in specialised stores (SIC 47.64) and manufacture of sports goods (SIC 32.3) multiplied by national expenditure per job multiplied by the national share of sports equipment for participation | D26: =PARTI_EQUIP!B20/1000000 -> 0.4260993168 | E26: =ROUND(ParSpEquipEmpEst,0) -> 8
B27: Sportswear | C27: Local area jobs in retail sale of sporting equipment in specialised stores (SIC 47.64) and manufacture of sports goods (SIC 32.3) multiplied by national expenditure per job multiplied by the national share of sportswear for participation | D27: =PARTI_WEAR!B20/1000000 -> 0.02840662112 | E27: =ROUND(ParSpWearEmpEst,0) -> 1
B28: Sport education | C28: Local area school age population multiplied by England expenditure per school age person plus user input FE students in sports related course multiplied by England expenditure per student | D28: =EDUCATION!B34/1000000 -> 4.554127423 | E28: =ROUND(EDUCATION!B35,0) -> 55
B29: Total participation | D29: =SUM(D24:D28) -> 10.66217607 | E29: =SUM(E24:E28) -> 298
B31: Non-Participation | D31: Gross Value Added | E31: Jobs
B32: Spectator sports | C32: Local area jobs in sports activities (SIC 93.1) multiplied by national expenditure per job | D32: =SNAPSHOT!D30 -> 1.043177534 | E32: =SNAPSHOT!E30 -> 25*
B33: Sports equipment | C33: Local area jobs in retail sale of sporting equipment in specialised stores (SIC 47.64) and manufacture of sports goods (SIC 32.3) multiplied by national expenditure per job multiplied by the national share of sports equipment for non-participation | D33: =CONS_EQUIP!B19/1000000 -> 0.532624146 | E33: =ROUND(ConsSpEquipEmpEst,0) -> 10
B34: Sportswear | C34: Local area jobs in retail sale of sporting equipment in specialised stores (SIC 47.64) and manufacture of sports goods (SIC 32.3) multiplied by national expenditure per job multiplied by the national share of sportswear for non-participation | D34: =CONS_WEAR!B19/1000000 -> 0.1420331056 | E34: =ROUND(ConsSpWearEmpEst,0) -> 3
B35: Sports gambling | C35: Local area jobs in gambling and betting (SIC 92) multiplied by national expenditure per job plus user input of online betting jobs | D35: =SPORT_GAMBLING!B32/1000000 -> 0.1787715154 | E35: =ROUND(GambleEmpEst,0) -> 9
B36: TV/satellite subscriptions | C36: Local area jobs in television programming and broadcasting activities (SIC 60.2) multiplied by national expenditure per job | D36: =TV_SUBS!B22/1000000 -> 0.167600909
B37: Total non-participation | D37: =SUM(D32:D36) -> 2.06420721 | E37: =SUM(E32:E36)+LEFT(E32,LEN(E32)-1) -> 47
B39: Wider impacts | F39: Wider value
B40: Health | C40: Participants by age (assuming distribution of participants across sports is as in England) multiplied by national per participant value | F40: =HEALTH!B26/1000000 -> 23.97121277
B41: Health cost savings | C41: Participants by age (assuming distribution of participants across sports is as in England) multiplied by national per participant health cost savings | F41: =HEALTH!B24/1000000 -> 3.665443732
B42: Other health benefits (QALY's etc) | C42: Participants by age (assuming distribution of participants across sports is as in England) multiplied by national per participant value of other health benefits | F42: =HEALTH!B25/1000000 -> 20.30576904
B43: Volunteering | C43: The number of volunteers and the average number of hours volunteers in each area from the Active People Survey are multiplied by national replacement wage rate to derive a local area estimate of the value of volunteer’s time. | F43: =IF(VOLUNTEER!B15>30,VOLUNTEER!B15/1000000,"**") -> 4.682347254
B44: Wider spending | C44: Number of sports visits (based on regional sports visits as percentage of all visits data and LA total visits) multiplied by LA average spend per visit | F44: =SUM(TOURISM!B25,TOURISM!C25)/1000000 -> 0.05909671244
B45: Spectator wider spending | C45: Number of sports visits (based on regional visits for the purpose of watching sport as percentage of all visits data and LA total visits) multiplied by LA average spend per visit | F45: =(TOURISM!B26+TOURISM!C26)/1000000 -> 0.03801788856
B46: Participation wider spending | C46: Number of sports visits (based on regional sports visits for the purpose of participating in sport as percentage of all visits data and LA total visits) multiplied by LA average spend per visit | F46: =SUM(TOURISM!B27,TOURISM!C27)/1000000 -> 0.02107882388
B48: * Employment estimate directly from BRES and must be supressed by rounding to the nearest 100 (any value below 50 is set to 25). ** The sample from the APS survey for volunteering in this area is too small to be disclosed.

Sheet DETAILED_REFINED_SNAPSHOT (hidden)
B1: =LocalAreaTypeSelect & ": " & LocalAuthority -> Local authority: Adur
B3: Navigation:
B4: Contextual:
B5: REFINED ECONOMIC VALUE OF SPORT: DETAILED RESULTS | I5: Level 2 gives you the option to refine the snapshot for 2012 - to input local area data and assumptions that better capture your local knowledge. Note: Gross value added (GVA) is the value added contributed by a sector, which is principally wages plus profits
B6: =HYPERLINK(GuidanceFileName,"For guidance: see pages 29-42") -> For guidance: see pages 29-42
B7: Total direct economic value of sport | D7: Gross Value Added: | E7: =SUM(D16,D24) -> 12.72638328
D8: Jobs: | E8: =SUM(E16,E24) -> 345
B10: Participation | C10: How it is calculated? | D10: Gross Value Added | E10: Jobs | G10: Gross Value Added (Diff from snapshot) | H10: Jobs (Diff from snapshot)
B11: Sport/class subscription fees | C11: Local area jobs in sports activities (SIC 93.1) multiplied by national expenditure per job | D11: =SUBSCRIPTION!B22/1000000 -> 4.172710137 | E11: =ROUND(REFINED_SNAPSHOT!E11,0) -> 234 | G11: =D11-DETAILED_BASIC_SNAPSHOT!D24 -> 0 | H11: =E11-DETAILED_BASIC_SNAPSHOT!E24 -> 0
B12: Participation sport | C12: Local area participation in participation sports multiplied by national expenditure per participant | D12: =PARTI_SPORT!B21/1000000 -> 1.480832572 | G12: =D12-DETAILED_BASIC_SNAPSHOT!D25 -> 0 | H12: =E12-DETAILED_BASIC_SNAPSHOT!E25 -> 0
B13: Sports equipment | C13: Local area jobs in retail sale of sporting equipment in specialised stores (SIC 47.64) and manufacture of sports goods (SIC 32.3) multiplied by national expenditure per job multiplied by the national share of sports equipment for participation | D13: =PARTI_EQUIP!B23/1000000 -> 0.4260993168 | E13: =ROUND(PARTI_EQUIP!B16,0) -> 8 | G13: =D13-DETAILED_BASIC_SNAPSHOT!D26 -> 0 | H13: =E13-DETAILED_BASIC_SNAPSHOT!E26 -> 0
B14: Sportswear | C14: Local area jobs in retail sale of sporting equipment in specialised stores (SIC 47.64) and manufacture of sports goods (SIC 32.3) multiplied by national expenditure per job multiplied by the national share of sportswear for participation | D14: =PARTI_WEAR!B23/1000000 -> 0.02840662112 | E14: =ROUND(PARTI_WEAR!B16,0) -> 1 | G14: =D14-DETAILED_BASIC_SNAPSHOT!D27 -> 0 | H14: =E14-DETAILED_BASIC_SNAPSHOT!E27 -> 0
B15: Sport education | C15: Local area school age population multiplied by England expenditure per school age person plus user input FE students in sports related course multiplied by England expenditure per student | D15: =EDUCATION!B39/1000000 -> 4.554127423 | E15: =ROUND(EDUCATION!B40,0) -> 55 | G15: =D15-DETAILED_BASIC_SNAPSHOT!D28 -> 0 | H15: =E15-DETAILED_BASIC_SNAPSHOT!E28 -> 0
B16: Total participation | D16: =SUM(D11:D15) -> 10.66217607 | E16: =SUM(E11:E15) -> 298 | G16: =D16-DETAILED_BASIC_SNAPSHOT!D29 -> 0 | H16: =E16-DETAILED_BASIC_SNAPSHOT!E29 -> 0
B18: Non-Participation | D18: Gross Value Added | E18: Jobs | G18: Gross Value Added (Diff from snapshot) | H18: Jobs (Diff from snapshot)
B19: Spectator sports | C19: Local area jobs in sports activities (SIC 93.1) multiplied by national expenditure per job | D19: =REFINED_SNAPSHOT!D17 -> 1.043177534 | E19: =REFINED_SNAPSHOT!E17 -> 25* | G19: =D19-DETAILED_BASIC_SNAPSHOT!D32 -> 0 | H19: =IF(E19=DETAILED_BASIC_SNAPSHOT!E32,0,E19-LEFT(DETAILED_BASIC_SNAPSHOT!E32,LEN(DETAILED_BASIC_SNAPSHOT!E32)-1)) -> 0
B20: Sports equipment | C20: Local area jobs in retail sale of sporting equipment in specialised stores (SIC 47.64) and manufacture of sports goods (SIC 32.3) multiplied by national expenditure per job multiplied by the national share of sports equipment for non-participation | D20: =CONS_EQUIP!B22/1000000 -> 0.532624146 | E20: =ROUND(CONS_EQUIP!B16,0) -> 10 | G20: =D20-DETAILED_BASIC_SNAPSHOT!D33 -> 0 | H20: =E20-DETAILED_BASIC_SNAPSHOT!E33 -> 0
B21: Sportswear | C21: Local area jobs in retail sale of sporting equipment in specialised stores (SIC 47.64) and manufacture of sports goods (SIC 32.3) multiplied by national expenditure per job multiplied by the national share of sportswear for non-participation | D21: =CONS_WEAR!B22/1000000 -> 0.1420331056 | E21: =ROUND(CONS_WEAR!B16,0) -> 3 | G21: =D21-DETAILED_BASIC_SNAPSHOT!D34 -> 0 | H21: =E21-DETAILED_BASIC_SNAPSHOT!E34 -> 0
B22: Sports gambling | C22: Local area jobs in gambling and betting (SIC 92) multiplied by national expenditure per job plus user input of online betting jobs | D22: =SPORT_GAMBLING!B36/1000000 -> 0.1787715154 | E22: =ROUND(SPORT_GAMBLING!B37,0) -> 9 | G22: =D22-DETAILED_BASIC_SNAPSHOT!D35 -> 0 | H22: =E22-DETAILED_BASIC_SNAPSHOT!E35 -> 0
B23: TV/satellite subscriptions | C23: Local area jobs in television programming and broadcasting activities (SIC 60.2) multiplied by national expenditure per job | D23: =TV_SUBS!B25/1000000 -> 0.167600909 | E23: =IF(OR(ISBLANK(TVEmpFix),TVEmpFix=0),"",TVEmpFix) ->  | G23: =D23-DETAILED_BASIC_SNAPSHOT!D36 -> 0 | H23: N/A
B24: Total non-participation | D24: =SUM(D19:D23) -> 2.06420721 | E24: =IF(RIGHT(E19,1)<>"*",SUM(E19:E23),SUM(E19:E23)+LEFT(E19,LEN(E19)-1)) -> 47 | G24: =D24-DETAILED_BASIC_SNAPSHOT!D37 -> 0 | H24: =E24-DETAILED_BASIC_SNAPSHOT!E37 -> 0
B26: Wider impacts | I26: Wider value | K26: Wider value (Diff from snapshot)
B27: Health | C27: Participants by age (assuming distribution of participants across sports is as in England) multiplied by national per participant value | I27: =DETAILED_BASIC_SNAPSHOT!$F$40 -> 23.97121277 | K27: =I27-DETAILED_BASIC_SNAPSHOT!F40 -> 0
B28: Health cost savings | C28: Participants by age (assuming distribution of participants across sports is as in England) multiplied by national per participant health cost savings | I28: =DETAILED_BASIC_SNAPSHOT!F41 -> 3.665443732 | K28: =I28-DETAILED_BASIC_SNAPSHOT!F41 -> 0
B29: Other health benefits (QALY's etc) | C29: Participants by age (assuming distribution of participants across sports is as in England) multiplied by national per participant value of other health benefits | I29: =DETAILED_BASIC_SNAPSHOT!F42 -> 20.30576904 | K29: =I29-DETAILED_BASIC_SNAPSHOT!F42 -> 0
B30: Volunteering | C30: The number of volunteers and the average number of hours volunteers in each area from the Active People Survey are multiplied by national replacement wage rate to derive a local area estimate of the value of volunteer’s time. | I30: =DETAILED_BASIC_SNAPSHOT!$F$43 -> 4.682347254 | K30: =IF(I30<>"**",I30-DETAILED_BASIC_SNAPSHOT!F43,"**") -> 0
B31: Wider spending | C31: Number of sports visits (based on regional sports visits as percentage of all visits data and LA total visits) multiplied by LA average spend per visit | I31: =I32+I33 -> 0.05909671244 | K31: =I31-DETAILED_BASIC_SNAPSHOT!F44 -> 0
B32: Spectator wider spending | C32: Number of sports visits (based on regional visits for the purpose of watching sport as percentage of all visits data and LA total visits) multiplied by LA average spend per visit | I32: =SUM(TOURISM!B30,TOURISM!C30)/1000000 -> 0.03801788856 | K32: =I32-DETAILED_BASIC_SNAPSHOT!F45 -> 0
B33: Participation wider spending | C33: Number of sports visits (based on regional sports visits for the purpose of participating in sport as percentage of all visits data and LA total visits) multiplied by LA average spend per visit | I33: =(TOURISM!B31+TOURISM!C31)/1000000 -> 0.02107882388 | K33: =I33-DETAILED_BASIC_SNAPSHOT!F46 -> 0
B35: * Employment estimate directly from BRES and must be supressed by rounding to the nearest 100 (any value below 50 is set to 25). ** The sample from the APS survey for volunteering in this area is too small to be disclosed.

Sheet GRAPHICS_DEFAULT (hidden)
B1: =LocalAreaTypeSelect & ": " & LocalAuthority -> Local authority: Adur
B2: Control panel
B5: ="Economic Value of Sport for "& LocalAuthority -> Economic Value of Sport for Adur
B6: ="Flowchart representation of key results from snapshot" -> Flowchart representation of key results from snapshot

Sheet GRAPHICS_REFINED (hidden)
B1: =LocalAreaTypeSelect & ": " & LocalAuthority -> Local authority: Adur
B2: Control panel
B5: ="Economic value of Sport for "& LocalAuthority -> Economic value of Sport for Adur
B6: ="Flowchart representation of key results from refined snapshot" -> Flowchart representation of key results from refined snapshot

Sheet ADDEVENTS (hidden)
B1: =LocalAreaTypeSelect & ": " & LocalAuthority -> Local authority: Adur
B6: ="Additional Impact for " & LocalAuthority -> Additional Impact for Adur
B7: Contains full list of option for user to adjust
B8: All users inputs are denoted by a yellow background
B9: Note: Values for additional impacts will be reset if the local authority is changed
B10: Spectator Sports | C10: Additional Impact | D10: Baseline Value
B11: Spectator Sports Jobs | D11: =IF(OR(RecurrEventExp<>0,OneEventExp<>0),SPECTATOR!B23,SNAPSHOT!E30) -> 25* | E11: =HYPERLINK(GuidanceFileName,"For guidance: see pages 49-50") -> For guidance: see pages 49-50
B12: * Employment estimate directly from BRES and must be supressed by rounding to the nearest 100 (any value below 50 is set to 25). User inputs should be entered in as much detail as is available.
B13: Events
C14: Expenditure | D14: Spectator sports visits | E14: Spectator sports day visits | F14: Spectator sports overnight visits
B15: Recurring events | C15: 0 | D15: =SUM(E15:F15) -> 0
B16: One off events | C16: 0 | D16: =SUM(E16:F16) -> 0
B18: Recurring events | G18: Annual/one off events
B19: (To add additional events write an event name in a new row and the table will be expanded) | G19: (To add additional events write an event name in a new row and the table will be expanded)
B20: Event Name | C20: Number of tickets sold | D20: Average ticket price | E20: Number of events per year | G20: Event Name | H20: Number of tickets sold | I20: Average ticket price
B21: Event 1 | C21: 0 | D21: 0 | E21: 0 | G21: Event 1 | H21: 0 | I21: 0

Sheet EVENTS (hidden)
B1: =LocalAreaTypeSelect & ": " & LocalAuthority -> Local authority: Adur
B6: ="Adjustment from Baseline for " & LocalAuthority -> Adjustment from Baseline for Adur
B7: Contains full list of values that the user can adjust. For comparison, we show the base estimates used to calculate the default results. All users inputs are denoted by a yellow background
B8: Note: Adjustments will be reset if the local authority is changed.
B9: * Employment estimate directly from BRES and must be supressed by rounding to the nearest 100. User inputs should be entered in as much detail as is available.
B10: =HYPERLINK(GuidanceFileName,"For guidance: see pages 34-39") -> For guidance: see pages 34-39
B11: Spectator Sports | C11: New baseline value | D11: Default baseline value | E11: Difference from default
B12: Spectator Sports Jobs | D12: =IF(SPECTATOR!B16<50,"25*",ROUND(SPECTATOR!B16,-2)) -> 25* | E12: =IF(SpecEmpFix>0,SpecEmpFix-D12,"N/A") -> N/A
B14: Events | H14: Large sports club/venue
C15: Expenditure | D15: Spectator sports visits | E15: Spectator sports day visits | F15: Spectator sports overnight visits | H15: If you have estimated the GVA of a professional sports club in your area, please enter the figure here, and also enter their ticket sales in the box below with an average price of zero.
B16: Recurring events | C16: 0 | D16: =SUM(E16:F16) -> 0 | H16: GVA
B17: One off events | C17: 0 | D17: =SUM(E17:F17) -> 0
B19: Recurring events | G19: Annual/One off events
B20: (To add additional events write an event name in a new row and the table will be expanded) | G20: (To add additional events write an event name in a new row and the table will be expanded)
B22: Event Name | C22: Number of tickets sold | D22: Average ticket price | E22: Number of events per year | G22: Event Name | H22: Number of tickets sold | I22: Average ticket price
B23: Event 1 | C23: 0 | D23: 0 | E23: 0 | G23: Event 1 | H23: 0 | I23: 0

Sheet ADJUST (hidden)
B1: =LocalAreaTypeSelect & ": " & LocalAuthority -> Local authority: Adur
B6: ="Adjustment from Baseline for " & LocalAuthority -> Adjustment from Baseline for Adur
B7: Contains full list of values that the user can adjust. For comparison, we show the base estimates used to calculate the default results. All users inputs are denoted by a yellow background
B8: Note: Adjustments will be reset if the local area is changed.
B9: * Employment estimate directly from BRES and must be supressed by rounding to the nearest 100. User inputs should be entered in as much detail as is available.
B11: TV & satellite subscriptions | C11: New baseline value | D11: Default baseline value | E11: Difference from default
B12: Sports TV subscriptions jobs | D12: N/A | E12: N/A | F12: =HYPERLINK(GuidanceFileName,"For guidance: see pages 32-33") -> For guidance: see pages 32-33
B14: Sports gambling | C14: New baseline value | D14: Default baseline value | E14: Difference from default
B15: Online betting jobs | D15: 0 | E15: =IF(SUM(C15:C16)<>0,OnlineGambleEmpFix+ShopBettingAdjust-SUM(D15:D16),"N/A") -> N/A | F15: =HYPERLINK(GuidanceFileName,"For guidance: see pages 32-33") -> For guidance: see pages 32-33
B16: Shop betting jobs | D16: =GambleEmpEst -> 9
B18: Sporting goods (Equipment and sportswear) | C18: New baseline value | D18: Default baseline value | E18: Difference from default
B19: Manufacture and retail of sporting goods jobs | D19: =SUM(ConsSpEquipEmpEst,ConsSpWearEmpEst,ParSpEquipEmpEst,ParSpWearEmpEst) -> 22 | E19: =IF(SportGoodsEmpFix>0,SportGoodsEmpFix-D19,"N/A") -> N/A | F19: =HYPERLINK(GuidanceFileName,"For guidance: see page 31") -> For guidance: see page 31
B21: Spectator sports | C21: New baseline value | D21: Default baseline value | E21: Difference from default
B22: Number of tickets sold | D22: 0
B23: Average price per ticket | D23: =TicketPriceEst -> 12.5 | E23: =IF(TicketPriceFix>0,TicketPriceFix-TicketPriceEst,"N/A") -> N/A
B25: Sports services | C25: New baseline value | D25: Default baseline value | E25: Difference from default
B26: Sports services jobs | D26: =SubscriptEmpEst+PARTI_SPORT!B22 -> 234.0108978 | E26: =IF(SubscriptEmpFix>0,SubscriptEmpFix-D26,"N/A") -> N/A | F26: =HYPERLINK(GuidanceFileName,"For guidance: see pages 30-31") -> For guidance: see pages 30-31
B28: Wider Spending | C28: New baseline value | D28: Default baseline value | E28: Difference from default | F28: =HYPERLINK(GuidanceFileName,"For guidance: see page 40") -> For guidance: see page 40
B29: Overnight visits
B30: Spectator sports visits | D30: =SpectateTourVisitEst -> 11 | E30: =IF(SpectateTourVisitFix>0,SpectateTourVisitFix-SpectateTourVisitEst,"N/A") -> N/A | F30: Note: Derived from Spectators sports inputs
B31: Participation sports visits | D31: =PartTourVisitEst -> 54.7 | E31: =IF(PartTourVisitFix>0,PartTourVisitFix-PartTourVisitEst,"N/A") -> N/A
B33: Average spend per spectating trip | D33: =SpecTourSpendEst -> 157.7066667 | E33: =IF(SpecTourSpendFix>0,SpecTourSpendFix-SpecTourSpendEst,"N/A") -> N/A
B34: Average spend per participation trip | D34: =PartTourSpendEst -> 163.0666667 | E34: =IF(PartTourSpendFix>0,PartTourSpendFix-PartTourSpendEst,"N/A") -> N/A
B35: Day Visits
B36: Spectator sports visits | D36: =SpectateDayTourVisitEst -> 1613.299921 | E36: =IF(SpectateDayTourVisitFix>0,SpectateDayTourVisitFix-SpectateDayTourVisitEst,"N/A") -> N/A | F36: Note: Derived from Spectators sports inputs
B37: Participation sports visits | D37: =PartDayTourVisitEst -> 1144.922525 | E37: =IF(PartDayTourVisitFix>0,PartDayTourVisitFix-PartDayTourVisitEst,"N/A") -> N/A
B39: Average spend per spectating trip | D39: =SpecDayTourSpendEst -> 22.49 | E39: =IF(SpecDayTourSpendFix>0,SpecDayTourSpendFix-SpecDayTourSpendEst,"N/A") -> N/A
B40: Average spend per participation trip | D40: =PartDayTourSpendEst -> 10.62 | E40: =IF(PartDayTourSpendFix>0,PartDayTourSpendFix-PartDayTourSpendEst,"N/A") -> N/A
B42: Education | C42: New baseline value | D42: Default baseline value | E42: Difference from default
B43: Further education students on sport related courses | D43: 0 | E43: =IF(FEEducationFix>0,FEEducationFix-0,"N/A") -> N/A | F43: =HYPERLINK(GuidanceFileName,"For guidance: see pages 31-32") -> For guidance: see pages 31-32
B44: Further education jobs for sports related courses | D44: 0 | E44: =IF(FEEducationStaffFix>0,FEEducationStaffFix-0,"N/A") -> N/A
B45: School sports premium | D45: 0 | E45: =IF(PupilPremiumFix>0,PupilPremiumFix-D45,"N/A") -> N/A

Sheet ADDITIONAL_IMPACT_INPUTS (hidden)
B1: =LocalAreaTypeSelect & ": " & LocalAuthority -> Local authority: Adur
B6: ="Additional Impact for " & LocalAuthority -> Additional Impact for Adur
B7: Contains full list of option for user to adjust
B8: All users inputs are denoted by a yellow background
B9: Note: Values for additional impacts will be reset if the local area is changed
B10: Participation | C10: Additional Impact | D10: Baseline value | F10: =HYPERLINK(GuidanceFileName,"For guidance: see pages 44-48") -> For guidance: see pages 44-48
B11: Expected additional participants | D11: =SUM(HEALTH!B20:E20) -> 18421.87645 | F11: Note: Participation drives the following modules: Health, sports services and sports equipment & sportswear.
C12: 0
B13: Estimated participant breakdown | C13: Athletics | D13: Badminton | E13: Cricket | F13: Golf | G13: Squash | H13: Tennis | I13: Swimming | J13: Football | K13: Cycling | L13: Health & fitness | M13: Total
B14: 16-29 | M14: =SUM(B14:L14) -> 0
B15: 30-49 | M15: =SUM(B15:L15) -> 0
B16: 50-64 | M16: 0
B17: 65+ | M17: 0
B18: Total | C18: =SUM(C14:C17) -> 0 | D18: =SUM(D14:D17) -> 0 | E18: 0 | F18: 0 | G18: 0 | H18: 0 | I18: 0 | J18: 0 | K18: 0 | L18: 0 | M18: =SUM(AddPartEstColTotal) -> 0
B20: Participant share of total | C20: Athletics | D20: Badminton | E20: Cricket | F20: Golf | G20: Squash | H20: Tennis | I20: Swimming | J20: Football | K20: Cycling | L20: Health & fitness | M20: Total
B21: 16-29 | C21: =IF($M$18=0,0,C14/$M$18) -> 0 | D21: 0 | E21: 0 | F21: 0 | G21: 0 | H21: 0 | I21: 0 | J21: 0 | K21: 0 | L21: 0 | M21: 0
B22: 30-49 | C22: =IF($M$18=0,0,C15/$M$18) -> 0 | D22: 0 | E22: 0 | F22: 0 | G22: 0 | H22: 0 | I22: 0 | J22: 0 | K22: 0 | L22: 0 | M22: 0
B23: 50-64 | C23: =IF($M$18=0,0,C16/$M$18) -> 0 | D23: 0 | E23: 0 | F23: 0 | G23: 0 | H23: 0 | I23: 0 | J23: 0 | K23: 0 | L23: 0 | M23: 0
B24: 65+ | C24: =IF($M$18=0,0,C17/$M$18) -> 0 | D24: 0 | E24: 0 | F24: 0 | G24: 0 | H24: 0 | I24: 0 | J24: 0 | K24: 0 | L24: 0 | M24: 0
B25: Total | C25: =IF($M$18=0,0,C18/$M$18) -> 0 | D25: 0 | E25: 0 | F25: 0 | G25: 0 | H25: 0 | I25: 0 | J25: 0 | K25: 0 | L25: 0 | M25: =IF($M$18=0,0,M18/$M$18) -> 0
B27: Volunteering | C27: =C10 -> Additional Impact | D27: Baseline Value
B28: Expected additional volunteers | D28: =IF(VOLUNTEER!B13>30,VOLUNTEER!B13,"**") -> 7661.283192 | E28: =HYPERLINK(GuidanceFileName,"For guidance: see page 75") -> For guidance: see page 75
B30: Wider spending | C30: Additional Impact | D30: Baseline Value | E30: =HYPERLINK(GuidanceFileName,"For guidance: see page 50") -> For guidance: see page 50
B31: Overnight visits
B32: Spectator sports visits | D32: =TOURISM!B21 -> 11 | E32: Note: Derived from Spectators sports inputs
B33: Participation sports visits | D33: =TOURISM!B22 -> 54.7
B35: Average spend per spectating trip | D35: =TOURISM!B18 -> 157.7066667
B36: Average spend per participation trip | D36: =TOURISM!B19 -> 163.0666667
B37: Day Visits
B38: Spectator sports visits | D38: =TOURISM!C21 -> 1613.299921 | E38: Note: Derived from Spectators sports inputs
B39: Participation sports visits | D39: =TOURISM!C22 -> 1144.922525
B41: Average spend per spectating trip | D41: =TOURISM!C18 -> 22.49
B42: Average spend per participation trip | D42: =TOURISM!C19 -> 10.62
B43: Education | C43: Additional Impact | D43: Baseline Value
B44: Additional further education students on sport related courses | D44: =EDUCATION!B28 -> 0
B45: Additional further education staff for sports related courses | D45: =EDUCATION!B29 -> 0
B47: Construction | C47: Additional Impact
B48: Value of Investment in construction projects | D48: =HYPERLINK(GuidanceFileName,"For guidance: see page 44") -> For guidance: see page 44
B49: Average Number of years to construction projects completion

Sheet CONSTRUCTION (hidden)
A1: Go back to CONTENTS sheet.
A2: CONSTRUCTION | C2: Description:
A3: Participation sport module
A5: Additional Impact | B5: Value | C5: Source
A6: Additional GVA | B6: =B7*ConstructionGVAMultiplierAssum -> 0 | C6: Calculated
A7: Additional annual Investment | B7: =IF(ConstructionTimeAdd<>0,ConstructionInvestmentAdd/ConstructionTimeAdd,0) -> 0 | C7: Calculated
A8: Additional jobs | B8: =B7/1000000*ConstructionEmpMultiplierAssum -> 0 | C8: Calculated

Sheet ADDITIONAL_IMPACT_RESULTS (hidden)
B1: =LocalAreaTypeSelect & ": " & LocalAuthority -> Local authority: Adur
B3: Navigation:
B4: Contextual:
B5: ADDITIONAL IMPACT ASSESSMENT: RESULTS | G5: Level 3 gives you the option to estimate the additional impact of a sport investment. You need to consider and input what will be the effects of the investment (for example on participation or tourism). The model will then estimate the economic impacts. Note: Gross value added (GVA) is the value added contributed by a sector, which is principally wages plus profits
B6: =HYPERLINK(GuidanceFileName,"For guidance: see pages 43-54") -> For guidance: see pages 43-54
D7: Additional GVA | E7: Additional jobs
B8: Construction | C8: Total value of investment in the construction of sports facilities and number of years to construct the sports facilities | D8: =CONSTRUCTION!B6 -> 0 | E8: =CONSTRUCTION!B8 -> 0
B10: Participation | C10: How it is calculated? | D10: Additional GVA | E10: Additional jobs
B11: Sports services | C11: Additional participation in relevant sports, driving an increase in jobs (based on the baseline jobs per participant) | D11: =SUBSCRIPTION!B32+PARTI_SPORT!B27 -> 0 | E11: =SUBSCRIPTION!B29+PARTI_SPORT!B29 -> 0
B12: Sportswear and equipment | C12: Additional participation driving an increase in jobs (based on the baseline jobs per participant) | D12: =PARTI_EQUIP!B32+PARTI_WEAR!B32 -> 0 | E12: =PARTI_EQUIP!B31+PARTI_EQUIP!B31 -> 0
B13: Total participation | D13: =SUM(D11:D12) -> 0 | E13: =SUM(E11:E12) -> 0
B15: Non-Participation | D15: Additional GVA | E15: Additional jobs
B16: Spectator sports | C16: Number of additional ticket sales and price of tickets of additional sporting events | D16: =SPECTATOR!B29 -> 0 | E16: =SPECTATOR!B28 -> 0
B18: Wider impacts | F18: Wider Impact
B19: Health | C19: Additional Participants by sport and age (assuming distribution of participants across sports is as in England) multiplied by national per participant value | F19: =HEALTH!B47 -> 0
B20: Health cost savings | C20: Additional Participants by sport and age (assuming distribution of participants across sports is as in England) multiplied by national per participant health cost savings | F20: =HEALTH!B48 -> 0
B21: Other health benefits (QALY's etc) | C21: Participants by age (assuming distribution of participants across sports is as in England) multiplied by national per participant value of other health benefits | F21: =HEALTH!B49 -> 0
B22: Volunteering | C22: Additional volunteers generated by baseline volunteers per participant multiplied by additional participants then multiplied by average annual replacement cost | F22: =VOLUNTEER!B20 -> 0
B23: Wider Spending | C23: Number of additional overnight and day sports visits and/or additional spending generated by baseline sports visits | F23: =TOURISM!B39+TOURISM!C39 -> 0

Sheet ASSUMS (hidden)
A1: Go back to HOME sheet.
A2: ASSUMS
A3: Contains assumptions used throughout the model
A4: Retail categories | B4: GVA (Source: National study) | C4: Share of total national sports retail spending
A5: Consumption Sportswear share | B5: 0.4 | C5: =B5/SUM($B$5:$B$8) -> 0.1257861635
A6: Consumption Sports equipment share | B6: 1.5 | C6: =B6/SUM($B$5:$B$8) -> 0.4716981132
A7: Participation Sportswear share | B7: 0.08 | C7: =B7/SUM($B$5:$B$8) -> 0.0251572327
A8: Participation Sports equipment share | B8: 1.2 | C8: =B8/SUM($B$5:$B$8) -> 0.3773584906
A9: Total Sports Retail | B9: =SUM(B5:B8) -> 3.18 | C9: =SUM(C5:C8) -> 1
A11: Health assumptions | B11: (Source: CASE Understanding the value of engagement in culture and sport)
A12: Discounted health cost savings associated with playing sport | B12: Note: Orignial CASE data was on a 2009 price base. This has been rebased to 2013 Prices using the ONS GDP deflator
A13: Age Band | B13: Athletics | C13: Badminton | D13: Cricket | E13: Golf | F13: Squash | G13: Tennis | H13: Swimming | I13: Football | J13: Cycling | K13: Health/fitness
A14: 16-29 | B14: 2400.458377 | C14: 1502.876712 | D14: 2519.336143 | E14: 4358.124341 | F14: 3396.195996 | G14: 2426.633298 | H14: 3222.787144 | I14: 3570.695469 | J14: 3666.670179 | K14: 5881.722866
A15: 30-49 | B15: 3060.28451 | C15: 1915.131718 | D15: 3211.880927 | E15: 5556.717597 | F15: 4329.768177 | G15: 3094.093783 | H15: 4109.462592 | I15: 4552.255005 | J15: 4675.495258 | K15: 7499.114858
A16: 50-64 | B16: 2488.798736 | C16: 1605.395153 | D16: 2620.763962 | E16: 4277.418335 | F16: 3469.26765 | G16: 2459.351949 | H16: 3338.393045 | I16: 3559.789252 | J16: 3582.692308 | K16: 5660.32666
A17: 65+ | B17: 677.2760801 | C17: 446.0642782 | D17: 714.3572181 | E17: 1115.706006 | F17: 933.5721812 | G17: 657.6448894 | H17: 907.3972603 | I17: 940.1159115 | J17: 931.3909378 | K17: 1452.708114
A19: Discounted health economic values associated with playing sport
A20: Age Band | B20: Athletics | C20: Badminton | D20: Cricket | E20: Golf | F20: Squash | G20: Tennis | H20: Swimming | I20: Football | J20: Cycling | K20: Health/fitness
A21: 16-29 | B21: 15686.41201 | C21: 9743.614331 | D21: 16450.93783 | E21: 28861.12223 | F21: 22279.22023 | G21: 15952.52371 | H21: 21070.81138 | I21: 23558.51949 | J21: 24309.95785 | K21: 39130.41623
A22: 30-49 | B22: 20040.17387 | C22: 12447.26554 | D22: 21016.2803 | E22: 36868.46681 | F22: 28461.95469 | G22: 20378.2666 | H22: 26917.63435 | I22: 30094.61538 | J22: 31053.27187 | K22: 49984.28346
A23: 50-64 | B23: 13353.57218 | C23: 8536.296101 | D23: 14048.29821 | E23: 23357.8451 | F23: 18703.07165 | G23: 13290.31612 | H23: 17921.09589 | I23: 19338.90411 | J23: 19593.01897 | K23: 31105.62171
A24: 65+ | B24: 6465.205479 | C24: 4187.987355 | D24: 6812.023182 | E24: 11036.00105 | F24: 8996.538462 | G24: 6369.230769 | H24: 8673.714436 | I24: 9202.665964 | J24: 9238.656481 | K24: 14565.2529
A26: Factor for lifetime to per annum values | B26: 21.27
A27: Volunteer Assumtions | B27: Source National study
A28: Equivilent wage rate | B28: 7.74
A29: Participation assumptions | B29: (Source: APS data for England)
A31: Participation share | B31: Athletics | C31: Badminton | D31: Cricket | E31: Golf | F31: Squash | G31: Tennis | H31: Swimming | I31: Football | J31: Cycling | K31: Health/fitness
A32: 16-29 | B32: =PARTICIPATION!B400 -> 0.04069150383 | C32: =PARTICIPATION!C400 -> 0.009242800681 | D32: =PARTICIPATION!D400 -> 0.004685427615 | E32: =PARTICIPATION!E400 -> 0.003610233325 | F32: =PARTICIPATION!F400 -> 0.003506229985 | G32: =PARTICIPATION!G400 -> 0.006987873811 | H32: =PARTICIPATION!H400 -> 0.03878632651 | I32: =PARTICIPATION!I400 -> 0.0709725553 | J32: =PARTICIPATION!J400 -> 0.03034923174 | K32: =PARTICIPATION!K400 -> 0.1260051954
A33: 30-49 | B33: =PARTICIPATION!B401 -> 0.0610551095 | C33: =PARTICIPATION!C401 -> 0.009753568728 | D33: =PARTICIPATION!D401 -> 0.003403350705 | E33: =PARTICIPATION!E401 -> 0.008418196451 | F33: =PARTICIPATION!F401 -> 0.005385257301 | G33: =PARTICIPATION!G401 -> 0.006581548191 | H33: =PARTICIPATION!H401 -> 0.0651758293 | I33: =PARTICIPATION!I401 -> 0.0308197737 | J33: =PARTICIPATION!J401 -> 0.05297154651 | K33: =PARTICIPATION!K401 -> 0.1512925645
A34: 50-64 | B34: =PARTICIPATION!B402 -> 0.01490202289 | C34: =PARTICIPATION!C402 -> 0.006301929147 | D34: =PARTICIPATION!D402 -> 0.000789885253 | E34: =PARTICIPATION!E402 -> 0.01383546216 | F34: =PARTICIPATION!F402 -> 0.002944593437 | G34: =PARTICIPATION!G402 -> 0.005402036721 | H34: =PARTICIPATION!H402 -> 0.03677066252 | I34: =PARTICIPATION!I402 -> 0.005572257071 | J34: =PARTICIPATION!J402 -> 0.02572070844 | K34: =PARTICIPATION!K402 -> 0.07043794965
A35: 65+ | B35: =PARTICIPATION!B403 -> 0.001575628016 | C35: =PARTICIPATION!C403 -> 0.002706185961 | D35: =PARTICIPATION!D403 -> 0.0001660697576 | E35: =PARTICIPATION!E403 -> 0.01584976549 | F35: =PARTICIPATION!F403 -> 0.0005221341188 | G35: =PARTICIPATION!G403 -> 0.003356771996 | H35: =PARTICIPATION!H403 -> 0.0179288599 | I35: =PARTICIPATION!I403 -> 0.000693153446 | J35: =PARTICIPATION!J403 -> 0.008199677831 | K35: =PARTICIPATION!K403 -> 0.03663012309
A36: Total | B36: =SUM(B32:B35) -> 0.1182242642 | C36: =SUM(C32:C35) -> 0.02800448452 | D36: 0.009044733331 | E36: 0.04171365743 | F36: 0.01235821484 | G36: 0.02232823072 | H36: 0.1586616782 | I36: 0.1080577395 | J36: 0.1172411645 | K36: 0.3843658327
A38: National Conumption and participation GVA assumptions | B38: (Source: Sport England National study)
B39: GVA (2010) | C39: Consumer Expenditure (2010) | E39: GVA (2013)* | F39: Consumer Expenditure (2013)*
A40: Sport education | B40: 4.9 | C40: 1.4 | E40: =B40*$B$57/100 -> 5.1744 | F40: =C40*$B$57/100 -> 1.4784
A41: Sport/class subscription fees | B41: 4.4 | C41: Not available | E41: =B41*$B$57/100 -> 4.6464 | F41: Not available
A42: Participation sport | B42: 1.2 | C42: Not available | E42: 1.2672 | F42: Not available
A43: Sports equipment | B43: 1.2 | C43: 1.73 | E43: 1.2672 | F43: 1.82688
A44: Sportswear | B44: 0.08 | C44: 0.65 | E44: 0.08448 | F44: 0.6864
E45: 0 | F45: 0
A46: Spectator sports | B46: 1.1 | C46: Not available | E46: 1.1616 | F46: Not available
A47: Sports equipment | B47: 1.5 | C47: 2.16 | E47: 1.584 | F47: 2.28096
A48: Sportswear | B48: 0.4 | C48: 3.154 | E48: 0.4224 | F48: 3.330624
A49: Sports Gambling | B49: 1.1 | C49: 4.9 | E49: 1.1616 | F49: 5.1744
A50: TV/satellite subscriptions | B50: 4.4 | C50: 2.3 | E50: 4.6464 | F50: 2.4288
B51: Economic Value (2010) | C51: Economic Value (2013)*
A52: Volunteering | B52: 2.7 | C52: =B57*B52/100 -> 2.8512
B55: * Uses The 2012 GDP deflator to inflate national study figures from 2010 to 2012 prices
A57: GDP Deflator 2013 (2010=100) | B57: 105.6 | C57: Source: ONS BlueBook 2013 Gross Domestic Product (Expenditure) at market prices deflator: SA £m (YBGB)
A59: Education assumptions | B59: Source: Sport England National study
A60: Further education Share of education spending | B60: 0.11
